Workbook

Sheet Input
A1: INPUT
C3: Master Check | E3: =Check!$D$62 -> 0.1735100603
C5: Timeline and Flags | D5: Unit | E5: Var 1 | F5: Var 2 | G5: Var 3 | H5: Explanatory | I5: Row Sum | J5: Actual | K5: Actual | L5: Actual | M5: Actual | N5: Actual | O5: Actual | P5: Actual | Q5: Forecast | R5: Bridge | S5: Test | T5: Forecast | U5: Forecast | V5: Forecast | W5: Forecast
C6: Calendar Year | J6: 2011 | K6: 2012 | L6: 2013 | M6: 2014 | N6: 2015 | O6: 2016 | P6: 2017 | Q6: 2018 | R6: 2019 | S6: 2020 | T6: 2021 | U6: 2022 | V6: 2023 | W6: 2024
A8: General, Mappings, Customer, Volume and Demand
C10: General
C12: Months in a Year | D12: month / year | E12: 12
C13: Half Period | E13: 0.5
C14: LEAP Funding | D14: % | E14: 0.0012
C16: Mapping of Rate Classes and Asset Groups
C18: Mapping of Rate Classes, Rate Classes and Cost Allocation Classes, Rate Groups
C20: Rate Class
C21: Rate 1 - Residential
C22: Rate 1 - Commercial
C23: Rate 1 - Industrial
C24: Rate 2
C25: Rate 3
C26: Rate 4
C27: Rate 5
C28: Rate 6
C30: Cost Allocation Class | E30: Rate Class (Mapped To)
C31: Rate 1 - Residential | E31: Rate 1 - Residential
C32: Rate 1 - Commercial | E32: Rate 1 - Commercial
C33: Rate 1 - Industrial | E33: Rate 1 - Industrial
C34: Rate 2 | E34: Rate 2
C35: Rate 3 | E35: Rate 3
C36: Rate 4 | E36: Rate 4
C37: Rate 5 | E37: Rate 5
C38: Rate 6 - Allocated | E38: Rate 6
C39: Rate 6 - Direct Assigned | E39: Rate 6
C41: Rate Group | E41: Rate Class (Mapped To) | F41: Cost Allocation Class (Mapped To)
C42: Rate 1 - Residential | E42: =INDEX($E$31:$E$39,MATCH($F42,$C$31:$C$39,0),1) -> Rate 1 - Residential | F42: Rate 1 - Residential
C43: Rate 1 - Commercial | E43: Rate 1 - Commercial | F43: Rate 1 - Commercial
C44: Rate 1 - Industrial | E44: Rate 1 - Industrial | F44: Rate 1 - Industrial
C45: Rate 2 - Apr to Oct | E45: Rate 2 | F45: Rate 2
C46: Rate 2 - Nov to Mar | E46: Rate 2 | F46: Rate 2
C47: Rate 3 | E47: Rate 3 | F47: Rate 3
C48: Rate 4 - Apr to Dec | E48: Rate 4 | F48: Rate 4
C49: Rate 4 - Jan to Mar | E49: Rate 4 | F49: Rate 4
C50: Rate 5 | E50: Rate 5 | F50: Rate 5
C51: Rate 6 | E51: Rate 6 | F51: Rate 6 - Allocated
C53: Mapping of Asset Groups to USoA
C55: USoA Number | E55: USoA
C56: 401 | E56: Frachises and Consents
C57: 461 | E57: Land Rights - Transmission
C58: 465 | E58: Mains - Transmission
C59: 467 | E59: Measuring and Regulating Equipment - Transmission
C60: 471 | E60: Land Rights - Distribution
C61: 472 | E61: Structures and Improvements - Distribution
C62: 473 | E62: Services
C63: 474 | E63: Regulators and Meter Installations
C64: 475 | E64: Mains - Distribution
C65: 476 | E65: Compressor Equipment
C66: 477 | E66: Measuring and Regulating Equipment - Distribution
C67: 478 | E67: Meter
C68: 480 | E68: Land
C69: 482 | E69: Structures and Improvements - General
C70: 483 | E70: Office Furniture and Equipment
C71: 484 | E71: Transportation Equipment
C72: 485 | E72: Heavy Work Equipment
C73: 486 | E73: Tools and Work Equipment
C74: 488 | E74: Communication Structures and Equipment
C75: 490 | E75: Computer Hardware
C76: 491 | E76: Computer Application Software
C77: 475b | E77: Mains - IGPC
C78: 478b | E78: Meter - IGPC
C79: USoA 24
C80: USoA 25
C82: New Asset Group | E82: Depreciation Rate | F82: Depreciation Method | G82: CCA Class | H82: New Asset Group Number | I82: USoA # | J82: USoA Description
C83: Land | D83: =INDEX($C$139:$C$168,MATCH(C83,$E$139:$E$168,0),1) -> Land | E83: 0 | F83: Straightline | H83: 48000 | I83: =IFERROR(VALUE(LEFT(H83,3)),0) -> 480 | J83: =IFERROR(INDEX($E$56:$E$80,MATCH($I83,$C$56:$C$80,0)),0) -> Land
C84: Structures & Improvements - General Plant | D84: =INDEX($C$139:$C$168,MATCH(C84,$E$139:$E$168,0),1) -> Building | E84: 0.01920122888 | F84: Straightline | G84: Class 1 | H84: 48200 | I84: 482 | J84: Structures and Improvements - General
C85: Furnishing / Office Equipment | D85: Furniture & Fixtures | E85: 0.06666666667 | F85: Straightline | G85: Class 8 | H85: 48300 | I85: 483 | J85: Office Furniture and Equipment
C86: Computer Equipment | D86: Computer Hardware | E86: 0.25 | F86: Straightline | G86: Class 50 | H86: 49000 | I86: 490 | J86: Computer Hardware
C87: Software - Acquired | D87: Computer Software | E87: 0.1 | F87: Straightline | G87: Class 12 | H87: 49100 | I87: 491 | J87: Computer Application Software
C88: Tools and Work Equipment | D88: Machinery & Equipment | E88: 0.06666666667 | F88: Straightline | G88: Class 8 | H88: 48600 | I88: 486 | J88: Tools and Work Equipment
C89: Communications Equipment - Hardware | D89: Communication Equipment | E89: 0.06666666667 | F89: Straightline | G89: Class 8 | H89: 48800 | I89: 488 | J89: Communication Structures and Equipment
C90: Vehicles - Transportation Equipment (ENGLP) | D90: Automotive Equipment - Transport Vehicles | E90: 0.166 | F90: Straightline | G90: Class 10 | H90: 48400 | I90: 484 | J90: Transportation Equipment
C91: Vehicle - Heavy Work Equipment | D91: Automotive Equipment - Heavy Equipment | E91: 0.06920415225 | F91: Straightline | G91: Class 10 | H91: 48500 | I91: 485 | J91: Heavy Work Equipment
C92: Meters - Residential | D92: Meters - Resendential | E92: 0.1 | F92: Straightline | G92: Class 51 | H92: 47800 | I92: 478 | J92: Meter
C93: Meters - Commercial | D93: Meters - Commercial | E93: 0.05 | F93: Straightline | G93: Class 51 | H93: 47801 | I93: 478 | J93: Meter
C94: Meter - IGPC New | D94: Meter - IGPC | E94: 0.1666666667 | F94: Straightline | G94: Class 51 | H94: 47800 | I94: 478b | J94: Meter - IGPC
C95: Regulators - New | D95: Regulators - New | E95: 0.05 | F95: Straightline | G95: Class 51 | H95: 47400 | I95: 474 | J95: Regulators and Meter Installations
C96: Measuring and Regulating Equipment | D96: Regulators | E96: 0.03660322108 | F96: Straightline | G96: Class 51 | H96: 47700 | I96: 477 | J96: Measuring and Regulating Equipment - Distribution
C97: Mains - Plastic (Distribution Plant) | D97: Plastic Mains - Distribution | E97: 0.0231000231 | F97: Straightline | G97: Class 51 | H97: 47502 | I97: 475 | J97: Mains - Distribution
C98: Mains - Metallic (Distribution Plant) | D98: Steel Mains - Distribution | E98: 0.02829654782 | F98: Straightline | G98: Class 51 | H98: 47501 | I98: 475 | J98: Mains - Distribution
C99: Mains - Metallic (IGPC) | D99: Ethanol Pipeline - IGPC Project | E99: 0.01979805979 | F99: Straightline | G99: Class 51 | H99: 47501 | I99: 475b | J99: Mains - IGPC
C100: Services - Plastic | D100: Plastic Service Lines | E100: 0.02510040161 | F100: Straightline | G100: Class 51 | H100: 47302 | I100: 473 | J100: Services
C101: Franchises & Consents - Legacy | D101: Other Assets - Legacy | E101: 0.048 | F101: Straightline | G101: Class 14.1 | H101: 40100 | I101: 401 | J101: Frachises and Consents
C102: Franchises & Consents | D102: Other Assets | E102: 0.05 | F102: Straightline | G102: Class 14.1 | H102: 40101 | I102: 401 | J102: Frachises and Consents
C103: Vehicles - Legacy New | D103: Vehicles - Legacy | E103: =1/6.02 -> 0.1661129568 | F103: Straightline | G103: Class 10 | H103: 48400 | I103: 484 | J103: Transportation Equipment
C104: New Asset Group 22 | I104: 0 | J104: 0
C105: New Asset Group 23 | I105: 0 | J105: 0
C106: New Asset Group 24 | I106: 0 | J106: 0
C107: New Asset Group 25 | I107: 0 | J107: 0
C109: Existing Asset Group | E109: Depreciation Rate | F109: Depreciation Method | G109: CCA Class | H109: Asset Group Number | I109: USoA # | J109: USoA Description
C110: Land | E110: 0 | F110: Straightline | H110: 48000 | I110: =IFERROR(VALUE(LEFT(H110,3)),0) -> 480 | J110: =IFERROR(INDEX($E$56:$E$80,MATCH($I110,$C$56:$C$80,0)),0) -> Land
C111: Building | E111: 0.0222 | F111: Straightline | G111: Class 1 | H111: 48200 | I111: =IFERROR(VALUE(LEFT(H111,3)),0) -> 482 | J111: Structures and Improvements - General
C112: Furniture & Fixtures | E112: 0.0675 | F112: Straightline | G112: Class 8 | H112: 48300 | I112: 483 | J112: Office Furniture and Equipment
C113: Computer Hardware | E113: 0.3333 | F113: Declining Balance | G113: Class 50 | H113: 49000 | I113: 490 | J113: Computer Hardware
C114: Computer Software | E114: 0.2 | F114: Declining Balance | G114: Class 12 | H114: 49100 | I114: 491 | J114: Computer Application Software
C115: Machinery & Equipment | E115: 0.0922 | F115: Declining Balance | G115: Class 8 | H115: 48600 | I115: 486 | J115: Tools and Work Equipment
C116: Communication Equipment | E116: 0.0773 | F116: Straightline | G116: Class 8 | H116: 48800 | I116: 488 | J116: Communication Structures and Equipment
C117: Automotive Equipment - Transport Vehicles | E117: 0.166 | F117: Straightline | G117: Class 10 | H117: 48400 | I117: 484 | J117: Transportation Equipment
C118: Meters - Resendential | E118: 0.0362 | F118: Straightline | G118: Class 51 | H118: 47800 | I118: 478 | J118: Meter
C119: Meter - IGPC | E119: 0.03623188406 | F119: Straightline | G119: Class 51 | H119: 47800 | I119: 478b | J119: Meter - IGPC
C120: Regulators | E120: 0.0367 | F120: Straightline | G120: Class 51 | H120: 47400 | I120: 474 | J120: Regulators and Meter Installations
C121: Meters - Commercial | E121: 0.0362 | F121: Straightline | G121: Class 51 | H121: 47800 | I121: 478 | J121: Meter
C122: Plastic Mains - Distribution | E122: 0.0323996 | F122: Straightline | G122: Class 51 | H122: 47502 | I122: =IFERROR(VALUE(LEFT(H122,3)),0) -> 475 | J122: Mains - Distribution
C123: Steel Mains - Distribution | E123: 0.1345 | F123: Straightline | G123: Class 51 | H123: 47501 | I123: =IFERROR(VALUE(LEFT(H123,3)),0) -> 475 | J123: Mains - Distribution
C124: Ethanol Pipeline - IGPC Project | E124: 0.05 | F124: Straightline | G124: Class 51 | H124: 47501 | I124: 475b | J124: Mains - IGPC
C125: Plastic Service Lines | E125: 0.0333 | F125: Straightline | G125: Class 51 | H125: 47302 | I125: =IFERROR(VALUE(LEFT(H125,3)),0) -> 473 | J125: Services
C126: Other Assets - Legacy | E126: 0.048 | F126: Straightline | G126: Class 14.1 | H126: 40100 | I126: 401 | J126: Frachises and Consents
C127: Other Assets | E127: 0.05 | F127: Straightline | G127: Class 14.1 | H127: 40101 | I127: 401 | J127: Frachises and Consents
C128: Vehicles - Legacy | E128: 0.1661129568 | F128: Straightline | G128: Class 10 | H128: 48400 | I128: 484 | J128: Transportation Equipment
C129: Automotive Equipment - Heavy Equipment | E129: 0.166 | F129: Straightline | G129: Class 10 | H129: 48400 | I129: 484 | J129: Transportation Equipment
C130: Regulators - New | E130: 0.03669724771 | F130: Straightline | G130: Class 51 | H130: 47400 | I130: 474 | J130: Regulators and Meter Installations
C131: Existing Asset Group 22 | I131: 0 | J131: 0
C132: Existing Asset Group 23 | I132: 0 | J132: 0
C133: Existing Asset Group 24 | I133: 0 | J133: 0
C134: Existing Asset Group 25 | I134: 0 | J134: 0
C136: Transfer of Assets from Existing Asset Groups to New Asset Groups in 2020
C138: Existing Asset Group (Transfer from) | E138: New Asset Group (Transfer to) | F138: % of Transfer | G138: Closing G. Asset Value with Adjsutments Incl. CIAC Trans. ($) | H138: Closing A.D. with Adjustments Incl. CIAC Trans. ($) | I138: Closing G. Asset Value of CIAC Trans. ($) | J138: Closing A.D. of CIAC Trans. ($)
C139: Land | E139: Land | F139: 1 | G139: =IFERROR(INDEX(Calculation!$R$1981:$R$2005,MATCH($C139,Calculation!$C$1981:$C$2005,0),1),0)*$F139 -> 122700.43 | H139: =IFERROR(INDEX(Calculation!$R$2095:$R$2119,MATCH($C139,Calculation!$C$2095:$C$2119,0),1),0)*$F139 -> 0 | I139: =IFERROR(INDEX(Calculation!$R$2270:$R$2294,MATCH($C139,Calculation!$C$2270:$C$2294,0),1),0)*$F139 -> 0 | J139: =IFERROR(INDEX(Calculation!$R$2384:$R$2408,MATCH($C139,Calculation!$C$2384:$C$2408,0),1),0)*$F139 -> 0
C140: Building | E140: Structures & Improvements - General Plant | F140: 1 | G140: =IFERROR(INDEX(Calculation!$R$1981:$R$2005,MATCH($C140,Calculation!$C$1981:$C$2005,0),1),0)*$F140 -> 730632.78 | H140: =IFERROR(INDEX(Calculation!$R$2095:$R$2119,MATCH($C140,Calculation!$C$2095:$C$2119,0),1),0)*$F140 -> -294516.6181 | I140: =IFERROR(INDEX(Calculation!$R$2270:$R$2294,MATCH($C140,Calculation!$C$2270:$C$2294,0),1),0)*$F140 -> 0 | J140: =IFERROR(INDEX(Calculation!$R$2384:$R$2408,MATCH($C140,Calculation!$C$2384:$C$2408,0),1),0)*$F140 -> 0
C141: Furniture & Fixtures | E141: Furnishing / Office Equipment | F141: 1 | G141: =IFERROR(INDEX(Calculation!$R$1981:$R$2005,MATCH($C141,Calculation!$C$1981:$C$2005,0),1),0)*$F141 -> 112535.84 | H141: =IFERROR(INDEX(Calculation!$R$2095:$R$2119,MATCH($C141,Calculation!$C$2095:$C$2119,0),1),0)*$F141 -> -107176.678 | I141: =IFERROR(INDEX(Calculation!$R$2270:$R$2294,MATCH($C141,Calculation!$C$2270:$C$2294,0),1),0)*$F141 -> 0 | J141: =IFERROR(INDEX(Calculation!$R$2384:$R$2408,MATCH($C141,Calculation!$C$2384:$C$2408,0),1),0)*$F141 -> 0
C142: Computer Hardware | E142: Computer Equipment | F142: 1 | G142: =IFERROR(INDEX(Calculation!$R$1981:$R$2005,MATCH($C142,Calculation!$C$1981:$C$2005,0),1),0)*$F142 -> 247739.06 | H142: =IFERROR(INDEX(Calculation!$R$2095:$R$2119,MATCH($C142,Calculation!$C$2095:$C$2119,0),1),0)*$F142 -> -145698.6262 | I142: =IFERROR(INDEX(Calculation!$R$2270:$R$2294,MATCH($C142,Calculation!$C$2270:$C$2294,0),1),0)*$F142 -> 0 | J142: =IFERROR(INDEX(Calculation!$R$2384:$R$2408,MATCH($C142,Calculation!$C$2384:$C$2408,0),1),0)*$F142 -> 0
C143: Computer Software | E143: Software - Acquired | F143: 1 | G143: =IFERROR(INDEX(Calculation!$R$1981:$R$2005,MATCH($C143,Calculation!$C$1981:$C$2005,0),1),0)*$F143 -> 580855.4525 | H143: =IFERROR(INDEX(Calculation!$R$2095:$R$2119,MATCH($C143,Calculation!$C$2095:$C$2119,0),1),0)*$F143 -> -208850.5188 | I143: =IFERROR(INDEX(Calculation!$R$2270:$R$2294,MATCH($C143,Calculation!$C$2270:$C$2294,0),1),0)*$F143 -> 0 | J143: =IFERROR(INDEX(Calculation!$R$2384:$R$2408,MATCH($C143,Calculation!$C$2384:$C$2408,0),1),0)*$F143 -> 0
C144: Machinery & Equipment | E144: Tools and Work Equipment | F144: 1 | G144: =IFERROR(INDEX(Calculation!$R$1981:$R$2005,MATCH($C144,Calculation!$C$1981:$C$2005,0),1),0)*$F144 -> 761545.99 | H144: =IFERROR(INDEX(Calculation!$R$2095:$R$2119,MATCH($C144,Calculation!$C$2095:$C$2119,0),1),0)*$F144 -> -564461.9193 | I144: =IFERROR(INDEX(Calculation!$R$2270:$R$2294,MATCH($C144,Calculation!$C$2270:$C$2294,0),1),0)*$F144 -> 0 | J144: =IFERROR(INDEX(Calculation!$R$2384:$R$2408,MATCH($C144,Calculation!$C$2384:$C$2408,0),1),0)*$F144 -> 0
C145: Communication Equipment | E145: Communications Equipment - Hardware | F145: 1 | G145: =IFERROR(INDEX(Calculation!$R$1981:$R$2005,MATCH($C145,Calculation!$C$1981:$C$2005,0),1),0)*$F145 -> 231088.7775 | H145: =IFERROR(INDEX(Calculation!$R$2095:$R$2119,MATCH($C145,Calculation!$C$2095:$C$2119,0),1),0)*$F145 -> -184513.4917 | I145: =IFERROR(INDEX(Calculation!$R$2270:$R$2294,MATCH($C145,Calculation!$C$2270:$C$2294,0),1),0)*$F145 -> 0 | J145: =IFERROR(INDEX(Calculation!$R$2384:$R$2408,MATCH($C145,Calculation!$C$2384:$C$2408,0),1),0)*$F145 -> 0
C146: Automotive Equipment - Transport Vehicles | E146: Vehicles - Transportation Equipment (ENGLP) | F146: 1 | G146: =IFERROR(INDEX(Calculation!$R$1981:$R$2005,MATCH($C146,Calculation!$C$1981:$C$2005,0),1),0)*$F146 -> 215040.6 | H146: =IFERROR(INDEX(Calculation!$R$2095:$R$2119,MATCH($C146,Calculation!$C$2095:$C$2119,0),1),0)*$F146 -> -35617.1094 | I146: =IFERROR(INDEX(Calculation!$R$2270:$R$2294,MATCH($C146,Calculation!$C$2270:$C$2294,0),1),0)*$F146 -> 0 | J146: =IFERROR(INDEX(Calculation!$R$2384:$R$2408,MATCH($C146,Calculation!$C$2384:$C$2408,0),1),0)*$F146 -> 0
C147: Automotive Equipment - Heavy Equipment | E147: Vehicle - Heavy Work Equipment | F147: 1 | G147: =IFERROR(INDEX(Calculation!$R$1981:$R$2005,MATCH($C147,Calculation!$C$1981:$C$2005,0),1),0)*$F147 -> 0 | H147: =IFERROR(INDEX(Calculation!$R$2095:$R$2119,MATCH($C147,Calculation!$C$2095:$C$2119,0),1),0)*$F147 -> 0 | I147: =IFERROR(INDEX(Calculation!$R$2270:$R$2294,MATCH($C147,Calculation!$C$2270:$C$2294,0),1),0)*$F147 -> 0 | J147: =IFERROR(INDEX(Calculation!$R$2384:$R$2408,MATCH($C147,Calculation!$C$2384:$C$2408,0),1),0)*$F147 -> 0
C148: Meters - Resendential | E148: Meters - Residential | F148: 1 | G148: =IFERROR(INDEX(Calculation!$R$1981:$R$2005,MATCH($C148,Calculation!$C$1981:$C$2005,0),1),0)*$F148 -> 1798371.01 | H148: =IFERROR(INDEX(Calculation!$R$2095:$R$2119,MATCH($C148,Calculation!$C$2095:$C$2119,0),1),0)*$F148 -> -756871.1929 | I148: =IFERROR(INDEX(Calculation!$R$2270:$R$2294,MATCH($C148,Calculation!$C$2270:$C$2294,0),1),0)*$F148 -> 0 | J148: =IFERROR(INDEX(Calculation!$R$2384:$R$2408,MATCH($C148,Calculation!$C$2384:$C$2408,0),1),0)*$F148 -> 0
C149: Meters - Commercial | E149: Meters - Commercial | F149: 1 | G149: =IFERROR(INDEX(Calculation!$R$1981:$R$2005,MATCH($C149,Calculation!$C$1981:$C$2005,0),1),0)*$F149 -> 1321632.93 | H149: =IFERROR(INDEX(Calculation!$R$2095:$R$2119,MATCH($C149,Calculation!$C$2095:$C$2119,0),1),0)*$F149 -> -752235.8866 | I149: =IFERROR(INDEX(Calculation!$R$2270:$R$2294,MATCH($C149,Calculation!$C$2270:$C$2294,0),1),0)*$F149 -> 0 | J149: =IFERROR(INDEX(Calculation!$R$2384:$R$2408,MATCH($C149,Calculation!$C$2384:$C$2408,0),1),0)*$F149 -> 0
C150: Meter - IGPC | E150: Meter - IGPC New | F150: 1 | G150: =IFERROR(INDEX(Calculation!$R$1981:$R$2005,MATCH($C150,Calculation!$C$1981:$C$2005,0),1),0)*$F150 -> 14139.4 | H150: =IFERROR(INDEX(Calculation!$R$2095:$R$2119,MATCH($C150,Calculation!$C$2095:$C$2119,0),1),0)*$F150 -> -6020.401916 | I150: =IFERROR(INDEX(Calculation!$R$2270:$R$2294,MATCH($C150,Calculation!$C$2270:$C$2294,0),1),0)*$F150 -> 0 | J150: =IFERROR(INDEX(Calculation!$R$2384:$R$2408,MATCH($C150,Calculation!$C$2384:$C$2408,0),1),0)*$F150 -> 0
C151: Regulators | E151: Measuring and Regulating Equipment | F151: 1 | G151: =IFERROR(INDEX(Calculation!$R$1981:$R$2005,MATCH($C151,Calculation!$C$1981:$C$2005,0),1),0)*$F151 -> 2026624.39 | H151: =IFERROR(INDEX(Calculation!$R$2095:$R$2119,MATCH($C151,Calculation!$C$2095:$C$2119,0),1),0)*$F151 -> -1279851.652 | I151: =IFERROR(INDEX(Calculation!$R$2270:$R$2294,MATCH($C151,Calculation!$C$2270:$C$2294,0),1),0)*$F151 -> 0 | J151: =IFERROR(INDEX(Calculation!$R$2384:$R$2408,MATCH($C151,Calculation!$C$2384:$C$2408,0),1),0)*$F151 -> 0
C152: Plastic Mains - Distribution | E152: Mains - Plastic (Distribution Plant) | F152: 1 | G152: =IFERROR(INDEX(Calculation!$R$1981:$R$2005,MATCH($C152,Calculation!$C$1981:$C$2005,0),1),0)*$F152 -> 13125196.8 | H152: =IFERROR(INDEX(Calculation!$R$2095:$R$2119,MATCH($C152,Calculation!$C$2095:$C$2119,0),1),0)*$F152 -> -5912724.274 | I152: =IFERROR(INDEX(Calculation!$R$2270:$R$2294,MATCH($C152,Calculation!$C$2270:$C$2294,0),1),0)*$F152 -> 4000 | J152: =IFERROR(INDEX(Calculation!$R$2384:$R$2408,MATCH($C152,Calculation!$C$2384:$C$2408,0),1),0)*$F152 -> -194.3976
C153: Steel Mains - Distribution | E153: Mains - Metallic (Distribution Plant) | F153: 1 | G153: =IFERROR(INDEX(Calculation!$R$1981:$R$2005,MATCH($C153,Calculation!$C$1981:$C$2005,0),1),0)*$F153 -> 33014.16 | H153: =IFERROR(INDEX(Calculation!$R$2095:$R$2119,MATCH($C153,Calculation!$C$2095:$C$2119,0),1),0)*$F153 -> -33014.16 | I153: =IFERROR(INDEX(Calculation!$R$2270:$R$2294,MATCH($C153,Calculation!$C$2270:$C$2294,0),1),0)*$F153 -> 0 | J153: =IFERROR(INDEX(Calculation!$R$2384:$R$2408,MATCH($C153,Calculation!$C$2384:$C$2408,0),1),0)*$F153 -> 0
C154: Ethanol Pipeline - IGPC Project | E154: Mains - Metallic (IGPC) | F154: 1 | G154: =IFERROR(INDEX(Calculation!$R$1981:$R$2005,MATCH($C154,Calculation!$C$1981:$C$2005,0),1),0)*$F154 -> 7128086.29 | H154: =IFERROR(INDEX(Calculation!$R$2095:$R$2119,MATCH($C154,Calculation!$C$2095:$C$2119,0),1),0)*$F154 -> -2884022.111 | I154: =IFERROR(INDEX(Calculation!$R$2270:$R$2294,MATCH($C154,Calculation!$C$2270:$C$2294,0),1),0)*$F154 -> 589659 | J154: =IFERROR(INDEX(Calculation!$R$2384:$R$2408,MATCH($C154,Calculation!$C$2384:$C$2408,0),1),0)*$F154 -> -17424.425
C155: Plastic Service Lines | E155: Services - Plastic | F155: 1 | G155: =IFERROR(INDEX(Calculation!$R$1981:$R$2005,MATCH($C155,Calculation!$C$1981:$C$2005,0),1),0)*$F155 -> 4132018.69 | H155: =IFERROR(INDEX(Calculation!$R$2095:$R$2119,MATCH($C155,Calculation!$C$2095:$C$2119,0),1),0)*$F155 -> -2867263.061 | I155: =IFERROR(INDEX(Calculation!$R$2270:$R$2294,MATCH($C155,Calculation!$C$2270:$C$2294,0),1),0)*$F155 -> 122554.31 | J155: =IFERROR(INDEX(Calculation!$R$2384:$R$2408,MATCH($C155,Calculation!$C$2384:$C$2408,0),1),0)*$F155 -> -4396.976146
C156: Other Assets - Legacy | E156: Franchises & Consents - Legacy | F156: 1 | G156: =IFERROR(INDEX(Calculation!$R$1981:$R$2005,MATCH($C156,Calculation!$C$1981:$C$2005,0),1),0)*$F156 -> 373537.76 | H156: =IFERROR(INDEX(Calculation!$R$2095:$R$2119,MATCH($C156,Calculation!$C$2095:$C$2119,0),1),0)*$F156 -> -226082.467 | I156: =IFERROR(INDEX(Calculation!$R$2270:$R$2294,MATCH($C156,Calculation!$C$2270:$C$2294,0),1),0)*$F156 -> 0 | J156: =IFERROR(INDEX(Calculation!$R$2384:$R$2408,MATCH($C156,Calculation!$C$2384:$C$2408,0),1),0)*$F156 -> 0
C157: Other Assets | E157: Franchises & Consents | F157: 1 | G157: =IFERROR(INDEX(Calculation!$R$1981:$R$2005,MATCH($C157,Calculation!$C$1981:$C$2005,0),1),0)*$F157 -> 394324.7 | H157: =IFERROR(INDEX(Calculation!$R$2095:$R$2119,MATCH($C157,Calculation!$C$2095:$C$2119,0),1),0)*$F157 -> -155044.7162 | I157: =IFERROR(INDEX(Calculation!$R$2270:$R$2294,MATCH($C157,Calculation!$C$2270:$C$2294,0),1),0)*$F157 -> 0 | J157: =IFERROR(INDEX(Calculation!$R$2384:$R$2408,MATCH($C157,Calculation!$C$2384:$C$2408,0),1),0)*$F157 -> 0
C158: Vehicles - Legacy | E158: Vehicles - Legacy New | F158: 1 | G158: =IFERROR(INDEX(Calculation!$R$1981:$R$2005,MATCH($C158,Calculation!$C$1981:$C$2005,0),1),0)*$F158 -> 314336.02 | H158: =IFERROR(INDEX(Calculation!$R$2095:$R$2119,MATCH($C158,Calculation!$C$2095:$C$2119,0),1),0)*$F158 -> -289930.2507 | I158: =IFERROR(INDEX(Calculation!$R$2270:$R$2294,MATCH($C158,Calculation!$C$2270:$C$2294,0),1),0)*$F158 -> 0 | J158: =IFERROR(INDEX(Calculation!$R$2384:$R$2408,MATCH($C158,Calculation!$C$2384:$C$2408,0),1),0)*$F158 -> 0 | K158: vehicles inheritage from ENRG with various asset lives
C159: Regulators - New | E159: Regulators - New | F159: 1 | G159: =IFERROR(INDEX(Calculation!$R$1981:$R$2005,MATCH($C159,Calculation!$C$1981:$C$2005,0),1),0)*$F159 -> 71000 | H159: =IFERROR(INDEX(Calculation!$R$2095:$R$2119,MATCH($C159,Calculation!$C$2095:$C$2119,0),1),0)*$F159 -> -1302.752294 | I159: =IFERROR(INDEX(Calculation!$R$2270:$R$2294,MATCH($C159,Calculation!$C$2270:$C$2294,0),1),0)*$F159 -> 0 | J159: =IFERROR(INDEX(Calculation!$R$2384:$R$2408,MATCH($C159,Calculation!$C$2384:$C$2408,0),1),0)*$F159 -> 0
G160: =IFERROR(INDEX(Calculation!$R$1981:$R$2005,MATCH($C160,Calculation!$C$1981:$C$2005,0),1),0)*$F160 -> 0 | H160: =IFERROR(INDEX(Calculation!$R$2095:$R$2119,MATCH($C160,Calculation!$C$2095:$C$2119,0),1),0)*$F160 -> 0 | I160: =IFERROR(INDEX(Calculation!$R$2270:$R$2294,MATCH($C160,Calculation!$C$2270:$C$2294,0),1),0)*$F160 -> 0 | J160: =IFERROR(INDEX(Calculation!$R$2384:$R$2408,MATCH($C160,Calculation!$C$2384:$C$2408,0),1),0)*$F160 -> 0
G161: =IFERROR(INDEX(Calculation!$R$1981:$R$2005,MATCH($C161,Calculation!$C$1981:$C$2005,0),1),0)*$F161 -> 0 | H161: =IFERROR(INDEX(Calculation!$R$2095:$R$2119,MATCH($C161,Calculation!$C$2095:$C$2119,0),1),0)*$F161 -> 0 | I161: =IFERROR(INDEX(Calculation!$R$2270:$R$2294,MATCH($C161,Calculation!$C$2270:$C$2294,0),1),0)*$F161 -> 0 | J161: =IFERROR(INDEX(Calculation!$R$2384:$R$2408,MATCH($C161,Calculation!$C$2384:$C$2408,0),1),0)*$F161 -> 0
G162: =IFERROR(INDEX(Calculation!$R$1981:$R$2005,MATCH($C162,Calculation!$C$1981:$C$2005,0),1),0)*$F162 -> 0 | H162: =IFERROR(INDEX(Calculation!$R$2095:$R$2119,MATCH($C162,Calculation!$C$2095:$C$2119,0),1),0)*$F162 -> 0 | I162: =IFERROR(INDEX(Calculation!$R$2270:$R$2294,MATCH($C162,Calculation!$C$2270:$C$2294,0),1),0)*$F162 -> 0 | J162: =IFERROR(INDEX(Calculation!$R$2384:$R$2408,MATCH($C162,Calculation!$C$2384:$C$2408,0),1),0)*$F162 -> 0
G163: =IFERROR(INDEX(Calculation!$R$1981:$R$2005,MATCH($C163,Calculation!$C$1981:$C$2005,0),1),0)*$F163 -> 0 | H163: =IFERROR(INDEX(Calculation!$R$2095:$R$2119,MATCH($C163,Calculation!$C$2095:$C$2119,0),1),0)*$F163 -> 0 | I163: =IFERROR(INDEX(Calculation!$R$2270:$R$2294,MATCH($C163,Calculation!$C$2270:$C$2294,0),1),0)*$F163 -> 0 | J163: =IFERROR(INDEX(Calculation!$R$2384:$R$2408,MATCH($C163,Calculation!$C$2384:$C$2408,0),1),0)*$F163 -> 0
G164: =IFERROR(INDEX(Calculation!$R$1981:$R$2005,MATCH($C164,Calculation!$C$1981:$C$2005,0),1),0)*$F164 -> 0 | H164: =IFERROR(INDEX(Calculation!$R$2095:$R$2119,MATCH($C164,Calculation!$C$2095:$C$2119,0),1),0)*$F164 -> 0 | I164: =IFERROR(INDEX(Calculation!$R$2270:$R$2294,MATCH($C164,Calculation!$C$2270:$C$2294,0),1),0)*$F164 -> 0 | J164: =IFERROR(INDEX(Calculation!$R$2384:$R$2408,MATCH($C164,Calculation!$C$2384:$C$2408,0),1),0)*$F164 -> 0
G165: =IFERROR(INDEX(Calculation!$R$1981:$R$2005,MATCH($C165,Calculation!$C$1981:$C$2005,0),1),0)*$F165 -> 0 | H165: =IFERROR(INDEX(Calculation!$R$2095:$R$2119,MATCH($C165,Calculation!$C$2095:$C$2119,0),1),0)*$F165 -> 0 | I165: =IFERROR(INDEX(Calculation!$R$2270:$R$2294,MATCH($C165,Calculation!$C$2270:$C$2294,0),1),0)*$F165 -> 0 | J165: =IFERROR(INDEX(Calculation!$R$2384:$R$2408,MATCH($C165,Calculation!$C$2384:$C$2408,0),1),0)*$F165 -> 0
G166: =IFERROR(INDEX(Calculation!$R$1981:$R$2005,MATCH($C166,Calculation!$C$1981:$C$2005,0),1),0)*$F166 -> 0 | H166: =IFERROR(INDEX(Calculation!$R$2095:$R$2119,MATCH($C166,Calculation!$C$2095:$C$2119,0),1),0)*$F166 -> 0 | I166: =IFERROR(INDEX(Calculation!$R$2270:$R$2294,MATCH($C166,Calculation!$C$2270:$C$2294,0),1),0)*$F166 -> 0 | J166: =IFERROR(INDEX(Calculation!$R$2384:$R$2408,MATCH($C166,Calculation!$C$2384:$C$2408,0),1),0)*$F166 -> 0
G167: =IFERROR(INDEX(Calculation!$R$1981:$R$2005,MATCH($C167,Calculation!$C$1981:$C$2005,0),1),0)*$F167 -> 0 | H167: =IFERROR(INDEX(Calculation!$R$2095:$R$2119,MATCH($C167,Calculation!$C$2095:$C$2119,0),1),0)*$F167 -> 0 | I167: =IFERROR(INDEX(Calculation!$R$2270:$R$2294,MATCH($C167,Calculation!$C$2270:$C$2294,0),1),0)*$F167 -> 0 | J167: =IFERROR(INDEX(Calculation!$R$2384:$R$2408,MATCH($C167,Calculation!$C$2384:$C$2408,0),1),0)*$F167 -> 0
G168: =IFERROR(INDEX(Calculation!$R$1981:$R$2005,MATCH($C168,Calculation!$C$1981:$C$2005,0),1),0)*$F168 -> 0 | H168: =IFERROR(INDEX(Calculation!$R$2095:$R$2119,MATCH($C168,Calculation!$C$2095:$C$2119,0),1),0)*$F168 -> 0 | I168: =IFERROR(INDEX(Calculation!$R$2270:$R$2294,MATCH($C168,Calculation!$C$2270:$C$2294,0),1),0)*$F168 -> 0 | J168: =IFERROR(INDEX(Calculation!$R$2384:$R$2408,MATCH($C168,Calculation!$C$2384:$C$2408,0),1),0)*$F168 -> 0
C171: Customer
C173: Average Customer Count
C174: =C$21 -> Rate 1 - Residential | D174: Cx | P174: 8109.5 | Q174: 8363.441772 | R174: 8616.420397 | S174: 8877
C175: =C$22 -> Rate 1 - Commercial | D175: Cx | P175: 461.5833333 | Q175: 476.7715986 | R175: 485.2717626 | S175: 494
C176: =C$23 -> Rate 1 - Industrial | D176: Cx | P176: 65.83333333 | Q176: 66.58333333 | R176: 67.4882642 | S176: 68
C177: =C$24 -> Rate 2 | D177: Cx | P177: 54.75 | Q177: 53.29474416 | R177: 51.64995082 | S177: 50
C178: =C$25 -> Rate 3 | D178: Cx | P178: 4.5 | Q178: 6 | R178: 6 | S178: 6
C179: =C$26 -> Rate 4 | D179: Cx | P179: 35.83333333 | Q179: 36 | R179: 36.9159675 | S179: 38
C180: =C$27 -> Rate 5 | D180: Cx | P180: 4.666666667 | Q180: 4 | R180: 3.902044448 | S180: 4
C181: =C$28 -> Rate 6 | D181: Cx | P181: 1 | Q181: 1 | R181: 1 | S181: 1
C182: Sum | D182: Cx | P182: =SUM(P174:P181) -> 8737.666667 | Q182: =SUM(Q174:Q181) -> 9007.091448 | R182: =SUM(R174:R181) -> 9268.648386 | S182: =SUM(S174:S181) -> 9538
C184: Average Customer Count
C185: =C$21 -> Rate 1 - Residential | D185: Cx | Q185: 8489.931085 | R185: 8746.710198 | S185: 9011.281983
C186: =C$22 -> Rate 1 - Commercial | D186: Cx | Q186: 481.0216806 | R186: 489.6358813 | S186: 498.3653973
C187: =C$23 -> Rate 1 - Industrial | D187: Cx | Q187: 67.03579877 | R187: 67.7441321 | S187: 68.66483933
C188: =C$24 -> Rate 2 | D188: Cx | Q188: 52.47234749 | R188: 50.82497541 | S188: 49.25640458
C189: =C$25 -> Rate 3 | D189: Cx | Q189: 6 | R189: 6 | S189: 6
C190: =C$26 -> Rate 4 | D190: Cx | Q190: 36.45798375 | R190: 37.45798375 | S190: 38.41104752
C191: =C$27 -> Rate 5 | D191: Cx | Q191: 3.951022224 | R191: 3.951022224 | S191: 3.854266083
C192: =C$28 -> Rate 6 | D192: Cx | Q192: 1 | R192: 1 | S192: 1
C193: Sum | D193: Cx | Q193: =SUM(Q185:Q192) -> 9137.869917 | R193: =SUM(R185:R192) -> 9403.324193 | S193: =SUM(S185:S192) -> 9676.833938
C195: Months in a Year
C196: =C$42 -> Rate 1 - Residential | D196: mth / yr | E196: 12
C197: =C$43 -> Rate 1 - Commercial | D197: mth / yr | E197: 12
C198: =C$44 -> Rate 1 - Industrial | D198: mth / yr | E198: 12
C199: =C$45 -> Rate 2 - Apr to Oct | D199: mth / yr | E199: 7
C200: =C$46 -> Rate 2 - Nov to Mar | D200: mth / yr | E200: 5
C201: =C$47 -> Rate 3 | D201: mth / yr | E201: 12
C202: =C$48 -> Rate 4 - Apr to Dec | D202: mth / yr | E202: 9
C203: =C$49 -> Rate 4 - Jan to Mar | D203: mth / yr | E203: 3
C204: =C$50 -> Rate 5 | D204: mth / yr | E204: 12
C205: =C$51 -> Rate 6 | D205: mth / yr | E205: 12
C207: Customer Year (Bill Determinant)
E208: Rate Class
C209: =C$42 -> Rate 1 - Residential | D209: CxYr | E209: =INDEX($E$42:$E$51,MATCH($C209,$C$42:$C$51,0),1) -> Rate 1 - Residential | P209: =INDEX(P$174:P$181,MATCH($E209,$C$174:$C$181,0),1)*$E196/$E$12 -> 8109.5 | Q209: 8363.441772 | R209: 8616.420397 | S209: 8877
C210: =C$43 -> Rate 1 - Commercial | D210: CxYr | E210: Rate 1 - Commercial | P210: 461.5833333 | Q210: 476.7715986 | R210: 485.2717626 | S210: 494
C211: =C$44 -> Rate 1 - Industrial | D211: CxYr | E211: Rate 1 - Industrial | P211: 65.83333333 | Q211: 66.58333333 | R211: 67.4882642 | S211: 68
C212: =C$45 -> Rate 2 - Apr to Oct | D212: CxYr | E212: Rate 2 | P212: 31.9375 | Q212: 31.08860076 | R212: 30.12913798 | S212: 29.16666667
C213: =C$46 -> Rate 2 - Nov to Mar | D213: CxYr | E213: Rate 2 | P213: 22.8125 | Q213: 22.2061434 | R213: 21.52081284 | S213: 20.83333333
C214: =C$47 -> Rate 3 | D214: CxYr | E214: Rate 3 | P214: 4.5 | Q214: 6 | R214: 6 | S214: 6
C215: =C$48 -> Rate 4 - Apr to Dec | D215: CxYr | E215: Rate 4 | P215: 26.875 | Q215: 27 | R215: 27.68697563 | S215: 28.5
C216: =C$49 -> Rate 4 - Jan to Mar | D216: CxYr | E216: Rate 4 | P216: 8.958333333 | Q216: 9 | R216: 9.228991875 | S216: 9.5
C217: =C$50 -> Rate 5 | D217: CxYr | E217: Rate 5 | P217: 4.666666667 | Q217: 4 | R217: 3.902044448 | S217: 4
C218: =C$51 -> Rate 6 | D218: CxYr | E218: Rate 6 | P218: 1 | Q218: 1 | R218: 1 | S218: 1
C219: Sum | D219: CxYr | P219: =SUM(P209:P218) -> 8737.666667 | Q219: =SUM(Q209:Q218) -> 9007.091448 | R219: =SUM(R209:R218) -> 9268.648386 | S219: =SUM(S209:S218) -> 9538
C221: Cost Allocation Class
E222: Rate Class
C223: =C31 -> Rate 1 - Residential | D223: CxYr | E223: =E31 -> Rate 1 - Residential | P223: =SUMIF($C$174:$C$181,$E223,P$174:P$181) -> 8109.5 | Q223: =SUMIF($C$174:$C$181,$E223,Q$174:Q$181) -> 8363.441772 | R223: 8616.420397 | S223: 8877
... 870 more rows

Sheet Calculation
A1: CALCULATION
C3: Master Check | E3: =Check!$D$62 -> 0.1735100603
C5: Timeline and Flags | D5: Unit | E5: Var 1 | F5: Var 2 | G5: Var 3 | H5: Explanatory | I5: Row Sum | J5: Actual | K5: Actual | L5: Actual | M5: Actual | N5: Actual | O5: Actual | P5: Actual | Q5: Forecast | R5: Bridge | S5: Test | T5: Forecast | U5: Forecast | V5: Forecast | W5: Forecast
J6: 2011 | K6: 2012 | L6: 2013 | M6: 2014 | N6: 2015 | O6: 2016 | P6: 2017 | Q6: 2018 | R6: 2019 | S6: 2020 | T6: 2021 | U6: 2022 | V6: 2023 | W6: 2024
A7: Pro Forma Financial Statements
C9: Income Statement
C11: Commodity Revenue | D11: $ | Q11: =Input!Q$426 -> 4297717.375 | R11: =Input!R$426 -> 4664597.353 | S11: =Input!S$426 -> 4749851.43
C12: Commodity Cost | D12: $ | Q12: =Input!Q432 -> -4299009.046 | R12: =Input!R432 -> -4666366.801 | S12: =Input!S432 -> -4749851.43
C13: Commodity Margin | D13: $ | Q13: =SUM(Q11:Q12) -> -1291.671166 | R13: =SUM(R11:R12) -> -1769.448067 | S13: =SUM(S11:S12) -> 0
C15: Distribution Revenue | D15: $ | Q15: =Q572 -> 7234871.84 | R15: =R572 -> 7079004.583 | S15: =S572 -> 6652600.087
C16: Other Revenue | D16: $ | Q16: =Input!Q736 -> 119793.01 | R16: =Input!R736 -> 112912.7125 | S16: =Input!S736 -> 112912.7125
C17: Distribution OM&A | D17: $ | Q17: =Input!Q$488-Input!Q$458-Input!Q$459 -> -5092411.85 | R17: =Input!R$488-Input!R$458-Input!R$459 -> -3918801.623 | S17: =Input!S$488-Input!S$458-Input!S$459 -> -4034646.129
C18: Property Taxes | D18: $ | Q18: =Input!Q495 -> -573251 | R18: =Input!R495 -> -605000 | S18: =Input!S495 -> -632000
C19: EBITDA | D19: $ | Q19: =SUM(Q13,Q15:Q18) -> 1687710.33 | R19: =SUM(R13,R15:R18) -> 2666346.225 | S19: =SUM(S13,S15:S18) -> 2098866.67
C21: Depreciation and Amortization (Including Contributed Assets) | D21: $ | Q21: =Q$2064 -> -1154427.296 | R21: =R$2064 -> -1290594.791 | S21: =S$968 -> -1151832.635
C22: Depreciation of Contributed Assets | D22: $ | Q22: =-Q$2353 -> 2634.421823 | R22: =-R$2353 -> 19261.30692 | S22: =-S$1313 -> 15746.28109
C23: Interest Expense | D23: $ | Q23: =Input!Q657+Input!Q674 -> -379857.3214 | R23: =Input!R657+Input!R674 -> -383923.9698 | S23: =Input!S657+Input!S674 -> -408085.4837
C24: Gain / Loss on Disposal | D24: $ | Q24: =Q2556+Q2670 -> 21707.51 | R24: =R2556+R2670 -> 0 | S24: =S$1544+S$1686 -> -162461.21
C25: Current Income Tax | D25: $ | Q25: =Q166 -> 0 | R25: =R166 -> -169641.6911 | S25: =S166 -> -4536.487652
C26: Future Income Tax | D26: $ | Q26: =SUM(Q19,Q21:Q24)*-Input!Q$709-Q25 -> -47108.4257 | R26: =SUM(R19,R21:R24)*-Input!R$709-R25 -> -98296.83315 | S26: =SUM(S19,S21:S24)*-Input!S$709-S25 -> -99405.42237
C27: Net Income | D27: $ | Q27: =SUM(Q19,Q21:Q26) -> 130659.2185 | R27: =SUM(R19,R21:R26) -> 743150.2464 | S27: =SUM(S19,S21:S26) -> 288291.7127
C29: Balance Sheet
C31: Assets
C32: Cash | D32: $ | P32: 2408209 | Q32: =P32+Q$75 -> -474592.4918 | R32: =Q32+R$75 -> 0 | S32: =R32+S$75 -> 0
C33: Other Current Assets | D33: $ | P33: 2543576.11 | Q33: =P33 -> 2543576.11 | R33: =Q33 -> 2543576.11 | S33: =R33 -> 2543576.11
C34: CWIP | D34: $ | P34: =P$1892 -> 344609.6 | Q34: =Q$1892 -> 175645.21 | R34: =R$1892 -> 0 | S34: =S$1892 -> 0
C35: PP&E and Intangibles | D35: $ | P35: 13078493.67 | Q35: =Q$2150 -> 14311972.77 | R35: =R$2150 -> 17029223.19 | S35: =S$1054 -> 17126929.35
C36: Deferred Tax Asset | D36: $ | P36: 0 | Q36: =MAX(0,Q$170) -> 0 | R36: =MAX(0,R$170) -> 0 | S36: =MAX(0,S$170) -> 0
C37: Goodwill | D37: $ | P37: 7837947.71 | Q37: =P37 -> 7837947.71 | R37: =Q37 -> 7837947.71 | S37: =R37 -> 7837947.71
C38: Sum | D38: $ | P38: =SUM(P32:P37) -> 26212836.09 | Q38: =SUM(Q32:Q37) -> 24394549.31 | R38: =SUM(R32:R37) -> 27410747.01 | S38: =SUM(S32:S37) -> 27508453.17
C40: Liabilities
C41: ST Debt | D41: $ | P41: =Input!P655 -> 3153113 | Q41: =Input!Q655 -> 1054688 | R41: =Input!R655 -> 2650699.928 | S41: =Input!S655 -> 1306013.101
C42: Other Current Liabilities | D42: $ | P42: 1264579 | Q42: =P42 -> 1264579 | R42: =Q42 -> 1264579 | S42: =R42 -> 1264579
C43: LT Debt | D43: $ | P43: 8660000 | Q43: =Input!Q671 -> 8660000 | R43: =Input!R671 -> 8660000 | S43: =Input!S671 -> 9658442.128
C44: Contributions | D44: $ | P44: 13088.24 | Q44: =Q2439 -> 115458.8182 | R44: =R2439 -> 694197.5113 | S44: =S1399 -> 750451.2302
C45: Deferred Tax Liability | D45: $ | P45: 0 | Q45: =-MIN(0,Q$170) -> 47108.4257 | R45: =-MIN(0,R$170) -> 145405.2589 | S45: =-MIN(0,S$170) -> 244810.6812
C46: Sum | D46: $ | P46: =SUM(P41:P45) -> 13090780.24 | Q46: =SUM(Q41:Q45) -> 11141834.24 | R46: =SUM(R41:R45) -> 13414881.7 | S46: =SUM(S41:S45) -> 13224296.14
C48: Equities
C49: Share Capital | D49: $ | P49: 13359556 | Q49: =P49 -> 13359556 | R49: =Q49 -> 13359556 | S49: =R49 -> 13359556
C50: Retained Earnings | D50: $ | P50: -237500.15 | Q50: =P50+Q$27+Q$72 -> -106840.9315 | R50: =Q50+R$27+R$72 -> 636309.3149 | S50: =R50+S$27+S$72 -> 924601.0276
C51: Sum | D51: $ | P51: =SUM(P49:P50) -> 13122055.85 | Q51: =SUM(Q49:Q50) -> 13252715.07 | R51: =SUM(R49:R50) -> 13995865.31 | S51: =SUM(S49:S50) -> 14284157.03
C53: Check | P53: =ABS(P$38-P$46-P$51) -> 3.725290298e-09 | Q53: =ABS(Q$38-Q$46-Q$51) -> 7.450580597e-09 | R53: =ABS(R$38-R$46-R$51) -> 3.725290298e-09 | S53: =ABS(S$38-S$46-S$51) -> 3.725290298e-09
C55: Statement of Cash Flow
C57: Cash from Operations
C58: EBITDA | D58: $ | Q58: =Q19 -> 1687710.33 | R58: =R19 -> 2666346.225 | S58: =S19 -> 2098866.67
C59: Interest Expense | D59: $ | Q59: =Q23 -> -379857.3214 | R59: =R23 -> -383923.9698 | S59: =S23 -> -408085.4837
C60: Current Income Tax | D60: $ | Q60: =Q25 -> 0 | R60: =R25 -> -169641.6911 | S60: =S25 -> -4536.487652
C61: less: Increase in Other Current Assets | D61: $ | Q61: =P$33-Q$33 -> 0 | R61: =Q$33-R$33 -> 0 | S61: =R$33-S$33 -> 0
C62: add: Increase in Other Current Liabilities | D62: $ | Q62: =Q$42-P$42 -> 0 | R62: =R$42-Q$42 -> 0 | S62: =S$42-R$42 -> 0
C63: Sum | D63: $ | Q63: =SUM(Q58:Q62) -> 1307853.008 | R63: =SUM(R58:R62) -> 2112780.564 | S63: =SUM(S58:S62) -> 1686244.699
C65: Cash from Investing
C66: Capital Expenditure | D66: $ | Q66: =Input!Q$590 -> -2092229.5 | R66: =Input!R$590 -> -3234200 | S66: =Input!S527-Input!S557 -> -1340000
C67: Sum | D67: $ | Q67: =SUM(Q66:Q66) -> -2092229.5 | R67: =SUM(R66:R66) -> -3234200 | S67: =SUM(S66:S66) -> -1340000
C69: Cash from Financing
C70: Borrowing | D70: $ | Q70: =Input!Q653+Input!Q669 -> 0 | R70: =Input!R653+Input!R669 -> 1596011.928 | S70: =Input!S653+Input!S669 -> 998442.128
C71: Repayment | D71: $ | Q71: =Input!Q654+Input!Q670 -> -2098425 | R71: =Input!R654+Input!R670 -> 0 | S71: =Input!S654+Input!S670 -> -1344686.827
C72: Dividend Paid | D72: $ | Q72: 0 | R72: 0 | S72: 0
C73: Sum | D73: $ | Q73: =SUM(Q70:Q72) -> -2098425 | R73: =SUM(R70:R72) -> 1596011.928 | S73: =SUM(S70:S72) -> -346244.6989
C75: Net Change in Cash | D75: $ | Q75: =Q63+Q67+Q73 -> -2882801.492 | R75: =R63+R67+R73 -> 474592.4918 | S75: =S63+S67+S73 -> 0
C77: Check | Q77: =ABS(Q$32-P$32-Q$75) -> 0 | R77: =ABS(R$32-Q$32-R$75) -> 0 | S77: =ABS(S$32-R$32-S$75) -> 0
A80: Cost of Service
C82: Income Tax
C84: CCA
C86: Opening UCC
C87: =Input!C$712 -> N/A | Q87: =P133 -> 0 | R87: 0 | S87: 0 | T87: =S133 -> 0 | U87: =T133 -> 0 | V87: =U133 -> 0 | W87: =V133 -> 0
C88: =Input!C$713 -> Class 1 | Q88: 343433.16 | R88: 331351.073 | S88: 348477.03 | T88: 364917.9488 | U88: 350321.2309 | V88: 336308.3817 | W88: 322856.0464
C89: =Input!C$714 -> Class 8 | Q89: =P135 -> 543266.1 | R89: 484519.565 | S89: 430274.4078 | T89: 358619.5262 | U89: 348995.621 | V89: 293596.4968 | W89: 250177.1974
C90: =Input!C$715 -> Class 10 | Q90: 51017.85 | R90: 130475.8115 | S90: 183133.0681 | T90: 168143.1476 | U90: 230750.2033 | V90: 203175.1423 | W90: 184722.5996
C91: =Input!C$716 -> Class 12 | Q91: 46822 | R91: 5641.681308 | S91: 123300.6912 | T91: 13000 | U91: 53000 | V91: 0 | W91: 0
C92: =Input!C$717 -> Class 14.1 | Q92: 3965201.17 | R92: 3811421.922 | S92: 3620850.826 | T92: 3439808.285 | U92: 3267817.871 | V92: 3104426.977 | W92: 2949205.628
C93: =Input!C$718 -> Class 50 | Q93: 130306.42 | R93: 67273.38111 | S93: 44773.0215 | T93: 27397.85968 | U93: 20304.03685 | V93: 17111.81658 | W93: 15675.31746
C94: =Input!C$719 -> Class 51 | Q94: 15947524.59 | R94: 17143482.24 | S94: 18933543.16 | T94: 18971230.57 | U94: 18936816.73 | V94: 18928717.73 | W94: 18940504.67
C95: Sum | Q95: =SUM(Q87:Q94) -> 21027571.29 | R95: 21974165.67 | S95: 23684352.2 | T95: 23343117.33 | U95: 23208005.7 | V95: 22883336.54 | W95: 22663141.45
C97: Addition
C98: =Input!C$712 -> N/A | Q98: =SUMIF($E$2503:$E$2527,$C98,Q$2503:Q$2527) -> 0 | R98: 0 | S98: =SUMIF($E$1491:$E$1515,$C98,S$1491:S$1515) -> 0 | T98: 0 | U98: 0 | V98: 0 | W98: 0
C99: =Input!C$713 -> Class 1 | Q99: 0 | R99: 31000 | S99: 31000 | T99: 0 | U99: 0 | V99: 0 | W99: 0
C100: =Input!C$714 -> Class 8 | Q100: 40364.96 | R100: 47398.61751 | S100: 16000 | T100: 69000 | U100: 16000 | V100: 17000 | W100: 17000
C101: =Input!C$715 -> Class 10 | Q101: 107040.6 | R101: 108000 | S101: 47000 | T101: 133000 | U101: 49000 | V101: 50000 | W101: 51000
C102: =Input!C$716 -> Class 12 | Q102: 0 | R102: 246601.3825 | S102: 26000 | T102: 106000 | U102: 0 | V102: 0 | W102: 0
C103: =Input!C$717 -> Class 14.1 | Q103: 21054.99 | R103: 0 | S103: 0 | T103: 0 | U103: 0 | V103: 0 | W103: 0
C104: =Input!C$718 -> Class 50 | Q104: 0 | R104: 20000 | S104: 10000 | T104: 11000 | U104: 11000 | V104: 11000 | W104: 11000
C105: =Input!C$719 -> Class 51 | Q105: 2092733.34 | R105: 2905845.21 | S105: 1210000 | T105: 1138000 | U105: 1163000 | V105: 1183000 | W105: 1209000
C106: Sum | Q106: =SUM(Q98:Q105) -> 2261193.89 | R106: 3358845.21 | S106: 1340000 | T106: 1457000 | U106: 1239000 | V106: 1261000 | W106: 1288000
C108: Check | Q108: =Q$106-Q$2528 -> 0 | R108: =R$106-R$2528-Input!$R$565 -> 0 | S108: =S$106-S$1516 -> 0
C110: Allowable CCA | E110: CCA Rate
C111: =Input!C$712 -> N/A | E111: =Input!E712 -> 0 | Q111: =-(Q87+Q98*half)*$E111 -> 0 | R111: 0 | S111: 0 | T111: =-(T87+T98*half)*$E111 -> 0 | U111: 0 | V111: 0 | W111: 0
C112: =Input!C$713 -> Class 1 | E112: =Input!E713 -> 0.04 | Q112: -13737.3264 | R112: -13874.04292 | S112: -14559.0812 | T112: -14596.71795 | U112: -14012.84924 | V112: -13452.33527 | W112: -12914.24186
C113: =Input!C$714 -> Class 8 | E113: =Input!E714 -> 0.2 | Q113: -112689.716 | R113: -101643.7748 | S113: -87654.88155 | T113: -78623.90524 | U113: -71399.12419 | V113: -60419.29936 | W113: -51735.43948
C114: =Input!C$715 -> Class 10 | E114: =Input!E715 -> 0.3 | Q114: =-(Q90+Q101*half)*$E114 -> -31361.445 | R114: -55342.74345 | S114: -61989.92042 | T114: -70392.94429 | U114: -76575.061 | V114: -68452.5427 | W114: -63066.77989
C115: =Input!C$716 -> Class 12 | E115: =Input!E716 -> 1 | Q115: -46822 | R115: -128942.3726 | S115: -136300.6912 | T115: -66000 | U115: -53000 | V115: 0 | W115: 0
C116: =Input!C$717 -> Class 14.1 | E116: =Input!E717 -> 0.05 | Q116: -198786.4333 | R116: -190571.0961 | S116: -181042.5413 | T116: -171990.4142 | U116: -163390.8935 | V116: -155221.3489 | W116: -147460.2814
C117: =Input!C$718 -> Class 50 | E117: =Input!E718 -> 0.55 | Q117: -71668.531 | R117: -42500.35961 | S117: -27375.16183 | T117: -18093.82282 | U117: -14192.22027 | V117: -12436.49912 | W117: -11646.4246
C118: =Input!C$719 -> Class 51 | E118: =Input!E719 -> 0.06 | Q118: -1019633.476 | R118: -1115784.291 | S118: -1172312.589 | T118: -1172413.834 | U118: -1171099.004 | V118: -1171213.064 | W118: -1172700.28
C119: Sum | Q119: =SUM(Q111:Q118) -> -1494698.927 | R119: -1648658.68 | S119: -1681234.867 | T119: -1592111.639 | U119: -1563669.152 | V119: -1481195.089 | W119: -1459523.447
C121: CCA Claimed
C122: =Input!C$712 -> N/A | Q122: =Q111/Q$119*Q$130 -> 0 | R122: =R111/R$119*R$130 -> 0 | S122: =S111/S$119*S$130 -> 0
C123: =Input!C$713 -> Class 1 | Q123: =Q112/Q$119*Q$130 -> -12082.08703 | R123: -13874.04292 | S123: -14559.0812
C124: =Input!C$714 -> Class 8 | Q124: -99111.49498 | R124: -101643.7748 | S124: -87654.88155
C125: =Input!C$715 -> Class 10 | Q125: -27582.6385 | R125: -55342.74345 | S125: -61989.92042
C126: =Input!C$716 -> Class 12 | Q126: -41180.31869 | R126: -128942.3726 | S126: -136300.6912
C127: =Input!C$717 -> Class 14.1 | Q127: -174834.2376 | R127: -190571.0961 | S127: -181042.5413
C128: =Input!C$718 -> Class 50 | Q128: -63033.03889 | R128: -42500.35961 | S128: -27375.16183
C129: =Input!C$719 -> Class 51 | Q129: -896775.6925 | R129: -1115784.291 | S129: -1172312.589
C130: Sum | Q130: =MAX(-SUM(Q147,Q149:Q153),Q$119) -> -1314599.508 | R130: =MAX(-SUM(R147,R149:R153),R$119) -> -1648658.68 | S130: -1681234.867
C132: Closing UCC
C133: =Input!C$712 -> N/A | P133: =Input!P712 -> 0 | Q133: =Q87+Q98+Q122 -> 0 | R133: =R87+R98+R122 -> 0 | S133: =S87+S98+S122 -> 0 | T133: =T87+T98+T111 -> 0 | U133: =U87+U98+U111 -> 0 | V133: =V87+V98+V111 -> 0 | W133: =W87+W98+W111 -> 0
C134: =Input!C$713 -> Class 1 | P134: =Input!P713 -> 343433.16 | Q134: =Q88+Q99+Q123 -> 331351.073 | R134: =R88+R99+R123 -> 348477.03 | S134: 364917.9488 | T134: =T88+T99+T112 -> 350321.2309 | U134: 336308.3817 | V134: 322856.0464 | W134: 309941.8045
C135: =Input!C$714 -> Class 8 | P135: =Input!P714 -> 543266.1 | Q135: 484519.565 | R135: 430274.4078 | S135: 358619.5262 | T135: 348995.621 | U135: 293596.4968 | V135: 250177.1974 | W135: 215441.7579
C136: =Input!C$715 -> Class 10 | P136: =Input!P715 -> 51017.85 | Q136: 130475.8115 | R136: 183133.0681 | S136: 168143.1476 | T136: 230750.2033 | U136: 203175.1423 | V136: 184722.5996 | W136: 172655.8197
C137: =Input!C$716 -> Class 12 | P137: =Input!P716 -> 46822 | Q137: 5641.681308 | R137: 123300.6912 | S137: 13000 | T137: 53000 | U137: 0 | V137: 0 | W137: 0
C138: =Input!C$717 -> Class 14.1 | P138: =Input!P717 -> 3965201.17 | Q138: 3811421.922 | R138: 3620850.826 | S138: 3439808.285 | T138: 3267817.871 | U138: 3104426.977 | V138: 2949205.628 | W138: 2801745.347
C139: =Input!C$718 -> Class 50 | P139: =Input!P718 -> 130306.42 | Q139: 67273.38111 | R139: 44773.0215 | S139: 27397.85968 | T139: 20304.03685 | U139: 17111.81658 | V139: 15675.31746 | W139: 15028.89286
C140: =Input!C$719 -> Class 51 | P140: =Input!P719 -> 15947524.59 | Q140: 17143482.24 | R140: 18933543.16 | S140: 18971230.57 | T140: 18936816.73 | U140: 18928717.73 | V140: 18940504.67 | W140: 18976804.39
C141: Sum | P141: =SUM(P133:P140) -> 21027571.29 | Q141: 21974165.67 | R141: 23684352.2 | S141: 23343117.33 | T141: 23208005.7 | U141: 22883336.54 | V141: 22663141.45 | W141: 22491618.01
C143: Taxable Income
C145: Commodity Revenue | D145: $ | Q145: =Input!Q$426 -> 4297717.375 | R145: =Input!R$426 -> 4664597.353 | S145: =Input!S$426 -> 4749851.43
C146: Cost of Commodity | D146: $ | Q146: =Input!Q$432 -> -4299009.046 | R146: =Input!R$432 -> -4666366.801 | S146: =Input!S$432 -> -4749851.43
C147: Commodity Margin | D147: $ | Q147: =SUM(Q145:Q146) -> -1291.671166 | R147: =SUM(R145:R146) -> -1769.448067 | S147: 0
C149: Distribution Revenue | D149: $ | Q149: =Q$561 -> 7234871.84 | R149: =R$561 -> 7079004.583 | S149: =S$561 -> 6652600.087
C150: add: Other Revenue | D150: $ | Q150: =Q16 -> 119793.01 | R150: =R16 -> 112912.7125 | S150: =S16 -> 112912.7125
C151: less: Distribution O&M and Transportation Cost (Deductible Portion) | D151: $ | Q151: =SUMPRODUCT(Input!Q460:Q487,Input!$F460:$F487) -> -5085665.35 | R151: =SUMPRODUCT(Input!R460:R487,Input!$F460:$F487) -> -3912407.873 | S151: =SUMPRODUCT(Input!S460:S487,Input!$F460:$F487) -> -4027073.627
C152: less: Property Taxes | D152: $ | Q152: =Input!Q495 -> -573251 | R152: =Input!R495 -> -605000 | S152: =Input!S495 -> -632000
C153: less: Interest Expense | D153: $ | Q153: =Input!Q674+Input!Q657 -> -379857.3214 | R153: =Input!R674+Input!R657 -> -383923.9698 | S153: =Input!S674+Input!S657 -> -408085.4837
C154: less: CCA | D154: $ | Q154: =Q$130 -> -1314599.508 | R154: =R$130 -> -1648658.68 | S154: =S$130 -> -1681234.867
C155: Taxable Income | D155: $ | Q155: =Q147+SUM(Q149:Q154) -> 0 | R155: =R147+SUM(R149:R154) -> 640157.3248 | S155: =S147+SUM(S149:S154) -> 17118.82133
C157: Current Income Tax
C159: Income Tax Rates
C160: Federal | D160: % | Q160: =Input!Q707 -> 0.15 | R160: =Input!R707 -> 0.15 | S160: =Input!S707 -> 0.15
C161: Provincial | D161: % | Q161: =Input!Q708 -> 0.115 | R161: =Input!R708 -> 0.115 | S161: =Input!S708 -> 0.115
C163: Income Tax
C164: Federal | D164: $ | Q164: =-Q$155*Q160 -> 0 | R164: -96023.59872 | S164: -2567.823199
C165: Provincial | D165: $ | Q165: 0 | R165: -73618.09235 | S165: -1968.664453
C166: Sum | D166: $ | Q166: =SUM(Q164:Q165) -> 0 | R166: =SUM(R164:R165) -> -169641.6911 | S166: =SUM(S164:S165) -> -4536.487652
C168: Deferred Tax
C170: Deferred Tax | D170: $ | H170: negative = liability | P170: 0 | Q170: =P170+Q26 -> -47108.4257 | R170: =Q170+R26 -> -145405.2589 | S170: =R170+S26 -> -244810.6812
C173: Rate Base and Return on Rate Base
C175: Rate Base
C176: Net PP&E (Mid-year) | D176: $ | Q176: =Q$2756 -> 13630959.69 | R176: =R$2756 -> 15265769.82 | S176: =S$1772 -> 16355751.9
C178: Return on Rate Base
C179: Cost of ST Debt | D179: $ | Q179: =-Input!Q$661 -> 12485.95908 | R179: =-Input!R$661 -> 17219.78836 | S179: =-Input!S$661 -> 18449.28814
C180: Cost of LT Debt | D180: $ | Q180: =Input!Q$631*Input!Q$673*Input!Q$627 -> 292356.8235 | R180: =Input!R$631*Input!R$673*Input!R$627 -> 327420.2311 | S180: =Input!S$631*Input!S$673*Input!S$627 -> 352295.8299
C181: Return on Equity | D181: $ | Q181: =Q$176*Input!Q$632*Input!Q$638 -> 490714.5489 | R181: =R$176*Input!R$632*Input!R$638 -> 548346.4519 | S181: =S$176*Input!S$632*Input!S$638 -> 587498.6082
C182: Sum | D182: $ | Q182: =SUM(Q179:Q181) -> 795557.3315 | R182: =SUM(R179:R181) -> 892986.4713 | S182: =SUM(S179:S181) -> 958243.7263
C184: Cost of Service
C186: Distribution O&M and Transportation Costs | D186: $ | Q186: =-Input!Q488+Input!Q459+Input!Q458 -> 5092411.85 | R186: =-Input!R488+Input!R459+Input!R458 -> 3918801.623 | S186: =-Input!S488+Input!S459+Input!S458 -> 4034646.129
C187: Depreciation | D187: $ | Q187: =-Q2642 -> 1151792.874 | R187: =-R2642 -> 1271333.484 | S187: =-S1658 -> 1136086.354
C188: Property Tax | D188: $ | Q188: =-Input!Q495 -> 573251 | R188: =-Input!R495 -> 605000 | S188: =-Input!S495 -> 632000
C189: Income Tax | D189: $ | Q189: =-Q166 -> 0 | R189: =-R166 -> 169641.6911 | S189: =-S166 -> 4536.487652
C190: Cost of Debt | D190: $ | Q190: =Q179+Q180 -> 304842.7826 | R190: =R179+R180 -> 344640.0194 | S190: =S179+S180 -> 370745.1181
C191: Cost of Equity | D191: $ | Q191: =Q181 -> 490714.5489 | R191: =R181 -> 548346.4519 | S191: =S181 -> 587498.6082
C192: less: Other Revenue | D192: $ | Q192: =-Input!Q$736 -> -119793.01 | R192: =-Input!R$736 -> -112912.7125 | S192: =-Input!S$736 -> -112912.7125
C193: Cost of Service | D193: $ | Q193: =SUM(Q186:Q192) -> 7493220.045 | R193: =SUM(R186:R192) -> 6744850.557 | S193: =SUM(S186:S192) -> 6652599.984
A196: Cost Allocation
C198: Functionalization
C200: Functionalization of Rate Base
C202: Uniform System of Account | E202: Functionalization Factor | F202: USoA # | G202: Total | J202: =Input!J$794 -> Gas Supply | K202: =Input!K$794 -> Transportation Load Bal/ Storage | L202: =Input!L$794 -> Distribution Measurement | M202: =Input!M$794 -> Distribution - Mains | N202: =Input!N$794 -> Customer - Services | O202: =Input!O$794 -> Customer - Meters | P202: =Input!P$794 -> Billing & Accounting | Q202: =Input!Q$794 -> Promotion | R202: =Input!R$794 -> Bad Debt & Collection | S202: =Input!S$794 -> A&G | T202: =Input!T$794 -> LEAP Funding | U202: =Input!U$794 -> Direct Assignment to IGPC | V202: =Input!V$794 -> Other Revenue
C203: =Input!$C$749 -> Land Rights - Distribution | D203: $ | E203: =Input!$F$749 -> Bldgs&Impr. | F203: =Input!$E$749 -> 471 | G203: =IF($C203<>0,SUMIF($E$1747:$E$1771,$C203,$S$1747:$S$1771),0) -> 0 | J203: =IFERROR(INDEX(Input!$J$795:$V$824,MATCH($E203,Input!$C$795:$C$824,0),MATCH(J$202,Input!$J$794:$V$794,0))*$G203,0) -> 0 | K203: =IFERROR(INDEX(Input!$J$795:$V$824,MATCH($E203,Input!$C$795:$C$824,0),MATCH(K$202,Input!$J$794:$V$794,0))*$G203,0) -> 0 | L203: =IFERROR(INDEX(Input!$J$795:$V$824,MATCH($E203,Input!$C$795:$C$824,0),MATCH(L$202,Input!$J$794:$V$794,0))*$G203,0) -> 0 | M203: =IFERROR(INDEX(Input!$J$795:$V$824,MATCH($E203,Input!$C$795:$C$824,0),MATCH(M$202,Input!$J$794:$V$794,0))*$G203,0) -> 0 | N203: =IFERROR(INDEX(Input!$J$795:$V$824,MATCH($E203,Input!$C$795:$C$824,0),MATCH(N$202,Input!$J$794:$V$794,0))*$G203,0) -> 0 | O203: =IFERROR(INDEX(Input!$J$795:$V$824,MATCH($E203,Input!$C$795:$C$824,0),MATCH(O$202,Input!$J$794:$V$794,0))*$G203,0) -> 0 | P203: =IFERROR(INDEX(Input!$J$795:$V$824,MATCH($E203,Input!$C$795:$C$824,0),MATCH(P$202,Input!$J$794:$V$794,0))*$G203,0) -> 0 | Q203: =IFERROR(INDEX(Input!$J$795:$V$824,MATCH($E203,Input!$C$795:$C$824,0),MATCH(Q$202,Input!$J$794:$V$794,0))*$G203,0) -> 0 | R203: =IFERROR(INDEX(Input!$J$795:$V$824,MATCH($E203,Input!$C$795:$C$824,0),MATCH(R$202,Input!$J$794:$V$794,0))*$G203,0) -> 0 | S203: =IFERROR(INDEX(Input!$J$795:$V$824,MATCH($E203,Input!$C$795:$C$824,0),MATCH(S$202,Input!$J$794:$V$794,0))*$G203,0) -> 0 | T203: =IFERROR(INDEX(Input!$J$795:$V$824,MATCH($E203,Input!$C$795:$C$824,0),MATCH(T$202,Input!$J$794:$V$794,0))*$G203,0) -> 0 | U203: =IFERROR(INDEX(Input!$J$795:$V$824,MATCH($E203,Input!$C$795:$C$824,0),MATCH(U$202,Input!$J$794:$V$794,0))*$G203,0) -> 0 | V203: =IFERROR(INDEX(Input!$J$795:$V$824,MATCH($E203,Input!$C$795:$C$824,0),MATCH(V$202,Input!$J$794:$V$794,0))*$G203,0) -> 0
C204: =Input!$C$750 -> Structures and Improvements - Distribution | D204: $ | E204: =Input!$F$750 -> Bldgs&Impr. | F204: =Input!$E$750 -> 472 | G204: 0 | J204: =IFERROR(INDEX(Input!$J$795:$V$824,MATCH($E204,Input!$C$795:$C$824,0),MATCH(J$202,Input!$J$794:$V$794,0))*$G204,0) -> 0 | K204: =IFERROR(INDEX(Input!$J$795:$V$824,MATCH($E204,Input!$C$795:$C$824,0),MATCH(K$202,Input!$J$794:$V$794,0))*$G204,0) -> 0 | L204: =IFERROR(INDEX(Input!$J$795:$V$824,MATCH($E204,Input!$C$795:$C$824,0),MATCH(L$202,Input!$J$794:$V$794,0))*$G204,0) -> 0 | M204: =IFERROR(INDEX(Input!$J$795:$V$824,MATCH($E204,Input!$C$795:$C$824,0),MATCH(M$202,Input!$J$794:$V$794,0))*$G204,0) -> 0 | N204: =IFERROR(INDEX(Input!$J$795:$V$824,MATCH($E204,Input!$C$795:$C$824,0),MATCH(N$202,Input!$J$794:$V$794,0))*$G204,0) -> 0 | O204: =IFERROR(INDEX(Input!$J$795:$V$824,MATCH($E204,Input!$C$795:$C$824,0),MATCH(O$202,Input!$J$794:$V$794,0))*$G204,0) -> 0 | P204: =IFERROR(INDEX(Input!$J$795:$V$824,MATCH($E204,Input!$C$795:$C$824,0),MATCH(P$202,Input!$J$794:$V$794,0))*$G204,0) -> 0 | Q204: =IFERROR(INDEX(Input!$J$795:$V$824,MATCH($E204,Input!$C$795:$C$824,0),MATCH(Q$202,Input!$J$794:$V$794,0))*$G204,0) -> 0 | R204: =IFERROR(INDEX(Input!$J$795:$V$824,MATCH($E204,Input!$C$795:$C$824,0),MATCH(R$202,Input!$J$794:$V$794,0))*$G204,0) -> 0 | S204: =IFERROR(INDEX(Input!$J$795:$V$824,MATCH($E204,Input!$C$795:$C$824,0),MATCH(S$202,Input!$J$794:$V$794,0))*$G204,0) -> 0 | T204: =IFERROR(INDEX(Input!$J$795:$V$824,MATCH($E204,Input!$C$795:$C$824,0),MATCH(T$202,Input!$J$794:$V$794,0))*$G204,0) -> 0 | U204: =IFERROR(INDEX(Input!$J$795:$V$824,MATCH($E204,Input!$C$795:$C$824,0),MATCH(U$202,Input!$J$794:$V$794,0))*$G204,0) -> 0 | V204: =IFERROR(INDEX(Input!$J$795:$V$824,MATCH($E204,Input!$C$795:$C$824,0),MATCH(V$202,Input!$J$794:$V$794,0))*$G204,0) -> 0
C205: =Input!$C$751 -> Mains - Distribution | D205: $ | E205: =Input!$F$751 -> Mains | F205: =Input!$E$751 -> 475 | G205: 7340802.096 | J205: =IFERROR(INDEX(Input!$J$795:$V$824,MATCH($E205,Input!$C$795:$C$824,0),MATCH(J$202,Input!$J$794:$V$794,0))*$G205,0) -> 0 | K205: =IFERROR(INDEX(Input!$J$795:$V$824,MATCH($E205,Input!$C$795:$C$824,0),MATCH(K$202,Input!$J$794:$V$794,0))*$G205,0) -> 0 | L205: =IFERROR(INDEX(Input!$J$795:$V$824,MATCH($E205,Input!$C$795:$C$824,0),MATCH(L$202,Input!$J$794:$V$794,0))*$G205,0) -> 0 | M205: =IFERROR(INDEX(Input!$J$795:$V$824,MATCH($E205,Input!$C$795:$C$824,0),MATCH(M$202,Input!$J$794:$V$794,0))*$G205,0) -> 7340802.096 | N205: =IFERROR(INDEX(Input!$J$795:$V$824,MATCH($E205,Input!$C$795:$C$824,0),MATCH(N$202,Input!$J$794:$V$794,0))*$G205,0) -> 0 | O205: =IFERROR(INDEX(Input!$J$795:$V$824,MATCH($E205,Input!$C$795:$C$824,0),MATCH(O$202,Input!$J$794:$V$794,0))*$G205,0) -> 0 | P205: =IFERROR(INDEX(Input!$J$795:$V$824,MATCH($E205,Input!$C$795:$C$824,0),MATCH(P$202,Input!$J$794:$V$794,0))*$G205,0) -> 0 | Q205: =IFERROR(INDEX(Input!$J$795:$V$824,MATCH($E205,Input!$C$795:$C$824,0),MATCH(Q$202,Input!$J$794:$V$794,0))*$G205,0) -> 0 | R205: =IFERROR(INDEX(Input!$J$795:$V$824,MATCH($E205,Input!$C$795:$C$824,0),MATCH(R$202,Input!$J$794:$V$794,0))*$G205,0) -> 0 | S205: =IFERROR(INDEX(Input!$J$795:$V$824,MATCH($E205,Input!$C$795:$C$824,0),MATCH(S$202,Input!$J$794:$V$794,0))*$G205,0) -> 0 | T205: =IFERROR(INDEX(Input!$J$795:$V$824,MATCH($E205,Input!$C$795:$C$824,0),MATCH(T$202,Input!$J$794:$V$794,0))*$G205,0) -> 0 | U205: =IFERROR(INDEX(Input!$J$795:$V$824,MATCH($E205,Input!$C$795:$C$824,0),MATCH(U$202,Input!$J$794:$V$794,0))*$G205,0) -> 0 | V205: =IFERROR(INDEX(Input!$J$795:$V$824,MATCH($E205,Input!$C$795:$C$824,0),MATCH(V$202,Input!$J$794:$V$794,0))*$G205,0) -> 0
C206: =Input!$C$752 -> Measuring and Regulating Equipment - Distribution | D206: $ | E206: =Input!$F$752 -> Distribution Measurement | F206: =Input!$E$752 -> 477 | G206: 746495.9375 | J206: =IFERROR(INDEX(Input!$J$795:$V$824,MATCH($E206,Input!$C$795:$C$824,0),MATCH(J$202,Input!$J$794:$V$794,0))*$G206,0) -> 0 | K206: =IFERROR(INDEX(Input!$J$795:$V$824,MATCH($E206,Input!$C$795:$C$824,0),MATCH(K$202,Input!$J$794:$V$794,0))*$G206,0) -> 0 | L206: =IFERROR(INDEX(Input!$J$795:$V$824,MATCH($E206,Input!$C$795:$C$824,0),MATCH(L$202,Input!$J$794:$V$794,0))*$G206,0) -> 746495.9375 | M206: =IFERROR(INDEX(Input!$J$795:$V$824,MATCH($E206,Input!$C$795:$C$824,0),MATCH(M$202,Input!$J$794:$V$794,0))*$G206,0) -> 0 | N206: =IFERROR(INDEX(Input!$J$795:$V$824,MATCH($E206,Input!$C$795:$C$824,0),MATCH(N$202,Input!$J$794:$V$794,0))*$G206,0) -> 0 | O206: =IFERROR(INDEX(Input!$J$795:$V$824,MATCH($E206,Input!$C$795:$C$824,0),MATCH(O$202,Input!$J$794:$V$794,0))*$G206,0) -> 0 | P206: =IFERROR(INDEX(Input!$J$795:$V$824,MATCH($E206,Input!$C$795:$C$824,0),MATCH(P$202,Input!$J$794:$V$794,0))*$G206,0) -> 0 | Q206: =IFERROR(INDEX(Input!$J$795:$V$824,MATCH($E206,Input!$C$795:$C$824,0),MATCH(Q$202,Input!$J$794:$V$794,0))*$G206,0) -> 0 | R206: =IFERROR(INDEX(Input!$J$795:$V$824,MATCH($E206,Input!$C$795:$C$824,0),MATCH(R$202,Input!$J$794:$V$794,0))*$G206,0) -> 0 | S206: =IFERROR(INDEX(Input!$J$795:$V$824,MATCH($E206,Input!$C$795:$C$824,0),MATCH(S$202,Input!$J$794:$V$794,0))*$G206,0) -> 0 | T206: =IFERROR(INDEX(Input!$J$795:$V$824,MATCH($E206,Input!$C$795:$C$824,0),MATCH(T$202,Input!$J$794:$V$794,0))*$G206,0) -> 0 | U206: =IFERROR(INDEX(Input!$J$795:$V$824,MATCH($E206,Input!$C$795:$C$824,0),MATCH(U$202,Input!$J$794:$V$794,0))*$G206,0) -> 0 | V206: =IFERROR(INDEX(Input!$J$795:$V$824,MATCH($E206,Input!$C$795:$C$824,0),MATCH(V$202,Input!$J$794:$V$794,0))*$G206,0) -> 0
C207: =Input!$C$753 -> Regulators and Meter Installations | D207: $ | E207: =Input!$F$753 -> Regulators | F207: =Input!$E$753 -> 474 | G207: 103509.7477 | J207: =IFERROR(INDEX(Input!$J$795:$V$824,MATCH($E207,Input!$C$795:$C$824,0),MATCH(J$202,Input!$J$794:$V$794,0))*$G207,0) -> 0 | K207: =IFERROR(INDEX(Input!$J$795:$V$824,MATCH($E207,Input!$C$795:$C$824,0),MATCH(K$202,Input!$J$794:$V$794,0))*$G207,0) -> 0 | L207: =IFERROR(INDEX(Input!$J$795:$V$824,MATCH($E207,Input!$C$795:$C$824,0),MATCH(L$202,Input!$J$794:$V$794,0))*$G207,0) -> 0 | M207: =IFERROR(INDEX(Input!$J$795:$V$824,MATCH($E207,Input!$C$795:$C$824,0),MATCH(M$202,Input!$J$794:$V$794,0))*$G207,0) -> 0 | N207: =IFERROR(INDEX(Input!$J$795:$V$824,MATCH($E207,Input!$C$795:$C$824,0),MATCH(N$202,Input!$J$794:$V$794,0))*$G207,0) -> 103509.7477 | O207: =IFERROR(INDEX(Input!$J$795:$V$824,MATCH($E207,Input!$C$795:$C$824,0),MATCH(O$202,Input!$J$794:$V$794,0))*$G207,0) -> 0 | P207: =IFERROR(INDEX(Input!$J$795:$V$824,MATCH($E207,Input!$C$795:$C$824,0),MATCH(P$202,Input!$J$794:$V$794,0))*$G207,0) -> 0 | Q207: =IFERROR(INDEX(Input!$J$795:$V$824,MATCH($E207,Input!$C$795:$C$824,0),MATCH(Q$202,Input!$J$794:$V$794,0))*$G207,0) -> 0 | R207: =IFERROR(INDEX(Input!$J$795:$V$824,MATCH($E207,Input!$C$795:$C$824,0),MATCH(R$202,Input!$J$794:$V$794,0))*$G207,0) -> 0 | S207: =IFERROR(INDEX(Input!$J$795:$V$824,MATCH($E207,Input!$C$795:$C$824,0),MATCH(S$202,Input!$J$794:$V$794,0))*$G207,0) -> 0 | T207: =IFERROR(INDEX(Input!$J$795:$V$824,MATCH($E207,Input!$C$795:$C$824,0),MATCH(T$202,Input!$J$794:$V$794,0))*$G207,0) -> 0 | U207: =IFERROR(INDEX(Input!$J$795:$V$824,MATCH($E207,Input!$C$795:$C$824,0),MATCH(U$202,Input!$J$794:$V$794,0))*$G207,0) -> 0 | V207: =IFERROR(INDEX(Input!$J$795:$V$824,MATCH($E207,Input!$C$795:$C$824,0),MATCH(V$202,Input!$J$794:$V$794,0))*$G207,0) -> 0
C208: =Input!$C$754 -> Services | D208: $ | E208: =Input!$F$754 -> Services | F208: =Input!$E$754 -> 473 | G208: 1145651.202 | J208: =IFERROR(INDEX(Input!$J$795:$V$824,MATCH($E208,Input!$C$795:$C$824,0),MATCH(J$202,Input!$J$794:$V$794,0))*$G208,0) -> 0 | K208: =IFERROR(INDEX(Input!$J$795:$V$824,MATCH($E208,Input!$C$795:$C$824,0),MATCH(K$202,Input!$J$794:$V$794,0))*$G208,0) -> 0 | L208: =IFERROR(INDEX(Input!$J$795:$V$824,MATCH($E208,Input!$C$795:$C$824,0),MATCH(L$202,Input!$J$794:$V$794,0))*$G208,0) -> 0 | M208: =IFERROR(INDEX(Input!$J$795:$V$824,MATCH($E208,Input!$C$795:$C$824,0),MATCH(M$202,Input!$J$794:$V$794,0))*$G208,0) -> 0 | N208: =IFERROR(INDEX(Input!$J$795:$V$824,MATCH($E208,Input!$C$795:$C$824,0),MATCH(N$202,Input!$J$794:$V$794,0))*$G208,0) -> 1145651.202 | O208: =IFERROR(INDEX(Input!$J$795:$V$824,MATCH($E208,Input!$C$795:$C$824,0),MATCH(O$202,Input!$J$794:$V$794,0))*$G208,0) -> 0 | P208: =IFERROR(INDEX(Input!$J$795:$V$824,MATCH($E208,Input!$C$795:$C$824,0),MATCH(P$202,Input!$J$794:$V$794,0))*$G208,0) -> 0 | Q208: =IFERROR(INDEX(Input!$J$795:$V$824,MATCH($E208,Input!$C$795:$C$824,0),MATCH(Q$202,Input!$J$794:$V$794,0))*$G208,0) -> 0 | R208: =IFERROR(INDEX(Input!$J$795:$V$824,MATCH($E208,Input!$C$795:$C$824,0),MATCH(R$202,Input!$J$794:$V$794,0))*$G208,0) -> 0 | S208: =IFERROR(INDEX(Input!$J$795:$V$824,MATCH($E208,Input!$C$795:$C$824,0),MATCH(S$202,Input!$J$794:$V$794,0))*$G208,0) -> 0 | T208: =IFERROR(INDEX(Input!$J$795:$V$824,MATCH($E208,Input!$C$795:$C$824,0),MATCH(T$202,Input!$J$794:$V$794,0))*$G208,0) -> 0 | U208: =IFERROR(INDEX(Input!$J$795:$V$824,MATCH($E208,Input!$C$795:$C$824,0),MATCH(U$202,Input!$J$794:$V$794,0))*$G208,0) -> 0 | V208: =IFERROR(INDEX(Input!$J$795:$V$824,MATCH($E208,Input!$C$795:$C$824,0),MATCH(V$202,Input!$J$794:$V$794,0))*$G208,0) -> 0
C209: =Input!$C$755 -> Meter | D209: $ | E209: =Input!$F$755 -> Meters | F209: =Input!$E$755 -> 478 | G209: 1617779.158 | J209: =IFERROR(INDEX(Input!$J$795:$V$824,MATCH($E209,Input!$C$795:$C$824,0),MATCH(J$202,Input!$J$794:$V$794,0))*$G209,0) -> 0 | K209: =IFERROR(INDEX(Input!$J$795:$V$824,MATCH($E209,Input!$C$795:$C$824,0),MATCH(K$202,Input!$J$794:$V$794,0))*$G209,0) -> 0 | L209: =IFERROR(INDEX(Input!$J$795:$V$824,MATCH($E209,Input!$C$795:$C$824,0),MATCH(L$202,Input!$J$794:$V$794,0))*$G209,0) -> 0 | M209: =IFERROR(INDEX(Input!$J$795:$V$824,MATCH($E209,Input!$C$795:$C$824,0),MATCH(M$202,Input!$J$794:$V$794,0))*$G209,0) -> 0 | N209: =IFERROR(INDEX(Input!$J$795:$V$824,MATCH($E209,Input!$C$795:$C$824,0),MATCH(N$202,Input!$J$794:$V$794,0))*$G209,0) -> 0 | O209: =IFERROR(INDEX(Input!$J$795:$V$824,MATCH($E209,Input!$C$795:$C$824,0),MATCH(O$202,Input!$J$794:$V$794,0))*$G209,0) -> 1617779.158 | P209: =IFERROR(INDEX(Input!$J$795:$V$824,MATCH($E209,Input!$C$795:$C$824,0),MATCH(P$202,Input!$J$794:$V$794,0))*$G209,0) -> 0 | Q209: =IFERROR(INDEX(Input!$J$795:$V$824,MATCH($E209,Input!$C$795:$C$824,0),MATCH(Q$202,Input!$J$794:$V$794,0))*$G209,0) -> 0 | R209: =IFERROR(INDEX(Input!$J$795:$V$824,MATCH($E209,Input!$C$795:$C$824,0),MATCH(R$202,Input!$J$794:$V$794,0))*$G209,0) -> 0 | S209: =IFERROR(INDEX(Input!$J$795:$V$824,MATCH($E209,Input!$C$795:$C$824,0),MATCH(S$202,Input!$J$794:$V$794,0))*$G209,0) -> 0 | T209: =IFERROR(INDEX(Input!$J$795:$V$824,MATCH($E209,Input!$C$795:$C$824,0),MATCH(T$202,Input!$J$794:$V$794,0))*$G209,0) -> 0 | U209: =IFERROR(INDEX(Input!$J$795:$V$824,MATCH($E209,Input!$C$795:$C$824,0),MATCH(U$202,Input!$J$794:$V$794,0))*$G209,0) -> 0 | V209: =IFERROR(INDEX(Input!$J$795:$V$824,MATCH($E209,Input!$C$795:$C$824,0),MATCH(V$202,Input!$J$794:$V$794,0))*$G209,0) -> 0
C210: =Input!$C$756 -> Land | D210: $ | E210: =Input!$F$756 -> Bldgs&Impr. | F210: =Input!$E$756 -> 480 | G210: 122700.43 | J210: =IFERROR(INDEX(Input!$J$795:$V$824,MATCH($E210,Input!$C$795:$C$824,0),MATCH(J$202,Input!$J$794:$V$794,0))*$G210,0) -> 0 | K210: =IFERROR(INDEX(Input!$J$795:$V$824,MATCH($E210,Input!$C$795:$C$824,0),MATCH(K$202,Input!$J$794:$V$794,0))*$G210,0) -> 0 | L210: =IFERROR(INDEX(Input!$J$795:$V$824,MATCH($E210,Input!$C$795:$C$824,0),MATCH(L$202,Input!$J$794:$V$794,0))*$G210,0) -> 670.4070945 | M210: =IFERROR(INDEX(Input!$J$795:$V$824,MATCH($E210,Input!$C$795:$C$824,0),MATCH(M$202,Input!$J$794:$V$794,0))*$G210,0) -> 18260.94888 | N210: =IFERROR(INDEX(Input!$J$795:$V$824,MATCH($E210,Input!$C$795:$C$824,0),MATCH(N$202,Input!$J$794:$V$794,0))*$G210,0) -> 15964.7619 | O210: =IFERROR(INDEX(Input!$J$795:$V$824,MATCH($E210,Input!$C$795:$C$824,0),MATCH(O$202,Input!$J$794:$V$794,0))*$G210,0) -> 11935.72398 | P210: =IFERROR(INDEX(Input!$J$795:$V$824,MATCH($E210,Input!$C$795:$C$824,0),MATCH(P$202,Input!$J$794:$V$794,0))*$G210,0) -> 24475.61349 | Q210: =IFERROR(INDEX(Input!$J$795:$V$824,MATCH($E210,Input!$C$795:$C$824,0),MATCH(Q$202,Input!$J$794:$V$794,0))*$G210,0) -> 9680.132508 | R210: =IFERROR(INDEX(Input!$J$795:$V$824,MATCH($E210,Input!$C$795:$C$824,0),MATCH(R$202,Input!$J$794:$V$794,0))*$G210,0) -> 5396.236111 | S210: =IFERROR(INDEX(Input!$J$795:$V$824,MATCH($E210,Input!$C$795:$C$824,0),MATCH(S$202,Input!$J$794:$V$794,0))*$G210,0) -> 36316.60603 | T210: =IFERROR(INDEX(Input!$J$795:$V$824,MATCH($E210,Input!$C$795:$C$824,0),MATCH(T$202,Input!$J$794:$V$794,0))*$G210,0) -> 0 | U210: =IFERROR(INDEX(Input!$J$795:$V$824,MATCH($E210,Input!$C$795:$C$824,0),MATCH(U$202,Input!$J$794:$V$794,0))*$G210,0) -> 0 | V210: =IFERROR(INDEX(Input!$J$795:$V$824,MATCH($E210,Input!$C$795:$C$824,0),MATCH(V$202,Input!$J$794:$V$794,0))*$G210,0) -> 0
C211: =Input!$C$757 -> Heavy Work Equipment | D211: $ | E211: =Input!$F$757 -> Heavy Equipment | F211: =Input!$E$757 -> 485 | G211: 0 | J211: =IFERROR(INDEX(Input!$J$795:$V$824,MATCH($E211,Input!$C$795:$C$824,0),MATCH(J$202,Input!$J$794:$V$794,0))*$G211,0) -> 0 | K211: =IFERROR(INDEX(Input!$J$795:$V$824,MATCH($E211,Input!$C$795:$C$824,0),MATCH(K$202,Input!$J$794:$V$794,0))*$G211,0) -> 0 | L211: =IFERROR(INDEX(Input!$J$795:$V$824,MATCH($E211,Input!$C$795:$C$824,0),MATCH(L$202,Input!$J$794:$V$794,0))*$G211,0) -> 0 | M211: =IFERROR(INDEX(Input!$J$795:$V$824,MATCH($E211,Input!$C$795:$C$824,0),MATCH(M$202,Input!$J$794:$V$794,0))*$G211,0) -> 0 | N211: =IFERROR(INDEX(Input!$J$795:$V$824,MATCH($E211,Input!$C$795:$C$824,0),MATCH(N$202,Input!$J$794:$V$794,0))*$G211,0) -> 0 | O211: =IFERROR(INDEX(Input!$J$795:$V$824,MATCH($E211,Input!$C$795:$C$824,0),MATCH(O$202,Input!$J$794:$V$794,0))*$G211,0) -> 0 | P211: =IFERROR(INDEX(Input!$J$795:$V$824,MATCH($E211,Input!$C$795:$C$824,0),MATCH(P$202,Input!$J$794:$V$794,0))*$G211,0) -> 0 | Q211: =IFERROR(INDEX(Input!$J$795:$V$824,MATCH($E211,Input!$C$795:$C$824,0),MATCH(Q$202,Input!$J$794:$V$794,0))*$G211,0) -> 0 | R211: =IFERROR(INDEX(Input!$J$795:$V$824,MATCH($E211,Input!$C$795:$C$824,0),MATCH(R$202,Input!$J$794:$V$794,0))*$G211,0) -> 0 | S211: =IFERROR(INDEX(Input!$J$795:$V$824,MATCH($E211,Input!$C$795:$C$824,0),MATCH(S$202,Input!$J$794:$V$794,0))*$G211,0) -> 0 | T211: =IFERROR(INDEX(Input!$J$795:$V$824,MATCH($E211,Input!$C$795:$C$824,0),MATCH(T$202,Input!$J$794:$V$794,0))*$G211,0) -> 0 | U211: =IFERROR(INDEX(Input!$J$795:$V$824,MATCH($E211,Input!$C$795:$C$824,0),MATCH(U$202,Input!$J$794:$V$794,0))*$G211,0) -> 0 | V211: =IFERROR(INDEX(Input!$J$795:$V$824,MATCH($E211,Input!$C$795:$C$824,0),MATCH(V$202,Input!$J$794:$V$794,0))*$G211,0) -> 0
C212: =Input!$C$758 -> Transportation Equipment | D212: $ | E212: =Input!$F$758 -> Vehicles | F212: =Input!$E$758 -> 484 | G212: 200657.3577 | J212: =IFERROR(INDEX(Input!$J$795:$V$824,MATCH($E212,Input!$C$795:$C$824,0),MATCH(J$202,Input!$J$794:$V$794,0))*$G212,0) -> 0 | K212: =IFERROR(INDEX(Input!$J$795:$V$824,MATCH($E212,Input!$C$795:$C$824,0),MATCH(K$202,Input!$J$794:$V$794,0))*$G212,0) -> 0 | L212: =IFERROR(INDEX(Input!$J$795:$V$824,MATCH($E212,Input!$C$795:$C$824,0),MATCH(L$202,Input!$J$794:$V$794,0))*$G212,0) -> 2062.418226 | M212: =IFERROR(INDEX(Input!$J$795:$V$824,MATCH($E212,Input!$C$795:$C$824,0),MATCH(M$202,Input!$J$794:$V$794,0))*$G212,0) -> 53598.31726 | N212: =IFERROR(INDEX(Input!$J$795:$V$824,MATCH($E212,Input!$C$795:$C$824,0),MATCH(N$202,Input!$J$794:$V$794,0))*$G212,0) -> 47585.97315 | O212: =IFERROR(INDEX(Input!$J$795:$V$824,MATCH($E212,Input!$C$795:$C$824,0),MATCH(O$202,Input!$J$794:$V$794,0))*$G212,0) -> 18561.76403 | P212: =IFERROR(INDEX(Input!$J$795:$V$824,MATCH($E212,Input!$C$795:$C$824,0),MATCH(P$202,Input!$J$794:$V$794,0))*$G212,0) -> 6384.318997 | Q212: =IFERROR(INDEX(Input!$J$795:$V$824,MATCH($E212,Input!$C$795:$C$824,0),MATCH(Q$202,Input!$J$794:$V$794,0))*$G212,0) -> 25016.06668 | R212: =IFERROR(INDEX(Input!$J$795:$V$824,MATCH($E212,Input!$C$795:$C$824,0),MATCH(R$202,Input!$J$794:$V$794,0))*$G212,0) -> 0 | S212: =IFERROR(INDEX(Input!$J$795:$V$824,MATCH($E212,Input!$C$795:$C$824,0),MATCH(S$202,Input!$J$794:$V$794,0))*$G212,0) -> 47448.49934 | T212: =IFERROR(INDEX(Input!$J$795:$V$824,MATCH($E212,Input!$C$795:$C$824,0),MATCH(T$202,Input!$J$794:$V$794,0))*$G212,0) -> 0 | U212: =IFERROR(INDEX(Input!$J$795:$V$824,MATCH($E212,Input!$C$795:$C$824,0),MATCH(U$202,Input!$J$794:$V$794,0))*$G212,0) -> 0 | V212: =IFERROR(INDEX(Input!$J$795:$V$824,MATCH($E212,Input!$C$795:$C$824,0),MATCH(V$202,Input!$J$794:$V$794,0))*$G212,0) -> 0
C213: =Input!$C$759 -> Structures and Improvements - General | D213: $ | E213: =Input!$F$759 -> Bldgs&Impr. | F213: =Input!$E$759 -> 482 | G213: 444452.8287 | J213: =IFERROR(INDEX(Input!$J$795:$V$824,MATCH($E213,Input!$C$795:$C$824,0),MATCH(J$202,Input!$J$794:$V$794,0))*$G213,0) -> 0 | K213: =IFERROR(INDEX(Input!$J$795:$V$824,MATCH($E213,Input!$C$795:$C$824,0),MATCH(K$202,Input!$J$794:$V$794,0))*$G213,0) -> 0 | L213: =IFERROR(INDEX(Input!$J$795:$V$824,MATCH($E213,Input!$C$795:$C$824,0),MATCH(L$202,Input!$J$794:$V$794,0))*$G213,0) -> 2428.388634 | M213: =IFERROR(INDEX(Input!$J$795:$V$824,MATCH($E213,Input!$C$795:$C$824,0),MATCH(M$202,Input!$J$794:$V$794,0))*$G213,0) -> 66145.90011 | N213: =IFERROR(INDEX(Input!$J$795:$V$824,MATCH($E213,Input!$C$795:$C$824,0),MATCH(N$202,Input!$J$794:$V$794,0))*$G213,0) -> 57828.51443 | O213: =IFERROR(INDEX(Input!$J$795:$V$824,MATCH($E213,Input!$C$795:$C$824,0),MATCH(O$202,Input!$J$794:$V$794,0))*$G213,0) -> 43234.29253 | P213: =IFERROR(INDEX(Input!$J$795:$V$824,MATCH($E213,Input!$C$795:$C$824,0),MATCH(P$202,Input!$J$794:$V$794,0))*$G213,0) -> 88657.02958 | Q213: =IFERROR(INDEX(Input!$J$795:$V$824,MATCH($E213,Input!$C$795:$C$824,0),MATCH(Q$202,Input!$J$794:$V$794,0))*$G213,0) -> 35063.95435 | R213: =IFERROR(INDEX(Input!$J$795:$V$824,MATCH($E213,Input!$C$795:$C$824,0),MATCH(R$202,Input!$J$794:$V$794,0))*$G213,0) -> 19546.56886 | S213: =IFERROR(INDEX(Input!$J$795:$V$824,MATCH($E213,Input!$C$795:$C$824,0),MATCH(S$202,Input!$J$794:$V$794,0))*$G213,0) -> 131548.1802 | T213: =IFERROR(INDEX(Input!$J$795:$V$824,MATCH($E213,Input!$C$795:$C$824,0),MATCH(T$202,Input!$J$794:$V$794,0))*$G213,0) -> 0 | U213: =IFERROR(INDEX(Input!$J$795:$V$824,MATCH($E213,Input!$C$795:$C$824,0),MATCH(U$202,Input!$J$794:$V$794,0))*$G213,0) -> 0 | V213: =IFERROR(INDEX(Input!$J$795:$V$824,MATCH($E213,Input!$C$795:$C$824,0),MATCH(V$202,Input!$J$794:$V$794,0))*$G213,0) -> 0
C214: =Input!$C$760 -> Office Furniture and Equipment | D214: $ | E214: =Input!$F$760 -> Bldgs&Impr. | F214: =Input!$E$760 -> 483 | G214: 2679.581 | J214: =IFERROR(INDEX(Input!$J$795:$V$824,MATCH($E214,Input!$C$795:$C$824,0),MATCH(J$202,Input!$J$794:$V$794,0))*$G214,0) -> 0 | K214: =IFERROR(INDEX(Input!$J$795:$V$824,MATCH($E214,Input!$C$795:$C$824,0),MATCH(K$202,Input!$J$794:$V$794,0))*$G214,0) -> 0 | L214: =IFERROR(INDEX(Input!$J$795:$V$824,MATCH($E214,Input!$C$795:$C$824,0),MATCH(L$202,Input!$J$794:$V$794,0))*$G214,0) -> 14.64061791 | M214: =IFERROR(INDEX(Input!$J$795:$V$824,MATCH($E214,Input!$C$795:$C$824,0),MATCH(M$202,Input!$J$794:$V$794,0))*$G214,0) -> 398.7898956 | N214: =IFERROR(INDEX(Input!$J$795:$V$824,MATCH($E214,Input!$C$795:$C$824,0),MATCH(N$202,Input!$J$794:$V$794,0))*$G214,0) -> 348.6448471 | O214: =IFERROR(INDEX(Input!$J$795:$V$824,MATCH($E214,Input!$C$795:$C$824,0),MATCH(O$202,Input!$J$794:$V$794,0))*$G214,0) -> 260.6571076 | P214: =IFERROR(INDEX(Input!$J$795:$V$824,MATCH($E214,Input!$C$795:$C$824,0),MATCH(P$202,Input!$J$794:$V$794,0))*$G214,0) -> 534.5082237 | Q214: =IFERROR(INDEX(Input!$J$795:$V$824,MATCH($E214,Input!$C$795:$C$824,0),MATCH(Q$202,Input!$J$794:$V$794,0))*$G214,0) -> 211.3986002 | R214: =IFERROR(INDEX(Input!$J$795:$V$824,MATCH($E214,Input!$C$795:$C$824,0),MATCH(R$202,Input!$J$794:$V$794,0))*$G214,0) -> 117.8451596 | S214: =IFERROR(INDEX(Input!$J$795:$V$824,MATCH($E214,Input!$C$795:$C$824,0),MATCH(S$202,Input!$J$794:$V$794,0))*$G214,0) -> 793.0965483 | T214: =IFERROR(INDEX(Input!$J$795:$V$824,MATCH($E214,Input!$C$795:$C$824,0),MATCH(T$202,Input!$J$794:$V$794,0))*$G214,0) -> 0 | U214: =IFERROR(INDEX(Input!$J$795:$V$824,MATCH($E214,Input!$C$795:$C$824,0),MATCH(U$202,Input!$J$794:$V$794,0))*$G214,0) -> 0 | V214: =IFERROR(INDEX(Input!$J$795:$V$824,MATCH($E214,Input!$C$795:$C$824,0),MATCH(V$202,Input!$J$794:$V$794,0))*$G214,0) -> 0
C215: =Input!$C$761 -> Communication Structures and Equipment | D215: $ | E215: =Input!$F$761 -> Communications | F215: =Input!$E$761 -> 488 | G215: 38872.32653 | J215: =IFERROR(INDEX(Input!$J$795:$V$824,MATCH($E215,Input!$C$795:$C$824,0),MATCH(J$202,Input!$J$794:$V$794,0))*$G215,0) -> 0 | K215: =IFERROR(INDEX(Input!$J$795:$V$824,MATCH($E215,Input!$C$795:$C$824,0),MATCH(K$202,Input!$J$794:$V$794,0))*$G215,0) -> 0 | L215: =IFERROR(INDEX(Input!$J$795:$V$824,MATCH($E215,Input!$C$795:$C$824,0),MATCH(L$202,Input!$J$794:$V$794,0))*$G215,0) -> 0 | M215: =IFERROR(INDEX(Input!$J$795:$V$824,MATCH($E215,Input!$C$795:$C$824,0),MATCH(M$202,Input!$J$794:$V$794,0))*$G215,0) -> 9718.081632 | N215: =IFERROR(INDEX(Input!$J$795:$V$824,MATCH($E215,Input!$C$795:$C$824,0),MATCH(N$202,Input!$J$794:$V$794,0))*$G215,0) -> 9718.081632 | O215: =IFERROR(INDEX(Input!$J$795:$V$824,MATCH($E215,Input!$C$795:$C$824,0),MATCH(O$202,Input!$J$794:$V$794,0))*$G215,0) -> 0 | P215: =IFERROR(INDEX(Input!$J$795:$V$824,MATCH($E215,Input!$C$795:$C$824,0),MATCH(P$202,Input!$J$794:$V$794,0))*$G215,0) -> 0 | Q215: =IFERROR(INDEX(Input!$J$795:$V$824,MATCH($E215,Input!$C$795:$C$824,0),MATCH(Q$202,Input!$J$794:$V$794,0))*$G215,0) -> 0 | R215: =IFERROR(INDEX(Input!$J$795:$V$824,MATCH($E215,Input!$C$795:$C$824,0),MATCH(R$202,Input!$J$794:$V$794,0))*$G215,0) -> 0 | S215: =IFERROR(INDEX(Input!$J$795:$V$824,MATCH($E215,Input!$C$795:$C$824,0),MATCH(S$202,Input!$J$794:$V$794,0))*$G215,0) -> 19436.16326 | T215: =IFERROR(INDEX(Input!$J$795:$V$824,MATCH($E215,Input!$C$795:$C$824,0),MATCH(T$202,Input!$J$794:$V$794,0))*$G215,0) -> 0 | U215: =IFERROR(INDEX(Input!$J$795:$V$824,MATCH($E215,Input!$C$795:$C$824,0),MATCH(U$202,Input!$J$794:$V$794,0))*$G215,0) -> 0 | V215: =IFERROR(INDEX(Input!$J$795:$V$824,MATCH($E215,Input!$C$795:$C$824,0),MATCH(V$202,Input!$J$794:$V$794,0))*$G215,0) -> 0
C216: =Input!$C$762 -> Computer Hardware | D216: $ | E216: =Input!$F$762 -> Computers | F216: =Input!$E$762 -> 490 | G216: 75448.0513 | J216: =IFERROR(INDEX(Input!$J$795:$V$824,MATCH($E216,Input!$C$795:$C$824,0),MATCH(J$202,Input!$J$794:$V$794,0))*$G216,0) -> 0 | K216: =IFERROR(INDEX(Input!$J$795:$V$824,MATCH($E216,Input!$C$795:$C$824,0),MATCH(K$202,Input!$J$794:$V$794,0))*$G216,0) -> 0 | L216: =IFERROR(INDEX(Input!$J$795:$V$824,MATCH($E216,Input!$C$795:$C$824,0),MATCH(L$202,Input!$J$794:$V$794,0))*$G216,0) -> 393.1738131 | M216: =IFERROR(INDEX(Input!$J$795:$V$824,MATCH($E216,Input!$C$795:$C$824,0),MATCH(M$202,Input!$J$794:$V$794,0))*$G216,0) -> 11081.04159 | N216: =IFERROR(INDEX(Input!$J$795:$V$824,MATCH($E216,Input!$C$795:$C$824,0),MATCH(N$202,Input!$J$794:$V$794,0))*$G216,0) -> 11191.78821 | O216: =IFERROR(INDEX(Input!$J$795:$V$824,MATCH($E216,Input!$C$795:$C$824,0),MATCH(O$202,Input!$J$794:$V$794,0))*$G216,0) -> 7711.625114 | P216: =IFERROR(INDEX(Input!$J$795:$V$824,MATCH($E216,Input!$C$795:$C$824,0),MATCH(P$202,Input!$J$794:$V$794,0))*$G216,0) -> 14405.9386 | Q216: =IFERROR(INDEX(Input!$J$795:$V$824,MATCH($E216,Input!$C$795:$C$824,0),MATCH(Q$202,Input!$J$794:$V$794,0))*$G216,0) -> 4927.76328 | R216: =IFERROR(INDEX(Input!$J$795:$V$824,MATCH($E216,Input!$C$795:$C$824,0),MATCH(R$202,Input!$J$794:$V$794,0))*$G216,0) -> 4106.4694 | S216: =IFERROR(INDEX(Input!$J$795:$V$824,MATCH($E216,Input!$C$795:$C$824,0),MATCH(S$202,Input!$J$794:$V$794,0))*$G216,0) -> 21630.25129 | T216: =IFERROR(INDEX(Input!$J$795:$V$824,MATCH($E216,Input!$C$795:$C$824,0),MATCH(T$202,Input!$J$794:$V$794,0))*$G216,0) -> 0 | U216: =IFERROR(INDEX(Input!$J$795:$V$824,MATCH($E216,Input!$C$795:$C$824,0),MATCH(U$202,Input!$J$794:$V$794,0))*$G216,0) -> 0 | V216: =IFERROR(INDEX(Input!$J$795:$V$824,MATCH($E216,Input!$C$795:$C$824,0),MATCH(V$202,Input!$J$794:$V$794,0))*$G216,0) -> 0
C217: =Input!$C$763 -> Computer Application Software | D217: $ | E217: =Input!$F$763 -> Computer Application Software | F217: =Input!$E$763 -> 491 | G217: 355312.161 | J217: =IFERROR(INDEX(Input!$J$795:$V$824,MATCH($E217,Input!$C$795:$C$824,0),MATCH(J$202,Input!$J$794:$V$794,0))*$G217,0) -> 0 | K217: =IFERROR(INDEX(Input!$J$795:$V$824,MATCH($E217,Input!$C$795:$C$824,0),MATCH(K$202,Input!$J$794:$V$794,0))*$G217,0) -> 0 | L217: =IFERROR(INDEX(Input!$J$795:$V$824,MATCH($E217,Input!$C$795:$C$824,0),MATCH(L$202,Input!$J$794:$V$794,0))*$G217,0) -> 0 | M217: =IFERROR(INDEX(Input!$J$795:$V$824,MATCH($E217,Input!$C$795:$C$824,0),MATCH(M$202,Input!$J$794:$V$794,0))*$G217,0) -> 0 | N217: =IFERROR(INDEX(Input!$J$795:$V$824,MATCH($E217,Input!$C$795:$C$824,0),MATCH(N$202,Input!$J$794:$V$794,0))*$G217,0) -> 0 | O217: =IFERROR(INDEX(Input!$J$795:$V$824,MATCH($E217,Input!$C$795:$C$824,0),MATCH(O$202,Input!$J$794:$V$794,0))*$G217,0) -> 0 | P217: =IFERROR(INDEX(Input!$J$795:$V$824,MATCH($E217,Input!$C$795:$C$824,0),MATCH(P$202,Input!$J$794:$V$794,0))*$G217,0) -> 266484.1208 | Q217: =IFERROR(INDEX(Input!$J$795:$V$824,MATCH($E217,Input!$C$795:$C$824,0),MATCH(Q$202,Input!$J$794:$V$794,0))*$G217,0) -> 0 | R217: =IFERROR(INDEX(Input!$J$795:$V$824,MATCH($E217,Input!$C$795:$C$824,0),MATCH(R$202,Input!$J$794:$V$794,0))*$G217,0) -> 0 | S217: =IFERROR(INDEX(Input!$J$795:$V$824,MATCH($E217,Input!$C$795:$C$824,0),MATCH(S$202,Input!$J$794:$V$794,0))*$G217,0) -> 88828.04026 | T217: =IFERROR(INDEX(Input!$J$795:$V$824,MATCH($E217,Input!$C$795:$C$824,0),MATCH(T$202,Input!$J$794:$V$794,0))*$G217,0) -> 0 | U217: =IFERROR(INDEX(Input!$J$795:$V$824,MATCH($E217,Input!$C$795:$C$824,0),MATCH(U$202,Input!$J$794:$V$794,0))*$G217,0) -> 0 | V217: =IFERROR(INDEX(Input!$J$795:$V$824,MATCH($E217,Input!$C$795:$C$824,0),MATCH(V$202,Input!$J$794:$V$794,0))*$G217,0) -> 0
C218: =Input!$C$764 -> Tools and Work Equipment | D218: $ | E218: =Input!$F$764 -> SmallTools | F218: =Input!$E$764 -> 486 | G218: 179432.5377 | J218: =IFERROR(INDEX(Input!$J$795:$V$824,MATCH($E218,Input!$C$795:$C$824,0),MATCH(J$202,Input!$J$794:$V$794,0))*$G218,0) -> 0 | K218: =IFERROR(INDEX(Input!$J$795:$V$824,MATCH($E218,Input!$C$795:$C$824,0),MATCH(K$202,Input!$J$794:$V$794,0))*$G218,0) -> 0 | L218: =IFERROR(INDEX(Input!$J$795:$V$824,MATCH($E218,Input!$C$795:$C$824,0),MATCH(L$202,Input!$J$794:$V$794,0))*$G218,0) -> 3277.085778 | M218: =IFERROR(INDEX(Input!$J$795:$V$824,MATCH($E218,Input!$C$795:$C$824,0),MATCH(M$202,Input!$J$794:$V$794,0))*$G218,0) -> 76668.21916 | N218: =IFERROR(INDEX(Input!$J$795:$V$824,MATCH($E218,Input!$C$795:$C$824,0),MATCH(N$202,Input!$J$794:$V$794,0))*$G218,0) -> 69993.46078 | O218: =IFERROR(INDEX(Input!$J$795:$V$824,MATCH($E218,Input!$C$795:$C$824,0),MATCH(O$202,Input!$J$794:$V$794,0))*$G218,0) -> 29493.772 | P218: =IFERROR(INDEX(Input!$J$795:$V$824,MATCH($E218,Input!$C$795:$C$824,0),MATCH(P$202,Input!$J$794:$V$794,0))*$G218,0) -> 0 | Q218: =IFERROR(INDEX(Input!$J$795:$V$824,MATCH($E218,Input!$C$795:$C$824,0),MATCH(Q$202,Input!$J$794:$V$794,0))*$G218,0) -> 0 | R218: =IFERROR(INDEX(Input!$J$795:$V$824,MATCH($E218,Input!$C$795:$C$824,0),MATCH(R$202,Input!$J$794:$V$794,0))*$G218,0) -> 0 | S218: =IFERROR(INDEX(Input!$J$795:$V$824,MATCH($E218,Input!$C$795:$C$824,0),MATCH(S$202,Input!$J$794:$V$794,0))*$G218,0) -> 0 | T218: =IFERROR(INDEX(Input!$J$795:$V$824,MATCH($E218,Input!$C$795:$C$824,0),MATCH(T$202,Input!$J$794:$V$794,0))*$G218,0) -> 0 | U218: =IFERROR(INDEX(Input!$J$795:$V$824,MATCH($E218,Input!$C$795:$C$824,0),MATCH(U$202,Input!$J$794:$V$794,0))*$G218,0) -> 0 | V218: =IFERROR(INDEX(Input!$J$795:$V$824,MATCH($E218,Input!$C$795:$C$824,0),MATCH(V$202,Input!$J$794:$V$794,0))*$G218,0) -> 0
C219: =Input!$C$765 -> Frachises and Consents | D219: $ | E219: =Input!$F$765 -> A&G | F219: =Input!$E$765 -> 401 | G219: 367912.2531 | J219: =IFERROR(INDEX(Input!$J$795:$V$824,MATCH($E219,Input!$C$795:$C$824,0),MATCH(J$202,Input!$J$794:$V$794,0))*$G219,0) -> 0 | K219: =IFERROR(INDEX(Input!$J$795:$V$824,MATCH($E219,Input!$C$795:$C$824,0),MATCH(K$202,Input!$J$794:$V$794,0))*$G219,0) -> 0 | L219: =IFERROR(INDEX(Input!$J$795:$V$824,MATCH($E219,Input!$C$795:$C$824,0),MATCH(L$202,Input!$J$794:$V$794,0))*$G219,0) -> 0 | M219: =IFERROR(INDEX(Input!$J$795:$V$824,MATCH($E219,Input!$C$795:$C$824,0),MATCH(M$202,Input!$J$794:$V$794,0))*$G219,0) -> 0 | N219: =IFERROR(INDEX(Input!$J$795:$V$824,MATCH($E219,Input!$C$795:$C$824,0),MATCH(N$202,Input!$J$794:$V$794,0))*$G219,0) -> 0 | O219: =IFERROR(INDEX(Input!$J$795:$V$824,MATCH($E219,Input!$C$795:$C$824,0),MATCH(O$202,Input!$J$794:$V$794,0))*$G219,0) -> 0 | P219: =IFERROR(INDEX(Input!$J$795:$V$824,MATCH($E219,Input!$C$795:$C$824,0),MATCH(P$202,Input!$J$794:$V$794,0))*$G219,0) -> 0 | Q219: =IFERROR(INDEX(Input!$J$795:$V$824,MATCH($E219,Input!$C$795:$C$824,0),MATCH(Q$202,Input!$J$794:$V$794,0))*$G219,0) -> 0 | R219: =IFERROR(INDEX(Input!$J$795:$V$824,MATCH($E219,Input!$C$795:$C$824,0),MATCH(R$202,Input!$J$794:$V$794,0))*$G219,0) -> 0 | S219: =IFERROR(INDEX(Input!$J$795:$V$824,MATCH($E219,Input!$C$795:$C$824,0),MATCH(S$202,Input!$J$794:$V$794,0))*$G219,0) -> 367912.2531 | T219: =IFERROR(INDEX(Input!$J$795:$V$824,MATCH($E219,Input!$C$795:$C$824,0),MATCH(T$202,Input!$J$794:$V$794,0))*$G219,0) -> 0 | U219: =IFERROR(INDEX(Input!$J$795:$V$824,MATCH($E219,Input!$C$795:$C$824,0),MATCH(U$202,Input!$J$794:$V$794,0))*$G219,0) -> 0 | V219: =IFERROR(INDEX(Input!$J$795:$V$824,MATCH($E219,Input!$C$795:$C$824,0),MATCH(V$202,Input!$J$794:$V$794,0))*$G219,0) -> 0
C220: =Input!$C$766 -> Mains - IGPC | D220: $ | E220: =Input!$F$766 -> IGPC Direct Assignment | F220: =Input!$E$766 -> 475b | G220: 3607105.517 | J220: =IFERROR(INDEX(Input!$J$795:$V$824,MATCH($E220,Input!$C$795:$C$824,0),MATCH(J$202,Input!$J$794:$V$794,0))*$G220,0) -> 0 | K220: =IFERROR(INDEX(Input!$J$795:$V$824,MATCH($E220,Input!$C$795:$C$824,0),MATCH(K$202,Input!$J$794:$V$794,0))*$G220,0) -> 0 | L220: =IFERROR(INDEX(Input!$J$795:$V$824,MATCH($E220,Input!$C$795:$C$824,0),MATCH(L$202,Input!$J$794:$V$794,0))*$G220,0) -> 0 | M220: =IFERROR(INDEX(Input!$J$795:$V$824,MATCH($E220,Input!$C$795:$C$824,0),MATCH(M$202,Input!$J$794:$V$794,0))*$G220,0) -> 0 | N220: =IFERROR(INDEX(Input!$J$795:$V$824,MATCH($E220,Input!$C$795:$C$824,0),MATCH(N$202,Input!$J$794:$V$794,0))*$G220,0) -> 0 | O220: =IFERROR(INDEX(Input!$J$795:$V$824,MATCH($E220,Input!$C$795:$C$824,0),MATCH(O$202,Input!$J$794:$V$794,0))*$G220,0) -> 0 | P220: =IFERROR(INDEX(Input!$J$795:$V$824,MATCH($E220,Input!$C$795:$C$824,0),MATCH(P$202,Input!$J$794:$V$794,0))*$G220,0) -> 0 | Q220: =IFERROR(INDEX(Input!$J$795:$V$824,MATCH($E220,Input!$C$795:$C$824,0),MATCH(Q$202,Input!$J$794:$V$794,0))*$G220,0) -> 0 | R220: =IFERROR(INDEX(Input!$J$795:$V$824,MATCH($E220,Input!$C$795:$C$824,0),MATCH(R$202,Input!$J$794:$V$794,0))*$G220,0) -> 0 | S220: =IFERROR(INDEX(Input!$J$795:$V$824,MATCH($E220,Input!$C$795:$C$824,0),MATCH(S$202,Input!$J$794:$V$794,0))*$G220,0) -> 0 | T220: =IFERROR(INDEX(Input!$J$795:$V$824,MATCH($E220,Input!$C$795:$C$824,0),MATCH(T$202,Input!$J$794:$V$794,0))*$G220,0) -> 0 | U220: =IFERROR(INDEX(Input!$J$795:$V$824,MATCH($E220,Input!$C$795:$C$824,0),MATCH(U$202,Input!$J$794:$V$794,0))*$G220,0) -> 3607105.517 | V220: =IFERROR(INDEX(Input!$J$795:$V$824,MATCH($E220,Input!$C$795:$C$824,0),MATCH(V$202,Input!$J$794:$V$794,0))*$G220,0) -> 0
C221: =Input!$C$767 -> Meter - IGPC | D221: $ | E221: =Input!$F$767 -> IGPC Direct Assignment | F221: =Input!$E$767 -> 478b | G221: 6940.71475 | J221: =IFERROR(INDEX(Input!$J$795:$V$824,MATCH($E221,Input!$C$795:$C$824,0),MATCH(J$202,Input!$J$794:$V$794,0))*$G221,0) -> 0 | K221: =IFERROR(INDEX(Input!$J$795:$V$824,MATCH($E221,Input!$C$795:$C$824,0),MATCH(K$202,Input!$J$794:$V$794,0))*$G221,0) -> 0 | L221: =IFERROR(INDEX(Input!$J$795:$V$824,MATCH($E221,Input!$C$795:$C$824,0),MATCH(L$202,Input!$J$794:$V$794,0))*$G221,0) -> 0 | M221: =IFERROR(INDEX(Input!$J$795:$V$824,MATCH($E221,Input!$C$795:$C$824,0),MATCH(M$202,Input!$J$794:$V$794,0))*$G221,0) -> 0 | N221: =IFERROR(INDEX(Input!$J$795:$V$824,MATCH($E221,Input!$C$795:$C$824,0),MATCH(N$202,Input!$J$794:$V$794,0))*$G221,0) -> 0 | O221: =IFERROR(INDEX(Input!$J$795:$V$824,MATCH($E221,Input!$C$795:$C$824,0),MATCH(O$202,Input!$J$794:$V$794,0))*$G221,0) -> 0 | P221: =IFERROR(INDEX(Input!$J$795:$V$824,MATCH($E221,Input!$C$795:$C$824,0),MATCH(P$202,Input!$J$794:$V$794,0))*$G221,0) -> 0 | Q221: =IFERROR(INDEX(Input!$J$795:$V$824,MATCH($E221,Input!$C$795:$C$824,0),MATCH(Q$202,Input!$J$794:$V$794,0))*$G221,0) -> 0 | R221: =IFERROR(INDEX(Input!$J$795:$V$824,MATCH($E221,Input!$C$795:$C$824,0),MATCH(R$202,Input!$J$794:$V$794,0))*$G221,0) -> 0 | S221: =IFERROR(INDEX(Input!$J$795:$V$824,MATCH($E221,Input!$C$795:$C$824,0),MATCH(S$202,Input!$J$794:$V$794,0))*$G221,0) -> 0 | T221: =IFERROR(INDEX(Input!$J$795:$V$824,MATCH($E221,Input!$C$795:$C$824,0),MATCH(T$202,Input!$J$794:$V$794,0))*$G221,0) -> 0 | U221: =IFERROR(INDEX(Input!$J$795:$V$824,MATCH($E221,Input!$C$795:$C$824,0),MATCH(U$202,Input!$J$794:$V$794,0))*$G221,0) -> 6940.71475 | V221: =IFERROR(INDEX(Input!$J$795:$V$824,MATCH($E221,Input!$C$795:$C$824,0),MATCH(V$202,Input!$J$794:$V$794,0))*$G221,0) -> 0
C222: =Input!$C$768 -> 0 | D222: $ | E222: =Input!$F$768 -> 0 | F222: =Input!$E$768 -> 0 | G222: 0 | J222: =IFERROR(INDEX(Input!$J$795:$V$824,MATCH($E222,Input!$C$795:$C$824,0),MATCH(J$202,Input!$J$794:$V$794,0))*$G222,0) -> 0 | K222: =IFERROR(INDEX(Input!$J$795:$V$824,MATCH($E222,Input!$C$795:$C$824,0),MATCH(K$202,Input!$J$794:$V$794,0))*$G222,0) -> 0 | L222: =IFERROR(INDEX(Input!$J$795:$V$824,MATCH($E222,Input!$C$795:$C$824,0),MATCH(L$202,Input!$J$794:$V$794,0))*$G222,0) -> 0 | M222: =IFERROR(INDEX(Input!$J$795:$V$824,MATCH($E222,Input!$C$795:$C$824,0),MATCH(M$202,Input!$J$794:$V$794,0))*$G222,0) -> 0 | N222: =IFERROR(INDEX(Input!$J$795:$V$824,MATCH($E222,Input!$C$795:$C$824,0),MATCH(N$202,Input!$J$794:$V$794,0))*$G222,0) -> 0 | O222: =IFERROR(INDEX(Input!$J$795:$V$824,MATCH($E222,Input!$C$795:$C$824,0),MATCH(O$202,Input!$J$794:$V$794,0))*$G222,0) -> 0 | P222: =IFERROR(INDEX(Input!$J$795:$V$824,MATCH($E222,Input!$C$795:$C$824,0),MATCH(P$202,Input!$J$794:$V$794,0))*$G222,0) -> 0 | Q222: =IFERROR(INDEX(Input!$J$795:$V$824,MATCH($E222,Input!$C$795:$C$824,0),MATCH(Q$202,Input!$J$794:$V$794,0))*$G222,0) -> 0 | R222: =IFERROR(INDEX(Input!$J$795:$V$824,MATCH($E222,Input!$C$795:$C$824,0),MATCH(R$202,Input!$J$794:$V$794,0))*$G222,0) -> 0 | S222: =IFERROR(INDEX(Input!$J$795:$V$824,MATCH($E222,Input!$C$795:$C$824,0),MATCH(S$202,Input!$J$794:$V$794,0))*$G222,0) -> 0 | T222: =IFERROR(INDEX(Input!$J$795:$V$824,MATCH($E222,Input!$C$795:$C$824,0),MATCH(T$202,Input!$J$794:$V$794,0))*$G222,0) -> 0 | U222: =IFERROR(INDEX(Input!$J$795:$V$824,MATCH($E222,Input!$C$795:$C$824,0),MATCH(U$202,Input!$J$794:$V$794,0))*$G222,0) -> 0 | V222: =IFERROR(INDEX(Input!$J$795:$V$824,MATCH($E222,Input!$C$795:$C$824,0),MATCH(V$202,Input!$J$794:$V$794,0))*$G222,0) -> 0
C223: =Input!$C$769 -> 0 | D223: $ | E223: =Input!$F$769 -> 0 | F223: =Input!$E$769 -> 0 | G223: 0 | J223: =IFERROR(INDEX(Input!$J$795:$V$824,MATCH($E223,Input!$C$795:$C$824,0),MATCH(J$202,Input!$J$794:$V$794,0))*$G223,0) -> 0 | K223: =IFERROR(INDEX(Input!$J$795:$V$824,MATCH($E223,Input!$C$795:$C$824,0),MATCH(K$202,Input!$J$794:$V$794,0))*$G223,0) -> 0 | L223: =IFERROR(INDEX(Input!$J$795:$V$824,MATCH($E223,Input!$C$795:$C$824,0),MATCH(L$202,Input!$J$794:$V$794,0))*$G223,0) -> 0 | M223: =IFERROR(INDEX(Input!$J$795:$V$824,MATCH($E223,Input!$C$795:$C$824,0),MATCH(M$202,Input!$J$794:$V$794,0))*$G223,0) -> 0 | N223: =IFERROR(INDEX(Input!$J$795:$V$824,MATCH($E223,Input!$C$795:$C$824,0),MATCH(N$202,Input!$J$794:$V$794,0))*$G223,0) -> 0 | O223: =IFERROR(INDEX(Input!$J$795:$V$824,MATCH($E223,Input!$C$795:$C$824,0),MATCH(O$202,Input!$J$794:$V$794,0))*$G223,0) -> 0 | P223: =IFERROR(INDEX(Input!$J$795:$V$824,MATCH($E223,Input!$C$795:$C$824,0),MATCH(P$202,Input!$J$794:$V$794,0))*$G223,0) -> 0 | Q223: =IFERROR(INDEX(Input!$J$795:$V$824,MATCH($E223,Input!$C$795:$C$824,0),MATCH(Q$202,Input!$J$794:$V$794,0))*$G223,0) -> 0 | R223: =IFERROR(INDEX(Input!$J$795:$V$824,MATCH($E223,Input!$C$795:$C$824,0),MATCH(R$202,Input!$J$794:$V$794,0))*$G223,0) -> 0 | S223: =IFERROR(INDEX(Input!$J$795:$V$824,MATCH($E223,Input!$C$795:$C$824,0),MATCH(S$202,Input!$J$794:$V$794,0))*$G223,0) -> 0 | T223: =IFERROR(INDEX(Input!$J$795:$V$824,MATCH($E223,Input!$C$795:$C$824,0),MATCH(T$202,Input!$J$794:$V$794,0))*$G223,0) -> 0 | U223: =IFERROR(INDEX(Input!$J$795:$V$824,MATCH($E223,Input!$C$795:$C$824,0),MATCH(U$202,Input!$J$794:$V$794,0))*$G223,0) -> 0 | V223: =IFERROR(INDEX(Input!$J$795:$V$824,MATCH($E223,Input!$C$795:$C$824,0),MATCH(V$202,Input!$J$794:$V$794,0))*$G223,0) -> 0
C224: =Input!$C$770 -> 0 | D224: $ | E224: =Input!$F$770 -> 0 | F224: =Input!$E$770 -> 0 | G224: 0 | J224: =IFERROR(INDEX(Input!$J$795:$V$824,MATCH($E224,Input!$C$795:$C$824,0),MATCH(J$202,Input!$J$794:$V$794,0))*$G224,0) -> 0 | K224: =IFERROR(INDEX(Input!$J$795:$V$824,MATCH($E224,Input!$C$795:$C$824,0),MATCH(K$202,Input!$J$794:$V$794,0))*$G224,0) -> 0 | L224: =IFERROR(INDEX(Input!$J$795:$V$824,MATCH($E224,Input!$C$795:$C$824,0),MATCH(L$202,Input!$J$794:$V$794,0))*$G224,0) -> 0 | M224: =IFERROR(INDEX(Input!$J$795:$V$824,MATCH($E224,Input!$C$795:$C$824,0),MATCH(M$202,Input!$J$794:$V$794,0))*$G224,0) -> 0 | N224: =IFERROR(INDEX(Input!$J$795:$V$824,MATCH($E224,Input!$C$795:$C$824,0),MATCH(N$202,Input!$J$794:$V$794,0))*$G224,0) -> 0 | O224: =IFERROR(INDEX(Input!$J$795:$V$824,MATCH($E224,Input!$C$795:$C$824,0),MATCH(O$202,Input!$J$794:$V$794,0))*$G224,0) -> 0 | P224: =IFERROR(INDEX(Input!$J$795:$V$824,MATCH($E224,Input!$C$795:$C$824,0),MATCH(P$202,Input!$J$794:$V$794,0))*$G224,0) -> 0 | Q224: =IFERROR(INDEX(Input!$J$795:$V$824,MATCH($E224,Input!$C$795:$C$824,0),MATCH(Q$202,Input!$J$794:$V$794,0))*$G224,0) -> 0 | R224: =IFERROR(INDEX(Input!$J$795:$V$824,MATCH($E224,Input!$C$795:$C$824,0),MATCH(R$202,Input!$J$794:$V$794,0))*$G224,0) -> 0 | S224: =IFERROR(INDEX(Input!$J$795:$V$824,MATCH($E224,Input!$C$795:$C$824,0),MATCH(S$202,Input!$J$794:$V$794,0))*$G224,0) -> 0 | T224: =IFERROR(INDEX(Input!$J$795:$V$824,MATCH($E224,Input!$C$795:$C$824,0),MATCH(T$202,Input!$J$794:$V$794,0))*$G224,0) -> 0 | U224: =IFERROR(INDEX(Input!$J$795:$V$824,MATCH($E224,Input!$C$795:$C$824,0),MATCH(U$202,Input!$J$794:$V$794,0))*$G224,0) -> 0 | V224: =IFERROR(INDEX(Input!$J$795:$V$824,MATCH($E224,Input!$C$795:$C$824,0),MATCH(V$202,Input!$J$794:$V$794,0))*$G224,0) -> 0
C225: =Input!$C$771 -> 0 | D225: $ | E225: =Input!$F$771 -> 0 | F225: =Input!$E$771 -> 0 | G225: 0 | J225: =IFERROR(INDEX(Input!$J$795:$V$824,MATCH($E225,Input!$C$795:$C$824,0),MATCH(J$202,Input!$J$794:$V$794,0))*$G225,0) -> 0 | K225: =IFERROR(INDEX(Input!$J$795:$V$824,MATCH($E225,Input!$C$795:$C$824,0),MATCH(K$202,Input!$J$794:$V$794,0))*$G225,0) -> 0 | L225: =IFERROR(INDEX(Input!$J$795:$V$824,MATCH($E225,Input!$C$795:$C$824,0),MATCH(L$202,Input!$J$794:$V$794,0))*$G225,0) -> 0 | M225: =IFERROR(INDEX(Input!$J$795:$V$824,MATCH($E225,Input!$C$795:$C$824,0),MATCH(M$202,Input!$J$794:$V$794,0))*$G225,0) -> 0 | N225: =IFERROR(INDEX(Input!$J$795:$V$824,MATCH($E225,Input!$C$795:$C$824,0),MATCH(N$202,Input!$J$794:$V$794,0))*$G225,0) -> 0 | O225: =IFERROR(INDEX(Input!$J$795:$V$824,MATCH($E225,Input!$C$795:$C$824,0),MATCH(O$202,Input!$J$794:$V$794,0))*$G225,0) -> 0 | P225: =IFERROR(INDEX(Input!$J$795:$V$824,MATCH($E225,Input!$C$795:$C$824,0),MATCH(P$202,Input!$J$794:$V$794,0))*$G225,0) -> 0 | Q225: =IFERROR(INDEX(Input!$J$795:$V$824,MATCH($E225,Input!$C$795:$C$824,0),MATCH(Q$202,Input!$J$794:$V$794,0))*$G225,0) -> 0 | R225: =IFERROR(INDEX(Input!$J$795:$V$824,MATCH($E225,Input!$C$795:$C$824,0),MATCH(R$202,Input!$J$794:$V$794,0))*$G225,0) -> 0 | S225: =IFERROR(INDEX(Input!$J$795:$V$824,MATCH($E225,Input!$C$795:$C$824,0),MATCH(S$202,Input!$J$794:$V$794,0))*$G225,0) -> 0 | T225: =IFERROR(INDEX(Input!$J$795:$V$824,MATCH($E225,Input!$C$795:$C$824,0),MATCH(T$202,Input!$J$794:$V$794,0))*$G225,0) -> 0 | U225: =IFERROR(INDEX(Input!$J$795:$V$824,MATCH($E225,Input!$C$795:$C$824,0),MATCH(U$202,Input!$J$794:$V$794,0))*$G225,0) -> 0 | V225: =IFERROR(INDEX(Input!$J$795:$V$824,MATCH($E225,Input!$C$795:$C$824,0),MATCH(V$202,Input!$J$794:$V$794,0))*$G225,0) -> 0
C226: =Input!$C$772 -> 0 | D226: $ | E226: =Input!$F$772 -> 0 | F226: =Input!$E$772 -> 0 | G226: 0 | J226: =IFERROR(INDEX(Input!$J$795:$V$824,MATCH($E226,Input!$C$795:$C$824,0),MATCH(J$202,Input!$J$794:$V$794,0))*$G226,0) -> 0 | K226: =IFERROR(INDEX(Input!$J$795:$V$824,MATCH($E226,Input!$C$795:$C$824,0),MATCH(K$202,Input!$J$794:$V$794,0))*$G226,0) -> 0 | L226: =IFERROR(INDEX(Input!$J$795:$V$824,MATCH($E226,Input!$C$795:$C$824,0),MATCH(L$202,Input!$J$794:$V$794,0))*$G226,0) -> 0 | M226: =IFERROR(INDEX(Input!$J$795:$V$824,MATCH($E226,Input!$C$795:$C$824,0),MATCH(M$202,Input!$J$794:$V$794,0))*$G226,0) -> 0 | N226: =IFERROR(INDEX(Input!$J$795:$V$824,MATCH($E226,Input!$C$795:$C$824,0),MATCH(N$202,Input!$J$794:$V$794,0))*$G226,0) -> 0 | O226: =IFERROR(INDEX(Input!$J$795:$V$824,MATCH($E226,Input!$C$795:$C$824,0),MATCH(O$202,Input!$J$794:$V$794,0))*$G226,0) -> 0 | P226: =IFERROR(INDEX(Input!$J$795:$V$824,MATCH($E226,Input!$C$795:$C$824,0),MATCH(P$202,Input!$J$794:$V$794,0))*$G226,0) -> 0 | Q226: =IFERROR(INDEX(Input!$J$795:$V$824,MATCH($E226,Input!$C$795:$C$824,0),MATCH(Q$202,Input!$J$794:$V$794,0))*$G226,0) -> 0 | R226: =IFERROR(INDEX(Input!$J$795:$V$824,MATCH($E226,Input!$C$795:$C$824,0),MATCH(R$202,Input!$J$794:$V$794,0))*$G226,0) -> 0 | S226: =IFERROR(INDEX(Input!$J$795:$V$824,MATCH($E226,Input!$C$795:$C$824,0),MATCH(S$202,Input!$J$794:$V$794,0))*$G226,0) -> 0 | T226: =IFERROR(INDEX(Input!$J$795:$V$824,MATCH($E226,Input!$C$795:$C$824,0),MATCH(T$202,Input!$J$794:$V$794,0))*$G226,0) -> 0 | U226: =IFERROR(INDEX(Input!$J$795:$V$824,MATCH($E226,Input!$C$795:$C$824,0),MATCH(U$202,Input!$J$794:$V$794,0))*$G226,0) -> 0 | V226: =IFERROR(INDEX(Input!$J$795:$V$824,MATCH($E226,Input!$C$795:$C$824,0),MATCH(V$202,Input!$J$794:$V$794,0))*$G226,0) -> 0
C227: =Input!$C$773 -> 0 | D227: $ | E227: =Input!$F$773 -> 0 | F227: =Input!$E$773 -> 0 | G227: 0 | J227: =IFERROR(INDEX(Input!$J$795:$V$824,MATCH($E227,Input!$C$795:$C$824,0),MATCH(J$202,Input!$J$794:$V$794,0))*$G227,0) -> 0 | K227: =IFERROR(INDEX(Input!$J$795:$V$824,MATCH($E227,Input!$C$795:$C$824,0),MATCH(K$202,Input!$J$794:$V$794,0))*$G227,0) -> 0 | L227: =IFERROR(INDEX(Input!$J$795:$V$824,MATCH($E227,Input!$C$795:$C$824,0),MATCH(L$202,Input!$J$794:$V$794,0))*$G227,0) -> 0 | M227: =IFERROR(INDEX(Input!$J$795:$V$824,MATCH($E227,Input!$C$795:$C$824,0),MATCH(M$202,Input!$J$794:$V$794,0))*$G227,0) -> 0 | N227: =IFERROR(INDEX(Input!$J$795:$V$824,MATCH($E227,Input!$C$795:$C$824,0),MATCH(N$202,Input!$J$794:$V$794,0))*$G227,0) -> 0 | O227: =IFERROR(INDEX(Input!$J$795:$V$824,MATCH($E227,Input!$C$795:$C$824,0),MATCH(O$202,Input!$J$794:$V$794,0))*$G227,0) -> 0 | P227: =IFERROR(INDEX(Input!$J$795:$V$824,MATCH($E227,Input!$C$795:$C$824,0),MATCH(P$202,Input!$J$794:$V$794,0))*$G227,0) -> 0 | Q227: =IFERROR(INDEX(Input!$J$795:$V$824,MATCH($E227,Input!$C$795:$C$824,0),MATCH(Q$202,Input!$J$794:$V$794,0))*$G227,0) -> 0 | R227: =IFERROR(INDEX(Input!$J$795:$V$824,MATCH($E227,Input!$C$795:$C$824,0),MATCH(R$202,Input!$J$794:$V$794,0))*$G227,0) -> 0 | S227: =IFERROR(INDEX(Input!$J$795:$V$824,MATCH($E227,Input!$C$795:$C$824,0),MATCH(S$202,Input!$J$794:$V$794,0))*$G227,0) -> 0 | T227: =IFERROR(INDEX(Input!$J$795:$V$824,MATCH($E227,Input!$C$795:$C$824,0),MATCH(T$202,Input!$J$794:$V$794,0))*$G227,0) -> 0 | U227: =IFERROR(INDEX(Input!$J$795:$V$824,MATCH($E227,Input!$C$795:$C$824,0),MATCH(U$202,Input!$J$794:$V$794,0))*$G227,0) -> 0 | V227: =IFERROR(INDEX(Input!$J$795:$V$824,MATCH($E227,Input!$C$795:$C$824,0),MATCH(V$202,Input!$J$794:$V$794,0))*$G227,0) -> 0
C228: Sum | D228: $ | G228: =SUM(G203:G227) -> 16355751.9 | J228: =SUM(J203:J227) -> 0 | K228: =SUM(K203:K227) -> 0 | L228: 755342.0516 | M228: 7576673.394 | N228: 1461792.175 | O228: 1728976.993 | P228: 400941.5297 | Q228: 74899.31541 | R228: 29167.11953 | S228: 713913.09 | T228: 0 | U228: 3614046.232 | V228: 0
C230: Check | G230: =$S$1772-SUM(J228:V228) -> 0
C232: Functionalization of O&M
C234: O&M | E234: Functionalization Factor | G234: Total | J234: =Input!J$794 -> Gas Supply | K234: =Input!K$794 -> Transportation Load Bal/ Storage | L234: =Input!L$794 -> Distribution Measurement | M234: =Input!M$794 -> Distribution - Mains | N234: =Input!N$794 -> Customer - Services | O234: =Input!O$794 -> Customer - Meters | P234: =Input!P$794 -> Billing & Accounting | Q234: =Input!Q$794 -> Promotion | R234: =Input!R$794 -> Bad Debt & Collection | S234: =Input!S$794 -> A&G | T234: =Input!T$794 -> LEAP Funding | U234: =Input!U$794 -> Direct Assignment to IGPC | V234: =Input!V$794 -> Other Revenue
C235: =Input!$C458 -> Wages and Benefits Related to Gas Supply | D235: $ | E235: =Input!$E458 -> Gas Supply | G235: =-Input!$S458 -> 3095.822 | J235: =IFERROR(INDEX(Input!$J$795:$V$824,MATCH($E235,Input!$C$795:$C$824,0),MATCH(J$234,Input!$J$794:$V$794,0))*$G235,0) -> 3095.822 | K235: =IFERROR(INDEX(Input!$J$795:$V$824,MATCH($E235,Input!$C$795:$C$824,0),MATCH(K$234,Input!$J$794:$V$794,0))*$G235,0) -> 0 | L235: =IFERROR(INDEX(Input!$J$795:$V$824,MATCH($E235,Input!$C$795:$C$824,0),MATCH(L$234,Input!$J$794:$V$794,0))*$G235,0) -> 0 | M235: =IFERROR(INDEX(Input!$J$795:$V$824,MATCH($E235,Input!$C$795:$C$824,0),MATCH(M$234,Input!$J$794:$V$794,0))*$G235,0) -> 0 | N235: =IFERROR(INDEX(Input!$J$795:$V$824,MATCH($E235,Input!$C$795:$C$824,0),MATCH(N$234,Input!$J$794:$V$794,0))*$G235,0) -> 0 | O235: =IFERROR(INDEX(Input!$J$795:$V$824,MATCH($E235,Input!$C$795:$C$824,0),MATCH(O$234,Input!$J$794:$V$794,0))*$G235,0) -> 0 | P235: =IFERROR(INDEX(Input!$J$795:$V$824,MATCH($E235,Input!$C$795:$C$824,0),MATCH(P$234,Input!$J$794:$V$794,0))*$G235,0) -> 0 | Q235: =IFERROR(INDEX(Input!$J$795:$V$824,MATCH($E235,Input!$C$795:$C$824,0),MATCH(Q$234,Input!$J$794:$V$794,0))*$G235,0) -> 0 | R235: =IFERROR(INDEX(Input!$J$795:$V$824,MATCH($E235,Input!$C$795:$C$824,0),MATCH(R$234,Input!$J$794:$V$794,0))*$G235,0) -> 0 | S235: =IFERROR(INDEX(Input!$J$795:$V$824,MATCH($E235,Input!$C$795:$C$824,0),MATCH(S$234,Input!$J$794:$V$794,0))*$G235,0) -> 0 | T235: =IFERROR(INDEX(Input!$J$795:$V$824,MATCH($E235,Input!$C$795:$C$824,0),MATCH(T$234,Input!$J$794:$V$794,0))*$G235,0) -> 0 | U235: =IFERROR(INDEX(Input!$J$795:$V$824,MATCH($E235,Input!$C$795:$C$824,0),MATCH(U$234,Input!$J$794:$V$794,0))*$G235,0) -> 0 | V235: =IFERROR(INDEX(Input!$J$795:$V$824,MATCH($E235,Input!$C$795:$C$824,0),MATCH(V$234,Input!$J$794:$V$794,0))*$G235,0) -> 0
C236: =Input!$C459 -> Regulatory Expense Related to Gas Supply | D236: $ | E236: =Input!$E459 -> Gas Supply | G236: =-Input!$S459 -> 8404.968 | J236: =IFERROR(INDEX(Input!$J$795:$V$824,MATCH($E236,Input!$C$795:$C$824,0),MATCH(J$234,Input!$J$794:$V$794,0))*$G236,0) -> 8404.968 | K236: =IFERROR(INDEX(Input!$J$795:$V$824,MATCH($E236,Input!$C$795:$C$824,0),MATCH(K$234,Input!$J$794:$V$794,0))*$G236,0) -> 0 | L236: =IFERROR(INDEX(Input!$J$795:$V$824,MATCH($E236,Input!$C$795:$C$824,0),MATCH(L$234,Input!$J$794:$V$794,0))*$G236,0) -> 0 | M236: =IFERROR(INDEX(Input!$J$795:$V$824,MATCH($E236,Input!$C$795:$C$824,0),MATCH(M$234,Input!$J$794:$V$794,0))*$G236,0) -> 0 | N236: =IFERROR(INDEX(Input!$J$795:$V$824,MATCH($E236,Input!$C$795:$C$824,0),MATCH(N$234,Input!$J$794:$V$794,0))*$G236,0) -> 0 | O236: =IFERROR(INDEX(Input!$J$795:$V$824,MATCH($E236,Input!$C$795:$C$824,0),MATCH(O$234,Input!$J$794:$V$794,0))*$G236,0) -> 0 | P236: =IFERROR(INDEX(Input!$J$795:$V$824,MATCH($E236,Input!$C$795:$C$824,0),MATCH(P$234,Input!$J$794:$V$794,0))*$G236,0) -> 0 | Q236: =IFERROR(INDEX(Input!$J$795:$V$824,MATCH($E236,Input!$C$795:$C$824,0),MATCH(Q$234,Input!$J$794:$V$794,0))*$G236,0) -> 0 | R236: =IFERROR(INDEX(Input!$J$795:$V$824,MATCH($E236,Input!$C$795:$C$824,0),MATCH(R$234,Input!$J$794:$V$794,0))*$G236,0) -> 0 | S236: =IFERROR(INDEX(Input!$J$795:$V$824,MATCH($E236,Input!$C$795:$C$824,0),MATCH(S$234,Input!$J$794:$V$794,0))*$G236,0) -> 0 | T236: =IFERROR(INDEX(Input!$J$795:$V$824,MATCH($E236,Input!$C$795:$C$824,0),MATCH(T$234,Input!$J$794:$V$794,0))*$G236,0) -> 0 | U236: =IFERROR(INDEX(Input!$J$795:$V$824,MATCH($E236,Input!$C$795:$C$824,0),MATCH(U$234,Input!$J$794:$V$794,0))*$G236,0) -> 0 | V236: =IFERROR(INDEX(Input!$J$795:$V$824,MATCH($E236,Input!$C$795:$C$824,0),MATCH(V$234,Input!$J$794:$V$794,0))*$G236,0) -> 0
C237: =Input!$C460 -> Enbridge M9 Cost (Excluding IGPC after September 2018) | D237: $ | E237: =Input!$E460 -> Transportation | G237: =-Input!$S460 -> 675543.9434 | J237: =IFERROR(INDEX(Input!$J$795:$V$824,MATCH($E237,Input!$C$795:$C$824,0),MATCH(J$234,Input!$J$794:$V$794,0))*$G237,0) -> 0 | K237: =IFERROR(INDEX(Input!$J$795:$V$824,MATCH($E237,Input!$C$795:$C$824,0),MATCH(K$234,Input!$J$794:$V$794,0))*$G237,0) -> 675543.9434 | L237: =IFERROR(INDEX(Input!$J$795:$V$824,MATCH($E237,Input!$C$795:$C$824,0),MATCH(L$234,Input!$J$794:$V$794,0))*$G237,0) -> 0 | M237: =IFERROR(INDEX(Input!$J$795:$V$824,MATCH($E237,Input!$C$795:$C$824,0),MATCH(M$234,Input!$J$794:$V$794,0))*$G237,0) -> 0 | N237: =IFERROR(INDEX(Input!$J$795:$V$824,MATCH($E237,Input!$C$795:$C$824,0),MATCH(N$234,Input!$J$794:$V$794,0))*$G237,0) -> 0 | O237: =IFERROR(INDEX(Input!$J$795:$V$824,MATCH($E237,Input!$C$795:$C$824,0),MATCH(O$234,Input!$J$794:$V$794,0))*$G237,0) -> 0 | P237: =IFERROR(INDEX(Input!$J$795:$V$824,MATCH($E237,Input!$C$795:$C$824,0),MATCH(P$234,Input!$J$794:$V$794,0))*$G237,0) -> 0 | Q237: =IFERROR(INDEX(Input!$J$795:$V$824,MATCH($E237,Input!$C$795:$C$824,0),MATCH(Q$234,Input!$J$794:$V$794,0))*$G237,0) -> 0 | R237: =IFERROR(INDEX(Input!$J$795:$V$824,MATCH($E237,Input!$C$795:$C$824,0),MATCH(R$234,Input!$J$794:$V$794,0))*$G237,0) -> 0 | S237: =IFERROR(INDEX(Input!$J$795:$V$824,MATCH($E237,Input!$C$795:$C$824,0),MATCH(S$234,Input!$J$794:$V$794,0))*$G237,0) -> 0 | T237: =IFERROR(INDEX(Input!$J$795:$V$824,MATCH($E237,Input!$C$795:$C$824,0),MATCH(T$234,Input!$J$794:$V$794,0))*$G237,0) -> 0 | U237: =IFERROR(INDEX(Input!$J$795:$V$824,MATCH($E237,Input!$C$795:$C$824,0),MATCH(U$234,Input!$J$794:$V$794,0))*$G237,0) -> 0 | V237: =IFERROR(INDEX(Input!$J$795:$V$824,MATCH($E237,Input!$C$795:$C$824,0),MATCH(V$234,Input!$J$794:$V$794,0))*$G237,0) -> 0
C238: =Input!$C461 -> Wages | D238: $ | E238: =Input!$E461 -> Wages/Benefits | G238: =-Input!$S461 -> 1070712.342 | J238: =IFERROR(INDEX(Input!$J$795:$V$824,MATCH($E238,Input!$C$795:$C$824,0),MATCH(J$234,Input!$J$794:$V$794,0))*$G238,0) -> 0 | K238: =IFERROR(INDEX(Input!$J$795:$V$824,MATCH($E238,Input!$C$795:$C$824,0),MATCH(K$234,Input!$J$794:$V$794,0))*$G238,0) -> 0 | L238: =IFERROR(INDEX(Input!$J$795:$V$824,MATCH($E238,Input!$C$795:$C$824,0),MATCH(L$234,Input!$J$794:$V$794,0))*$G238,0) -> 5850.127424 | M238: =IFERROR(INDEX(Input!$J$795:$V$824,MATCH($E238,Input!$C$795:$C$824,0),MATCH(M$234,Input!$J$794:$V$794,0))*$G238,0) -> 159349.2651 | N238: =IFERROR(INDEX(Input!$J$795:$V$824,MATCH($E238,Input!$C$795:$C$824,0),MATCH(N$234,Input!$J$794:$V$794,0))*$G238,0) -> 139312.2062 | O238: =IFERROR(INDEX(Input!$J$795:$V$824,MATCH($E238,Input!$C$795:$C$824,0),MATCH(O$234,Input!$J$794:$V$794,0))*$G238,0) -> 104153.8891 | P238: =IFERROR(INDEX(Input!$J$795:$V$824,MATCH($E238,Input!$C$795:$C$824,0),MATCH(P$234,Input!$J$794:$V$794,0))*$G238,0) -> 213579.8665 | Q238: =IFERROR(INDEX(Input!$J$795:$V$824,MATCH($E238,Input!$C$795:$C$824,0),MATCH(Q$234,Input!$J$794:$V$794,0))*$G238,0) -> 84471.07604 | R238: =IFERROR(INDEX(Input!$J$795:$V$824,MATCH($E238,Input!$C$795:$C$824,0),MATCH(R$234,Input!$J$794:$V$794,0))*$G238,0) -> 47088.80488 | S238: =IFERROR(INDEX(Input!$J$795:$V$824,MATCH($E238,Input!$C$795:$C$824,0),MATCH(S$234,Input!$J$794:$V$794,0))*$G238,0) -> 316907.1071 | T238: =IFERROR(INDEX(Input!$J$795:$V$824,MATCH($E238,Input!$C$795:$C$824,0),MATCH(T$234,Input!$J$794:$V$794,0))*$G238,0) -> 0 | U238: =IFERROR(INDEX(Input!$J$795:$V$824,MATCH($E238,Input!$C$795:$C$824,0),MATCH(U$234,Input!$J$794:$V$794,0))*$G238,0) -> 0 | V238: =IFERROR(INDEX(Input!$J$795:$V$824,MATCH($E238,Input!$C$795:$C$824,0),MATCH(V$234,Input!$J$794:$V$794,0))*$G238,0) -> 0
C239: =Input!$C462 -> Employee Benefits | D239: $ | E239: =Input!$E462 -> Wages/Benefits | G239: =-Input!$S462 -> 361410.5635 | J239: =IFERROR(INDEX(Input!$J$795:$V$824,MATCH($E239,Input!$C$795:$C$824,0),MATCH(J$234,Input!$J$794:$V$794,0))*$G239,0) -> 0 | K239: =IFERROR(INDEX(Input!$J$795:$V$824,MATCH($E239,Input!$C$795:$C$824,0),MATCH(K$234,Input!$J$794:$V$794,0))*$G239,0) -> 0 | L239: =IFERROR(INDEX(Input!$J$795:$V$824,MATCH($E239,Input!$C$795:$C$824,0),MATCH(L$234,Input!$J$794:$V$794,0))*$G239,0) -> 1974.664684 | M239: =IFERROR(INDEX(Input!$J$795:$V$824,MATCH($E239,Input!$C$795:$C$824,0),MATCH(M$234,Input!$J$794:$V$794,0))*$G239,0) -> 53787.09614 | N239: =IFERROR(INDEX(Input!$J$795:$V$824,MATCH($E239,Input!$C$795:$C$824,0),MATCH(N$234,Input!$J$794:$V$794,0))*$G239,0) -> 47023.74388 | O239: =IFERROR(INDEX(Input!$J$795:$V$824,MATCH($E239,Input!$C$795:$C$824,0),MATCH(O$234,Input!$J$794:$V$794,0))*$G239,0) -> 35156.32935 | P239: =IFERROR(INDEX(Input!$J$795:$V$824,MATCH($E239,Input!$C$795:$C$824,0),MATCH(P$234,Input!$J$794:$V$794,0))*$G239,0) -> 72092.2108 | Q239: =IFERROR(INDEX(Input!$J$795:$V$824,MATCH($E239,Input!$C$795:$C$824,0),MATCH(Q$234,Input!$J$794:$V$794,0))*$G239,0) -> 28512.54999 | R239: =IFERROR(INDEX(Input!$J$795:$V$824,MATCH($E239,Input!$C$795:$C$824,0),MATCH(R$234,Input!$J$794:$V$794,0))*$G239,0) -> 15894.45721 | S239: =IFERROR(INDEX(Input!$J$795:$V$824,MATCH($E239,Input!$C$795:$C$824,0),MATCH(S$234,Input!$J$794:$V$794,0))*$G239,0) -> 106969.5114 | T239: =IFERROR(INDEX(Input!$J$795:$V$824,MATCH($E239,Input!$C$795:$C$824,0),MATCH(T$234,Input!$J$794:$V$794,0))*$G239,0) -> 0 | U239: =IFERROR(INDEX(Input!$J$795:$V$824,MATCH($E239,Input!$C$795:$C$824,0),MATCH(U$234,Input!$J$794:$V$794,0))*$G239,0) -> 0 | V239: =IFERROR(INDEX(Input!$J$795:$V$824,MATCH($E239,Input!$C$795:$C$824,0),MATCH(V$234,Input!$J$794:$V$794,0))*$G239,0) -> 0
C240: =Input!$C463 -> Insurance | D240: $ | E240: =Input!$E463 -> Insurance | G240: =-Input!$S463 -> 86211.09 | J240: =IFERROR(INDEX(Input!$J$795:$V$824,MATCH($E240,Input!$C$795:$C$824,0),MATCH(J$234,Input!$J$794:$V$794,0))*$G240,0) -> 0 | K240: =IFERROR(INDEX(Input!$J$795:$V$824,MATCH($E240,Input!$C$795:$C$824,0),MATCH(K$234,Input!$J$794:$V$794,0))*$G240,0) -> 0 | L240: =IFERROR(INDEX(Input!$J$795:$V$824,MATCH($E240,Input!$C$795:$C$824,0),MATCH(L$234,Input!$J$794:$V$794,0))*$G240,0) -> 13.37992715 | M240: =IFERROR(INDEX(Input!$J$795:$V$824,MATCH($E240,Input!$C$795:$C$824,0),MATCH(M$234,Input!$J$794:$V$794,0))*$G240,0) -> 347.7187949 | N240: =IFERROR(INDEX(Input!$J$795:$V$824,MATCH($E240,Input!$C$795:$C$824,0),MATCH(N$234,Input!$J$794:$V$794,0))*$G240,0) -> 308.7137448 | O240: =IFERROR(INDEX(Input!$J$795:$V$824,MATCH($E240,Input!$C$795:$C$824,0),MATCH(O$234,Input!$J$794:$V$794,0))*$G240,0) -> 120.4193443 | P240: =IFERROR(INDEX(Input!$J$795:$V$824,MATCH($E240,Input!$C$795:$C$824,0),MATCH(P$234,Input!$J$794:$V$794,0))*$G240,0) -> 41.41823515 | Q240: =IFERROR(INDEX(Input!$J$795:$V$824,MATCH($E240,Input!$C$795:$C$824,0),MATCH(Q$234,Input!$J$794:$V$794,0))*$G240,0) -> 162.291598 | R240: =IFERROR(INDEX(Input!$J$795:$V$824,MATCH($E240,Input!$C$795:$C$824,0),MATCH(R$234,Input!$J$794:$V$794,0))*$G240,0) -> 0 | S240: =IFERROR(INDEX(Input!$J$795:$V$824,MATCH($E240,Input!$C$795:$C$824,0),MATCH(S$234,Input!$J$794:$V$794,0))*$G240,0) -> 85217.14836 | T240: =IFERROR(INDEX(Input!$J$795:$V$824,MATCH($E240,Input!$C$795:$C$824,0),MATCH(T$234,Input!$J$794:$V$794,0))*$G240,0) -> 0 | U240: =IFERROR(INDEX(Input!$J$795:$V$824,MATCH($E240,Input!$C$795:$C$824,0),MATCH(U$234,Input!$J$794:$V$794,0))*$G240,0) -> 0 | V240: =IFERROR(INDEX(Input!$J$795:$V$824,MATCH($E240,Input!$C$795:$C$824,0),MATCH(V$234,Input!$J$794:$V$794,0))*$G240,0) -> 0
C241: =Input!$C464 -> Utilities | D241: $ | E241: =Input!$E464 -> Bldgs&Impr. | G241: =-Input!$S464 -> 17442.8661 | J241: =IFERROR(INDEX(Input!$J$795:$V$824,MATCH($E241,Input!$C$795:$C$824,0),MATCH(J$234,Input!$J$794:$V$794,0))*$G241,0) -> 0 | K241: =IFERROR(INDEX(Input!$J$795:$V$824,MATCH($E241,Input!$C$795:$C$824,0),MATCH(K$234,Input!$J$794:$V$794,0))*$G241,0) -> 0 | L241: =IFERROR(INDEX(Input!$J$795:$V$824,MATCH($E241,Input!$C$795:$C$824,0),MATCH(L$234,Input!$J$794:$V$794,0))*$G241,0) -> 95.30383212 | M241: =IFERROR(INDEX(Input!$J$795:$V$824,MATCH($E241,Input!$C$795:$C$824,0),MATCH(M$234,Input!$J$794:$V$794,0))*$G241,0) -> 2595.942705 | N241: =IFERROR(INDEX(Input!$J$795:$V$824,MATCH($E241,Input!$C$795:$C$824,0),MATCH(N$234,Input!$J$794:$V$794,0))*$G241,0) -> 2269.521013 | O241: =IFERROR(INDEX(Input!$J$795:$V$824,MATCH($E241,Input!$C$795:$C$824,0),MATCH(O$234,Input!$J$794:$V$794,0))*$G241,0) -> 1696.760436 | P241: =IFERROR(INDEX(Input!$J$795:$V$824,MATCH($E241,Input!$C$795:$C$824,0),MATCH(P$234,Input!$J$794:$V$794,0))*$G241,0) -> 3479.407928 | Q241: =IFERROR(INDEX(Input!$J$795:$V$824,MATCH($E241,Input!$C$795:$C$824,0),MATCH(Q$234,Input!$J$794:$V$794,0))*$G241,0) -> 1376.109727 | R241: =IFERROR(INDEX(Input!$J$795:$V$824,MATCH($E241,Input!$C$795:$C$824,0),MATCH(R$234,Input!$J$794:$V$794,0))*$G241,0) -> 767.1189411 | S241: =IFERROR(INDEX(Input!$J$795:$V$824,MATCH($E241,Input!$C$795:$C$824,0),MATCH(S$234,Input!$J$794:$V$794,0))*$G241,0) -> 5162.701518 | T241: =IFERROR(INDEX(Input!$J$795:$V$824,MATCH($E241,Input!$C$795:$C$824,0),MATCH(T$234,Input!$J$794:$V$794,0))*$G241,0) -> 0 | U241: =IFERROR(INDEX(Input!$J$795:$V$824,MATCH($E241,Input!$C$795:$C$824,0),MATCH(U$234,Input!$J$794:$V$794,0))*$G241,0) -> 0 | V241: =IFERROR(INDEX(Input!$J$795:$V$824,MATCH($E241,Input!$C$795:$C$824,0),MATCH(V$234,Input!$J$794:$V$794,0))*$G241,0) -> 0
C242: =Input!$C465 -> Advertising | D242: $ | E242: =Input!$E465 -> Marketing | G242: =-Input!$S465 -> 34239.7024 | J242: =IFERROR(INDEX(Input!$J$795:$V$824,MATCH($E242,Input!$C$795:$C$824,0),MATCH(J$234,Input!$J$794:$V$794,0))*$G242,0) -> 0 | K242: =IFERROR(INDEX(Input!$J$795:$V$824,MATCH($E242,Input!$C$795:$C$824,0),MATCH(K$234,Input!$J$794:$V$794,0))*$G242,0) -> 0 | L242: =IFERROR(INDEX(Input!$J$795:$V$824,MATCH($E242,Input!$C$795:$C$824,0),MATCH(L$234,Input!$J$794:$V$794,0))*$G242,0) -> 0 | M242: =IFERROR(INDEX(Input!$J$795:$V$824,MATCH($E242,Input!$C$795:$C$824,0),MATCH(M$234,Input!$J$794:$V$794,0))*$G242,0) -> 0 | N242: =IFERROR(INDEX(Input!$J$795:$V$824,MATCH($E242,Input!$C$795:$C$824,0),MATCH(N$234,Input!$J$794:$V$794,0))*$G242,0) -> 0 | O242: =IFERROR(INDEX(Input!$J$795:$V$824,MATCH($E242,Input!$C$795:$C$824,0),MATCH(O$234,Input!$J$794:$V$794,0))*$G242,0) -> 0 | P242: =IFERROR(INDEX(Input!$J$795:$V$824,MATCH($E242,Input!$C$795:$C$824,0),MATCH(P$234,Input!$J$794:$V$794,0))*$G242,0) -> 0 | Q242: =IFERROR(INDEX(Input!$J$795:$V$824,MATCH($E242,Input!$C$795:$C$824,0),MATCH(Q$234,Input!$J$794:$V$794,0))*$G242,0) -> 34239.7024 | R242: =IFERROR(INDEX(Input!$J$795:$V$824,MATCH($E242,Input!$C$795:$C$824,0),MATCH(R$234,Input!$J$794:$V$794,0))*$G242,0) -> 0 | S242: =IFERROR(INDEX(Input!$J$795:$V$824,MATCH($E242,Input!$C$795:$C$824,0),MATCH(S$234,Input!$J$794:$V$794,0))*$G242,0) -> 0 | T242: =IFERROR(INDEX(Input!$J$795:$V$824,MATCH($E242,Input!$C$795:$C$824,0),MATCH(T$234,Input!$J$794:$V$794,0))*$G242,0) -> 0 | U242: =IFERROR(INDEX(Input!$J$795:$V$824,MATCH($E242,Input!$C$795:$C$824,0),MATCH(U$234,Input!$J$794:$V$794,0))*$G242,0) -> 0 | V242: =IFERROR(INDEX(Input!$J$795:$V$824,MATCH($E242,Input!$C$795:$C$824,0),MATCH(V$234,Input!$J$794:$V$794,0))*$G242,0) -> 0
C243: =Input!$C466 -> Telephone | D243: $ | E243: =Input!$E466 -> A&G | G243: =-Input!$S466 -> 36000 | J243: =IFERROR(INDEX(Input!$J$795:$V$824,MATCH($E243,Input!$C$795:$C$824,0),MATCH(J$234,Input!$J$794:$V$794,0))*$G243,0) -> 0 | K243: =IFERROR(INDEX(Input!$J$795:$V$824,MATCH($E243,Input!$C$795:$C$824,0),MATCH(K$234,Input!$J$794:$V$794,0))*$G243,0) -> 0 | L243: =IFERROR(INDEX(Input!$J$795:$V$824,MATCH($E243,Input!$C$795:$C$824,0),MATCH(L$234,Input!$J$794:$V$794,0))*$G243,0) -> 0 | M243: =IFERROR(INDEX(Input!$J$795:$V$824,MATCH($E243,Input!$C$795:$C$824,0),MATCH(M$234,Input!$J$794:$V$794,0))*$G243,0) -> 0 | N243: =IFERROR(INDEX(Input!$J$795:$V$824,MATCH($E243,Input!$C$795:$C$824,0),MATCH(N$234,Input!$J$794:$V$794,0))*$G243,0) -> 0 | O243: =IFERROR(INDEX(Input!$J$795:$V$824,MATCH($E243,Input!$C$795:$C$824,0),MATCH(O$234,Input!$J$794:$V$794,0))*$G243,0) -> 0 | P243: =IFERROR(INDEX(Input!$J$795:$V$824,MATCH($E243,Input!$C$795:$C$824,0),MATCH(P$234,Input!$J$794:$V$794,0))*$G243,0) -> 0 | Q243: =IFERROR(INDEX(Input!$J$795:$V$824,MATCH($E243,Input!$C$795:$C$824,0),MATCH(Q$234,Input!$J$794:$V$794,0))*$G243,0) -> 0 | R243: =IFERROR(INDEX(Input!$J$795:$V$824,MATCH($E243,Input!$C$795:$C$824,0),MATCH(R$234,Input!$J$794:$V$794,0))*$G243,0) -> 0 | S243: =IFERROR(INDEX(Input!$J$795:$V$824,MATCH($E243,Input!$C$795:$C$824,0),MATCH(S$234,Input!$J$794:$V$794,0))*$G243,0) -> 36000 | T243: =IFERROR(INDEX(Input!$J$795:$V$824,MATCH($E243,Input!$C$795:$C$824,0),MATCH(T$234,Input!$J$794:$V$794,0))*$G243,0) -> 0 | U243: =IFERROR(INDEX(Input!$J$795:$V$824,MATCH($E243,Input!$C$795:$C$824,0),MATCH(U$234,Input!$J$794:$V$794,0))*$G243,0) -> 0 | V243: =IFERROR(INDEX(Input!$J$795:$V$824,MATCH($E243,Input!$C$795:$C$824,0),MATCH(V$234,Input!$J$794:$V$794,0))*$G243,0) -> 0
C244: =Input!$C467 -> Office & Postage | D244: $ | E244: =Input!$E467 -> Billing & Accounting | G244: =-Input!$S467 -> 127393.705 | J244: =IFERROR(INDEX(Input!$J$795:$V$824,MATCH($E244,Input!$C$795:$C$824,0),MATCH(J$234,Input!$J$794:$V$794,0))*$G244,0) -> 0 | K244: =IFERROR(INDEX(Input!$J$795:$V$824,MATCH($E244,Input!$C$795:$C$824,0),MATCH(K$234,Input!$J$794:$V$794,0))*$G244,0) -> 0 | L244: =IFERROR(INDEX(Input!$J$795:$V$824,MATCH($E244,Input!$C$795:$C$824,0),MATCH(L$234,Input!$J$794:$V$794,0))*$G244,0) -> 0 | M244: =IFERROR(INDEX(Input!$J$795:$V$824,MATCH($E244,Input!$C$795:$C$824,0),MATCH(M$234,Input!$J$794:$V$794,0))*$G244,0) -> 0 | N244: =IFERROR(INDEX(Input!$J$795:$V$824,MATCH($E244,Input!$C$795:$C$824,0),MATCH(N$234,Input!$J$794:$V$794,0))*$G244,0) -> 0 | O244: =IFERROR(INDEX(Input!$J$795:$V$824,MATCH($E244,Input!$C$795:$C$824,0),MATCH(O$234,Input!$J$794:$V$794,0))*$G244,0) -> 0 | P244: =IFERROR(INDEX(Input!$J$795:$V$824,MATCH($E244,Input!$C$795:$C$824,0),MATCH(P$234,Input!$J$794:$V$794,0))*$G244,0) -> 127393.705 | Q244: =IFERROR(INDEX(Input!$J$795:$V$824,MATCH($E244,Input!$C$795:$C$824,0),MATCH(Q$234,Input!$J$794:$V$794,0))*$G244,0) -> 0 | R244: =IFERROR(INDEX(Input!$J$795:$V$824,MATCH($E244,Input!$C$795:$C$824,0),MATCH(R$234,Input!$J$794:$V$794,0))*$G244,0) -> 0 | S244: =IFERROR(INDEX(Input!$J$795:$V$824,MATCH($E244,Input!$C$795:$C$824,0),MATCH(S$234,Input!$J$794:$V$794,0))*$G244,0) -> 0 | T244: =IFERROR(INDEX(Input!$J$795:$V$824,MATCH($E244,Input!$C$795:$C$824,0),MATCH(T$234,Input!$J$794:$V$794,0))*$G244,0) -> 0 | U244: =IFERROR(INDEX(Input!$J$795:$V$824,MATCH($E244,Input!$C$795:$C$824,0),MATCH(U$234,Input!$J$794:$V$794,0))*$G244,0) -> 0 | V244: =IFERROR(INDEX(Input!$J$795:$V$824,MATCH($E244,Input!$C$795:$C$824,0),MATCH(V$234,Input!$J$794:$V$794,0))*$G244,0) -> 0
C245: =Input!$C468 -> Repair & Maintenance | D245: $ | E245: =Input!$E468 -> R&MGeneral | G245: =-Input!$S468 -> 118449.6711 | J245: =IFERROR(INDEX(Input!$J$795:$V$824,MATCH($E245,Input!$C$795:$C$824,0),MATCH(J$234,Input!$J$794:$V$794,0))*$G245,0) -> 0 | K245: =IFERROR(INDEX(Input!$J$795:$V$824,MATCH($E245,Input!$C$795:$C$824,0),MATCH(K$234,Input!$J$794:$V$794,0))*$G245,0) -> 0 | L245: =IFERROR(INDEX(Input!$J$795:$V$824,MATCH($E245,Input!$C$795:$C$824,0),MATCH(L$234,Input!$J$794:$V$794,0))*$G245,0) -> 6641.157399 | M245: =IFERROR(INDEX(Input!$J$795:$V$824,MATCH($E245,Input!$C$795:$C$824,0),MATCH(M$234,Input!$J$794:$V$794,0))*$G245,0) -> 12862.2294 | N245: =IFERROR(INDEX(Input!$J$795:$V$824,MATCH($E245,Input!$C$795:$C$824,0),MATCH(N$234,Input!$J$794:$V$794,0))*$G245,0) -> 11271.84197 | O245: =IFERROR(INDEX(Input!$J$795:$V$824,MATCH($E245,Input!$C$795:$C$824,0),MATCH(O$234,Input!$J$794:$V$794,0))*$G245,0) -> 37130.2161 | P245: =IFERROR(INDEX(Input!$J$795:$V$824,MATCH($E245,Input!$C$795:$C$824,0),MATCH(P$234,Input!$J$794:$V$794,0))*$G245,0) -> 16305.83849 | Q245: =IFERROR(INDEX(Input!$J$795:$V$824,MATCH($E245,Input!$C$795:$C$824,0),MATCH(Q$234,Input!$J$794:$V$794,0))*$G245,0) -> 6448.977357 | R245: =IFERROR(INDEX(Input!$J$795:$V$824,MATCH($E245,Input!$C$795:$C$824,0),MATCH(R$234,Input!$J$794:$V$794,0))*$G245,0) -> 3595.013236 | S245: =IFERROR(INDEX(Input!$J$795:$V$824,MATCH($E245,Input!$C$795:$C$824,0),MATCH(S$234,Input!$J$794:$V$794,0))*$G245,0) -> 24194.39711 | T245: =IFERROR(INDEX(Input!$J$795:$V$824,MATCH($E245,Input!$C$795:$C$824,0),MATCH(T$234,Input!$J$794:$V$794,0))*$G245,0) -> 0 | U245: =IFERROR(INDEX(Input!$J$795:$V$824,MATCH($E245,Input!$C$795:$C$824,0),MATCH(U$234,Input!$J$794:$V$794,0))*$G245,0) -> 0 | V245: =IFERROR(INDEX(Input!$J$795:$V$824,MATCH($E245,Input!$C$795:$C$824,0),MATCH(V$234,Input!$J$794:$V$794,0))*$G245,0) -> 0
C246: =Input!$C469 -> Transp. Fuel/ Maint. | D246: $ | E246: =Input!$E469 -> Vehicles | G246: =-Input!$S469 -> 45748.3554 | J246: =IFERROR(INDEX(Input!$J$795:$V$824,MATCH($E246,Input!$C$795:$C$824,0),MATCH(J$234,Input!$J$794:$V$794,0))*$G246,0) -> 0 | K246: =IFERROR(INDEX(Input!$J$795:$V$824,MATCH($E246,Input!$C$795:$C$824,0),MATCH(K$234,Input!$J$794:$V$794,0))*$G246,0) -> 0 | L246: =IFERROR(INDEX(Input!$J$795:$V$824,MATCH($E246,Input!$C$795:$C$824,0),MATCH(L$234,Input!$J$794:$V$794,0))*$G246,0) -> 470.2157104 | M246: =IFERROR(INDEX(Input!$J$795:$V$824,MATCH($E246,Input!$C$795:$C$824,0),MATCH(M$234,Input!$J$794:$V$794,0))*$G246,0) -> 12220.00975 | N246: =IFERROR(INDEX(Input!$J$795:$V$824,MATCH($E246,Input!$C$795:$C$824,0),MATCH(N$234,Input!$J$794:$V$794,0))*$G246,0) -> 10849.2409 | O246: =IFERROR(INDEX(Input!$J$795:$V$824,MATCH($E246,Input!$C$795:$C$824,0),MATCH(O$234,Input!$J$794:$V$794,0))*$G246,0) -> 4231.941394 | P246: =IFERROR(INDEX(Input!$J$795:$V$824,MATCH($E246,Input!$C$795:$C$824,0),MATCH(P$234,Input!$J$794:$V$794,0))*$G246,0) -> 1455.576301 | Q246: =IFERROR(INDEX(Input!$J$795:$V$824,MATCH($E246,Input!$C$795:$C$824,0),MATCH(Q$234,Input!$J$794:$V$794,0))*$G246,0) -> 5703.473435 | R246: =IFERROR(INDEX(Input!$J$795:$V$824,MATCH($E246,Input!$C$795:$C$824,0),MATCH(R$234,Input!$J$794:$V$794,0))*$G246,0) -> 0 | S246: =IFERROR(INDEX(Input!$J$795:$V$824,MATCH($E246,Input!$C$795:$C$824,0),MATCH(S$234,Input!$J$794:$V$794,0))*$G246,0) -> 10817.89791 | T246: =IFERROR(INDEX(Input!$J$795:$V$824,MATCH($E246,Input!$C$795:$C$824,0),MATCH(T$234,Input!$J$794:$V$794,0))*$G246,0) -> 0 | U246: =IFERROR(INDEX(Input!$J$795:$V$824,MATCH($E246,Input!$C$795:$C$824,0),MATCH(U$234,Input!$J$794:$V$794,0))*$G246,0) -> 0 | V246: =IFERROR(INDEX(Input!$J$795:$V$824,MATCH($E246,Input!$C$795:$C$824,0),MATCH(V$234,Input!$J$794:$V$794,0))*$G246,0) -> 0
C247: =Input!$C470 -> Dues & Fees | D247: $ | E247: =Input!$E470 -> A&G | G247: =-Input!$S470 -> 31185.20912 | J247: =IFERROR(INDEX(Input!$J$795:$V$824,MATCH($E247,Input!$C$795:$C$824,0),MATCH(J$234,Input!$J$794:$V$794,0))*$G247,0) -> 0 | K247: =IFERROR(INDEX(Input!$J$795:$V$824,MATCH($E247,Input!$C$795:$C$824,0),MATCH(K$234,Input!$J$794:$V$794,0))*$G247,0) -> 0 | L247: =IFERROR(INDEX(Input!$J$795:$V$824,MATCH($E247,Input!$C$795:$C$824,0),MATCH(L$234,Input!$J$794:$V$794,0))*$G247,0) -> 0 | M247: =IFERROR(INDEX(Input!$J$795:$V$824,MATCH($E247,Input!$C$795:$C$824,0),MATCH(M$234,Input!$J$794:$V$794,0))*$G247,0) -> 0 | N247: =IFERROR(INDEX(Input!$J$795:$V$824,MATCH($E247,Input!$C$795:$C$824,0),MATCH(N$234,Input!$J$794:$V$794,0))*$G247,0) -> 0 | O247: =IFERROR(INDEX(Input!$J$795:$V$824,MATCH($E247,Input!$C$795:$C$824,0),MATCH(O$234,Input!$J$794:$V$794,0))*$G247,0) -> 0 | P247: =IFERROR(INDEX(Input!$J$795:$V$824,MATCH($E247,Input!$C$795:$C$824,0),MATCH(P$234,Input!$J$794:$V$794,0))*$G247,0) -> 0 | Q247: =IFERROR(INDEX(Input!$J$795:$V$824,MATCH($E247,Input!$C$795:$C$824,0),MATCH(Q$234,Input!$J$794:$V$794,0))*$G247,0) -> 0 | R247: =IFERROR(INDEX(Input!$J$795:$V$824,MATCH($E247,Input!$C$795:$C$824,0),MATCH(R$234,Input!$J$794:$V$794,0))*$G247,0) -> 0 | S247: =IFERROR(INDEX(Input!$J$795:$V$824,MATCH($E247,Input!$C$795:$C$824,0),MATCH(S$234,Input!$J$794:$V$794,0))*$G247,0) -> 31185.20912 | T247: =IFERROR(INDEX(Input!$J$795:$V$824,MATCH($E247,Input!$C$795:$C$824,0),MATCH(T$234,Input!$J$794:$V$794,0))*$G247,0) -> 0 | U247: =IFERROR(INDEX(Input!$J$795:$V$824,MATCH($E247,Input!$C$795:$C$824,0),MATCH(U$234,Input!$J$794:$V$794,0))*$G247,0) -> 0 | V247: =IFERROR(INDEX(Input!$J$795:$V$824,MATCH($E247,Input!$C$795:$C$824,0),MATCH(V$234,Input!$J$794:$V$794,0))*$G247,0) -> 0
C248: =Input!$C471 -> Mapping Expense | D248: $ | E248: =Input!$E471 -> 0 | G248: =-Input!$S471 -> 0 | J248: =IFERROR(INDEX(Input!$J$795:$V$824,MATCH($E248,Input!$C$795:$C$824,0),MATCH(J$234,Input!$J$794:$V$794,0))*$G248,0) -> 0 | K248: =IFERROR(INDEX(Input!$J$795:$V$824,MATCH($E248,Input!$C$795:$C$824,0),MATCH(K$234,Input!$J$794:$V$794,0))*$G248,0) -> 0 | L248: =IFERROR(INDEX(Input!$J$795:$V$824,MATCH($E248,Input!$C$795:$C$824,0),MATCH(L$234,Input!$J$794:$V$794,0))*$G248,0) -> 0 | M248: =IFERROR(INDEX(Input!$J$795:$V$824,MATCH($E248,Input!$C$795:$C$824,0),MATCH(M$234,Input!$J$794:$V$794,0))*$G248,0) -> 0 | N248: =IFERROR(INDEX(Input!$J$795:$V$824,MATCH($E248,Input!$C$795:$C$824,0),MATCH(N$234,Input!$J$794:$V$794,0))*$G248,0) -> 0 | O248: =IFERROR(INDEX(Input!$J$795:$V$824,MATCH($E248,Input!$C$795:$C$824,0),MATCH(O$234,Input!$J$794:$V$794,0))*$G248,0) -> 0 | P248: =IFERROR(INDEX(Input!$J$795:$V$824,MATCH($E248,Input!$C$795:$C$824,0),MATCH(P$234,Input!$J$794:$V$794,0))*$G248,0) -> 0 | Q248: =IFERROR(INDEX(Input!$J$795:$V$824,MATCH($E248,Input!$C$795:$C$824,0),MATCH(Q$234,Input!$J$794:$V$794,0))*$G248,0) -> 0 | R248: =IFERROR(INDEX(Input!$J$795:$V$824,MATCH($E248,Input!$C$795:$C$824,0),MATCH(R$234,Input!$J$794:$V$794,0))*$G248,0) -> 0 | S248: =IFERROR(INDEX(Input!$J$795:$V$824,MATCH($E248,Input!$C$795:$C$824,0),MATCH(S$234,Input!$J$794:$V$794,0))*$G248,0) -> 0 | T248: =IFERROR(INDEX(Input!$J$795:$V$824,MATCH($E248,Input!$C$795:$C$824,0),MATCH(T$234,Input!$J$794:$V$794,0))*$G248,0) -> 0 | U248: =IFERROR(INDEX(Input!$J$795:$V$824,MATCH($E248,Input!$C$795:$C$824,0),MATCH(U$234,Input!$J$794:$V$794,0))*$G248,0) -> 0 | V248: =IFERROR(INDEX(Input!$J$795:$V$824,MATCH($E248,Input!$C$795:$C$824,0),MATCH(V$234,Input!$J$794:$V$794,0))*$G248,0) -> 0
C249: =Input!$C472 -> Regulatory | D249: $ | E249: =Input!$E472 -> A&G | G249: =-Input!$S472 -> 211851.832 | J249: =IFERROR(INDEX(Input!$J$795:$V$824,MATCH($E249,Input!$C$795:$C$824,0),MATCH(J$234,Input!$J$794:$V$794,0))*$G249,0) -> 0 | K249: =IFERROR(INDEX(Input!$J$795:$V$824,MATCH($E249,Input!$C$795:$C$824,0),MATCH(K$234,Input!$J$794:$V$794,0))*$G249,0) -> 0 | L249: =IFERROR(INDEX(Input!$J$795:$V$824,MATCH($E249,Input!$C$795:$C$824,0),MATCH(L$234,Input!$J$794:$V$794,0))*$G249,0) -> 0 | M249: =IFERROR(INDEX(Input!$J$795:$V$824,MATCH($E249,Input!$C$795:$C$824,0),MATCH(M$234,Input!$J$794:$V$794,0))*$G249,0) -> 0 | N249: =IFERROR(INDEX(Input!$J$795:$V$824,MATCH($E249,Input!$C$795:$C$824,0),MATCH(N$234,Input!$J$794:$V$794,0))*$G249,0) -> 0 | O249: =IFERROR(INDEX(Input!$J$795:$V$824,MATCH($E249,Input!$C$795:$C$824,0),MATCH(O$234,Input!$J$794:$V$794,0))*$G249,0) -> 0 | P249: =IFERROR(INDEX(Input!$J$795:$V$824,MATCH($E249,Input!$C$795:$C$824,0),MATCH(P$234,Input!$J$794:$V$794,0))*$G249,0) -> 0 | Q249: =IFERROR(INDEX(Input!$J$795:$V$824,MATCH($E249,Input!$C$795:$C$824,0),MATCH(Q$234,Input!$J$794:$V$794,0))*$G249,0) -> 0 | R249: =IFERROR(INDEX(Input!$J$795:$V$824,MATCH($E249,Input!$C$795:$C$824,0),MATCH(R$234,Input!$J$794:$V$794,0))*$G249,0) -> 0 | S249: =IFERROR(INDEX(Input!$J$795:$V$824,MATCH($E249,Input!$C$795:$C$824,0),MATCH(S$234,Input!$J$794:$V$794,0))*$G249,0) -> 211851.832 | T249: =IFERROR(INDEX(Input!$J$795:$V$824,MATCH($E249,Input!$C$795:$C$824,0),MATCH(T$234,Input!$J$794:$V$794,0))*$G249,0) -> 0 | U249: =IFERROR(INDEX(Input!$J$795:$V$824,MATCH($E249,Input!$C$795:$C$824,0),MATCH(U$234,Input!$J$794:$V$794,0))*$G249,0) -> 0 | V249: =IFERROR(INDEX(Input!$J$795:$V$824,MATCH($E249,Input!$C$795:$C$824,0),MATCH(V$234,Input!$J$794:$V$794,0))*$G249,0) -> 0
... 2336 more rows

Sheet Exhibit 1
A1: Exhibit 1 Tab 1 Schedule 1
C3: Table 1.5.1-1
C4: Summary of Changes in Revenue Requirement
C5: $
D6: A | E6: B | F6: C | G6: D | H6: E
D7: Driver | E7: 2011 Board Approved | F7: 2020T | G7: Variance | H7: % Change
C8: 1 | D8: Transportation Cost | E8: 732360 | F8: =-Input!S460 -> 675543.9434 | G8: =F8-E8 -> -56816.05661 | H8: =G8/E8 -> -0.07757940987
C9: 2 | D9: OM&A | E9: 2629207 | F9: =-Input!S488+Input!S460+Input!S459+Input!S458 -> 3359102.186 | G9: 729895.1858 | H9: 0.2776103919
C10: 3 | D10: Depreciation | E10: 1171585 | F10: =Calculation!S$187 -> 1136086.354 | G10: -35498.64618 | H10: -0.03029967624
C11: 4 | D11: Property Taxes | E11: 400776 | F11: =Calculation!S$188 -> 632000 | G11: 231224 | H11: 0.576940735
C12: 5 | D12: Income Taxes | E12: 256437 | F12: =Calculation!S$189 -> 4536.487652 | G12: -251900.5123 | H12: -0.9823095433
C13: 6 | D13: Cost of Capital | E13: 1146310 | F13: =Calculation!S$190+Calculation!S$191 -> 958243.7263 | G13: -188066.2737 | H13: -0.1640623162
C14: 7 | D14: Other Revenue | E14: -851867 | F14: =Calculation!S$192 -> -112912.7125 | G14: 738954.2875 | H14: -0.8674526511
C15: 8 | D15: Revenue Requirement | E15: =SUM(E8:E14) -> 5484808 | F15: =SUM(F8:F14) -> 6652599.984 | G15: =SUM(G8:G14) -> 1167791.984 | H15: 0.2129139223
C17: Check | F17: =Calculation!S$193-F15 -> 0
C19: Table 1.5.1-2
C20: Cost Drivers of Revenue Sufficiency
C21: ($)
E22: A | F22: B | G22: C
D23: Description | E23: 2020 Revenue at Existing Rates | F23: 2020 Proposed Revenue Requirement | G23: Variance
C24: 1 | D24: Transportation Costs | E24: 700200 | F24: =-Input!S$460 -> 675543.9434 | G24: =F24-E24 -> -24656.05661
C25: 2 | D25: Operation and Maintenance | E25: ='Exhibit 6'!E27 -> 3360305.648 | F25: =-Input!S$488+Input!S$460+Input!S459+Input!S458 -> 3359102.186 | G25: -1203.462306
C26: 3 | D26: Depreciation and Amortization | E26: 1334155 | F26: =Calculation!S$187 -> 1136086.354 | G26: -198068.6462
C27: 4 | D27: Property Taxes | E27: 627917 | F27: =Calculation!S$188 -> 632000 | G27: 4083
C28: 5 | D28: Income Taxes | E28: 157265 | F28: =Calculation!S$189 -> 4536.487652 | G28: -152728.5123
C29: 6 | D29: Return on Rate Base | E29: 942214 | F29: =Calculation!S$190+Calculation!S$191 -> 958243.7263 | G29: 16029.72633
C30: 7 | D30: Other Revenue | E30: -117190 | F30: =Calculation!S$192 -> -112912.7125 | G30: 4277.2875
C31: 8 | D31: Total | E31: =SUM(E24:E30) -> 7004866.648 | F31: =SUM(F24:F30) -> 6652599.984 | G31: =SUM(G24:G30) -> -352266.6636
C33: Table 1.5.4-1
C34: Summary of Changes in Rate Base
C35: $
D36: A | E36: B | F36: C | G36: D | H36: E
D37: Driver | E37: 2011 Board Approved | F37: 2020T | G37: Variance | H37: % Change
C38: 1 | D38: Net Fixed Asset | E38: ='Exhibit 2'!$E$12 -> 13564413.43 | F38: =Calculation!S1772 -> 16355751.9 | G38: =F38-E38 -> 2791338.47 | H38: =G38/E38 -> 0.2057839423
C39: 2 | D39: Working Capital and Other Adjustments to Rate Base | E39: ='Exhibit 2'!$E$21+'Exhibit 2'!$E$22 -> 120622.57 | F39: 0 | G39: =F39-E39 -> -120622.57 | H39: =G39/E39 -> -1
C40: 4 | D40: Rate Base | E40: ='Exhibit 2'!$E$23 -> 13685036 | F40: =SUM(F38:F39) -> 16355751.9 | G40: =F40-E40 -> 2670715.9 | H40: =G40/E40 -> 0.195155928
C42: Check | E42: =E38+E39-E40 -> 0 | F42: =F$40-Calculation!S176 -> 0
C45: Table 1.5.5-3
C46: Forecasted Commodity and Transportation Costs in 2019
E47: A | F47: B | G47: C
D48: Gas Commodity | E48: m3 | F48: $ | G48: cent / m3
C49: 1 | D49: Enbridge Gas | E49: ='Exhibit 4'!E9 -> 25118971.41 | F49: ='Exhibit 4'!F9 -> 4031695.387 | G49: ='Exhibit 4'!G9 -> 16.0504
C50: 2 | D50: Local Production A | E50: ='Exhibit 4'!E10 -> 1000000 | F50: ='Exhibit 4'!F10 -> 160504 | G50: ='Exhibit 4'!G10 -> 16.0504
C51: 3 | D51: Local Production B | E51: ='Exhibit 4'!E11 -> 657416.5667 | F51: ='Exhibit 4'!F11 -> 105517.9886 | G51: ='Exhibit 4'!G11 -> 16.0504
C52: 4 | D52: Total Gas Commodity Cost | E52: ='Exhibit 4'!E12 -> 26776387.97 | F52: ='Exhibit 4'!F12 -> 4297717.375 | G52: ='Exhibit 4'!G12 -> 16.0504
C53: 5 | D53: Unaccounted For Gas | E53: ='Exhibit 4'!E13 -> 0 | F53: ='Exhibit 4'!F13 -> 0 | G53: ='Exhibit 4'!G13 -> 0
C54: 6 | D54: Total Gas Transportation Cost | E54: ='Exhibit 4'!E14 -> 43169006.5 | F54: ='Exhibit 4'!F14 -> 970410.5584 | G54: ='Exhibit 4'!G14 -> 2.247933499
C55: 7 | D55: Total Gas Commodity and Transportation Cost | F55: ='Exhibit 4'!F15 -> 5268127.934
C57: Table 1.5.5-4
C58: Forecasted Commodity and Transportation Costs in 2020
E59: A | F59: B | G59: C
D60: Gas Commodity | E60: m3 | F60: $ | G60: cent / m3
C61: 1 | D61: Enbridge Gas | E61: ='Exhibit 4'!E23 -> 24309668.65 | F61: ='Exhibit 4'!F23 -> 4366867.328 | G61: ='Exhibit 4'!G23 -> 17.9635
C62: 2 | D62: Local Production A | E62: ='Exhibit 4'!E24 -> 1000000 | F62: ='Exhibit 4'!F24 -> 179635 | G62: ='Exhibit 4'!G24 -> 17.9635
C63: 3 | D63: Local Production B | E63: ='Exhibit 4'!E25 -> 657416.5667 | F63: ='Exhibit 4'!F25 -> 118095.025 | G63: ='Exhibit 4'!G25 -> 17.9635
C64: 4 | D64: Total Gas Commodity Cost | E64: ='Exhibit 4'!E26 -> 25967085.22 | F64: ='Exhibit 4'!F26 -> 4664597.353 | G64: ='Exhibit 4'!G26 -> 17.9635
C65: 5 | D65: Unaccounted For Gas | E65: ='Exhibit 4'!E27 -> 0 | F65: ='Exhibit 4'!F27 -> 0 | G65: ='Exhibit 4'!G27 -> 0
C66: 6 | D66: Total Gas Transportation Cost | E66: ='Exhibit 4'!E28 -> 26325152.46 | F66: ='Exhibit 4'!F28 -> 674644.4424 | G66: ='Exhibit 4'!G28 -> 2.562737076
C67: 7 | D67: Total Gas Commodity and Transportation Cost | F67: ='Exhibit 4'!F29 -> 5339241.795
C69: Table 1.5.6-1
C70: Weighted Average Cost of Capital
E71: A | F71: B | G71: C
D72: Capital Component | E72: Ratio | F72: Cost Rate | G72: Return Component (WACC)
C73: 1 | D73: Equity | E73: =Input!S$632 -> 0.4 | F73: =Input!S$638 -> 0.0898 | G73: =E73*F73 -> 0.03592
C74: 2 | D74: Long-term Debt | E74: =Input!S$631 -> 0.56 | F74: ='Exhibit 5'!G8 -> 0.03846351425 | G74: =E74*F74 -> 0.02153956798
C75: 3 | D75: Short-term Debt | E75: =Input!S$630 -> 0.04 | F75: =Input!S$636 -> 0.0282 | G75: =E75*F75 -> 0.001128
C76: 4 | D76: Total | E76: =SUM(E73:E75) -> 1 | G76: ='Exhibit 5'!H10 -> 0.05858756798
C78: Table 1.5.7-1
C79: Distribution Revenue to Cost Comparison
C80: ($)
E81: A | F81: B | G81: C | H81: D | I81: E | J81: F | K81: G | L81: H | M81: I | N81: J
E82: Total | F82: Rate 1 | G82: Rate 1 - Residential | H82: Rate 1 - Commercial | I82: Rate 1 - Industrial | J82: Rate 2 | K82: Rate 3 | L82: Rate 4 | M82: Rate 5 | N82: Rate 6
C83: 1 | D83: Proposed Revenue | E83: ='Exhibit 7'!E29 -> 6652600.087 | F83: ='Exhibit 7'!F29 -> 5262635.717 | G83: ='Exhibit 7'!G29 -> 4303350.009 | H83: ='Exhibit 7'!H29 -> 731833.2263 | I83: ='Exhibit 7'!I29 -> 227452.482 | J83: ='Exhibit 7'!J29 -> 158956.5002 | K83: ='Exhibit 7'!K29 -> 172071.4989 | L83: ='Exhibit 7'!L29 -> 142753.9837 | M83: ='Exhibit 7'!M29 -> 65766.80678 | N83: ='Exhibit 7'!N29 -> 850415.58
C84: 2 | D84: Cost | E84: ='Exhibit 7'!E30 -> 6652599.984 | F84: ='Exhibit 7'!F30 -> 5254090.896 | G84: ='Exhibit 7'!G30 -> 4387928.422 | H84: ='Exhibit 7'!H30 -> 697775.8662 | I84: ='Exhibit 7'!I30 -> 168386.6077 | J84: ='Exhibit 7'!J30 -> 161267.0945 | K84: ='Exhibit 7'!K30 -> 179031.0343 | L84: ='Exhibit 7'!L30 -> 170744.7645 | M84: ='Exhibit 7'!M30 -> 108793.0484 | N84: ='Exhibit 7'!N30 -> 778673.1466
C85: 3 | D85: Over (Under) Contribution | E85: ='Exhibit 7'!E31 -> 0.1024080794 | F85: ='Exhibit 7'!F31 -> 8544.8211 | G85: ='Exhibit 7'!G31 -> -84578.41337 | H85: ='Exhibit 7'!H31 -> 34057.36016 | I85: ='Exhibit 7'!I31 -> 59065.87431 | J85: ='Exhibit 7'!J31 -> -2310.594368 | K85: ='Exhibit 7'!K31 -> -6959.535353 | L85: ='Exhibit 7'!L31 -> -27990.78083 | M85: ='Exhibit 7'!M31 -> -43026.24158 | N85: ='Exhibit 7'!N31 -> 71742.43344
C86: 4 | D86: Proposed Revenue to Cost Ratio | E86: ='Exhibit 7'!E32 -> 1.000000015 | F86: ='Exhibit 7'!F32 -> 1.001626318 | G86: ='Exhibit 7'!G32 -> 0.9807247509 | H86: ='Exhibit 7'!H32 -> 1.048808452 | I86: ='Exhibit 7'!I32 -> 1.350775368 | J86: ='Exhibit 7'!J32 -> 0.9856722515 | K86: ='Exhibit 7'!K32 -> 0.9611266539 | L86: ='Exhibit 7'!L32 -> 0.8360665353 | M86: ='Exhibit 7'!M32 -> 0.6045129516 | N86: ='Exhibit 7'!N32 -> 1.092134208
C87: 5 | D87: EB-2010-0018 Approved | E87: ='Exhibit 7'!E33 -> 0.9826 | F87: ='Exhibit 7'!F33 -> 0.9904941362 | G87: ='Exhibit 7'!G33 -> 0.9388 | H87: ='Exhibit 7'!H33 -> 1.4694 | I87: ='Exhibit 7'!I33 -> 0.7151 | J87: ='Exhibit 7'!J33 -> 0.3692 | K87: ='Exhibit 7'!K33 -> 0.927 | L87: ='Exhibit 7'!L33 -> 1.139 | M87: ='Exhibit 7'!M33 -> 0.6075 | N87: ='Exhibit 7'!N33 -> 1.0649
C89: Table 1.5.7-2
C90: Fixed and Variable Revenue under Current vs Proposed Distribution Rates in 2020 ($)
D91: A | E91: B | F91: C | G91: D | H91: E | I91: F | J91: G
E92: Current | H92: Proposed
D93: Rate Class | E93: Fixed | F93: Variable | G93: Total | H93: Fixed | I93: Variable | J93: Total
C94: 1 | D94: =Input!$C$21 -> Rate 1 - Residential | E94: =SUMIF(Calculation!$E$611:$E$620,$D94,Calculation!$S$611:$S$620) -> 1651122 | F94: =SUMIF(Calculation!$E$623:$E$632,$D94,Calculation!$S$623:$S$632)+SUMIF(Calculation!$E$635:$E$644,$D94,Calculation!$S$635:$S$644)+SUMIF(Calculation!$E$647:$E$656,$D94,Calculation!$S$647:$S$656)+SUMIF(Calculation!$E$659:$E$668,$D94,Calculation!$S$659:$S$668) -> 2713273.673 | G94: =SUM(E94:F94) -> 4364395.673 | H94: =SUMIF(Calculation!$E$478:$E$487,$D94,Calculation!$S$478:$S$487) -> 1810908 | I94: =SUMIF(Calculation!$E$490:$E$499,$D94,Calculation!$S$490:$S$499)+SUMIF(Calculation!$E$502:$E$511,$D94,Calculation!$S$502:$S$511)+SUMIF(Calculation!$E$514:$E$523,$D94,Calculation!$S$514:$S$523)+SUMIF(Calculation!$E$526:$E$535,$D94,Calculation!$S$526:$S$535) -> 2492442.009 | J94: =SUM(H94:I94) -> 4303350.009
C95: 2 | D95: =Input!$C$22 -> Rate 1 - Commercial | E95: =SUMIF(Calculation!$E$611:$E$620,$D95,Calculation!$S$611:$S$620) -> 91884 | F95: =SUMIF(Calculation!$E$623:$E$632,$D95,Calculation!$S$623:$S$632)+SUMIF(Calculation!$E$635:$E$644,$D95,Calculation!$S$635:$S$644)+SUMIF(Calculation!$E$647:$E$656,$D95,Calculation!$S$647:$S$656)+SUMIF(Calculation!$E$659:$E$668,$D95,Calculation!$S$659:$S$668) -> 655538.0168 | G95: =SUM(E95:F95) -> 747422.0168 | H95: =SUMIF(Calculation!$E$478:$E$487,$D95,Calculation!$S$478:$S$487) -> 100776 | I95: =SUMIF(Calculation!$E$490:$E$499,$D95,Calculation!$S$490:$S$499)+SUMIF(Calculation!$E$502:$E$511,$D95,Calculation!$S$502:$S$511)+SUMIF(Calculation!$E$514:$E$523,$D95,Calculation!$S$514:$S$523)+SUMIF(Calculation!$E$526:$E$535,$D95,Calculation!$S$526:$S$535) -> 631057.2263 | J95: =SUM(H95:I95) -> 731833.2263
C96: 3 | D96: =Input!$C$23 -> Rate 1 - Industrial | E96: =SUMIF(Calculation!$E$611:$E$620,$D96,Calculation!$S$611:$S$620) -> 12648 | F96: =SUMIF(Calculation!$E$623:$E$632,$D96,Calculation!$S$623:$S$632)+SUMIF(Calculation!$E$635:$E$644,$D96,Calculation!$S$635:$S$644)+SUMIF(Calculation!$E$647:$E$656,$D96,Calculation!$S$647:$S$656)+SUMIF(Calculation!$E$659:$E$668,$D96,Calculation!$S$659:$S$668) -> 215938.6921 | G96: =SUM(E96:F96) -> 228586.6921 | H96: =SUMIF(Calculation!$E$478:$E$487,$D96,Calculation!$S$478:$S$487) -> 13872 | I96: =SUMIF(Calculation!$E$490:$E$499,$D96,Calculation!$S$490:$S$499)+SUMIF(Calculation!$E$502:$E$511,$D96,Calculation!$S$502:$S$511)+SUMIF(Calculation!$E$514:$E$523,$D96,Calculation!$S$514:$S$523)+SUMIF(Calculation!$E$526:$E$535,$D96,Calculation!$S$526:$S$535) -> 213580.482 | J96: =SUM(H96:I96) -> 227452.482
C97: 4 | D97: Rate 1 Subtotal | E97: =SUM(E94:E96) -> 1755654 | F97: 3584750.382 | G97: 5340404.382 | H97: 1925556 | I97: 3337079.717 | J97: 5262635.717
C98: 5 | D98: =Input!$C$24 -> Rate 2 | E98: =SUMIF(Calculation!$E$611:$E$620,$D98,Calculation!$S$611:$S$620) -> 10350 | F98: =SUMIF(Calculation!$E$623:$E$632,$D98,Calculation!$S$623:$S$632)+SUMIF(Calculation!$E$635:$E$644,$D98,Calculation!$S$635:$S$644)+SUMIF(Calculation!$E$647:$E$656,$D98,Calculation!$S$647:$S$656)+SUMIF(Calculation!$E$659:$E$668,$D98,Calculation!$S$659:$S$668) -> 149068.4147 | G98: =SUM(E98:F98) -> 159418.4147 | H98: =SUMIF(Calculation!$E$478:$E$487,$D98,Calculation!$S$478:$S$487) -> 12000 | I98: =SUMIF(Calculation!$E$490:$E$499,$D98,Calculation!$S$490:$S$499)+SUMIF(Calculation!$E$502:$E$511,$D98,Calculation!$S$502:$S$511)+SUMIF(Calculation!$E$514:$E$523,$D98,Calculation!$S$514:$S$523)+SUMIF(Calculation!$E$526:$E$535,$D98,Calculation!$S$526:$S$535) -> 146956.5002 | J98: =SUM(H98:I98) -> 158956.5002
C99: 6 | D99: =Input!$C$25 -> Rate 3 | E99: =SUMIF(Calculation!$E$611:$E$620,$D99,Calculation!$S$611:$S$620) -> 12420 | F99: =SUMIF(Calculation!$E$623:$E$632,$D99,Calculation!$S$623:$S$632)+SUMIF(Calculation!$E$635:$E$644,$D99,Calculation!$S$635:$S$644)+SUMIF(Calculation!$E$647:$E$656,$D99,Calculation!$S$647:$S$656)+SUMIF(Calculation!$E$659:$E$668,$D99,Calculation!$S$659:$S$668) -> 161435.7923 | G99: =SUM(E99:F99) -> 173855.7923 | H99: =SUMIF(Calculation!$E$478:$E$487,$D99,Calculation!$S$478:$S$487) -> 13680 | I99: =SUMIF(Calculation!$E$490:$E$499,$D99,Calculation!$S$490:$S$499)+SUMIF(Calculation!$E$502:$E$511,$D99,Calculation!$S$502:$S$511)+SUMIF(Calculation!$E$514:$E$523,$D99,Calculation!$S$514:$S$523)+SUMIF(Calculation!$E$526:$E$535,$D99,Calculation!$S$526:$S$535) -> 158391.4989 | J99: =SUM(H99:I99) -> 172071.4989
C100: 7 | D100: =Input!$C$26 -> Rate 4 | E100: =SUMIF(Calculation!$E$611:$E$620,$D100,Calculation!$S$611:$S$620) -> 7866 | F100: =SUMIF(Calculation!$E$623:$E$632,$D100,Calculation!$S$623:$S$632)+SUMIF(Calculation!$E$635:$E$644,$D100,Calculation!$S$635:$S$644)+SUMIF(Calculation!$E$647:$E$656,$D100,Calculation!$S$647:$S$656)+SUMIF(Calculation!$E$659:$E$668,$D100,Calculation!$S$659:$S$668) -> 129422.3754 | G100: =SUM(E100:F100) -> 137288.3754 | H100: =SUMIF(Calculation!$E$478:$E$487,$D100,Calculation!$S$478:$S$487) -> 7866 | I100: =SUMIF(Calculation!$E$490:$E$499,$D100,Calculation!$S$490:$S$499)+SUMIF(Calculation!$E$502:$E$511,$D100,Calculation!$S$502:$S$511)+SUMIF(Calculation!$E$514:$E$523,$D100,Calculation!$S$514:$S$523)+SUMIF(Calculation!$E$526:$E$535,$D100,Calculation!$S$526:$S$535) -> 134887.9837 | J100: =SUM(H100:I100) -> 142753.9837
C101: 8 | D101: =Input!$C$27 -> Rate 5 | E101: =SUMIF(Calculation!$E$611:$E$620,$D101,Calculation!$S$611:$S$620) -> 8280 | F101: =SUMIF(Calculation!$E$623:$E$632,$D101,Calculation!$S$623:$S$632)+SUMIF(Calculation!$E$635:$E$644,$D101,Calculation!$S$635:$S$644)+SUMIF(Calculation!$E$647:$E$656,$D101,Calculation!$S$647:$S$656)+SUMIF(Calculation!$E$659:$E$668,$D101,Calculation!$S$659:$S$668) -> 51732.24363 | G101: =SUM(E101:F101) -> 60012.24363 | H101: =SUMIF(Calculation!$E$478:$E$487,$D101,Calculation!$S$478:$S$487) -> 9120 | I101: =SUMIF(Calculation!$E$490:$E$499,$D101,Calculation!$S$490:$S$499)+SUMIF(Calculation!$E$502:$E$511,$D101,Calculation!$S$502:$S$511)+SUMIF(Calculation!$E$514:$E$523,$D101,Calculation!$S$514:$S$523)+SUMIF(Calculation!$E$526:$E$535,$D101,Calculation!$S$526:$S$535) -> 56646.80678 | J101: =SUM(H101:I101) -> 65766.80678
C102: 9 | D102: =Input!$C$28 -> Rate 6 | E102: =SUMIF(Calculation!$E$611:$E$620,$D102,Calculation!$S$611:$S$620) -> 1133887.44 | F102: =SUMIF(Calculation!$E$623:$E$632,$D102,Calculation!$S$623:$S$632)+SUMIF(Calculation!$E$635:$E$644,$D102,Calculation!$S$635:$S$644)+SUMIF(Calculation!$E$647:$E$656,$D102,Calculation!$S$647:$S$656)+SUMIF(Calculation!$E$659:$E$668,$D102,Calculation!$S$659:$S$668) -> 0 | G102: =SUM(E102:F102) -> 1133887.44 | H102: =SUMIF(Calculation!$E$478:$E$487,$D102,Calculation!$S$478:$S$487) -> 850415.58 | I102: =SUMIF(Calculation!$E$490:$E$499,$D102,Calculation!$S$490:$S$499)+SUMIF(Calculation!$E$502:$E$511,$D102,Calculation!$S$502:$S$511)+SUMIF(Calculation!$E$514:$E$523,$D102,Calculation!$S$514:$S$523)+SUMIF(Calculation!$E$526:$E$535,$D102,Calculation!$S$526:$S$535) -> 0 | J102: =SUM(H102:I102) -> 850415.58
C103: 10 | D103: Total Revenue | E103: =SUM(E97:E102) -> 2928457.44 | F103: 4076409.208 | G103: 7004866.648 | H103: 2818637.58 | I103: 3833962.507 | J103: 6652600.087
C105: Check | G105: =Calculation!$S$694-$G$103 -> 0 | J105: =ROUND('Exhibit 8'!$E$17-Calculation!$S$584,0) -> 0
C107: Table 1.5.7-3
C108: Fixed and Variable Revenue Proportions under Current vs Proposed Distribution Rates in 2020
D109: A | E109: B | F109: C | G109: D | H109: E | I109: F | J109: G
E110: Current | H110: Proposed
D111: Rate Class | E111: Fixed | F111: Variable | G111: Total | H111: Fixed | I111: Variable | J111: Total
C112: 1 | D112: =Input!$C$21 -> Rate 1 - Residential | E112: =E94/$G94 -> 0.3783162948 | F112: 0.6216837052 | G112: 1 | H112: =H94/$J94 -> 0.4208135514 | I112: 0.5791864486 | J112: 1
C113: 2 | D113: =Input!$C$22 -> Rate 1 - Commercial | E113: 0.1229345643 | F113: 0.8770654357 | G113: 1 | H113: 0.1377035045 | I113: 0.8622964955 | J113: 1
C114: 3 | D114: =Input!$C$23 -> Rate 1 - Industrial | E114: 0.0553313051 | F114: 0.9446686949 | G114: 1 | H114: 0.06098856288 | I114: 0.9390114371 | J114: 1
C115: 4 | D115: Rate 1 Subtotal | E115: 0.3287492621 | F115: 0.6712507379 | G115: 1 | H115: 0.3658919415 | I115: 0.6341080585 | J115: 1
C116: 5 | D116: =Input!$C$24 -> Rate 2 | E116: 0.06492349092 | F116: 0.9350765091 | G116: 1 | H116: 0.0754923516 | I116: 0.9245076484 | J116: 1
C117: 6 | D117: =Input!$C$25 -> Rate 3 | E117: 0.07143851714 | F117: 0.9285614829 | G117: 1 | H117: 0.07950183549 | I117: 0.9204981645 | J117: 1
C118: 7 | D118: =Input!$C$26 -> Rate 4 | E118: 0.05729545548 | F118: 0.9427045445 | G118: 1 | H118: 0.05510178978 | I118: 0.9448982102 | J118: 1
C119: 8 | D119: =Input!$C$27 -> Rate 5 | E119: 0.1379718454 | F119: 0.8620281546 | G119: 1 | H119: 0.1386717776 | I119: 0.8613282224 | J119: 1
C120: 9 | D120: =Input!$C$28 -> Rate 6 | E120: 1 | F120: 0 | G120: 1 | H120: 1 | I120: 0 | J120: 1
C121: 10 | D121: Total Revenue | E121: 0.4180604124 | F121: 0.5819395876 | G121: 1 | H121: 0.4236896166 | I121: 0.5763103834 | J121: 1
C123: Table 1.5.9-1 - Summary of Annual Bill Impacts Due to Proposed Change in Distribution Rates
D124: A | E124: B | F124: C | G124: D | H124: E
D125: Rate Class | E125: $ / Year Change | G125: % Change
E126: Typical | F126: Bottom Decile | G126: Typical | H126: Bottom Decile
C127: 1 | D127: Rate 1 - Residential | E127: ='Exhibit 8'!K$148 -> -5.235954178 | F127: ='Exhibit 8'!K$305 -> 11.59348877 | G127: ='Exhibit 8'!L$148 -> -0.01114222512 | H127: ='Exhibit 8'!L$305 -> 0.04386801735
C128: 2 | D128: Rate 1 - Commercial | E128: ='Exhibit 8'!K$167 -> -34.88291897 | F128: ='Exhibit 8'!K$324 -> 8.299682981 | G128: ='Exhibit 8'!L$167 -> -0.0419177154 | H128: ='Exhibit 8'!L$324 -> 0.02725424236
C129: 3 | D129: Rate 1 - Industrial | E129: ='Exhibit 8'!K$186 -> -120.8193446 | F129: ='Exhibit 8'!K$343 -> -11.95058984 | G129: ='Exhibit 8'!L$186 -> -0.05807079947 | H129: ='Exhibit 8'!L$343 -> -0.02165095017
C130: 4 | D130: Rate 2 | E130: ='Exhibit 8'!K$211 -> 0.005133415918 | F130: ='Exhibit 8'!K368 -> 29.42648096 | G130: ='Exhibit 8'!L$211 -> 1.907301193e-06 | H130: ='Exhibit 8'!L368 -> 0.06725290094
C131: 5 | D131: Rate 3 | E131: ='Exhibit 8'!K$231 -> 1.441575736 | F131: ='Exhibit 8'!K$388 -> 192.7394031 | G131: ='Exhibit 8'!L$231 -> 1.539992995e-05 | H131: ='Exhibit 8'!L$388 -> 0.01998144345
C132: 6 | D132: Rate 4 | E132: ='Exhibit 8'!K$254 -> 78.15799402 | F132: ='Exhibit 8'!K$411 -> 8.09348048 | G132: ='Exhibit 8'!L$254 -> 0.03422811508 | H132: ='Exhibit 8'!L$411 -> 0.008360528189
C133: 7 | D133: Rate 5 | E133: ='Exhibit 8'!K$273 -> 1430.98032 | F133: ='Exhibit 8'!K$430 -> 630.7301295 | G133: ='Exhibit 8'!L$273 -> 0.09589462675 | H133: ='Exhibit 8'!L$430 -> 0.09705424493
C134: 8 | D134: Rate 6 | E134: ='Exhibit 8'!K$291 -> -283471.86 | F134: ='Exhibit 8'!K$448 -> -283471.86 | G134: ='Exhibit 8'!L$291 -> -0.25 | H134: ='Exhibit 8'!L$448 -> -0.25
A136: Exhibit 1 Tab 2 Schedule 1
C138: Table 1
C139: Historical and Projected Fixed Assets Including Contribution
C140: ($ thousands)
E141: A | F141: B | G141: C | H141: D | I141: E | J141: F | K141: G | L141: H | M141: I | N141: J | O141: K | P141: L
D142: Asset Group | E142: 2011 OEB Approved | F142: 2011 A | G142: 2012 A | H142: 2013 A | I142: 2014 A | J142: 2015 A | K142: 2016 A | L142: 2017 A | M142: 2017 Stub | N142: 2018 F | O142: 2019 Bridge | P142: 2020 Test
C143: 1 | D143: Gross Asset Value
C144: 2 | D144: Opening Balance | E144: ='Exhibit 2'!E80 -> 23872235.43 | F144: ='Exhibit 2'!F80 -> 23206367.46 | G144: ='Exhibit 2'!G80 -> 23922882.46 | H144: ='Exhibit 2'!H80 -> 24323581.46 | I144: ='Exhibit 2'!I80 -> 25198209.46 | J144: ='Exhibit 2'!J80 -> 25889127.46 | K144: ='Exhibit 2'!K80 -> 23815210.17 | L144: ='Exhibit 2'!L80 -> 26184296.11 | M144: ='Exhibit 2'!M80 -> 27144193.56 | N144: ='Exhibit 2'!N80 -> 27441192.25 | O144: ='Exhibit 2'!O80 -> 29726575.87 | P144: ='Exhibit 2'!P80 -> 33734421.08
C145: 3 | D145: Addition | E145: ='Exhibit 2'!E81 -> 810004 | F145: ='Exhibit 2'!F81 -> 815171 | G145: ='Exhibit 2'!G81 -> 963682 | H145: ='Exhibit 2'!H81 -> 1133849 | I145: ='Exhibit 2'!I81 -> 942693 | J145: ='Exhibit 2'!J81 -> 794090 | K145: ='Exhibit 2'!K81 -> 2792786 | L145: ='Exhibit 2'!L81 -> 1113557.93 | M145: ='Exhibit 2'!M81 -> 325050.7 | N145: ='Exhibit 2'!N81 -> 2366198.89 | O145: ='Exhibit 2'!O81 -> 4007845.21 | P145: ='Exhibit 2'!P81 -> 1412000
C146: 4 | D146: Disposal | E146: ='Exhibit 2'!E82 -> 0 | F146: ='Exhibit 2'!F82 -> -98659 | G146: ='Exhibit 2'!G82 -> -562984 | H146: ='Exhibit 2'!H82 -> -259218 | I146: ='Exhibit 2'!I82 -> -251776 | J146: ='Exhibit 2'!J82 -> -2868007 | K146: ='Exhibit 2'!K82 -> -423700.27 | L146: ='Exhibit 2'!L82 -> -153660.49 | M146: ='Exhibit 2'!M82 -> -28052 | N146: ='Exhibit 2'!N82 -> -80815.27 | O146: ='Exhibit 2'!O82 -> 0 | P146: ='Exhibit 2'!P82 -> -1128193.52
C147: 5 | D147: Closing Balance | E147: ='Exhibit 2'!E83 -> 24536322.43 | F147: ='Exhibit 2'!F83 -> 23922881.46 | G147: ='Exhibit 2'!G83 -> 24323581.46 | H147: ='Exhibit 2'!H83 -> 25198209.46 | I147: ='Exhibit 2'!I83 -> 25889127.46 | J147: ='Exhibit 2'!J83 -> 23815212.46 | K147: ='Exhibit 2'!K83 -> 26184295.9 | L147: ='Exhibit 2'!L83 -> 27144193.56 | M147: ='Exhibit 2'!M83 -> 27441192.25 | N147: ='Exhibit 2'!N83 -> 29726575.87 | O147: ='Exhibit 2'!O83 -> 33734421.08 | P147: ='Exhibit 2'!P83 -> 34018227.56
C148: 6 | D148: Accumulated Depreciation
C149: 7 | D149: Opening Balance | E149: ='Exhibit 2'!E85 -> -10039823 | F149: ='Exhibit 2'!F85 -> -9505989.89 | G149: ='Exhibit 2'!G85 -> -10525936.91 | H149: ='Exhibit 2'!H85 -> -11068080.93 | I149: ='Exhibit 2'!I85 -> -11939229.58 | J149: ='Exhibit 2'!J85 -> -12844125.23 | K149: ='Exhibit 2'!K85 -> -12410708.28 | L149: ='Exhibit 2'!L85 -> -13036847.51 | M149: ='Exhibit 2'!M85 -> -14096235.18 | N149: ='Exhibit 2'!N85 -> -14362698.58 | O149: ='Exhibit 2'!O85 -> -15414603.1 | P149: ='Exhibit 2'!P85 -> -16705197.89
C150: 8 | D150: Depreciation | E150: ='Exhibit 2'!E86 -> -1200085 | F150: ='Exhibit 2'!F86 -> -1111888.02 | G150: ='Exhibit 2'!G86 -> -1070019.02 | H150: ='Exhibit 2'!H86 -> -1093099.65 | I150: ='Exhibit 2'!I86 -> -1097553.65 | J150: ='Exhibit 2'!J86 -> -1062671.65 | K150: ='Exhibit 2'!K86 -> -1049839.489 | L150: ='Exhibit 2'!L86 -> -1201877.94 | M150: ='Exhibit 2'!M86 -> -280831.8249 | N150: ='Exhibit 2'!N86 -> -1154427.296 | O150: ='Exhibit 2'!O86 -> -1290594.791 | P150: ='Exhibit 2'!P86 -> -1151832.635
C151: 9 | D151: Disposal | E151: ='Exhibit 2'!E87 -> 0 | F151: ='Exhibit 2'!F87 -> 91932 | G151: ='Exhibit 2'!G87 -> 527875 | H151: ='Exhibit 2'!H87 -> 221901 | I151: ='Exhibit 2'!I87 -> 192654 | J151: ='Exhibit 2'!J87 -> 1496082 | K151: ='Exhibit 2'!K87 -> 423700.27 | L151: ='Exhibit 2'!L87 -> 142490.29 | M151: ='Exhibit 2'!M87 -> 14368.5884 | N151: ='Exhibit 2'!N87 -> 102522.78 | O151: ='Exhibit 2'!O87 -> 0 | P151: ='Exhibit 2'!P87 -> 965732.31
C152: 10 | D152: Closing Balance | E152: ='Exhibit 2'!E88 -> -11239908 | F152: ='Exhibit 2'!F88 -> -10525946.91 | G152: ='Exhibit 2'!G88 -> -11068080.93 | H152: ='Exhibit 2'!H88 -> -11939281.58 | I152: ='Exhibit 2'!I88 -> -12844126.23 | J152: ='Exhibit 2'!J88 -> -12410714.88 | K152: ='Exhibit 2'!K88 -> -13036847.5 | L152: ='Exhibit 2'!L88 -> -14096235.18 | M152: ='Exhibit 2'!M88 -> -14362698.58 | N152: ='Exhibit 2'!N88 -> -15414603.1 | O152: ='Exhibit 2'!O88 -> -16705197.89 | P152: ='Exhibit 2'!P88 -> -16891298.21
C153: 11 | D153: Mid-year Net Asset Value | E153: ='Exhibit 2'!E89 -> 13564413.43 | F153: ='Exhibit 2'!F89 -> 13548656.06 | G153: ='Exhibit 2'!G89 -> 13326223.04 | H153: ='Exhibit 2'!H89 -> 13257214.21 | I153: ='Exhibit 2'!I89 -> 13151990.55 | J153: ='Exhibit 2'!J89 -> 12224749.91 | K153: ='Exhibit 2'!K89 -> 12275975.15 | L153: ='Exhibit 2'!L89 -> 13097703.49 | M153: ='Exhibit 2'!M89 -> 13063226.03 | N153: ='Exhibit 2'!N89 -> 13695233.22 | O153: ='Exhibit 2'!O89 -> 15670597.98 | P153: ='Exhibit 2'!P89 -> 17078076.27
C154: 12 | D154: Closing Net Asset Value | E154: ='Exhibit 2'!E90 -> 13296414.43 | F154: ='Exhibit 2'!F90 -> 13396934.55 | G154: ='Exhibit 2'!G90 -> 13255500.53 | H154: ='Exhibit 2'!H90 -> 13258927.88 | I154: ='Exhibit 2'!I90 -> 13045001.23 | J154: ='Exhibit 2'!J90 -> 11404497.58 | K154: ='Exhibit 2'!K90 -> 13147448.4 | L154: ='Exhibit 2'!L90 -> 13047958.38 | M154: ='Exhibit 2'!M90 -> 13078493.67 | N154: ='Exhibit 2'!N90 -> 14311972.77 | O154: ='Exhibit 2'!O90 -> 17029223.19 | P154: ='Exhibit 2'!P90 -> 17126929.35
C155: *net of contributions in years prior to 2017 Stub
C157: Table 2
C158: Property Taxes Payable
C159: ($)
E160: A | F160: B | G160: C | H160: D | I160: E | J160: F | K160: G | L160: H | M160: I | N160: J | O160: K | P160: L
D161: Expense Category | E161: 2011 OEB Approved | F161: 2011 A | G161: 2012 A | H161: 2013 A | I161: 2014 A | J161: 2015 A | K161: 2016 A | L161: 2017 A | M161: 2017 Stub | N161: 2018 F | O161: 2019 Bridge | P161: 2020 Test
C162: 1 | D162: Property Taxes | E162: 400776 | F162: 415184 | G162: 414606 | H162: 471816 | I162: 506712 | J162: 533094 | K162: 540380 | L162: 492809 | M162: 92826 | N162: =-Input!Q495 -> 573251 | O162: =-Input!R495 -> 605000 | P162: =-Input!S495 -> 632000
C165: Table 3
C166: Operating, Maintenance and Administrative Costs
C167: ($)
E168: A | F168: B | G168: C | H168: D | I168: E | J168: F | K168: G | L168: H | M168: I | N168: J | O168: K | P168: L
D169: Expense Category | E169: 2011 OEB Approved | F169: 2011 A | G169: 2012 A | H169: 2013 A | I169: 2014 A | J169: 2015 A | K169: 2016 A | L169: 2017 A | M169: 2017 Nov & Dec | N169: 2018 F | O169: 2019 Bridge | P169: 2020 Test
C170: 1 | D170: Salaries and Benefits | E170: 1219057 | F170: 995870 | G170: 1343213 | H170: 1335700 | I170: 1376847 | J170: 1441024 | K170: 1561365 | L170: 1336675.43 | M170: 216378.41 | N170: 1217748 | O170: 1255343 | P170: 1432123
C171: 2 | D171: Insurance | E171: 259345 | F171: 277066 | G171: 285902 | H171: 274243 | I171: 164744 | J171: 174538 | K171: 179774 | L171: 169300.76 | M171: 14853 | N171: 79707 | O171: 82895 | P171: 86211
C172: 3 | D172: Utilities | E172: 18061 | F172: 11199 | G172: 9832 | H172: 11043 | I172: 9825 | J172: 10765 | K172: 11900 | L172: 9524.55 | M172: 1882.91 | N172: 10478 | O172: 16573 | P172: 17443
C173: 4 | D173: Advertising | E173: 56500 | F173: 43906 | G173: 65336 | H173: 56243 | I173: 47948 | J173: 54432 | K173: 65529 | L173: 35082.41 | M173: 505 | N173: 34455 | O173: 60936 | P173: 34240
C174: 5 | D174: Telephone | E174: 65159 | F174: 39565 | G174: 30017 | H174: 28282 | I174: 26839 | J174: 28444 | K174: 29900 | L174: 27596.47 | M174: 6134.42 | N174: 41646 | O174: 27600 | P174: 36000
C175: 6 | D175: Office & Postage | E175: 127928 | F175: 99383 | G175: 101115 | H175: 107600 | I175: 115485 | J175: 130398 | K175: 133000 | L175: 118430.33 | M175: 22528.51 | N175: 156645 | O175: 126074 | P175: 127394
C176: 7 | D176: Repair & Maintenance | E176: 226054 | F176: 143067 | G176: 158552 | H176: 163360 | I176: 155983 | J176: 186338 | K176: 219780 | L176: 106204.09 | M176: 17661.57 | N176: 185831 | O176: 199943 | P176: 198122
C177: 8 | D177: Automotive | E177: 71000 | F177: 53463 | G177: 68809 | H177: 61378 | I177: 81090 | J177: 65516 | K177: 72000 | L177: 57627.67 | M177: 4589.25 | N177: 50927 | O177: 44807 | P177: 45748
C178: 9 | D178: Dues & Fees | E178: 41705 | F178: 29418 | G178: 61976 | H178: 47912 | I178: 34255 | J178: 34835 | K178: 35880 | L178: 18006.9 | M178: 18106.05 | N178: 29740 | O178: 29922 | P178: 31185
C179: 10 | D179: Mapping Expense | E179: 919 | F179: 0 | G179: 0 | H179: 0 | I179: 0 | J179: 0 | K179: 0 | L179: 0 | M179: 0 | N179: 0 | O179: 0 | P179: 0
C180: 11 | D180: Regulatory | E180: 111000 | F180: 278576 | G180: 246479 | H180: 400906 | I180: 1036973 | J180: 225356 | K180: 213500 | L180: 63010.09 | M180: 20 | N180: 887337 | O180: 206920 | P180: 211852
C181: 12 | D181: Bad Debts | E181: 60000 | F181: 32400 | G181: 200 | H181: 29689 | I181: 32034 | J181: 37166 | K181: 40000 | L181: 24593.99 | M181: 5718.09 | N181: 30486 | O181: 34200 | P181: 34200
C182: 13 | D182: Interest - Security Deposits | E182: 6432 | F182: 1879 | G182: 2778 | H182: 1099 | I182: 2298 | J182: -4831 | K182: 2000 | L182: 865.1 | M182: 0 | N182: 0 | O182: 0 | P182: 0
C183: 14 | D183: Bank Charges | E183: 17749 | F183: 48840 | G183: 26202 | H183: 18764 | I183: 20319 | J183: 14908 | K183: 18500 | L183: 34418.97 | M183: 2938.03 | N183: 14629 | O183: 6003 | P183: 6019
C184: 15 | D184: Collection Expense | E184: 20000 | F184: 8008 | G184: 8352 | H184: 7017 | I184: 11408 | J184: 7942 | K184: 8800 | L184: 4847.44 | M184: 0 | N184: 0 | O184: 0 | P184: 0
C185: 16 | D185: Travel & Ent. | E185: 4150 | F185: 3328 | G185: 3800 | H185: 3207 | I185: 6146 | J185: 8210 | K185: 9000 | L185: 3525.34 | M185: 900.06 | N185: 13493 | O185: 12788 | P185: 15145
C186: 17 | D186: Legal | E186: 54432 | F186: 25165 | G186: 2304 | H186: 14465 | I186: 15945 | J186: 205339 | K186: 295000 | L186: 985129.77 | M186: 4738.6 | N186: 30456 | O186: 33759 | P186: 34468
C187: 18 | D187: Audit | E187: 20000 | F187: 15975 | G187: 26772 | H187: 18000 | I187: 19750 | J187: 18000 | K187: 33000 | L187: 24000 | M187: 0 | N187: 57750 | O187: 30690 | P187: 31334
C188: 19 | D188: Consulting Fees | E188: 64560 | F188: 37675 | G188: 46216 | H188: 44684 | I188: 53441 | J188: 40181 | K188: 100000 | L188: 3490 | M188: 148661.1 | N188: 389445 | O188: 200398 | P188: 116913
C189: 20 | D189: Management Fees | E189: 235157 | F189: 457020 | G189: 457020 | H189: 457020 | I189: 457020 | J189: 457020 | K189: 457020 | L189: 457020 | M189: 0 | N189: 0 | O189: 0 | P189: 0
C190: 21 | D190: Correction on CCA issue | E190: -75000 | F190: 0 | G190: 0 | H190: 0 | I190: 0 | J190: 0 | K190: 0 | L190: 0 | M190: 0 | N190: 0 | O190: 0 | P190: 0
C191: 22 | D191: Miscellaneous | E191: 25000 | F191: 0 | G191: 0 | H191: 508585 | I191: 146741 | J191: 1214101 | K191: 0 | L191: 0 | M191: 96.65 | N191: 1053 | O191: 0 | P191: 0
C192: 23 | D192: Total | E192: =SUM(E170:E191) -> 2629208 | F192: =SUM(F170:F191) -> 2601803 | G192: 2944875 | H192: 3589197 | I192: 3815091 | J192: 4349682 | K192: 3485948 | L192: 3479349.31 | M192: 465711.65 | N192: 3231826 | O192: 2368850 | P192: 2458397
C193: Note 1: Years 2011-2017 based on fiscal period from October to September. Years 2018 -2020 based on calendar period from January to December
C195: Table 4
C196: Affiliate and Corporate Shared Services Costs
C197: ($)
E198: A | F198: B | G198: C | H198: D
D199: Expense Category | E199: 2017 A Stub | F199: 2018 F | G199: 2019 F | H199: 2020 F
C200: 1 | D200: Affiliate Services | E200: 44794 | F200: 477608 | G200: 441152 | H200: 453505
C201: 2 | D201: Corporate Shared Services | E201: 75243 | F201: 405984 | G201: 427572 | H201: 439217
C202: 3 | D202: Total Shared Services and Corporate Costs | E202: 120037 | F202: 883592 | G202: 868724 | H202: 892722
A204: Exhibit 1 Tab 2 Schedule 6
E206: =Calculation!Q6 -> 2018 | F206: =Calculation!R6 -> 2019 | G206: =Calculation!S6 -> 2020
C207: Income Statement
C209: =Calculation!C11 -> Commodity Revenue | E209: =Calculation!Q11 -> 4297717.375 | F209: =Calculation!R11 -> 4664597.353 | G209: =Calculation!S11 -> 4749851.43
C210: =Calculation!C12 -> Commodity Cost | E210: =Calculation!Q12 -> -4299009.046 | F210: =Calculation!R12 -> -4666366.801 | G210: =Calculation!S12 -> -4749851.43
C211: =Calculation!C13 -> Commodity Margin | E211: =Calculation!Q13 -> -1291.671166 | F211: =Calculation!R13 -> -1769.448067 | G211: =Calculation!S13 -> 0
C213: =Calculation!C15 -> Distribution Revenue | E213: =Calculation!Q15 -> 7234871.84 | F213: =Calculation!R15 -> 7079004.583 | G213: =Calculation!S15 -> 6652600.087
C214: =Calculation!C16 -> Other Revenue | E214: =Calculation!Q16 -> 119793.01 | F214: =Calculation!R16 -> 112912.7125 | G214: =Calculation!S16 -> 112912.7125
C215: =Calculation!C17 -> Distribution OM&A | E215: =Calculation!Q17 -> -5092411.85 | F215: =Calculation!R17 -> -3918801.623 | G215: =Calculation!S17 -> -4034646.129
C216: =Calculation!C18 -> Property Taxes | E216: =Calculation!Q18 -> -573251 | F216: =Calculation!R18 -> -605000 | G216: =Calculation!S18 -> -632000
C217: =Calculation!C19 -> EBITDA | E217: =Calculation!Q19 -> 1687710.33 | F217: =Calculation!R19 -> 2666346.225 | G217: =Calculation!S19 -> 2098866.67
C219: Net Depreciation and Amortization | E219: =Calculation!Q21+Calculation!Q22 -> -1151792.874 | F219: =Calculation!R21+Calculation!R22 -> -1271333.484 | G219: =Calculation!S21+Calculation!S22 -> -1136086.354
C220: =Calculation!C23 -> Interest Expense | E220: =Calculation!Q23 -> -379857.3214 | F220: =Calculation!R23 -> -383923.9698 | G220: =Calculation!S23 -> -408085.4837
C221: =Calculation!C25 -> Current Income Tax | E221: =Calculation!Q25 -> 0 | F221: =Calculation!R25 -> -169641.6911 | G221: =Calculation!S25 -> -4536.487652
C222: =Calculation!C26 -> Future Income Tax | E222: =Calculation!Q26 -> -47108.4257 | F222: =Calculation!R26 -> -98296.83315 | G222: =Calculation!S26 -> -99405.42237
C223: =Calculation!C24 -> Gain / Loss on Disposal | E223: =Calculation!Q24 -> 21707.51 | F223: =Calculation!R24 -> 0 | G223: =Calculation!S24 -> -162461.21
C224: =Calculation!C27 -> Net Income | E224: =Calculation!Q27 -> 130659.2185 | F224: =Calculation!R27 -> 743150.2464 | G224: =Calculation!S27 -> 288291.7127
C226: Balance Sheet
... 31 more rows

Sheet Exhibit 2
A1: Exhibit 2 Tab 1 Schedule 1
C3: Table 2.1-1
C4: Summary of Historical and Projected Aylmer Rate Base
C5: ($ thousands)
E6: A | F6: B | G6: C | H6: D | I6: E | J6: F | K6: G | L6: H | M6: I | N6: J | O6: K | P6: K
E7: 2011 | F7: 2011 A | G7: 2012 A | H7: 2013 A | I7: 2014 A | J7: 2015 A | K7: 2016 A | L7: 2017 A | M7: 2017 Stub | N7: 2018 F | O7: 2019 B | P7: 2020 T
E8: OEB Approved
C9: 1 | D9: Property, Plant & Equipments*
C10: 2 | D10: Gross Asset Value | E10: =AVERAGE(E$80,E$83) -> 24204278.93 | F10: =AVERAGE(F80,F83) -> 23564624.46 | G10: 24123231.96 | H10: 24760895.46 | I10: 25543668.46 | J10: 24852169.96 | K10: 24999753.04 | L10: 26664244.84 | M10: 27292692.9 | N10: 28583884.06 | O10: 31730498.48 | P10: 33876324.32
C11: 3 | D11: Accumulated Depreciation | E11: =AVERAGE(E$85,E$88) -> -10639865.5 | F11: -10015968.4 | G11: -10797008.92 | H11: -11503681.25 | I11: -12391677.91 | J11: -12627420.05 | K11: -12723777.89 | L11: -13566541.34 | M11: -14229466.88 | N11: -14888650.84 | O11: -16059900.49 | P11: -16798248.05
C12: 4 | D12: Net Book Value (Mid-year) | E12: =E10+E11 -> 13564413.43 | F12: 13548656.06 | G12: 13326223.04 | H12: 13257214.21 | I12: 13151990.55 | J12: 12224749.91 | K12: 12275975.15 | L12: 13097703.49 | M12: 13063226.02 | N12: 13695233.22 | O12: 15670597.98 | P12: 17078076.27
C13: 5 | D13: less: Contributions
C14: 6 | D14: Gross Asset Value | E14: =-AVERAGE(Calculation!D$704,Calculation!D$707) -> 0 | F14: =-AVERAGE(Calculation!E$704,Calculation!E$707) -> 0 | G14: =-AVERAGE(Calculation!F$704,Calculation!F$707) -> 0 | H14: =-AVERAGE(Calculation!G$704,Calculation!G$707) -> 0 | I14: =-AVERAGE(Calculation!H$704,Calculation!H$707) -> 0 | J14: =-AVERAGE(Calculation!I$704,Calculation!I$707) -> 0 | K14: =-AVERAGE(Calculation!J$704,Calculation!J$707) -> 0 | L14: =-AVERAGE(Calculation!K$704,Calculation!K$707) -> 0 | M14: =-AVERAGE(Calculation!L$704,Calculation!L$707) -> -6604.155 | N14: =-AVERAGE(Calculation!M$704,Calculation!M$707) -> -65710.81 | O14: =-AVERAGE(Calculation!N$704,Calculation!N$707) -> -417213.31 | P14: =-AVERAGE(Calculation!O$704,Calculation!O$707) -> -752213.31
C15: 7 | D15: Accumulated Depreciation | E15: =-AVERAGE(Calculation!D$709,Calculation!D$712) -> 0 | F15: =-AVERAGE(Calculation!E$709,Calculation!E$712) -> 0 | G15: =-AVERAGE(Calculation!F$709,Calculation!F$712) -> 0 | H15: =-AVERAGE(Calculation!G$709,Calculation!G$712) -> 0 | I15: =-AVERAGE(Calculation!H$709,Calculation!H$712) -> 0 | J15: =-AVERAGE(Calculation!I$709,Calculation!I$712) -> 0 | K15: =-AVERAGE(Calculation!J$709,Calculation!J$712) -> 0 | L15: =-AVERAGE(Calculation!K$709,Calculation!K$712) -> 0 | M15: =-AVERAGE(Calculation!L$709,Calculation!L$712) -> 60.035 | N15: =-AVERAGE(Calculation!M$709,Calculation!M$712) -> 1437.280912 | O15: =-AVERAGE(Calculation!N$709,Calculation!N$712) -> 12385.14528 | P15: =-AVERAGE(Calculation!O$709,Calculation!O$712) -> 29888.93929
C16: 8 | D16: Net Book Value (Mid-year) | E16: =E14+E15 -> 0 | F16: 0 | G16: 0 | H16: 0 | I16: 0 | J16: 0 | K16: 0 | L16: 0 | M16: -6544.12 | N16: -64273.52909 | O16: -404828.1647 | P16: -722324.3707
C17: 9 | D17: add: Allowance for Working Capital
C18: 10 | D18: Inventory | E18: =145095 -> 145095 | F18: 120185 | G18: 137680 | H18: 128155 | I18: 100394 | J18: 112833 | K18: 56388 | L18: 0 | M18: 0 | N18: 0 | O18: 0 | P18: 0
C19: 11 | D19: Working Cash Allowance | E19: =(-98602-2758) -> -101360 | F19: 53771 | G19: 79692 | H19: 70939 | I19: 39365 | J19: 59641 | K19: 81867 | L19: 0 | M19: 0 | N19: 0 | O19: 0 | P19: 0
C20: 12 | D20: Security Deposits | E20: =(-270833+94703) -> -176130 | F20: -160502 | G20: -150837 | H20: -137901 | I20: -130100 | J20: -139207 | K20: -134340 | L20: 0 | M20: 0 | N20: 0 | O20: 0 | P20: 0
C21: 13 | D21: Working Cash Allowance | E21: =SUM(E18:E20) -> -132395 | F21: 13454 | G21: 66535 | H21: 61193 | I21: 9659 | J21: 33267 | K21: 3915 | L21: =SUM(L18:L20) -> 0 | M21: =SUM(M18:M20) -> 0 | N21: =SUM(N18:N20) -> 0 | O21: =SUM(O18:O20) -> 0 | P21: =SUM(P18:P20) -> 0
C22: 14 | D22: Other Adjustment to Rate Base | E22: =E23-E12-E21 -> 253017.57
C23: 15 | D23: Utility Rate Base (Mid-year) | E23: ='Exhibit 1'!$E$40 -> 13685036 | F23: =F12+F16+F21+F22 -> 13562110.06 | G23: 13392758.04 | H23: 13318407.21 | I23: 13161649.55 | J23: 12258016.91 | K23: 12279890.15 | L23: 13097703.49 | M23: 13056681.9 | N23: 13630959.69 | O23: 15265769.82 | P23: 16355751.9
C24: 16 | D24: Change from year to year ($) | G24: =G23-F23 -> -169352.02 | H24: =H23-G23 -> -74350.835 | I24: =I23-H23 -> -156757.65 | J24: =J23-I23 -> -903632.65 | K24: =K23-J23 -> 21873.24075 | L24: =L23-J23 -> 839686.5871 | M24: =M23-K23 -> 776791.7593 | N24: =N23-M23 -> 574277.788 | O24: =O23-N23 -> 1634810.126 | P24: =P23-O23 -> 1089982.081
C25: 17 | D25: Change from year to year (%) | G25: =G24/F23 -> -0.01248714391 | H25: =H24/G23 -> -0.005551570093 | I25: =I24/H23 -> -0.01176999979 | J25: =J24/I23 -> -0.06865648916 | K25: =K24/J23 -> 0.001784402887 | L25: =L24/J23 -> 0.06850101396 | M25: =M24/K23 -> 0.0632572238 | N25: =N24/M23 -> 0.04398344022 | O25: =O24/N23 -> 0.1199336043 | P25: =P24/O23 -> 0.07140040063
C26: *Net of Contributions prior to October 2017 and Gross of Contributions post October 2017
C28: Check | N28: =Calculation!Q$2756-N$23 -> 0 | O28: =Calculation!R$2756-O$23 -> 0 | P28: =Calculation!S$1772-P$23 -> 0
C30: Table 2.2.1-1
C31: Gross Plant by Function
C32: ($ thousands)
E33: A | F33: B | G33: C | H33: D | I33: E | J33: F | K33: G | L33: H | M33: I | N33: J | O33: K | P33: L
D34: Description | E34: 2011 OEB Approved | F34: 2011 A | G34: 2012 A | H34: 2013 A | I34: 2014 A | J34: 2015 A | K34: 2016 A | L34: 2017 A | M34: 2017 Stub | N34: 2018 F | O34: 2019 Bridge | P34: 2020 Test
C35: 1 | D35: Distribution | E35: =F$54 -> 19035212 | F35: 18780112.03 | G35: 19445156.03 | H35: 19913883.03 | I35: 20352655.03 | J35: 20726068.03 | K35: 22664271.98 | L35: 23531393.25 | M35: 23627318.12 | N35: 26146238.46 | O35: 29650083.67 | P35: 29803890.15
C36: 2 | D36: General | E36: =F$65 -> 5088053.43 | F36: 4722065.43 | G36: 4727331.43 | H36: 4759963.43 | I36: 4896952.43 | J36: 2410577.43 | K36: 2810735.11 | L36: 2874158.34 | M36: 3067066.66 | N36: 2812474.95 | O36: 3316474.95 | P36: 3446474.95
C37: 3 | D37: Intangible | E37: =F$68 -> 413057 | F37: 420704 | G37: 151094 | H37: 524363 | I37: 639520 | J37: 678567 | K37: 709288.81 | L37: 738641.97 | M37: 746807.47 | N37: 767862.46 | O37: 767862.46 | P37: 767862.46
C38: 4 | D38: Contributions | E38: =F$69 -> 0 | F38: 0 | G38: 0 | H38: 0 | I38: 0 | J38: 0 | K38: 0 | L38: 0 | M38: -13208.31 | N38: -118213.31 | O38: -716213.31 | P38: -788213.31
C39: 5 | D39: Total | E39: =SUM(E35:E38) -> 24536322.43 | F39: 23922881.46 | G39: 24323581.46 | H39: 25198209.46 | I39: 25889127.46 | J39: 23815212.46 | K39: 26184295.9 | L39: 27144193.56 | M39: 27427983.94 | N39: 29608362.56 | O39: 33018207.77 | P39: 33230014.25
C41: Table 2.2.1-2
C42: Gross Plant by Uniform System of Account (USoA)
C43: ($ thousands)
E44: A | F44: B | G44: C | H44: D | I44: E | J44: F | K44: G | L44: H | M44: I | N44: J | O44: K | P44: L | Q44: M
D45: Description | E45: USoA | F45: 2011 OEB Approved | G45: 2011 A | H45: 2012 A | I45: 2013 A | J45: 2014 A | K45: 2015 A | L45: 2016 A | M45: 2017 A | N45: 2017 Stub | O45: 2018 F | P45: 2019 Bridge | Q45: 2020 Test
C46: 1 | D46: Distribution Plant
C47: 2 | D47: Meters | E47: 478 | F47: =E427 -> 2325022 | G47: 2176995 | H47: 2250709 | I47: 2399339 | J47: 2659751 | K47: 2773559 | L47: 2508815.45 | M47: 2495571.4 | N47: 2496057 | O47: 2865003.94 | P47: 3120003.94 | Q47: 2379810.42
C48: 3 | D48: Meters - IGPC | E48: 478b | F48: =E448 -> 0 | G48: 0 | H48: 0 | I48: 0 | J48: 0 | K48: 0 | L48: 0 | M48: 0 | N48: 14139.4 | O48: 14139.4 | P48: 14139.4 | Q48: 14139.4
C49: 4 | D49: Regulators | E49: 474 | F49: =E637 -> 0 | G49: 0 | H49: 0 | I49: 0 | J49: 0 | K49: 0 | L49: 0 | M49: 0 | N49: 0 | O49: 0 | P49: 71000 | Q49: 144000
C50: 5 | D50: Measuring and Regulating Equip | E50: 477 | F50: =E469 -> 1261085 | G50: 1257162 | H50: 1299217 | I50: 1370571 | J50: 1392873 | K50: 1407385 | L50: 1476890.86 | M50: 1483843.29 | N50: 1483843.29 | O50: 1582624.39 | P50: 2026624.39 | Q50: 2101624.39
C51: 6 | D51: Mains | E51: 475 | F51: =E511+E490 -> 7739085 | G51: 7887174 | H51: 8237324 | I51: 8286347 | J51: 8341831 | K51: 8530379 | L51: 10579103.03 | M51: 11305539.45 | N51: 11314594.49 | O51: 11818165.75 | P51: 13158210.96 | Q51: 13732210.96
C52: 7 | D52: Ethanol Pipeline - IGPC Project | E52: 475b | F52: =E532 -> 4846059 | G52: 4550553.03 | H52: 4550553.03 | I52: 4550553.03 | J52: 4550553.03 | K52: 4550553.03 | L52: 4550553.03 | M52: 4579914.52 | N52: 4606050.27 | O52: 5885286.29 | P52: 7128086.29 | Q52: 7128086.29
C53: 8 | D53: Plastic Service Lines | E53: 473 | F53: =E553 -> 2863961 | G53: 2908228 | H53: 3107353 | I53: 3307073 | J53: 3407647 | K53: 3464192 | L53: 3548909.61 | M53: 3666524.59 | N53: 3712633.67 | O53: 3981018.69 | P53: 4132018.69 | Q53: 4304018.69
C54: 9 | D54: Subtotal | F54: =SUM(F47:F53) -> 19035212 | G54: 18780112.03 | H54: 19445156.03 | I54: 19913883.03 | J54: 20352655.03 | K54: 20726068.03 | L54: 22664271.98 | M54: 23531393.25 | N54: 23627318.12 | O54: 26146238.46 | P54: 29650083.67 | Q54: 29803890.15
C55: 10 | D55: General Plant
C56: 11 | D56: Land | E56: 480 | F56: =E259 -> 71700.43 | G56: 71700.43 | H56: 71700.43 | I56: 71700.43 | J56: 71700.43 | K56: 71700.43 | L56: 71700.43 | M56: 71700.43 | N56: 71700.43 | O56: 71700.43 | P56: 122700.43 | Q56: 122700.43
C57: 12 | D57: Building | E57: 482 | F57: =E280 -> 722331 | G57: 682331 | H57: 682331 | I57: 684089 | J57: 687374 | K57: 687374 | L57: 687373.59 | M57: 699632.78 | N57: 699632.78 | O57: 699632.78 | P57: 730632.78 | Q57: 761632.78
C58: 13 | D58: Furniture and Fixtures | E58: 483 | F58: =E301 -> 72176 | G58: 69176 | H58: 79260 | I58: 82205 | J58: 103858 | K58: 110072 | L58: 112535.84 | M58: 112535.84 | N58: 112535.84 | O58: 112535.84 | P58: 112535.84 | Q58: 112535.84
C59: 14 | D59: Computer Hardware | E59: 490 | F59: =E322 -> 173413 | G59: 167786 | H59: 171427 | I59: 178399 | J59: 184475 | K59: 200113 | L59: 219282.41 | M59: 235637.22 | N59: 412213.82 | O59: 227739.06 | P59: 247739.06 | Q59: 257739.06
C60: 15 | D60: Computer Software | E60: 491 | F60: =E343 -> 205693 | G60: 213569 | H60: 217523 | I60: 225027 | J60: 234354 | K60: 245331 | L60: 463060.79 | M60: 538590.39 | N60: 551776.58 | O60: 334254.07 | P60: 580855.4525 | Q60: 606855.4525
C61: 16 | D61: Machinery & Equipment* | E61: 486 | F61: =E364 -> 3040842 | G61: 2845397 | H61: 2899381 | I61: 2922072 | J61: 3002090 | K61: 596022 | L61: 690571.98 | M61: 703946.5 | N61: 706181.03 | O61: 746545.99 | P61: 761545.99 | Q61: 777545.99
C62: 17 | D62: Communication Equipment | E62: 488 | F62: =E385 -> 180415 | G62: 157112 | H62: 157112 | I62: 161842 | J62: 177731 | K62: 177731 | L62: 193246 | M62: 197779.16 | N62: 198690.16 | O62: 198690.16 | P62: 231088.7775 | Q62: 231088.7775
C63: 18 | D63: Automotive Equip | E63: 484 | F63: =E406+E595 -> 621483 | G63: 514994 | H63: 448597 | I63: 434629 | J63: 435370 | K63: 322234 | L63: 372964.07 | M63: 314336.02 | N63: 314336.02 | O63: 421376.62 | P63: 529376.62 | Q63: 576376.62
C64: 19 | D64: Automotive Equip - Heavy Equip | E64: 485 | F64: =E616 -> 0 | G64: 0 | H64: 0 | I64: 0 | J64: 0 | K64: 0 | L64: 0 | M64: 0 | N64: 0 | O64: 0 | P64: 0 | Q64: 0
C65: 20 | D65: Subtotal | F65: =SUM(F56:F64) -> 5088053.43 | G65: 4722065.43 | H65: 4727331.43 | I65: 4759963.43 | J65: 4896952.43 | K65: 2410577.43 | L65: 2810735.11 | M65: 2874158.34 | N65: 3067066.66 | O65: 2812474.95 | P65: 3316474.95 | Q65: 3446474.95
C66: 21 | D66: Intangible Plant
C67: 22 | D67: Franchises | E67: 401 | F67: =E574 -> 413057 | G67: 420704 | H67: 151094 | I67: 524363 | J67: 639520 | K67: 678567 | L67: 709288.81 | M67: 738641.97 | N67: 746807.47 | O67: 767862.46 | P67: 767862.46 | Q67: 767862.46
C68: 23 | D68: Subtotal | F68: =SUM(F67) -> 413057 | G68: 420704 | H68: 151094 | I68: 524363 | J68: 639520 | K68: 678567 | L68: 709288.81 | M68: 738641.97 | N68: 746807.47 | O68: 767862.46 | P68: 767862.46 | Q68: 767862.46
C69: 24 | D69: Contributions | E69: 499 | F69: =-Calculation!D707 -> 0 | G69: =-Calculation!E707 -> 0 | H69: =-Calculation!F707 -> 0 | I69: =-Calculation!G707 -> 0 | J69: =-Calculation!H707 -> 0 | K69: =-Calculation!I707 -> 0 | L69: =-Calculation!J707 -> 0 | M69: =-Calculation!K707 -> 0 | N69: =-Calculation!L707 -> -13208.31 | O69: =-Calculation!M707 -> -118213.31 | P69: =-Calculation!N707 -> -716213.31 | Q69: =-Calculation!O707 -> -788213.31
C70: 25 | D70: Grand Total | F70: =F54+F65+F68+F69 -> 24536322.43 | G70: 23922881.46 | H70: 24323581.46 | I70: 25198209.46 | J70: 25889127.46 | K70: 23815212.46 | L70: 26184295.9 | M70: 27144193.56 | N70: 27427983.94 | O70: 29608362.56 | P70: 33018207.77 | Q70: 33230014.25
C71: *includes Rental Equipment in years prior to 2016
C72: Check | F72: =E$83-F$70+F69 -> 0 | G72: 0 | H72: 0 | I72: 0 | J72: 0 | K72: 0 | L72: 0 | M72: 0 | N72: -1.34059519e-09 | O72: -1.338776201e-09 | P72: 6.053596735e-09 | Q72: 6.053596735e-09
C74: Table 2.2-1-3
C75: Historical and Projected Fixed Assets Including Contributed Fixed Assets
C76: ($ thousands)
E77: A | F77: B | G77: C | H77: D | I77: E | J77: F | K77: G | L77: H | M77: I | N77: J | O77: K | P77: L
D78: Asset Group | E78: 2011 OEB Approved | F78: 2011 A | G78: 2012 A | H78: 2013 A | I78: 2014 A | J78: 2015 A | K78: 2016 A | L78: 2017 A | M78: 2017 Stub | N78: 2018 F | O78: 2019 Bridge | P78: 2020 Test
C79: 1 | D79: Gross Asset Value
C80: =C79+1 -> 2 | D80: Opening Balance | E80: =E256+E277+E298+E319+E340+E361+E382+E403+E424+E445+E466+E487+E508+E529+E550+E571+E592+E613+E634 -> 23872235.43 | F80: 23206367.46 | G80: 23922882.46 | H80: 24323581.46 | I80: 25198209.46 | J80: 25889127.46 | K80: 23815210.17 | L80: 26184296.11 | M80: 27144193.56 | N80: 27441192.25 | O80: 29726575.87 | P80: 33734421.08
C81: 3 | D81: Addition | E81: =E257+E278+E299+E320+E341+E362+E383+E404+E425+E446+E467+E488+E509+E530+E551+E572+E593+E614+E635 -> 810004 | F81: 815171 | G81: 963682 | H81: 1133849 | I81: 942693 | J81: 794090 | K81: 2792786 | L81: 1113557.93 | M81: 325050.7 | N81: 2366198.89 | O81: 4007845.21 | P81: 1412000
C82: 4 | D82: Disposal | E82: =E258+E279+E300+E321+E342+E363+E384+E405+E426+E447+E468+E489+E510+E531+E552+E573+E594+E615+E636 -> 0 | F82: -98659 | G82: -562984 | H82: -259218 | I82: -251776 | J82: -2868007 | K82: -423700.27 | L82: -153660.49 | M82: -28052 | N82: -80815.27 | O82: 0 | P82: -1128193.52
C83: 5 | D83: Closing Balance | E83: =E259+E280+E301+E322+E343+E364+E385+E406+E427+E448+E469+E490+E511+E532+E553+E574+E595+E616+E637 -> 24536322.43 | F83: 23922881.46 | G83: 24323581.46 | H83: 25198209.46 | I83: 25889127.46 | J83: 23815212.46 | K83: 26184295.9 | L83: 27144193.56 | M83: 27441192.25 | N83: 29726575.87 | O83: 33734421.08 | P83: 34018227.56
C84: 6 | D84: Accumulated Depreciation
C85: 7 | D85: Opening Balance | E85: =E261+E282+E303+E324+E345+E366+E387+E408+E429+E450+E471+E492+E513+E534+E555+E576+E597+E618+E639 -> -10039823 | F85: -9505989.89 | G85: -10525936.91 | H85: -11068080.93 | I85: -11939229.58 | J85: -12844125.23 | K85: -12410708.28 | L85: -13036847.51 | M85: -14096235.18 | N85: -14362698.58 | O85: -15414603.1 | P85: -16705197.89
C86: 8 | D86: Depreciation | E86: =E262+E283+E304+E325+E346+E367+E388+E409+E430+E451+E472+E493+E514+E535+E556+E577+E598+E619+E640 -> -1200085 | F86: -1111888.02 | G86: -1070019.02 | H86: -1093099.65 | I86: -1097553.65 | J86: -1062671.65 | K86: -1049839.489 | L86: -1201877.94 | M86: -280831.8249 | N86: -1154427.296 | O86: -1290594.791 | P86: -1151832.635
C87: 9 | D87: Disposal | E87: =E263+E284+E305+E326+E347+E368+E389+E410+E431+E452+E473+E494+E515+E536+E557+E578+E599+E620+E641 -> 0 | F87: 91932 | G87: 527875 | H87: 221901 | I87: 192654 | J87: 1496082 | K87: 423700.27 | L87: 142490.29 | M87: 14368.5884 | N87: 102522.78 | O87: 0 | P87: 965732.31
C88: 10 | D88: Closing Balance | E88: =E264+E285+E306+E327+E348+E369+E390+E411+E432+E453+E474+E495+E516+E537+E558+E579+E600+E621+E642 -> -11239908 | F88: -10525946.91 | G88: -11068080.93 | H88: -11939281.58 | I88: -12844126.23 | J88: -12410714.88 | K88: -13036847.5 | L88: -14096235.18 | M88: -14362698.58 | N88: -15414603.1 | O88: -16705197.89 | P88: -16891298.21
C89: 11 | D89: Mid-year Net Asset Value | E89: =E265+E286+E307+E328+E349+E370+E391+E412+E433+E454+E475+E496+E517+E538+E559+E580+E601+E622+E643 -> 13564413.43 | F89: 13548656.06 | G89: 13326223.04 | H89: 13257214.21 | I89: 13151990.55 | J89: 12224749.91 | K89: 12275975.15 | L89: 13097703.49 | M89: 13063226.03 | N89: 13695233.22 | O89: 15670597.98 | P89: 17078076.27
C90: 12 | D90: Closing Net Asset Value | E90: =E266+E287+E308+E329+E350+E371+E392+E413+E434+E455+E476+E497+E518+E539+E560+E581+E602+E623+E644 -> 13296414.43 | F90: 13396934.55 | G90: 13255500.53 | H90: 13258927.88 | I90: 13045001.23 | J90: 11404497.58 | K90: 13147448.4 | L90: 13047958.38 | M90: 13078493.67 | N90: 14311972.77 | O90: 17029223.19 | P90: 17126929.35
C91: *net of Contributed assets in years piror to 2017 Stub
C92: Check | M92: =ABS(SUM(M80:M82)-M83)+ABS(SUM(M85:M87)-M88)+ABS(M80-L83)+ABS(M85-L88) -> 0.1735100038 | N92: =ABS(SUM(N80:N82)-N83)+ABS(SUM(N85:N87)-N88)+ABS(N80-M83)+ABS(N85-M88) -> 5.587935448e-09 | O92: =ABS(SUM(O80:O82)-O83)+ABS(SUM(O85:O87)-O88)+ABS(O80-N83)+ABS(O85-N88) -> 9.313225746e-09 | P92: =ABS(SUM(P80:P82)-P83)+ABS(SUM(P85:P87)-P88)+ABS(P80-O83)+ABS(P85-O88) -> 0
C93: Check | E93: =AVERAGE(E80+E85,E83+E88)-E12 -> 0 | F93: 0 | G93: 0 | H93: 0 | I93: 0 | J93: 0 | K93: 0 | L93: 0 | M93: 0 | N93: 0 | O93: 0 | P93: 0
C95: Table 2.2.1-4
C96: Depreciation Expense by USoA
C97: ($ thousands)
E98: A | F98: B | G98: C | H98: D | I98: E | J98: F | K98: G | L98: H | M98: I | N98: J | O98: K | P98: L | Q98: M
D99: Description | E99: USoA | F99: 2011 OEB Approved | G99: 2011 A | H99: 2012 A | I99: 2013 A | J99: 2014 A | K99: 2015 A | L99: 2016 A | M99: 2017 A | N99: 2017 Stub | O99: 2018 F | P99: 2019 Bridge | Q99: 2020 Test
C100: 1 | D100: Distribution Plant
C101: =C100+1 -> 2 | D101: Meters | E101: 478 | F101: =E$430 -> -77346 | G101: -78807 | H101: -81476 | I101: -86856 | J101: -96283 | K101: -100403 | L101: -232366.1803 | M101: -231145.0684 | N101: -34237.5839 | O101: -97035.20301 | P101: -108328.6426 | Q101: -211774.1943
C102: 3 | D102: Meters - IGPC | E102: 478b | F102: =E$450 -> 0 | G102: =F$451 -> 0 | H102: 0 | I102: 0 | J102: 0 | K102: 0 | L102: 0 | M102: 0 | N102: -281.7277133 | O102: -512.2971014 | P102: -512.2971014 | Q102: -2356.566667
C103: 4 | D103: Regulators | E103: 474 | F103: =E$640 -> 0 | G103: 0 | H103: 0 | I103: 0 | J103: 0 | K103: 0 | L103: 0 | M103: 0 | N103: 0 | O103: 0 | P103: -1302.752294 | Q103: -5375
C104: 5 | D104: Measuring and Regulating Equip | E104: 477 | F104: =E$472 -> -42453 | G104: -46138 | H104: -47681 | I104: -50300 | J104: -51118 | K104: -51651 | L104: -54201.89456 | M104: -54457.04874 | N104: -13614.26479 | O104: -56269.68193 | P104: -66229.71511 | Q104: -75553.60139
C105: 6 | D105: Mains | E105: 475 | F105: =E$514+E$493 -> -229119 | G105: -254475 | H105: -265820 | I105: -267376 | J105: -269206 | K105: -275315 | L105: -295507.3016 | M105: -365225.31 | N105: -91379.67405 | O105: -373676.4438 | P105: -403542.6618 | Q105: -309822.0559
C106: 7 | D106: Ethanol Pipeline - IGPC Project | E106: 475b | F106: =E$535 -> -232512 | G106: -227231.02 | H106: -227231.02 | I106: -227527.65 | J106: -227527.65 | K106: -227527.65 | L106: -227527.65 | M106: -228995.73 | N106: -57575.63225 | O106: -262283.414 | P106: -325334.3145 | Q106: -141122.2786
C107: 8 | D107: Plastic Service Lines | E107: 473 | F107: =E$556 -> -87518 | G107: -96844 | H107: -103475 | I107: -111777 | J107: -113475 | K107: -115358 | L107: -118178.69 | M107: -122095.2688 | N107: -30837.16687 | O107: -128099.3118 | P107: -135082.0724 | Q107: -105873.9631
C108: 9 | D108: Subtotal | F108: =SUM(F101:F107) -> -668948 | G108: -703495.02 | H108: -725683.02 | I108: -743836.65 | J108: -757609.65 | K108: -770254.65 | L108: -927781.7165 | M108: -1001918.426 | N108: -227926.0496 | O108: -917876.3516 | P108: -1040332.456 | Q108: -851877.6599
C109: 10 | D109: General Plant
C110: 11 | D110: Land | E110: 480 | F110: =E$262 -> 0 | G110: 0 | H110: 0 | I110: 0 | J110: 0 | K110: 0 | L110: 0 | M110: 0 | N110: 0 | O110: 0 | P110: 0 | Q110: 0
C111: 12 | D111: Building | E111: 482 | F111: =E$283 -> -14699 | G111: -15148 | H111: -15148 | I111: -15187 | J111: -15260 | K111: -15260 | L111: -15259.6937 | M111: -15531.84772 | N111: -3882.961286 | O111: -15531.84772 | P111: -15875.94772 | Q111: -14326.66628
C112: 13 | D112: Furniture and Fixtures | E112: 483 | F112: =E$304 -> -4466 | G112: -4669 | H112: -5350 | I112: -5549 | J112: -7010 | K112: -7430 | L112: -7596.1692 | M112: -7596.1722 | N112: -1903.3382 | O112: -7596.1692 | P112: -7596.1692 | Q112: -5359.162
C113: 14 | D113: Computer Hardware | E113: 490 | F113: =E$325 -> -5967 | G113: -6054 | H113: -5250 | I113: -5824 | J113: -5908 | K113: -9151 | L113: -12490.15086 | M113: -13778.24175 | N113: -12066.19892 | O113: -64017.27046 | P113: -46013.31421 | Q113: -63184.765
C114: 15 | D114: Computer Software | E114: 491 | F114: =E$346 -> -8245 | G114: -14172 | H114: -12128 | I114: -11204 | J114: -10828 | K114: -10858 | L114: -52232.404 | M114: -56891.8432 | N114: -11889.44809 | O114: -46894.90294 | P114: -62176.0606 | Q114: -59385.54525
C115: 16 | D115: Machinery & Equipment* | E115: 486 | F115: =E$367 -> -301048 | G115: -173586 | H115: -180449 | I115: -182750 | J115: -189007 | K115: -149158 | L115: -18930.80642 | M115: -18418.51681 | N115: -4209.913727 | O115: -18399.02384 | P115: -19254.95849 | Q115: -51303.066
C116: =C115+1 -> 17 | D116: Communication Equipment | E116: 488 | F116: =E$388 -> -12784 | G116: -12145 | H116: -12145 | I116: -12510 | J116: -13739 | K116: -13739 | L116: -14937.9158 | M116: -15288.32907 | N116: -3839.691561 | O116: -15358.74937 | P116: -16610.95593 | Q116: -15405.9185
C117: =C116+1 -> 18 | D117: Automotive Equip | E117: 484 | F117: =E$409+E$598 -> -94569 | G117: -85489 | H117: -74467 | I117: -72148 | J117: -72271 | K117: -53491 | L117: 34195.54 | M117: -36237.97657 | N117: -5964.600533 | O117: -31633.308 | P117: -45088.88153 | Q117: -53343.80452
C118: =C117+1 -> 19 | D118: Automotive Equip - Heavy Equip | E118: 485 | F118: =E$619 -> 0 | G118: 0 | H118: 0 | I118: 0 | J118: 0 | K118: 0 | L118: 0 | M118: 0 | N118: 0 | O118: 0 | P118: 0 | Q118: 0
C119: 20 | D119: Subtotal | F119: =SUM(F111:F118) -> -441778 | G119: -311263 | H119: -304937 | I119: -305172 | J119: -314023 | K119: -259087 | L119: -87251.59997 | M119: -163742.9273 | N119: -43756.15232 | O119: -199431.2715 | P119: -212616.2877 | Q119: -262308.9276
C120: 21 | D120: Intangible Plant
C121: 22 | D121: Franchises | E121: 401 | F121: =E$577 -> -89359 | G121: -97130 | H121: -39399 | I121: -44091 | J121: -25921 | K121: -33330 | L121: -34806.17207 | M121: -36216.58699 | N121: -9149.622997 | O121: -37119.67273 | P121: -37646.04748 | Q121: -37646.04748
C122: 23 | D122: Subtotal | F122: =SUM(F121) -> -89359 | G122: -97130 | H122: -39399 | I122: -44091 | J122: -25921 | K122: -33330 | L122: -34806.17207 | M122: -36216.58699 | N122: -9149.622997 | O122: -37119.67273 | P122: -37646.04748 | Q122: -37646.04748
C123: 24 | D123: Contributions | E123: 499 | F123: =-Calculation!D$710 -> 0 | G123: =-Calculation!E$710 -> 0 | H123: =-Calculation!F$710 -> 0 | I123: =-Calculation!G$710 -> 0 | J123: =-Calculation!H$710 -> 0 | K123: =-Calculation!I$710 -> 0 | L123: =-Calculation!J$710 -> 0 | M123: =-Calculation!K$710 -> 0 | N123: =-Calculation!L$710 -> 73.3033455 | O123: =-Calculation!M$710 -> 2634.421823 | P123: =-Calculation!N$710 -> 19261.30692 | Q123: =-Calculation!O$710 -> 15746.28109
C124: 25 | D124: Grand Total | F124: =F108+F119+F122+F123 -> -1200085 | G124: -1111888.02 | H124: -1070019.02 | I124: -1093099.65 | J124: -1097553.65 | K124: -1062671.65 | L124: -1049839.489 | M124: -1201877.94 | N124: -280758.5215 | O124: -1151792.874 | P124: -1271333.484 | Q124: -1136086.354
C125: *includes Rental Equipment in years prior to 2016
C126: Check | F126: =Calculation!D$732-F$124 -> 0 | G126: =Calculation!E$732-G$124 -> 0 | H126: =Calculation!F$732-H$124 -> 0 | I126: =Calculation!G$732-I$124 -> 0 | J126: =Calculation!H$732-J$124 -> 0 | K126: =Calculation!I$732-K$124 -> 0 | L126: =Calculation!J$732-L$124 -> 0 | M126: =Calculation!K$732-M$124 -> 0 | N126: =Calculation!L$732-N$124 -> 0 | O126: =Calculation!M$732-O$124 -> 0 | P126: =Calculation!N$732-P$124 -> 0 | Q126: =Calculation!O$732-Q$124 -> 0
C128: Table 2.2.1.1-1
C129: Gross Asset Variances
C130: ($ thousands)
E131: A | F131: B | G131: C
D132: Description | E132: USoA | F132: 2019 Bridge vs 2018 Forecast | G132: 2020 Test vs 2019 Bridge
C133: 1 | D133: Distribution Plant
C134: =C133+1 -> 2 | D134: Meters | E134: 478 | F134: =INDEX(P$47:P$69,MATCH($D134,$D$47:$D$69,0),1)-INDEX(O$47:O$69,MATCH($D134,$D$47:$D$69,0),1) -> 255000 | G134: -740193.52
C135: 3 | D135: Meters - IGPC | E135: 478b | F135: 0 | G135: 0
C136: 4 | D136: Regulators | E136: 474 | F136: 71000 | G136: 73000
C137: 5 | D137: Measuring and Regulating Equip | E137: 477 | F137: 444000 | G137: 75000
C138: 6 | D138: Mains | E138: 475 | F138: 1340045.21 | G138: 574000
C139: 7 | D139: Ethanol Pipeline - IGPC Project | E139: 475b | F139: 1242800 | G139: 0
C140: 8 | D140: Plastic Service Lines | E140: 473 | F140: 151000 | G140: 172000
C141: 9 | D141: Subtotal | F141: =SUM(F134:F140) -> 3503845.21 | G141: =SUM(G134:G140) -> 153806.48
C142: 10 | D142: General Plant
C143: 11 | D143: Land | E143: 480 | F143: =INDEX(P$47:P$69,MATCH($D143,$D$47:$D$69,0),1)-INDEX(O$47:O$69,MATCH($D143,$D$47:$D$69,0),1) -> 51000 | G143: =INDEX(Q$47:Q$69,MATCH($D143,$D$47:$D$69,0),1)-INDEX(P$47:P$69,MATCH($D143,$D$47:$D$69,0),1) -> 0
C144: 12 | D144: Building | E144: 482 | F144: 31000 | G144: 31000
C145: 13 | D145: Furniture and Fixtures | E145: 483 | F145: 0 | G145: 0
C146: 14 | D146: Computer Hardware | E146: 490 | F146: 20000 | G146: 10000
C147: 15 | D147: Computer Software | E147: 491 | F147: 246601.3825 | G147: 26000
C148: 16 | D148: Machinery & Equipment* | E148: 486 | F148: 15000 | G148: 16000
C149: 17 | D149: Communication Equipment | E149: 488 | F149: 32398.61751 | G149: 0
C150: 18 | D150: Automotive Equip | E150: 484 | F150: 108000 | G150: 47000
C151: 19 | D151: Automotive Equip - Heavy Equip | E151: 485 | F151: 0 | G151: 0
C152: 20 | D152: Subtotal | F152: =SUM(F143:F151) -> 504000 | G152: =SUM(G143:G151) -> 130000
C153: 21 | D153: Intangible Plant
C154: 22 | D154: Franchises | E154: 401 | F154: =INDEX(P$47:P$69,MATCH($D154,$D$47:$D$69,0),1)-INDEX(O$47:O$69,MATCH($D154,$D$47:$D$69,0),1) -> 0 | G154: =INDEX(Q$47:Q$69,MATCH($D154,$D$47:$D$69,0),1)-INDEX(P$47:P$69,MATCH($D154,$D$47:$D$69,0),1) -> 0
C155: 23 | D155: Subtotal | F155: =SUM(F154) -> 0 | G155: =SUM(G154) -> 0
C156: 24 | D156: Contributions | E156: 499 | F156: =INDEX(P$47:P$69,MATCH($D156,$D$47:$D$69,0),1)-INDEX(O$47:O$69,MATCH($D156,$D$47:$D$69,0),1) -> -598000 | G156: =INDEX(Q$47:Q$69,MATCH($D156,$D$47:$D$69,0),1)-INDEX(P$47:P$69,MATCH($D156,$D$47:$D$69,0),1) -> -72000
C157: 25 | D157: Grand Total | F157: =F141+F152+F155+F156 -> 3409845.21 | G157: =G141+G152+G155+G156 -> 211806.48
C159: Check | F159: =F157-P70+O70 -> 0 | G159: =G157-Q70+P70 -> 0
C161: Table 2.2.2-2
C162: 2020 Capital Additions Net of Contribution by Asset Group
C163: ($)
E164: A
D165: Asset Group | E165: 2020 Test
C166: 1 | D166: Land | E166: =Calculation!$S1491 -> 0
C167: 2 | D167: Structures & Improvements - General Plant | E167: =Calculation!$S1492 -> 31000
C168: 3 | D168: Furnishing / Office Equipment | E168: =Calculation!$S1493 -> 0
C169: 4 | D169: Computer Equipment | E169: =Calculation!$S1494 -> 10000
C170: 5 | D170: Software - Acquired | E170: =Calculation!$S1495 -> 26000
C171: 6 | D171: Tools and Work Equipment | E171: =Calculation!$S1496 -> 16000
C172: 7 | D172: Communications Equipment - Hardware | E172: =Calculation!$S1497 -> 0
C173: 8 | D173: Vehicles - Transportation Equipment (ENGLP) | E173: =Calculation!$S1498 -> 47000
C174: 9 | D174: Vehicle - Heavy Work Equipment | E174: =Calculation!$S1499 -> 0
C175: 10 | D175: Meters - Residential | E175: =Calculation!$S1500 -> 125658
C176: 11 | D176: Meters - Commercial | E176: =Calculation!$S1501 -> 262342
C177: 12 | D177: Meter - IGPC New | E177: =Calculation!$S1502 -> 0
C178: 13 | D178: Regulators - New | E178: =Calculation!$S1503 -> 73000
C179: 14 | D179: Measuring and Regulating Equipment | E179: =Calculation!$S1504 -> 75000
C180: 15 | D180: Mains - Plastic (Distribution Plant) | E180: =Calculation!$S1505 -> 574000
C181: 16 | D181: Mains - Metallic (Distribution Plant) | E181: =Calculation!$S1506 -> 0
C182: 17 | D182: Mains - Metallic (IGPC) | E182: =Calculation!$S1507 -> 0
C183: 18 | D183: Services - Plastic | E183: =Calculation!$S1508 -> 100000
C184: 19 | D184: Franchises & Consents - Legacy | E184: =Calculation!$S1509 -> 0
C185: 20 | D185: Franchises & Consents | E185: =Calculation!$S1510 -> 0
C186: 21 | D186: Vehicles - Legacy New | E186: =Calculation!$S1511 -> 0
C187: 22 | D187: Regulators - IGPC Station New | E187: =Calculation!$S1512 -> 0
C188: 23 | D188: Total | E188: =SUM($E$166:$E$187) -> 1340000
C190: Check | E190: =Calculation!S66+$E$188 -> 0
C192: Table 2.2.2.1-2
C193: 2020 Capital Additions by USoA
C194: ($)
E195: A | F195: B
D196: Description | E196: USoA | F196: 2020
D197: Distribution Plant
C198: 1 | D198: Meters | E198: 478 | F198: =P425 -> 388000
C199: 2 | D199: Meters - IGPC | E199: 478b | F199: =P446 -> 0
C200: 3 | D200: Regulators | E200: 474 | F200: =P635 -> 73000
C201: 4 | D201: Measuring and Regulating Equipment | E201: 477 | F201: =P467 -> 75000
C202: 5 | D202: Mains | E202: 475 | F202: =P509+P488 -> 574000
C203: 6 | D203: Ethanol Pipeline - IGPC Project | E203: 475b | F203: =P530 -> 0
C204: 7 | D204: Plastic Service Lines | E204: 473 | F204: =P551 -> 172000
C205: 8 | D205: Subtotal | F205: =SUM(F198:F204) -> 1282000
D206: General Plant
C207: 9 | D207: Land | E207: 480 | F207: =P257 -> 0
C208: 10 | D208: Building | E208: 482 | F208: =P278 -> 31000
C209: 11 | D209: Furniture and Fixtures | E209: 483 | F209: =P299 -> 0
C210: 12 | D210: Computer Hardware | E210: 490 | F210: =P320 -> 10000
C211: 13 | D211: Computer Software | E211: 491 | F211: =P341 -> 26000
... 1118 more rows

Sheet Exhibit 3
A1: Exhibit 3 Tab 1 Schedule 1
C3: Table 3.1-1
C4: Summary - Distribution Revenue Under Current Distribution Rates ($'s)
D5: A | E5: B | F5: C | G5: D
E6: Forecast | F6: Bridge | G6: Test
D7: Rate Class | E7: 2018 | F7: 2019 | G7: 2020
C8: 1 | D8: =Input!$C$21 -> Rate 1 - Residential | E8: =E41 -> 4120249.286 | F8: =F41 -> 4393422.21 | G8: =G41 -> 4364395.673
C9: 2 | D9: =Input!$C$22 -> Rate 1 - Commercial | E9: =E64 -> 759481.6462 | F9: =F64 -> 761569.3688 | G9: =G64 -> 747422.0168
C10: 3 | D10: =Input!$C$23 -> Rate 1 - Industrial | E10: =E87 -> 239819.8661 | F10: =F87 -> 235380.1374 | G10: =G87 -> 228586.6921
C11: 4 | D11: =Input!$C$24 -> Rate 2 | E11: =E128 -> 167257.1489 | F11: =F128 -> 170709.039 | G11: =G128 -> 159418.4147
C12: 5 | D12: =Input!$C$25 -> Rate 3 | E12: =E150 -> 176124.641 | F12: =F150 -> 183781.3569 | G12: =G150 -> 173855.7923
C13: 6 | D13: =Input!$C$26 -> Rate 4 | E13: =E185 -> 125020.2312 | F13: =F185 -> 138255.5415 | G13: =G185 -> 137288.3754
C14: 7 | D14: =Input!$C$27 -> Rate 5 | E14: =E204 -> 57214.71691 | F14: =F204 -> 61999.49017 | G14: =G204 -> 60012.24363
C15: 8 | D15: =Input!$C$28 -> Rate 6 | E15: =F225+E225 -> 1589704.304 | F15: =H225 -> 1133887.44 | G15: =I225 -> 1133887.44
C16: 9 | D16: Total Revenue | E16: =SUM(E8:E15) -> 7234871.84 | F16: =SUM(F8:F15) -> 7079004.583 | G16: =SUM(G8:G15) -> 7004866.648
C18: Check | E18: =ABS(E16-E41-E64-E87-E128-E150-E185-E204-F225-E225) -> 4.656612873e-10 | F18: =F16-F41-F64-F87-F128-F150-F185-F204-H225 -> 0 | G18: =G16-G41-G64-G87-G128-G150-G185-G204-I225 -> 0
C19: Check | E19: =Calculation!Q$15-E16 -> 0 | F19: =Calculation!R$15-F16 -> 0
C21: Table 3.1-2
C22: =Input!$C$21 -> Rate 1 - Residential
D23: A | E23: B | F23: C | G23: D
E24: Forecast | F24: Bridge | G24: Test
E25: 2018 | F25: 2019 | G25: 2020
C26: 1 | D26: Billing Parameters
C27: 2 | D27: Connections | E27: =SUMIF(Input!$C$174:$C$181,$C22,Input!Q$174:Q$181) -> 8363.441772 | F27: =SUMIF(Input!$C$174:$C$181,$C22,Input!R$174:R$181) -> 8616.420397 | G27: =SUMIF(Input!$C$174:$C$181,$C22,Input!S$174:S$181) -> 8877
C28: 3 | D28: Volume (m3's)
C29: =C28+1 -> 4 | D29: Tier 1 (First 1,000 m3 / mo.) | E29: =SUMIF(Input!$F$241:$F$250,$C22,Input!Q$241:Q$250) -> 16726305.93 | F29: =SUMIF(Input!$F$241:$F$250,$C22,Input!R$241:R$250) -> 16450932.51 | G29: =SUMIF(Input!$F$241:$F$250,$C22,Input!S$241:S$250) -> 16935900.86
C30: 4 | D30: Tier 2 (Over 1,000 m3 / mo.) | E30: =SUMIF(Input!$F$253:$F$262,$C22,Input!Q$253:Q$262) -> 110050.7679 | F30: =SUMIF(Input!$F$253:$F$262,$C22,Input!R$253:R$262) -> 104698.5664 | G30: =SUMIF(Input!$F$253:$F$262,$C22,Input!S$253:S$262) -> 107775.6862
C31: 5 | D31: Rates
C32: 5 | D32: Fixed Monthly Rate | E32: 13.5 | F32: =SUMIF(Input!$F$1023:$F$1032,$C22,Input!R$1023:R$1032) -> 15.5 | G32: =F32 -> 15.5
C33: 6 | D33: Tier 1 Rate (first 1,000 m3's) | E33: 16.2312 | F33: =SUMIF(Input!$F$1035:$F$1044,$C22,Input!R$1035:R$1044)*100 -> 15.9486 | G33: =F33 -> 15.9486
C34: 6 | D34: Tier 2 Rate (> 1,000 m3's) | E34: 10.9099 | F34: =SUMIF(Input!$F$1047:$F$1056,$C22,Input!R$1047:R$1056)*100 -> 11.3519 | G34: =F34 -> 11.3519
C35: 7 | D35: Revenue*
C36: 7 | D36: Fixed Monthly Rate | E36: =(E32*E27*0.75+F32*E27*0.25)*Input!$E$12 -> 1405058.218 | F36: =F32*F27*Input!$E$12 -> 1602654.194 | G36: =G32*G27*Input!$E$12 -> 1651122
C37: 8 | D37: Tier 1 Rate (first 1,000 m3's) | E37: =(0.75*$E33*E29+0.25*F33*E29)/100 -> 2703063.033 | F37: =F33*F29/100 -> 2623693.423 | G37: =G33*G29/100 -> 2701039.085
C38: 9 | D38: Tier 2 Rate (> 1,000 m3's) | E38: =(0.75*$E34*E30+0.25*F34*E30)/100 -> 12128.03482 | F38: =F34*F30/100 -> 11885.27656 | G38: =G34*G30/100 -> 12234.58812
C39: 10 | D39: Distribution Revenue Excluding IRM Rebalancing Rider | E39: =SUM(E36:E38) -> 4120249.286 | F39: =SUM(F36:F38) -> 4238232.893 | G39: =SUM(G36:G38) -> 4364395.673
C40: 11 | D40: IRM Rebalancing Rider | F40: =Calculation!R538 -> 155189.3162
C41: 12 | D41: Distribution Revenue Including IRM Rebalancing Rider | E41: =E39+E40 -> 4120249.286 | F41: =F39+F40 -> 4393422.21 | G41: =G39+G40 -> 4364395.673
C42: * 2018 revenues assume rates from EB-2018-0235 effective October 1, 2018
C44: Table 3.1-3
C45: =Input!$C$22 -> Rate 1 - Commercial
D46: A | E46: B | F46: C | G46: D
E47: Forecast | F47: Bridge | G47: Test
E48: 2018 | F48: 2019 | G48: 2020
C49: 1 | D49: Billing Parameters
C50: 2 | D50: Connections | E50: =SUMIF(Input!$C$174:$C$181,$C45,Input!Q$174:Q$181) -> 476.7715986 | F50: =SUMIF(Input!$C$174:$C$181,$C45,Input!R$174:R$181) -> 485.2717626 | G50: =SUMIF(Input!$C$174:$C$181,$C45,Input!S$174:S$181) -> 494
C51: 3 | D51: Volume (m3's)
C52: =C51+1 -> 4 | D52: Tier 1 (First 1,000 m3 / mo.) | E52: =SUMIF(Input!$F$241:$F$250,$C45,Input!Q$241:Q$250) -> 2366758.74 | F52: =SUMIF(Input!$F$241:$F$250,$C45,Input!R$241:R$250) -> 2240849.181 | G52: =SUMIF(Input!$F$241:$F$250,$C45,Input!S$241:S$250) -> 2279404.649
C53: 4 | D53: Tier 2 (Over 1,000 m3 / mo.) | E53: =SUMIF(Input!$F$253:$F$262,$C45,Input!Q$253:Q$262) -> 2694119.887 | F53: =SUMIF(Input!$F$253:$F$262,$C45,Input!R$253:R$262) -> 2528420.382 | G53: =SUMIF(Input!$F$253:$F$262,$C45,Input!S$253:S$262) -> 2572299.675
C54: 5 | D54: Rates
C55: 5 | D55: Fixed Monthly Rate | E55: 13.5 | F55: =SUMIF(Input!$F$1023:$F$1032,$C45,Input!R$1023:R$1032) -> 15.5 | G55: =F55 -> 15.5
C56: 6 | D56: Tier 1 Rate (first 1,000 m3's) | E56: 16.2312 | F56: =SUMIF(Input!$F$1035:$F$1044,$C45,Input!R$1035:R$1044)*100 -> 15.9486 | G56: =F56 -> 15.9486
C57: 6 | D57: Tier 2 Rate (> 1,000 m3's) | E57: 10.9099 | F57: =SUMIF(Input!$F$1047:$F$1056,$C45,Input!R$1047:R$1056)*100 -> 11.3519 | G57: =F57 -> 11.3519
C58: 7 | D58: Revenue*
C59: 7 | D59: Fixed Monthly Rate | E59: =(E55*E50*0.75+F55*E50*0.25)*Input!$E$12 -> 80097.62857 | F59: =F55*F50*Input!$E$12 -> 90260.54785 | G59: =G55*G50*Input!$E$12 -> 91884
C60: 8 | D60: Tier 1 Rate (first 1,000 m3's) | E60: =(0.75*$E56*E52+0.25*F56*E52)/100 -> 382481.2295 | F60: =F56*F52/100 -> 357384.0724 | G60: =G56*G52/100 -> 363533.1299
C61: 9 | D61: Tier 2 Rate (> 1,000 m3's) | E61: =(0.75*$E57*E53+0.25*F57*E53)/100 -> 296902.7881 | F61: =F57*F53/100 -> 287023.7534 | G61: =G57*G53/100 -> 292004.8869
C62: 10 | D62: Total Revenue | E62: =SUM(E59:E61) -> 759481.6462 | F62: =SUM(F59:F61) -> 734668.3736 | G62: =SUM(G59:G61) -> 747422.0168
C63: 11 | D63: IRM Rebalancing Rider | F63: =Calculation!R539 -> 26900.99515
C64: 12 | D64: Distribution Revenue Including IRM Rebalancing Rider | E64: =E62+E63 -> 759481.6462 | F64: =F62+F63 -> 761569.3688 | G64: =G62+G63 -> 747422.0168
C65: * 2018 revenues assume rates from EB-2018-0235 effective October 1, 2018
C67: Table 3.1-4
C68: =Input!$C$23 -> Rate 1 - Industrial
D69: A | E69: B | F69: C | G69: D
E70: Forecast | F70: Bridge | G70: Test
E71: 2018 | F71: 2019 | G71: 2020
C72: 1 | D72: Billing Parameters
C73: 2 | D73: Connections | E73: =SUMIF(Input!$C$174:$C$181,$C68,Input!Q$174:Q$181) -> 66.58333333 | F73: =SUMIF(Input!$C$174:$C$181,$C68,Input!R$174:R$181) -> 67.4882642 | G73: =SUMIF(Input!$C$174:$C$181,$C68,Input!S$174:S$181) -> 68
C74: 3 | D74: Volume (m3's)
C75: =C74+1 -> 4 | D75: Tier 1 (First 1,000 m3 / mo.) | E75: =SUMIF(Input!$F$241:$F$250,$C68,Input!Q$241:Q$250) -> 430916.2563 | F75: =SUMIF(Input!$F$241:$F$250,$C68,Input!R$241:R$250) -> 390053.3261 | G75: =SUMIF(Input!$F$241:$F$250,$C68,Input!S$241:S$250) -> 392686.8231
C76: 4 | D76: Tier 2 (Over 1,000 m3 / mo.) | E76: =SUMIF(Input!$F$253:$F$262,$C68,Input!Q$253:Q$262) -> 1442737.369 | F76: =SUMIF(Input!$F$253:$F$262,$C68,Input!R$253:R$262) -> 1341668.955 | G76: =SUMIF(Input!$F$253:$F$262,$C68,Input!S$253:S$262) -> 1350528.47
C77: 5 | D77: Rates
C78: 5 | D78: Fixed Monthly Rate | E78: 13.5 | F78: =SUMIF(Input!$F$1023:$F$1032,$C68,Input!R$1023:R$1032) -> 15.5 | G78: =F78 -> 15.5
C79: 6 | D79: Tier 1 Rate (first 1,000 m3's) | E79: 16.2312 | F79: =SUMIF(Input!$F$1035:$F$1044,$C68,Input!R$1035:R$1044)*100 -> 15.9486 | G79: =F79 -> 15.9486
C80: 6 | D80: Tier 2 Rate (> 1,000 m3's) | E80: 10.9099 | F80: =SUMIF(Input!$F$1047:$F$1056,$C68,Input!R$1047:R$1056)*100 -> 11.3519 | G80: =F80 -> 11.3519
C81: 7 | D81: Revenue*
C82: 7 | D82: Fixed Monthly Rate | E82: =(E78*E73*0.75+F78*E73*0.25)*Input!$E$12 -> 11186 | F82: =F78*F73*Input!$E$12 -> 12552.81714 | G82: =G78*G73*Input!$E$12 -> 12648
C83: 8 | D83: Tier 1 Rate (first 1,000 m3's) | E83: =(0.75*$E79*E75+0.25*F79*E75)/100 -> 69638.43706 | F83: =F79*F75/100 -> 62208.04477 | G83: =G79*G75/100 -> 62628.05067
C84: 9 | D84: Tier 2 Rate (> 1,000 m3's) | E84: =(0.75*$E80*E76+0.25*F80*E76)/100 -> 158995.429 | F84: =F80*F76/100 -> 152304.9181 | G84: =G80*G76/100 -> 153310.6414
C85: 10 | D85: Total Revenue | E85: =SUM(E82:E84) -> 239819.8661 | F85: =SUM(F82:F84) -> 227065.78 | G85: =SUM(G82:G84) -> 228586.6921
C86: 11 | D86: IRM Rebalancing Rider | F86: =Calculation!R673 -> 8314.357424
C87: 12 | D87: Distribution Revenue Including IRM Rebalancing Rider | E87: =E85+E86 -> 239819.8661 | F87: =F85+F86 -> 235380.1374 | G87: =G85+G86 -> 228586.6921
C88: * 2018 revenues assume rates from EB-2018-0235 effective October 1, 2018
C90: Table 3.1-5
C91: =Input!$C$24 -> Rate 2
D92: A | E92: B | F92: C | G92: D
E93: Forecast | F93: Bridge | G93: Test
E94: 2018 | F94: 2019 | G94: 2020
C95: 1 | D95: Billing Parameters
C96: 2 | D96: Connections | E96: =SUMIF(Input!$C$174:$C$181,$C91,Input!Q$174:Q$181) -> 53.29474416 | F96: =SUMIF(Input!$C$174:$C$181,$C91,Input!R$174:R$181) -> 51.64995082 | G96: =SUMIF(Input!$C$174:$C$181,$C91,Input!S$174:S$181) -> 50
C97: 3 | D97: Volume (m3's)
C98: 4 | D98: April - October
C99: 5 | D99: Tier 1 (First 1,000 m3 / mo.) | E99: =Input!Q244 -> 90336.41641 | F99: =Input!R244 -> 88065.25839 | G99: =Input!S244 -> 85252.02541
C100: 6 | D100: Tier 2 (Next 24,000 m3 / mo.) | E100: =Input!Q256 -> 743345.6158 | F100: =Input!R256 -> 735595.1913 | G100: =Input!S256 -> 712096.7006
C101: 7 | D101: Tier 3 (Over 25,000 m3 / mo.) | E101: =Input!Q268 -> 173720.889 | F101: =Input!R268 -> 140528.7744 | G101: =Input!S268 -> 136039.6013
C102: 8 | D102: November - March
C103: 9 | D103: Tier 1 (First 1,000 m3 / mo.) | E103: =Input!Q245 -> 59372.4176 | F103: =Input!R245 -> 68343.07964 | G103: =Input!S245 -> 66159.86904
C104: 10 | D104: Tier 2 (Next 24,000 m3 / mo.) | E104: =Input!Q257 -> 283789.9704 | F104: =Input!R257 -> 272144.514 | G104: =Input!S257 -> 263450.8936
C105: 11 | D105: Tier 3 (Over 25,000 m3 / mo.) | E105: =Input!Q269 -> 31379.74793 | F105: =Input!R269 -> 17988.13031 | G105: =Input!S269 -> 17413.50187
C106: 12 | D106: Rates
C107: 13 | D107: Fixed Monthly Rate | E107: 15 | F107: =Input!R$1026 -> 17.25 | G107: =F107 -> 17.25
C108: 14 | D108: April - October
C109: 15 | D109: Tier 1 (First 1,000 m3 / mo.) | E109: 15.8212 | F109: =Input!R$1038*100 -> 17.2765 | G109: =F109 -> 17.2765
C110: 16 | D110: Tier 2 (Next 24,000 m3 / mo.) | E110: 9.4826 | F110: =Input!R$1050*100 -> 9.4826 | G110: =F110 -> 9.4826
C111: 17 | D111: Tier 3 (Over 25,000 m3 / mo.) | E111: 6.1698 | F111: =Input!R$1062*100 -> 6.1698 | G111: =F111 -> 6.1698
C112: 18 | D112: November - March
C113: 19 | D113: Tier 1 (First 1,000 m3 / mo.) | E113: 19.9424 | F113: =Input!R$1039*100 -> 21.7767 | G113: =F113 -> 21.7767
C114: 20 | D114: Tier 2 (Next 24,000 m3 / mo.) | E114: 15.696 | F114: =Input!R$1051*100 -> 15.696 | G114: =F114 -> 15.696
C115: 21 | D115: Tier 3 (Over 25,000 m3 / mo.) | E115: 15.2899 | F115: =Input!R$1063*100 -> 15.2899 | G115: =F115 -> 15.2899
C116: 22 | D116: Revenue*
C117: 23 | D117: Fixed Monthly Rate | E117: =((0.75)*$E107*E96+(0.25)*F107*E96)*Input!$E$12 -> 9952.793471 | F117: =$F107*F96*Input!$E$12 -> 10691.53982 | G117: =$F107*G96*Input!$E$12 -> 10350
C118: 24 | D118: April - October
C119: 25 | D119: Tier 1 (First 1,000 m3 / mo.) | E119: =(E99*E109*(6/7)+F109*E99*(1/7))/100 -> 14480.11452 | F119: =$F109*F99/100 -> 15214.59437 | G119: 14728.56617
C120: 26 | D120: Tier 2 (Next 24,000 m3 / mo.) | E120: =(E100*E110*(6/7)+F110*E100*(1/7))/100 -> 70488.49137 | F120: 69753.54961 | G120: 67525.28173
C121: 27 | D121: Tier 3 (Over 25,000 m3 / mo.) | E121: =(E101*E111*(6/7)+F111*E101*(1/7))/100 -> 10718.23141 | F121: 8670.34432 | G121: 8393.371323
C122: 28 | D122: November - March
C123: 29 | D123: Tier 1 (First 1,000 m3 / mo.) | E123: =(E103*E113*(3/5)+F113*E103*(2/5))/100 -> 12275.91231 | F123: =$F113*F103/100 -> 14882.86742 | G123: 14407.4362
C124: 30 | D124: Tier 2 (Next 24,000 m3 / mo.) | E124: =(E104*E114*(3/5)+F114*E104*(2/5))/100 -> 44543.67376 | F124: 42715.80291 | G124: 41351.25226
C125: 31 | D125: Tier 3 (Over 25,000 m3 / mo.) | E125: =(E105*E115*(3/5)+F115*E105*(2/5))/100 -> 4797.932079 | F125: 2750.367136 | G125: 2662.507023
C126: 32 | D126: Total Revenue | E126: =SUM(E117:E125) -> 167257.1489 | F126: =SUM(F117:F125) -> 164679.0656 | G126: =SUM(G117:G125) -> 159418.4147
C127: 33 | D127: IRM Rebalancing Rider | F127: =Calculation!R541+Calculation!R542 -> 6029.973392
C128: 34 | D128: Distribution Revenue Including IRM Rebalancing Rider | E128: =E126+E127 -> 167257.1489 | F128: =F126+F127 -> 170709.039 | G128: =G126+G127 -> 159418.4147
C129: * 2018 revenues assume rates from EB-2018-0235 effective October 1, 2018
C131: Table 3.1-6
C132: =Input!$C$25 -> Rate 3
D133: A | E133: B | F133: C | G133: D
E134: Forecast | F134: Bridge | G134: Test
E135: 2018 | F135: 2019 | G135: 2020
C136: 1 | D136: Billing Parameters
C137: 2 | D137: Connections | E137: =SUMIF(Input!$C$174:$C$181,$C132,Input!Q$174:Q$181) -> 6 | F137: =SUMIF(Input!$C$174:$C$181,$C132,Input!R$174:R$181) -> 6 | G137: =SUMIF(Input!$C$174:$C$181,$C132,Input!S$174:S$181) -> 6
C138: 3 | D138: Firm Demand | E138: =Input!Q334 -> 299630.6667 | F138: =Input!R334 -> 299630.6667 | G138: =Input!S334 -> 299630.6667
C139: 4 | D139: Firm Delivery (volume - m3's) | E139: =Input!Q246+Input!Q258+Input!Q270 -> 1893687.071 | F139: =Input!R246+Input!R258+Input!R270 -> 1801305.331 | G139: =Input!S246+Input!S258+Input!S270 -> 1721683.834
C140: 5 | D140: Rates
C141: 6 | D141: Fixed Monthly Rate | E141: 150 | F141: =Input!R$1028 -> 172.5 | G141: =F141 -> 172.5
C142: 7 | D142: Firm Demand | E142: 29.0974 | F142: =Input!R$1076*100 -> 29.0974 | G142: =F142 -> 29.0974
C143: 8 | D143: Firm Delivery | E143: 4.0357 | F143: =Input!R$1040*100 -> 4.3127 | G143: =F143 -> 4.3127
C144: 9 | D144: Revenue*
C145: 10 | D145: Fixed Monthly Rate | E145: =(E137*E141*0.75+F141*E137*0.25)*12 -> 11205 | F145: =$F141*F137*12 -> 12420 | G145: =$F141*G137*12 -> 12420
C146: 11 | D146: Firm Demand | E146: =(E138*E142*0.75+F142*E138*0.25)/100 -> 87184.7336 | F146: =$F142*F138/100 -> 87184.7336 | G146: =$F142*G138/100 -> 87184.7336
C147: 12 | D147: Firm Delivery | E147: =(E139*E143*0.75+F143*E139*0.25)/100 -> 77734.90741 | F147: =$F143*F139/100 -> 77684.89501 | G147: =$F143*G139/100 -> 74251.05872
C148: 13 | D148: Total Revenue | E148: =SUM(E145:E147) -> 176124.641 | F148: =SUM(F145:F147) -> 177289.6286 | G148: =SUM(G145:G147) -> 173855.7923
C149: 14 | D149: IRM Rebalancing Rider | F149: =Calculation!R543 -> 6491.728256
C150: 15 | D150: Distribution Revenue Including IRM Rebalancing Rider | E150: =E148+E149 -> 176124.641 | F150: =F148+F149 -> 183781.3569 | G150: =G148+G149 -> 173855.7923
C151: * 2018 revenues assume rates from EB-2018-0235 effective October 1, 2018
C153: Table 3.1-7
C154: =Input!$C$26 -> Rate 4
D155: A | E155: B | F155: C | G155: D
E156: Forecast | F156: Bridge | G156: Test
E157: 2018 | F157: 2019 | G157: 2020
C158: 1 | D158: Billing Parameters
C159: 2 | D159: Connections | E159: =SUMIF(Input!$C$174:$C$181,$C154,Input!Q$174:Q$181) -> 36 | F159: =SUMIF(Input!$C$174:$C$181,$C154,Input!R$174:R$181) -> 36.9159675 | G159: =SUMIF(Input!$C$174:$C$181,$C154,Input!S$174:S$181) -> 38
C160: 3 | D160: Volumes (m3's)
C161: 4 | D161: April - December
C162: 5 | D162: Block 1 (First 1,000 m3 / mo.) | E162: =Input!Q247 -> 94083.99745 | F162: =Input!R247 -> 91612.23221 | G162: =Input!S247 -> 94302.41328
C163: 6 | D163: Block 2 (Over 1,000 m3 / mo.) | E163: =Input!Q259 -> 942312.9555 | F163: =Input!R259 -> 1003585.176 | G163: =Input!S259 -> 1033055.321
C164: 7 | D164: January - March
C165: 8 | D165: Block 1 (First 1,000 m3 / mo.) | E165: =Input!Q248 -> 14891.59096 | F165: =Input!R248 -> 17489.67001 | G165: =Input!S248 -> 18003.25185
C166: 9 | D166: Block 2 (Over 1,000 m3 / mo.) | E166: =Input!Q260 -> 5009.737731 | F166: =Input!R260 -> 3540.769656 | G166: =Input!S260 -> 3644.743888
C167: 10 | D167: Rates
C168: 11 | D168: Fixed Monthly Rate | E168: 15 | F168: =Input!R$1029 -> 17.25 | G168: =F168 -> 17.25
C169: 12 | D169: April - December
C170: 13 | D170: Block 1 (First 1,000 m3 / mo.) | E170: 15.8149 | F170: =Input!R$1041*100 -> 17.1487 | G170: =F170 -> 17.1487
C171: 14 | D171: Block 2 (Over 1,000 m3 / mo.) | E171: 10.5218 | F171: =Input!R1053*100 -> 10.5218 | G171: =F171 -> 10.5218
C172: 15 | D172: January - March
C173: 16 | D173: Block 1 (First 1,000 m3 / mo.) | E173: 20.1755 | F173: =Input!R$1042*100 -> 21.877 | G173: =F173 -> 21.877
C174: 17 | D174: Block 2 (Over 1,000 m3 / mo.) | E174: 16.9052 | F174: =Input!R$1054*100 -> 16.9052 | G174: =F174 -> 16.9052
C175: 18 | D175: Revenue*
C176: 19 | D176: Fixed Monthly Rate | E176: =(E159*E168*0.75+F168*E159*0.25)*12 -> 6723 | F176: =$F168*F159*12 -> 7641.605273 | G176: =$F168*G159*12 -> 7866
C177: 20 | D177: April - December
C178: 21 | D178: Block 1 (First 1,000 m3 / mo.) | E178: =(E162*E170*(6/9)+F170*E162*(3/9))/100 -> 15297.58757 | F178: =$F170*F162/100 -> 15710.30686 | G178: =$F170*G162/100 -> 16171.63795
C179: 22 | D179: Block 2 (Over 1,000 m3 / mo.) | E179: =(E163*E171*(6/9)+F171*E163*(3/9))/100 -> 99148.28455 | F179: =$F171*F163/100 -> 105595.225 | G179: =$F171*G163/100 -> 108696.0148
C180: 23 | D180: January - March
C181: 24 | D181: Block 1 (First 1,000 m3 / mo.) | E181: =(E165*E173)/100 -> 3004.452934 | F181: =$F173*F165/100 -> 3826.215108 | G181: =$F173*G165/100 -> 3938.571408
C182: 25 | D182: Block 2 (Over 1,000 m3 / mo.) | E182: =(E166*E174)/100 -> 846.9061828 | F182: =$F174*F166/100 -> 598.5741919 | G182: =$F174*G166/100 -> 616.1512438
C183: 26 | D183: Total Revenue | E183: =SUM(E176:E182) -> 125020.2312 | F183: =SUM(F176:F182) -> 133371.9264 | G183: =SUM(G176:G182) -> 137288.3754
C184: 27 | D184: IRM Rebalancing Rider | F184: =Calculation!R544+Calculation!R545 -> 4883.615077
C185: 28 | D185: Distribution Revenue Including IRM Rebalancing Rider | E185: =E183+E184 -> 125020.2312 | F185: =F183+F184 -> 138255.5415 | G185: =G183+G184 -> 137288.3754
C186: * 2018 revenues assume rates from EB-2018-0235 effective October 1, 2018
C188: Table 3.1-8
C189: =Input!$C$27 -> Rate 5
D190: A | E190: B | F190: C | G190: D
E191: Forecast | F191: Bridge | G191: Test
E192: 2018 | F192: 2019 | G192: 2020
C193: 1 | D193: Billing Parameters
C194: 2 | D194: Connections | E194: =SUMIF(Input!$C$174:$C$181,$C189,Input!Q$174:Q$181) -> 4 | F194: =SUMIF(Input!$C$174:$C$181,$C189,Input!R$174:R$181) -> 3.902044448 | G194: =SUMIF(Input!$C$174:$C$181,$C189,Input!S$174:S$181) -> 4
C195: 3 | D195: Firm Delivery (volume - m3's) | E195: =Input!Q249 -> 673249.3257 | F195: =Input!R249 -> 685747.9777 | G195: =Input!S249 -> 685747.9777
C196: 4 | D196: Rates
C197: 5 | D197: Fixed Monthly Rate | E197: 150 | F197: =Input!R$1031 -> 172.5 | G197: =F197 -> 172.5
C198: 6 | D198: Firm Delivery | E198: =Input!Q1043*100 -> 7.388751093 | F198: =Input!R$1043*100 -> 7.543914866 | G198: =F198 -> 7.543914866
C199: 7 | D199: Revenue*
C200: 8 | D200: Fixed Monthly Rate | E200: =(0.75*E194*E197+0.25*F197*E194)*12 -> 7470 | F200: =$F197*F194*12 -> 8077.232007 | G200: =G197*G194*12 -> 8280
C201: 9 | D201: Firm Delivery | E201: =$E198*E195/100 -> 49744.71691 | F201: =$F198*F195/100 -> 51732.24363 | G201: =G198*G195/100 -> 51732.24363
C202: 10 | D202: Total Revenue | E202: =SUM(E200:E201) -> 57214.71691 | F202: =SUM(F200:F201) -> 59809.47564 | G202: =SUM(G200:G201) -> 60012.24363
C203: 11 | D203: IRM Rebalancing Rider | F203: =Calculation!R546 -> 2190.014532
C204: 12 | D204: Distribution Revenue Including IRM Rebalancing Rider | E204: =E202+E203 -> 57214.71691 | F204: =F202+F203 -> 61999.49017 | G204: =G202+G203 -> 60012.24363
C205: * 2018 revenues assume rates from EB-2018-0235 effective October 1, 2018
C207: Table 3.1-9
C208: =Input!$C$28 -> Rate 6
D209: A | E209: B | F209: C | G209: D | H209: E | I209: F
E210: Forecast | F210: Forecast | G210: Forecast | H210: Bridge | I210: Test
... 242 more rows

Sheet Exhibit 4
A1: Exhibit 4 Tab 1 Schedule 1
D3: =Input!$Q$6 -> 2018
C5: Table 4.1-6
C6: Forecasted Commodity and Transportation Costs in 2018
E7: A | F7: B | G7: C
D8: Gas Commodity | E8: m3 | F8: $ | G8: cent / m3
C9: 1 | D9: Enbridge Gas | E9: =INDEX(Input!$J$403:$W$403,1,MATCH($D3,Input!$J$6:$W$6,0)) -> 25118971.41 | F9: =Input!Q423 -> 4031695.387 | G9: =F9/E9*100 -> 16.0504
C10: 2 | D10: Local Production A | E10: =INDEX(Input!$J$404:$W$404,1,MATCH($D3,Input!$J$6:$W$6,0)) -> 1000000 | F10: =Input!Q424 -> 160504 | G10: =F10/E10*100 -> 16.0504
C11: 3 | D11: Local Production B | E11: =INDEX(Input!$J$405:$W$405,1,MATCH($D3,Input!$J$6:$W$6,0)) -> 657416.5667 | F11: =Input!Q425 -> 105517.9886 | G11: =F11/E11*100 -> 16.0504
C12: 5 | D12: Total Gas Commodity Cost | E12: =SUM(E9:E11) -> 26776387.97 | F12: =SUM(F9:F11) -> 4297717.375 | G12: =F12/E12*100 -> 16.0504
C13: 6 | D13: Unaccounted For Gas | E13: 0 | F13: =E13*G13 -> 0 | G13: 0
C14: 7 | D14: Total Gas Transportation Cost | E14: =Input!$Q$441+'Exhibit 3'!$F$215 -> 43169006.5 | F14: =-Input!$Q$460 -> 970410.5584 | G14: =F14/E14*100 -> 2.247933499
C15: 8 | D15: Total Gas Commodity and Transportation Cost | F15: =F12+F14 -> 5268127.934
D17: =Input!$R$6 -> 2019
C19: Table 4.1-7
C20: Forecasted Commodity and Transportation Costs in 2019
E21: A | F21: B | G21: C
D22: Gas Commodity | E22: m3 | F22: $ | G22: cent / m3
C23: 1 | D23: Enbridge Gas | E23: =INDEX(Input!$J$403:$W$403,1,MATCH($D17,Input!$J$6:$W$6,0)) -> 24309668.65 | F23: =Input!R423 -> 4366867.328 | G23: =F23/E23*100 -> 17.9635
C24: 2 | D24: Local Production A | E24: =INDEX(Input!$J$404:$W$404,1,MATCH($D17,Input!$J$6:$W$6,0)) -> 1000000 | F24: =Input!R424 -> 179635 | G24: =F24/E24*100 -> 17.9635
C25: 3 | D25: Local Production B | E25: =INDEX(Input!$J$405:$W$405,1,MATCH($D17,Input!$J$6:$W$6,0)) -> 657416.5667 | F25: =Input!R425 -> 118095.025 | G25: =F25/E25*100 -> 17.9635
C26: 4 | D26: Total Gas Commodity Cost | E26: =SUM(E23:E25) -> 25967085.22 | F26: =SUM(F23:F25) -> 4664597.353 | G26: =F26/E26*100 -> 17.9635
C27: 5 | D27: Unaccounted For Gas | E27: 0 | F27: =E27*G27 -> 0 | G27: 0
C28: 6 | D28: Total Gas Transportation Cost | E28: =Input!$R$441 -> 26325152.46 | F28: =-Input!$R$460 -> 674644.4424 | G28: =F28/E28*100 -> 2.562737076
C29: 7 | D29: Total Gas Commodity and Transportation Cost | F29: =F26+F28 -> 5339241.795
D31: =Input!$S$6 -> 2020
C33: Table 4.1-8
C34: Forecasted Commodity and Transportation Costs in 2020
E35: A | F35: B | G35: C
D36: Gas Commodity | E36: m3 | F36: $ | G36: cent / m3
C37: 1 | D37: Enbridge Gas | E37: =INDEX(Input!$J$403:$W$403,1,MATCH($D31,Input!$J$6:$W$6,0)) -> 24773652.64 | F37: =Input!S423 -> 4452001.865 | G37: =F37/E37*100 -> 17.97071239
C38: 2 | D38: Local Production A | E38: =INDEX(Input!$J$404:$W$404,1,MATCH($D31,Input!$J$6:$W$6,0)) -> 1000000 | F38: =Input!S424 -> 179707.1239 | G38: =F38/E38*100 -> 17.97071239
C39: 3 | D39: Local Production B | E39: =INDEX(Input!$J$405:$W$405,1,MATCH($D31,Input!$J$6:$W$6,0)) -> 657416.5667 | F39: =Input!S425 -> 118142.4404 | G39: 17.97071239
C40: 4 | D40: Total Gas Commodity Cost | E40: =SUM(E37:E39) -> 26431069.21 | F40: =SUM(F37:F39) -> 4749851.43 | G40: 17.97071239
C41: 5 | D41: Unaccounted For Gas | E41: 0 | F41: =E41*G41 -> 0 | G41: 0
C42: 6 | D42: Total Gas Transportation Cost | E42: =Input!$S$441 -> 26818029.73 | F42: =-Input!$S$460 -> 675543.9434 | G42: =F42/E42*100 -> 2.518991701
C43: 7 | D43: Total Gas Commodity and Transportation Cost | F43: =F40+F42 -> 5425395.373
C45: Table 4.3.3.2.1-1
C46: Summary of IGPC Operating Support Costs
C47: ($)
E48: A | F48: B
D49: Cost Category | E49: 2019 Forecast | F49: 2020 Test Year
C50: 1 | D50: Depreciation Expense | E50: =-Calculation!R2626-Calculation!R2631-Calculation!R2637 -> 311066.4139 | F50: =-Calculation!S1644-Calculation!S1649 -> 131804.7411
C51: 2 | D51: Enbridge Gas Transportation Charges | E51: - | F51: -
C52: 3 | D52: Maintenance Costs – Transfer Stations | E52: 42966 | F52: 44651
C53: 4 | D53: Maintenance Costs – Pipeline | E53: =-Input!R$487-E$52 -> 33588.5 | F53: =-Input!S$487-F$52 -> 35021.0925
C54: 5 | D54: Property Taxes | E54: 87853 | F54: 91806
C55: 6 | D55: Total | E55: =SUM(E50:E54) -> 475473.9139 | F55: =SUM(F50:F54) -> 303282.8336
C57: Table 4.3.3.6-1
C58: LEAP EFA Calculation
E59: A
C60: 1 | D60: 2020 Distribution Revenue | E60: =Calculation!S$561 -> 6652600.087
C61: 2 | D61: Percentage | E61: 0.0012
C62: 3 | D62: LEAP Fund | E62: =E60*E61 -> 7983.120104
C64: Table 4.4-1
C65: Depreciation Expense Asset Group Net of Contributed Assets
C66: ($)
E67: Revised 2020 | F67: A | G67: B | H67: C | I67: D | J67: E | K67: F | L67: G | M67: H | N67: I | O67: J | P67: K | Q67: L
D68: Asset Group | E68: Test Year' | F68: 2011 | G68: 2011 A | H68: 2012 A | I68: 2013 A | J68: 2014 A | K68: 2015 A | L68: 2016 A | M68: 2017 A | N68: 2017 | O68: 2018 F | P68: 2019 | Q68: 2020
E69: Asset Description | F69: OEB Approved | N69: Stub | P69: Bridge Year | Q69: Test Year
C70: 1 | D70: Land | E70: Land | F70: =-'Exhibit 2'!E$1063 -> 0 | G70: =-'Exhibit 2'!F$1063 -> 0 | H70: =-'Exhibit 2'!G$1063 -> 0 | I70: =-'Exhibit 2'!H$1063 -> 0 | J70: =-'Exhibit 2'!I$1063 -> 0 | K70: =-'Exhibit 2'!J$1063 -> 0 | L70: =-'Exhibit 2'!K$1063 -> 0 | M70: =-'Exhibit 2'!L$1063 -> 0 | N70: =-'Exhibit 2'!M$1063 -> 0 | O70: =-'Exhibit 2'!N$1063 -> 0 | P70: =-'Exhibit 2'!O$1063 -> 0 | Q70: =-INDEX(Calculation!S$1633:S$1657,MATCH($E70,Calculation!$C$1633:$C$1657,0),1) -> 0
C71: 2 | D71: Buildings | E71: Structures & Improvements - General Plant | F71: =-'Exhibit 2'!E$1084 -> 14699 | G71: =-'Exhibit 2'!F$1084 -> 15148 | H71: =-'Exhibit 2'!G$1084 -> 15148 | I71: =-'Exhibit 2'!H$1084 -> 15187 | J71: =-'Exhibit 2'!I$1084 -> 15260 | K71: =-'Exhibit 2'!J$1084 -> 15260 | L71: =-'Exhibit 2'!K$1084 -> 15259.6937 | M71: =-'Exhibit 2'!L$1084 -> 15531.84772 | N71: =-'Exhibit 2'!M$1084 -> 3882.961286 | O71: =-'Exhibit 2'!N$1084 -> 15531.84772 | P71: =-'Exhibit 2'!O$1084 -> 15875.94772 | Q71: =-INDEX(Calculation!S$1633:S$1657,MATCH($E71,Calculation!$C$1633:$C$1657,0),1) -> 14326.66628
C72: 3 | E72: Structures & Improvements – Distribution Plant
C73: 4 | E73: Structures & Improvements – Transmission Plant
C74: 5 | D74: Furniture & Fixtures | E74: Furnishing / Office Equipment | F74: =-'Exhibit 2'!E$1105 -> 4466 | G74: =-'Exhibit 2'!F$1105 -> 4669 | H74: =-'Exhibit 2'!G$1105 -> 5350 | I74: =-'Exhibit 2'!H$1105 -> 5549 | J74: =-'Exhibit 2'!I$1105 -> 7010 | K74: =-'Exhibit 2'!J$1105 -> 7430 | L74: =-'Exhibit 2'!K$1105 -> 7596.1692 | M74: =-'Exhibit 2'!L$1105 -> 7596.1722 | N74: =-'Exhibit 2'!M$1105 -> 1903.3382 | O74: =-'Exhibit 2'!N$1105 -> 7596.1692 | P74: =-'Exhibit 2'!O$1105 -> 7596.1692 | Q74: =-INDEX(Calculation!S$1633:S$1657,MATCH($E74,Calculation!$C$1633:$C$1657,0),1) -> 5359.162
C75: 6 | D75: Computer Equipment | E75: Computer Equipment | F75: =-'Exhibit 2'!E$1126 -> 5967 | G75: =-'Exhibit 2'!F$1126 -> 6054 | H75: =-'Exhibit 2'!G$1126 -> 5250 | I75: =-'Exhibit 2'!H$1126 -> 5824 | J75: =-'Exhibit 2'!I$1126 -> 5908 | K75: =-'Exhibit 2'!J$1126 -> 9151 | L75: =-'Exhibit 2'!K$1126 -> 12490.15086 | M75: =-'Exhibit 2'!L$1126 -> 13778.24175 | N75: =-'Exhibit 2'!M$1126 -> 12066.19892 | O75: =-'Exhibit 2'!N$1126 -> 64017.27046 | P75: =-'Exhibit 2'!O$1126 -> 46013.31421 | Q75: =-INDEX(Calculation!S$1633:S$1657,MATCH($E75,Calculation!$C$1633:$C$1657,0),1) -> 63184.765
C76: 7 | D76: Computer Software | E76: Software - Acquired | F76: =-'Exhibit 2'!E$1147 -> 8245 | G76: =-'Exhibit 2'!F$1147 -> 14172 | H76: =-'Exhibit 2'!G$1147 -> 12128 | I76: =-'Exhibit 2'!H$1147 -> 11204 | J76: =-'Exhibit 2'!I$1147 -> 10828 | K76: =-'Exhibit 2'!J$1147 -> 10858 | L76: =-'Exhibit 2'!K$1147 -> 52232.404 | M76: =-'Exhibit 2'!L$1147 -> 56891.8432 | N76: =-'Exhibit 2'!M$1147 -> 11889.44809 | O76: =-'Exhibit 2'!N$1147 -> 46894.90294 | P76: =-'Exhibit 2'!O$1147 -> 62176.0606 | Q76: =-INDEX(Calculation!S$1633:S$1657,MATCH($E76,Calculation!$C$1633:$C$1657,0),1) -> 59385.54525
C77: 8 | D77: Machinery & Equipment* | E77: Tools and Work Equipment | F77: =-'Exhibit 2'!E$1168 -> 301048 | G77: =-'Exhibit 2'!F$1168 -> 173586 | H77: =-'Exhibit 2'!G$1168 -> 180449 | I77: =-'Exhibit 2'!H$1168 -> 182750 | J77: =-'Exhibit 2'!I$1168 -> 189007 | K77: =-'Exhibit 2'!J$1168 -> 149158 | L77: =-'Exhibit 2'!K$1168 -> 18930.80642 | M77: =-'Exhibit 2'!L$1168 -> 18418.51681 | N77: =-'Exhibit 2'!M$1168 -> 4209.913727 | O77: =-'Exhibit 2'!N$1168 -> 18399.02384 | P77: =-'Exhibit 2'!O$1168 -> 19254.95849 | Q77: =-INDEX(Calculation!S$1633:S$1657,MATCH($E77,Calculation!$C$1633:$C$1657,0),1) -> 51303.066
C78: 9 | D78: Communication Equipment | E78: Communications Equipment - Hardware | F78: =-'Exhibit 2'!E$1189 -> 12784 | G78: =-'Exhibit 2'!F$1189 -> 12145 | H78: =-'Exhibit 2'!G$1189 -> 12145 | I78: =-'Exhibit 2'!H$1189 -> 12510 | J78: =-'Exhibit 2'!I$1189 -> 13739 | K78: =-'Exhibit 2'!J$1189 -> 13739 | L78: =-'Exhibit 2'!K$1189 -> 14937.9158 | M78: =-'Exhibit 2'!L$1189 -> 15288.32907 | N78: =-'Exhibit 2'!M$1189 -> 3839.691561 | O78: =-'Exhibit 2'!N$1189 -> 15358.74937 | P78: =-'Exhibit 2'!O$1189 -> 16610.95593 | Q78: =-INDEX(Calculation!S$1633:S$1657,MATCH($E78,Calculation!$C$1633:$C$1657,0),1) -> 15405.9185
C79: 10 | D79: Automotive | E79: Vehicles - Transportation Equipment | F79: =-'Exhibit 2'!E$1210-'Exhibit 2'!E$1399 -> 94569 | G79: =-'Exhibit 2'!F$1210-'Exhibit 2'!F$1399 -> 85489 | H79: =-'Exhibit 2'!G$1210-'Exhibit 2'!G$1399 -> 74467 | I79: =-'Exhibit 2'!H$1210-'Exhibit 2'!H$1399 -> 72148 | J79: =-'Exhibit 2'!I$1210-'Exhibit 2'!I$1399 -> 72271 | K79: =-'Exhibit 2'!J$1210-'Exhibit 2'!J$1399 -> 53491 | L79: =-'Exhibit 2'!K$1210-'Exhibit 2'!K$1399 -> -34195.54 | M79: =-'Exhibit 2'!L$1210-'Exhibit 2'!L$1399 -> 36237.97657 | N79: =-'Exhibit 2'!M$1210-'Exhibit 2'!M$1399 -> 5964.600533 | O79: =-'Exhibit 2'!N$1210-'Exhibit 2'!N$1399 -> 31633.308 | P79: =-'Exhibit 2'!O$1210-'Exhibit 2'!O$1399 -> 45088.88153 | Q79: =-Calculation!S$1640-Calculation!S$1653 -> 53343.80452
C80: 11 | E80: Vehicle - Heavy Work Equipment
C81: 12 | D81: Meters | E81: Meters - Residential | F81: =-'Exhibit 2'!E$1231-'Exhibit 2'!E$1252 -> 77346 | G81: =-'Exhibit 2'!F$1231-'Exhibit 2'!F$1252 -> 78807 | H81: =-'Exhibit 2'!G$1231-'Exhibit 2'!G$1252 -> 81476 | I81: =-'Exhibit 2'!H$1231-'Exhibit 2'!H$1252 -> 86856 | J81: =-'Exhibit 2'!I$1231-'Exhibit 2'!I$1252 -> 96283 | K81: =-'Exhibit 2'!J$1231-'Exhibit 2'!J$1252 -> 100403 | L81: =-'Exhibit 2'!K$1231-'Exhibit 2'!K$1252 -> 232366.1803 | M81: =-'Exhibit 2'!L$1231-'Exhibit 2'!L$1252 -> 231145.0684 | N81: =-'Exhibit 2'!M$1231-'Exhibit 2'!M$1252 -> 34519.31161 | O81: =-'Exhibit 2'!N$1231-'Exhibit 2'!N$1252 -> 97547.50012 | P81: =-'Exhibit 2'!O$1231-'Exhibit 2'!O$1252 -> 108840.9397 | Q81: =-INDEX(Calculation!S$1633:S$1657,MATCH($E81,Calculation!$C$1633:$C$1657,0),1) -> 148557.6705
C82: 13 | E82: Meters - Commercial | Q82: =-INDEX(Calculation!S$1633:S$1657,MATCH($E82,Calculation!$C$1633:$C$1657,0),1) -> 63216.52375
C83: 14 | E83: Meter - IGPC | Q83: =-Calculation!S$1644 -> 2356.566667
C84: 15 | D84: Regulators | E84: Regulators | F84: =-'Exhibit 2'!E$1273-'Exhibit 2'!E$1441 -> 42453 | G84: =-'Exhibit 2'!F$1273-'Exhibit 2'!F$1441 -> 46138 | H84: =-'Exhibit 2'!G$1273-'Exhibit 2'!G$1441 -> 47681 | I84: =-'Exhibit 2'!H$1273-'Exhibit 2'!H$1441 -> 50300 | J84: =-'Exhibit 2'!I$1273-'Exhibit 2'!I$1441 -> 51118 | K84: =-'Exhibit 2'!J$1273-'Exhibit 2'!J$1441 -> 51651 | L84: =-'Exhibit 2'!K$1273-'Exhibit 2'!K$1441 -> 54201.89456 | M84: =-'Exhibit 2'!L$1273-'Exhibit 2'!L$1441 -> 54457.04874 | N84: =-'Exhibit 2'!M$1273-'Exhibit 2'!M$1441 -> 13614.26479 | O84: =-'Exhibit 2'!N$1273-'Exhibit 2'!N$1441 -> 56269.68193 | P84: =-'Exhibit 2'!O$1273-'Exhibit 2'!O$1441 -> 67532.46741 | Q84: =-Calculation!S$1645 -> 5375
C85: 16 | E85: Regulator and Meter Installations
C86: 17 | E86: Measuring and Regulating Equipment | Q86: =-INDEX(Calculation!S$1633:S$1657,MATCH($E86,Calculation!$C$1633:$C$1657,0),1) -> 75553.60139
C87: 18 | D87: Plastic Mains | E87: Mains - Plastic (Distribution Plant) | F87: =-'Exhibit 2'!E$1294 -> 229119 | G87: =-'Exhibit 2'!F$1294 -> 254475 | H87: =-'Exhibit 2'!G$1294 -> 265820 | I87: =-'Exhibit 2'!H$1294 -> 267376 | J87: =-'Exhibit 2'!I$1294 -> 269206 | K87: =-'Exhibit 2'!J$1294 -> 275315 | L87: =-'Exhibit 2'!K$1294 -> 295507.3016 | M87: =-'Exhibit 2'!L$1294 -> 365225.31 | N87: =-'Exhibit 2'!M$1294 -> 91379.67405 | O87: =-'Exhibit 2'!N$1294 -> 373611.6446 | P87: =-'Exhibit 2'!O$1294 -> 403413.0634 | Q87: =-INDEX(Calculation!S$1633:S$1657,MATCH($E87,Calculation!$C$1633:$C$1657,0),1) -> 309729.6558
C88: 19 | D88: Steel Mains | E88: Mains - Metallic (Distribution Plant) | F88: =-'Exhibit 2'!E$1315 -> 0 | G88: =-'Exhibit 2'!F$1315 -> 0 | H88: =-'Exhibit 2'!G$1315 -> 0 | I88: =-'Exhibit 2'!H$1315 -> 0 | J88: =-'Exhibit 2'!I$1315 -> 0 | K88: =-'Exhibit 2'!J$1315 -> 0 | L88: =-'Exhibit 2'!K$1315 -> 0 | M88: =-'Exhibit 2'!L$1315 -> 0 | N88: =-'Exhibit 2'!M$1315 -> 0 | O88: =-'Exhibit 2'!N$1315 -> 7.275957614e-12 | P88: =-'Exhibit 2'!O$1315 -> 0 | Q88: =-INDEX(Calculation!S$1633:S$1657,MATCH($E88,Calculation!$C$1633:$C$1657,0),1) -> 0
C89: 20 | D89: Ethanol Pipeline - IGPC Project | E89: Mains - Metallic (IGPC) | F89: =-'Exhibit 2'!E$1336 -> 232512 | G89: =-'Exhibit 2'!F$1336 -> 227231.02 | H89: =-'Exhibit 2'!G$1336 -> 227231.02 | I89: =-'Exhibit 2'!H$1336 -> 227527.65 | J89: =-'Exhibit 2'!I$1336 -> 227527.65 | K89: =-'Exhibit 2'!J$1336 -> 227527.65 | L89: =-'Exhibit 2'!K$1336 -> 227527.65 | M89: =-'Exhibit 2'!L$1336 -> 228995.73 | N89: =-'Exhibit 2'!M$1336 -> 57575.63225 | O89: =-'Exhibit 2'!N$1336 -> 260941.939 | P89: =-'Exhibit 2'!O$1336 -> 309251.3645 | Q89: =-INDEX(Calculation!S$1633:S$1657,MATCH($E89,Calculation!$C$1633:$C$1657,0),1) -> 129448.1744
C90: 21 | D90: Plastic Services | E90: Services - Plastic | F90: =-'Exhibit 2'!E$1357 -> 87518 | G90: =-'Exhibit 2'!F$1357 -> 96844 | H90: =-'Exhibit 2'!G$1357 -> 103475 | I90: =-'Exhibit 2'!H$1357 -> 111777 | J90: =-'Exhibit 2'!I$1357 -> 113475 | K90: =-'Exhibit 2'!J$1357 -> 115358 | L90: =-'Exhibit 2'!K$1357 -> 118178.69 | M90: =-'Exhibit 2'!L$1357 -> 122095.2688 | N90: =-'Exhibit 2'!M$1357 -> 30763.86352 | O90: =-'Exhibit 2'!N$1357 -> 126871.1642 | P90: =-'Exhibit 2'!O$1357 -> 132033.3139 | Q90: =-INDEX(Calculation!S$1633:S$1657,MATCH($E90,Calculation!$C$1633:$C$1657,0),1) -> 101894.1862
C91: 22 | D91: Franchises and Consents | E91: Franchises and Consents | F91: =-'Exhibit 2'!E$1378 -> 89359 | G91: =-'Exhibit 2'!F$1378 -> 97130 | H91: =-'Exhibit 2'!G$1378 -> 39399 | I91: =-'Exhibit 2'!H$1378 -> 44091 | J91: =-'Exhibit 2'!I$1378 -> 25921 | K91: =-'Exhibit 2'!J$1378 -> 33330 | L91: =-'Exhibit 2'!K$1378 -> 34806.17207 | M91: =-'Exhibit 2'!L$1378 -> 36216.58699 | N91: =-'Exhibit 2'!M$1378 -> 9149.622997 | O91: =-'Exhibit 2'!N$1378 -> 37119.67273 | P91: =-'Exhibit 2'!O$1378 -> 37646.04748 | Q91: =-Calculation!S$1651-Calculation!S$1652 -> 37646.04748
C92: 23 | D92: Sum | F92: =SUM(F$70:F$91) -> 1200085 | G92: =SUM(G$70:G$91) -> 1111888.02 | H92: 1070019.02 | I92: 1093099.65 | J92: 1097553.65 | K92: 1062671.65 | L92: 1049839.489 | M92: 1201877.94 | N92: 280758.5215 | O92: 1151792.874 | P92: 1271333.484 | Q92: =SUM(Q70:Q91) -> 1136086.354
C93: *includes Rental Equipment in years prior to 2016
C94: Check | F94: ='Exhibit 2'!F124+F$92 -> 0 | G94: ='Exhibit 2'!G124+G$92 -> 0 | H94: ='Exhibit 2'!H124+H$92 -> 0 | I94: ='Exhibit 2'!I124+I$92 -> 0 | J94: ='Exhibit 2'!J124+J$92 -> 0 | K94: ='Exhibit 2'!K124+K$92 -> 0 | L94: ='Exhibit 2'!L124+L$92 -> 0 | M94: ='Exhibit 2'!M124+M$92 -> 0 | N94: ='Exhibit 2'!N124+N$92 -> 0 | O94: ='Exhibit 2'!O124+O$92 -> 0 | P94: ='Exhibit 2'!P124+P$92 -> 0 | Q94: =Q92+Calculation!S1658 -> 0
C96: Table 4.4-3
C97: Depreciation Expense by Asset Group Net of Contributed Assets
C98: ($)
F99: A | G99: B
D100: Asset Group | E100: Revised Asset Group | F100: 2020 Test Year (no change to rates) | G100: 2020 Test Year (proposed)
C101: 1 | D101: Land | E101: Land | F101: 0 | G101: =Q70 -> 0
C102: 2 | D102: Buildings | E102: Structures & Improvements - General Plant | F102: =-Calculation!S2618 -> 16564.14772 | G102: 14326.66628
C103: 3 | E103: Structures & Improvements – Distribution Plant | G103: 0
C104: 4 | E104: Structures & Improvements – Transmission Plant | G104: 0
C105: 5 | D105: Furniture & Fixtures | E105: Furnishing / Office Equipment | F105: =-Calculation!S2619 -> 5359.162 | G105: 5359.162
C106: 6 | D106: Computer Equipment | E106: Computer Equipment | F106: =-Calculation!S2620 -> 35676.57659 | G106: 63184.765
C107: 7 | D107: Computer Software | E107: Software - Acquired | F107: =-Calculation!S2621 -> 77000.98673 | G107: 59385.54525
C108: 8 | D108: Machinery & Equipment | E108: Tools and Work Equipment | F108: =-Calculation!S2622 -> 18908.75132 | G108: 51303.066
C109: 9 | D109: Communication Equipment | E109: Communication Equipment | F109: =-Calculation!S2623 -> 17863.1625 | G109: 15405.9185
C110: 10 | D110: Automotive | E110: Vehicles - Transportation Equipment | F110: =-Calculation!S2624-Calculation!S2635 -> 53343.80452 | G110: 53343.80452
C111: 11 | E111: Vehicle - Heavy Work Equipment | F111: =-Calculation!S2636 -> 0 | G111: 0
C112: 12 | D112: Meters | E112: Meters - Residential | F112: =-Calculation!S2625 -> 53777.87672 | G112: 148557.6705
C113: 13 | E113: Meters - Commercial | F113: =-Calculation!S2628 -> 45768.7632 | G113: 63216.52375
C114: 14 | E114: Meter – IGPC | F114: =-Calculation!S2626 -> 512.2971014 | G114: 2356.566667
C115: 15 | D115: Regulators - New | E115: Regulators - New | F115: =-Calculation!S2059 -> 3944.954128 | G115: 5375
C116: 16 | E116: Regulator and Meter Installations | G116: 0
C117: 17 | E117: Measuring and Regulating Equipment | F117: =-Calculation!S2627 -> 75753.36511 | G117: 75553.60139
C118: 18 | D118: Plastic Mains | E118: Mains - Plastic (Distribution Plant) | F118: =-Calculation!S2629 -> 434420.213 | G118: 309729.6558
C119: 19 | D119: Steel Mains | E119: Mains - Metallic (Distribution Plant) | F119: =-Calculation!S2630 -> 0 | G119: 0
C120: 20 | D120: Ethanol Pipeline - IGPC Project | E120: Mains - Metallic IGPC (Transmission Plant) | F120: =-Calculation!S2631 -> 326921.3645 | G120: 129448.1744
C121: 21 | D121: Plastic Services | E121: Plastic Service Lines (net of contributions) | F121: =-Calculation!S2632 -> 135180.1639 | G121: 101894.1862
C122: 22 | D122: Franchises and Consents | E122: Franchises and Consents | F122: =-Calculation!S2633-Calculation!S2634 -> 37646.04748 | G122: 37646.04748
C123: 24 | D123: Sum | F123: =SUM(F101:F122) -> 1338641.637 | G123: =SUM(G101:G122) -> 1136086.354
C125: Check | F125: =Calculation!$S$2642+F$123 -> 0 | G125: =Calculation!$S$21+Calculation!$S$22+$G$123 -> 0
C127: Table 4.5.1-1
C128: Property Taxes Payable
C129: ($)
E130: A | F130: B | G130: C | H130: D | I130: E | J130: F | K130: G | L130: H | M130: I | N130: J | O130: K
D131: Expense Category | E131: 2011 OEB Approved | F131: 2011 A | G131: 2012 A | H131: 2013 A | I131: 2014 A | J131: 2015 A | K131: 2016 A | L131: 2017 A | M131: 2018 F | N131: 2019 F | O131: 2020 F
C132: 1 | D132: Property Taxes | E132: 400776 | F132: 415184 | G132: 414606 | H132: 471816 | I132: 506712 | J132: 533094 | K132: 540380 | L132: 492809 | M132: =-Input!Q495 -> 573251 | N132: =-Input!R495 -> 605000 | O132: =-Input!S495 -> 632000
C134: Table 4.5-2-1
C135: Income Taxes Payable
C136: ($)
E137: A | F137: B | G137: C
D138: Description | E138: 2018 Forecast | F138: 2019 Bridge | G138: 2020 Test
C139: 1 | D139: Commodity Revenue | E139: =Calculation!Q145 -> 4297717.375 | F139: =Calculation!R145 -> 4664597.353 | G139: =Calculation!S145 -> 4749851.43
C140: 2 | D140: less: Commodity Cost | E140: =Calculation!Q146 -> -4299009.046 | F140: =Calculation!R146 -> -4666366.801 | G140: =Calculation!S146 -> -4749851.43
C141: 4 | D141: Distribution Revenue | E141: =Calculation!Q149 -> 7234871.84 | F141: =Calculation!R149 -> 7079004.583 | G141: =Calculation!S149 -> 6652600.087
C142: 5 | D142: add: Other Revenue | E142: =Calculation!Q16 -> 119793.01 | F142: =Calculation!R16 -> 112912.7125 | G142: =Calculation!S16 -> 112912.7125
C143: 6 | D143: less: Distribution OM&A and Transportation Cost (Deductible Portion) | E143: =Calculation!Q151 -> -5085665.35 | F143: =Calculation!R151 -> -3912407.873 | G143: =Calculation!S151 -> -4027073.627
C144: 7 | D144: less: Property Taxes | E144: =Calculation!Q152 -> -573251 | F144: =Calculation!R152 -> -605000 | G144: =Calculation!S152 -> -632000
C145: 8 | D145: less: Interest Expense | E145: =Calculation!Q153 -> -379857.3214 | F145: =Calculation!R153 -> -383923.9698 | G145: =Calculation!S153 -> -408085.4837
C146: 9 | D146: less: CCA | E146: =Calculation!Q154 -> -1314599.508 | F146: =Calculation!R154 -> -1648658.68 | G146: =Calculation!S154 -> -1681234.867
C147: 10 | D147: Taxable Income | E147: =SUM(E139:E146) -> 0 | F147: =SUM(F139:F146) -> 640157.3248 | G147: =SUM(G141:G146) -> 17118.82133
C148: 11 | D148: Income Taxes Payable
C149: 12 | D149: Federal Income Tax @ 15% | E149: =-Calculation!Q164 -> 0 | F149: =-Calculation!R164 -> 96023.59872 | G149: =-Calculation!S164 -> 2567.823199
C150: 13 | D150: Provincial Income Tax @ 11.5% | E150: =-Calculation!Q165 -> 0 | F150: =-Calculation!R165 -> 73618.09235 | G150: =-Calculation!S165 -> 1968.664453
C151: 14 | D151: Income Tax Expense | E151: =SUM(E149:E150) -> 0 | F151: =SUM(F149:F150) -> 169641.6911 | G151: =SUM(G149:G150) -> 4536.487652
C152: 15 | D152: Effective Tax Rate | E152: =SUM(Calculation!Q$160:Q$161) -> 0.265 | F152: =SUM(Calculation!R$160:R$161) -> 0.265 | G152: =SUM(Calculation!S$160:S$161) -> 0.265
C154: Table 4.5.2-2
C155: CCA Continuity
C156: ($)
F157: A | G157: B | H157: C | I157: D | J157: E | K157: F | L157: G | M157: H | N157: I | O157: J | P157: K | Q157: L | R157: M
D158: CCA Class | E158: CCA Class Description | F158: CCA Rate | G158: 2018 Opening UCC | H158: 2018 Additions | I158: CCA Claimed | J158: 2018 Closing UCC | K158: 2019 Opening UCC | L158: 2019 Additions | M158: CCA Claimed | N158: 2019 Closing UCC | O158: 2020 Opening UCC | P158: 2020 Additions | Q158: CCA Claimed | R158: 2020 Closing UCC
C159: 1 | D159: Land | E159: Land | F159: =Calculation!E111 -> 0 | G159: =Calculation!Q87 -> 0 | H159: =Calculation!Q98 -> 0 | I159: =Calculation!Q122 -> 0 | J159: =Calculation!Q133 -> 0 | K159: =Calculation!R87 -> 0 | L159: =Calculation!R98 -> 0 | M159: =Calculation!R122 -> 0 | N159: =Calculation!R133 -> 0 | O159: =Calculation!S87 -> 0 | P159: =Calculation!S98 -> 0 | Q159: =Calculation!S122 -> 0 | R159: =Calculation!S133 -> 0
C160: 2 | D160: 1 | E160: Building | F160: =Calculation!E112 -> 0.04 | G160: =Calculation!Q88 -> 343433.16 | H160: =Calculation!Q99 -> 0 | I160: =Calculation!Q123 -> -12082.08703 | J160: =Calculation!Q134 -> 331351.073 | K160: =Calculation!R88 -> 331351.073 | L160: =Calculation!R99 -> 31000 | M160: =Calculation!R123 -> -13874.04292 | N160: =Calculation!R134 -> 348477.03 | O160: =Calculation!S88 -> 348477.03 | P160: =Calculation!S99 -> 31000 | Q160: =Calculation!S123 -> -14559.0812 | R160: =Calculation!S134 -> 364917.9488
C161: 3 | D161: 8 | E161: Furniture | F161: =Calculation!E113 -> 0.2 | G161: =Calculation!Q89 -> 543266.1 | H161: =Calculation!Q100 -> 40364.96 | I161: =Calculation!Q124 -> -99111.49498 | J161: =Calculation!Q135 -> 484519.565 | K161: =Calculation!R89 -> 484519.565 | L161: =Calculation!R100 -> 47398.61751 | M161: =Calculation!R124 -> -101643.7748 | N161: =Calculation!R135 -> 430274.4078 | O161: =Calculation!S89 -> 430274.4078 | P161: =Calculation!S100 -> 16000 | Q161: =Calculation!S124 -> -87654.88155 | R161: =Calculation!S135 -> 358619.5262
C162: 4 | D162: 10 | E162: Computer Hardware | F162: =Calculation!E114 -> 0.3 | G162: =Calculation!Q90 -> 51017.85 | H162: =Calculation!Q101 -> 107040.6 | I162: =Calculation!Q125 -> -27582.6385 | J162: =Calculation!Q136 -> 130475.8115 | K162: =Calculation!R90 -> 130475.8115 | L162: =Calculation!R101 -> 108000 | M162: =Calculation!R125 -> -55342.74345 | N162: =Calculation!R136 -> 183133.0681 | O162: =Calculation!S90 -> 183133.0681 | P162: =Calculation!S101 -> 47000 | Q162: =Calculation!S125 -> -61989.92042 | R162: =Calculation!S136 -> 168143.1476
C163: 5 | D163: 12 | E163: Tools | F163: =Calculation!E115 -> 1 | G163: =Calculation!Q91 -> 46822 | H163: =Calculation!Q102 -> 0 | I163: =Calculation!Q126 -> -41180.31869 | J163: =Calculation!Q137 -> 5641.681308 | K163: =Calculation!R91 -> 5641.681308 | L163: =Calculation!R102 -> 246601.3825 | M163: =Calculation!R126 -> -128942.3726 | N163: =Calculation!R137 -> 123300.6912 | O163: =Calculation!S91 -> 123300.6912 | P163: =Calculation!S102 -> 26000 | Q163: =Calculation!S126 -> -136300.6912 | R163: =Calculation!S137 -> 13000
C164: 6 | D164: 14.1 | E164: Goodwill | F164: =Calculation!E116 -> 0.05 | G164: =Calculation!Q92 -> 3965201.17 | H164: =Calculation!Q103 -> 21054.99 | I164: =Calculation!Q127 -> -174834.2376 | J164: =Calculation!Q138 -> 3811421.922 | K164: =Calculation!R92 -> 3811421.922 | L164: =Calculation!R103 -> 0 | M164: =Calculation!R127 -> -190571.0961 | N164: =Calculation!R138 -> 3620850.826 | O164: =Calculation!S92 -> 3620850.826 | P164: =Calculation!S103 -> 0 | Q164: =Calculation!S127 -> -181042.5413 | R164: =Calculation!S138 -> 3439808.285
C165: 7 | D165: 50 | E165: Software | F165: =Calculation!E117 -> 0.55 | G165: =Calculation!Q93 -> 130306.42 | H165: =Calculation!Q104 -> 0 | I165: =Calculation!Q128 -> -63033.03889 | J165: =Calculation!Q139 -> 67273.38111 | K165: =Calculation!R93 -> 67273.38111 | L165: =Calculation!R104 -> 20000 | M165: =Calculation!R128 -> -42500.35961 | N165: =Calculation!R139 -> 44773.0215 | O165: =Calculation!S93 -> 44773.0215 | P165: =Calculation!S104 -> 10000 | Q165: =Calculation!S128 -> -27375.16183 | R165: =Calculation!S139 -> 27397.85968
C166: 8 | D166: 51 | E166: Mains | F166: =Calculation!E118 -> 0.06 | G166: =Calculation!Q94 -> 15947524.59 | H166: =Calculation!Q105 -> 2092733.34 | I166: =Calculation!Q129 -> -896775.6925 | J166: =Calculation!Q140 -> 17143482.24 | K166: =Calculation!R94 -> 17143482.24 | L166: =Calculation!R105 -> 2905845.21 | M166: =Calculation!R129 -> -1115784.291 | N166: =Calculation!R140 -> 18933543.16 | O166: =Calculation!S94 -> 18933543.16 | P166: =Calculation!S105 -> 1210000 | Q166: =Calculation!S129 -> -1172312.589 | R166: =Calculation!S140 -> 18971230.57
C167: 9 | F167: Total | G167: =SUM(G159:G166) -> 21027571.29 | H167: 2261193.89 | I167: -1314599.508 | J167: 21974165.67 | K167: 21974165.67 | L167: 3358845.21 | M167: -1648658.68 | N167: 23684352.2 | O167: 23684352.2 | P167: 1340000 | Q167: -1681234.867 | R167: 23343117.33

Sheet Exhibit 5
A1: Exhibit 5 Tab 1 Schedule 1
C3: Table 5.1-1
C4: 2020 Cost of Capital
E5: A | F5: B | G5: C | H5: D | I5: E
D6: Capital Component | E6: Mid Year Capital Structure / Rate Base Amount | F6: Ratio | G6: Cost Rate | H6: Return Component (WACC) | I6: Return Amount
C7: 1 | D7: Equity | E7: =$E$10*Input!$S$632 -> 6542300.76 | F7: =$E7/$E$10 -> 0.4 | G7: =Input!S638 -> 0.0898 | H7: =F7*G7 -> 0.03592 | I7: =E7*G7 -> 587498.6082
C8: 2 | D8: LT Debt | E8: =AVERAGE(Input!S668,Input!S671) -> 9159221.064 | F8: =$E8/$E$10 -> 0.56 | G8: =I8/E8 -> 0.03846351425 | H8: =F8*G8 -> 0.02153956798 | I8: =-Input!S674 -> 352295.8299
C9: 3 | D9: ST Debt | E9: =Input!$S$660 -> 654230.076 | F9: =$E9/$E$10 -> 0.04 | G9: =I9/E9 -> 0.0282 | H9: =F9*G9 -> 0.001128 | I9: =-Input!$S$661 -> 18449.28814
C10: 4 | D10: Total | E10: =Calculation!S176 -> 16355751.9 | F10: =SUM(F7:F9) -> 1 | H10: =SUM(H7:H9) -> 0.05858756798 | I10: =SUM(I7:I9) -> 958243.7263
C12: Check | I12: =$I$10-Calculation!$S$190-Calculation!$S$191 -> 0
C14: Table 5.1-2
C15: Cost of Equity
E16: A | F16: B
E17: 2019 B | F17: 2020 T
C18: 1 | D18: Mid-year Rate Base | E18: =E30 -> 15265769.82 | F18: =F30 -> 16355751.9
C19: 2 | D19: Equity % in Rate Base | E19: =Input!R$632 -> 0.4 | F19: =Input!S$632 -> 0.4
C20: 3 | D20: Mid-year Equity Balance | E20: =E18*E19 -> 6106307.928 | F20: =F18*F19 -> 6542300.76
C21: 4 | D21: Cost of Equity | E21: =Input!R$638 -> 0.0898 | F21: =Input!S$638 -> 0.0898
C22: 5 | D22: Cost of Equity | E22: =E20*E21 -> 548346.4519 | F22: =F20*F21 -> 587498.6082
C24: Check | E24: =E20*E21-E22 -> 0 | F24: =F20*F21-F22 -> 0
C26: Table 5.1-3
C27: Cost of Short-term Debt
E28: A | F28: B
E29: 2019 B | F29: 2020 T
C30: 1 | D30: Mid-year Rate Base | E30: =Input!R$627 -> 15265769.82 | F30: =Input!S$627 -> 16355751.9
C31: 2 | D31: ST Debt % in Rate Base | E31: =E32/E30 -> 0.04 | F31: =F32/F30 -> 0.04
C32: 3 | D32: Mid-year ST Debt Balance | E32: =Input!R$660 -> 610630.7928 | F32: =Input!S$660 -> 654230.076
C33: 4 | D33: ST Debt Interest Rate | E33: =Input!R$636 -> 0.0282 | F33: =Input!S$636 -> 0.0282
C34: 5 | D34: Cost of ST Debt | E34: =-Input!R$661 -> 17219.78836 | F34: =-Input!S$661 -> 18449.28814
C36: Check | E36: =E32*E33-E34 -> 0 | F36: =F32*F33-F34 -> 0
C38: Table 5.1-4
C39: Long-Term Cost of Debt - Promissory Note from Affiliate
D40: A | E40: B | F40: C
E41: Dated | F41: Value
C42: 1 | D42: GoC 30 Year Rate | E42: 2017-11-29 | F42: 0.0223
C43: 2 | D43: ENGLP Credit Spread | F43: 0.0155
C44: =C43+1 -> 3 | D44: Transaction Fee | F44: 0.0005
C45: =C44+1 -> 4 | D45: Total Rate | F45: =SUM(F42:F44) -> 0.0383
C47: Table 5.1-5
C48: Weighted Average Cost of Long-term Debt
E49: A | F49: B | G49: C | H49: D
E50: 2017 A | F50: 2018 F | G50: 2019 B | H50: 2020 T
C51: 1 | D51: Opening Balance | F51: =Input!Q668 -> 8660000 | G51: =Input!R668 -> 8660000 | H51: =Input!S668 -> 8660000
C52: 2 | D52: Borrowing | F52: =Input!Q669 -> 0 | G52: =Input!R669 -> 0 | H52: =Input!S669 -> 998442.128
C53: 3 | D53: Repayment | F53: =Input!Q670 -> 0 | G53: =Input!R670 -> 0 | H53: =Input!S670 -> 0
C54: 4 | D54: Ending Balance | E54: =Input!P671 -> 8660000 | F54: =Input!Q671 -> 8660000 | G54: =Input!R671 -> 8660000 | H54: =Input!S671 -> 9658442.128
C55: 5 | D55: Mid-year Balance | F55: =AVERAGE(F51,F54) -> 8660000 | G55: =AVERAGE(G51,G54) -> 8660000 | H55: =AVERAGE(H51,H54) -> 9159221.064
C56: 6 | D56: Interest Expense | F56: =-Input!Q$674 -> 331678 | G56: =-Input!R$674 -> 331678 | H56: =-Input!S$674 -> 352295.8299
C57: 7 | D57: Weighted Average Interest Rate | F57: =F56/F55 -> 0.0383 | G57: =G56/G55 -> 0.0383 | H57: =H56/H55 -> 0.03846351425
C59: Check | H59: =H55-AVERAGE(H51,H54) -> 0
C60: Check | H60: =H55-AVERAGE(Calculation!$R$43:$S$43) -> 0
C62: Table 5.2-1
C63: Board Approved Cost of Capital for 2011 Test Year (EB-2010-0018)
E64: A | F64: B | G64: C | H64: D
D65: Capital Component | E65: Mid-year Balance | F65: % of Rate Base | G65: Cost Rate | H65: Requested Return
C66: 1 | D66: Long-term Debt | E66: =F66*E$70 -> 7663620.16 | F66: 0.56 | G66: 0.0767 | H66: =E66*G66 -> 587799.6663
C67: 2 | D67: Short-term Debt | E67: =F67*E$70 -> 547401.44 | F67: 0.04 | G67: 0.0207 | H67: =E67*G67 -> 11331.20981
C68: 3 | D68: Total Debt | E68: =SUM(E66:E67) -> 8211021.6 | F68: =E68/E70 -> 0.6 | H68: =SUM(H66:H67) -> 599130.8761
C69: 4 | D69: Common Equity | E69: =E70*F$69 -> 5474014.4 | F69: =E69/E70 -> 0.4 | G69: 0.0985 | H69: =E69*G69 -> 539190.4184
C70: 5 | D70: Total Rate Base | E70: ='Exhibit 1'!$E$40 -> 13685036 | F70: =E70/E70 -> 1 | H70: =H68+H69 -> 1138321.294
C72: Table 5.2-2
C73: Summary of Proposed Cost of Capital in 2020 Test Year
E74: A | F74: B | G74: C | H74: D
D75: Capital Component | E75: Mid-year Balance ($0,000s) | F75: % of Rate Base | G75: Cost Rate | H75: Requested Return ($0,000s)
C76: 1 | D76: Long-term Debt | E76: =E$80*$F76 -> 9159221.064 | F76: =Input!S631 -> 0.56 | G76: =Input!$S$673 -> 0.03846351425 | H76: =E76*G76 -> 352295.8299
C77: 2 | D77: Short-term Debt | E77: =E$80*$F77 -> 654230.076 | F77: =Input!S630 -> 0.04 | G77: =Input!S$636 -> 0.0282 | H77: =E77*G77 -> 18449.28814
C78: 3 | D78: Total Debt | E78: =E$80*$F78 -> 9813451.14 | F78: =E78/E80 -> 0.6 | H78: =SUM(H76:H77) -> 370745.1181
C79: 4 | D79: Common Equity | E79: =E$80*$F79 -> 6542300.76 | F79: =Input!S632 -> 0.4 | G79: =Input!S$638 -> 0.0898 | H79: =E79*G79 -> 587498.6082
C80: 5 | D80: Total Rate Base | E80: =Input!S$627 -> 16355751.9 | F80: =E80/E80 -> 1 | H80: =H78+H79 -> 958243.7263
C82: Check | H82: =Calculation!S$182-H$80 -> 0
C84: Table 5.2-3
C85: Summary of Cost of Capital in 2019 Bridge Year
D86: A | E86: B | F86: C | G86: D | H86: E
D87: Capital Component | E87: Mid-year Balance ($0,000s) | F87: % of Rate Base | G87: Cost Rate | H87: Requested Return ($0,000s)
C88: 1 | D88: Long-term Debt | E88: =F88*$E$92 -> 8548831.099 | F88: =Input!R631 -> 0.56 | G88: =Input!$R$673 -> 0.0383 | H88: =E88*G88 -> 327420.2311
C89: 2 | D89: Short-term Debt | E89: =F89*$E$92 -> 610630.7928 | F89: =Input!R630 -> 0.04 | G89: =Input!R$636 -> 0.0282 | H89: =E89*G89 -> 17219.78836
C90: 3 | D90: Total Debt | E90: =F90*$E$92 -> 9159461.891 | F90: =E90/E92 -> 0.6 | H90: =SUM(H88:H89) -> 344640.0194
C91: 4 | D91: Common Equity | E91: =F91*$E$92 -> 6106307.928 | F91: =Input!R632 -> 0.4 | G91: =Input!R$638 -> 0.0898 | H91: =E91*G91 -> 548346.4519
C92: 5 | D92: Total Rate Base | E92: =Input!R$627 -> 15265769.82 | F92: =E92/E92 -> 1 | H92: =H90+H91 -> 892986.4713
C94: Check | H94: =Calculation!R$182-H$92 -> 0
C96: Table 5.2-4
C97: Summary of Cost of Capital in 2018 Forecast
D98: A | E98: B | F98: C | G98: D | H98: E
D99: Capital Component | E99: Mid-year Balance ($0,000s) | F99: % of Rate Base | G99: Cost Rate | H99: Requested Return ($0,000s)
C100: 1 | D100: Long-term Debt | E100: =F100*$E$104 -> 7633337.428 | F100: =Input!Q631 -> 0.56 | G100: =Input!$Q$673 -> 0.0383 | H100: =E100*G100 -> 292356.8235
C101: 2 | D101: Short-term Debt | E101: =F101*$E$104 -> 545238.3877 | F101: =Input!Q630 -> 0.04 | G101: =Input!Q$636 -> 0.0229 | H101: =E101*G101 -> 12485.95908
C102: 3 | D102: Total Debt | E102: =F102*$E$104 -> 8178575.816 | F102: =E102/E104 -> 0.6 | H102: =SUM(H100:H101) -> 304842.7826
C103: 4 | D103: Common Equity | E103: =F103*$E$104 -> 5452383.877 | F103: =Input!Q632 -> 0.4 | G103: =Input!Q$638 -> 0.09 | H103: =E103*G103 -> 490714.5489
C104: 5 | D104: Total Rate Base | E104: =Input!Q$627 -> 13630959.69 | F104: =E104/E104 -> 1 | H104: =H102+H103 -> 795557.3315
C106: Check | H106: =Calculation!Q$182-H$104 -> 0
C108: Table 5.2-5
C109: Historical Capital Structure
E110: A | F110: B | G110: C | H110: D | I110: E | J110: F | K110: G
E111: September | F111: September | G111: September | H111: September | I111: September | J111: September | K111: September
E112: 2011 | F112: =E112+1 -> 2012 | G112: 2013 | H112: 2014 | I112: 2015 | J112: 2016 | K112: 2017
C113: 1 | D113: Approved Capital Structure
C114: 2 | D114: Short-Term Debt | E114: 0.04 | F114: 0.04 | G114: 0.04 | H114: 0.04 | I114: 0.04 | J114: 0.04 | K114: 0.04
C115: 3 | D115: Long-Term Debt | E115: 0.56 | F115: 0.56 | G115: 0.56 | H115: 0.56 | I115: 0.56 | J115: 0.56 | K115: 0.56
C116: 4 | D116: Equity | E116: 0.4 | F116: 0.4 | G116: 0.4 | H116: 0.4 | I116: 0.4 | J116: 0.4 | K116: 0.4
C117: 5 | D117: Capital Structure
C118: 6 | D118: Short-Term Debt | E118: 0 | F118: 0 | G118: 0 | H118: 0 | I118: 0.0302108665 | J118: 0.04093544688 | K118: 0.07639768479
C119: 7 | D119: Long-Term Debt | E119: 0.5516910292 | F119: 0.5085403979 | G119: 0.4766678898 | H119: 0.4378144784 | I119: 0.5385126073 | J119: 0.5724698723 | K119: 0.5201822879
C120: 8 | D120: Equity | E120: 0.4483089708 | F120: 0.4914596021 | G120: 0.5233321102 | H120: 0.5621855216 | I120: 0.4312765262 | J120: 0.3865946808 | K120: 0.4034200273
C121: 9 | D121: Capitalization
C122: 10 | D122: Short-Term Debt | E122: =E118*E$125 -> 0 | F122: 0 | G122: 0 | H122: 0 | I122: 370325.3123 | J122: 502682.7908 | K122: 1000634.223
C123: 11 | D123: Long-Term Debt | E123: 7482094.457 | F123: 6810758.502 | G123: 6348457.058 | H123: 5762360.735 | I123: 6601096.644 | J123: 7029867.144 | K123: 6813193.369
C124: 12 | D124: Equity | E124: 6080015.603 | F124: 6581999.538 | G124: 6969950.147 | H124: 7399288.82 | I124: 5286594.949 | J124: 4747340.211 | K124: 5283875.9
C125: 13 | D125: Total Capitalization | E125: ='Exhibit 2'!F23 -> 13562110.06 | F125: ='Exhibit 2'!G23 -> 13392758.04 | G125: ='Exhibit 2'!H23 -> 13318407.21 | H125: ='Exhibit 2'!I23 -> 13161649.55 | I125: ='Exhibit 2'!J23 -> 12258016.91 | J125: ='Exhibit 2'!K23 -> 12279890.15 | K125: ='Exhibit 2'!L23 -> 13097703.49
C126: 14 | D126: Realized ROE | E126: 0.0444 | F126: 0.1138 | G126: 0.0696 | H126: 0.0933 | I126: -0.0365 | J126: 0.0922 | K126: 0.0702
C127: 15 | D127: Cost of Debt | E127: 0.06299044416 | F127: 0.02746145658 | G127: 0.03503810944 | H127: 0.03263018829 | I127: 0.02392162112 | J127: 0.02121967026 | K127: 0.03208059452

Sheet Exhibit 6
A1: Exhibit 6 Tab 1 Schedule 1
C3: Table 6.1-1
C4: 2017 – 2020 Summary of Cost of Service
C5: ($)
E6: B | F6: C | G6: D
D7: Description | E7: 2018 F | F7: 2019 Bridge | G7: 2020 Test
C8: 1 | D8: Transportation Costs | E8: =-Input!Q$460 -> 970410.5584 | F8: =-Input!R$460 -> 674644.4424 | G8: =-Input!S$460 -> 675543.9434
C9: 2 | D9: Distribution OM&A | E9: =-(Input!Q488-Input!Q460-Input!Q459-Input!Q458) -> 4122001.291 | F9: =-(Input!R488-Input!R460-Input!R459-Input!R458) -> 3244157.181 | G9: =-(Input!S488-Input!S460-Input!S459-Input!S458) -> 3359102.186
C10: 3 | D10: Depreciation and Amortization | E10: =Calculation!Q187 -> 1151792.874 | F10: =Calculation!R187 -> 1271333.484 | G10: =Calculation!S187 -> 1136086.354
C11: 4 | D11: Property Taxes | E11: =Calculation!Q188 -> 573251 | F11: =Calculation!R188 -> 605000 | G11: =Calculation!S188 -> 632000
C12: 5 | D12: Income Taxes - Support COS | E12: =Calculation!Q189 -> 0 | F12: =Calculation!R189 -> 169641.6911 | G12: =Calculation!S189 -> 4536.487652
C13: 6 | D13: Return on Rate Base | E13: =Calculation!Q190+Calculation!Q191 -> 795557.3315 | F13: =Calculation!R190+Calculation!R191 -> 892986.4713 | G13: =Calculation!S190+Calculation!S191 -> 958243.7263
C14: 7 | D14: Other Revenue | E14: =Calculation!Q192 -> -119793.01 | F14: =Calculation!R192 -> -112912.7125 | G14: =Calculation!S192 -> -112912.7125
C15: 8 | D15: Net Cost of Service | E15: =Calculation!Q193 -> 7493220.045 | F15: =SUM(F8:F14) -> 6744850.557 | G15: =Calculation!S193 -> 6652599.984
C16: 9 | D16: Revenue at Existing Rates | E16: =Calculation!Q694 -> 7234871.84 | F16: =Calculation!R694 -> 7079004.583 | G16: =Calculation!S694 -> 7004866.648
C17: 10 | D17: Revenue Sufficiency (Deficiency) | E17: =E16-E15 -> -258348.2047 | F17: =F16-F15 -> 334154.0261 | G17: =G16-G15 -> 352266.6636
C18: 11 | D18: Gross Sufficiency (Deficiency)1 | G18: =$G$17/(1-Input!$S$709) -> 479274.3723
C19: Note 1 : Row 10 / (1 - Tax Rate)
C21: Table 6.1.1-1
C22: Cost Drivers of Revenue Sufficiency
C23: ($)
E24: A | F24: B | G24: C
D25: Description | E25: 2020 Revenue at Existing Rates | F25: 2020 Proposed Revenue Requirement | G25: Variance
C26: 1 | D26: Transportation Costs | E26: 700200 | F26: =-Input!S$460 -> 675543.9434 | G26: =F26-E26 -> -24656.05661
C27: 2 | D27: Distribution OM&A | E27: 3360305.648 | F27: =-Input!S$488+Input!S$460+Input!S459+Input!S458 -> 3359102.186 | G27: -1203.462306
C28: 3 | D28: Depreciation and Amortization | E28: 1334155 | F28: =Calculation!S$187 -> 1136086.354 | G28: -198068.6462
C29: 4 | D29: Property Taxes | E29: 627917 | F29: =Calculation!S$188 -> 632000 | G29: 4083
C30: 5 | D30: Income Taxes | E30: 157265 | F30: =Calculation!S$189 -> 4536.487652 | G30: -152728.5123
C31: 6 | D31: Return on Rate Base | E31: 942214 | F31: =Calculation!S$190+Calculation!S$191 -> 958243.7263 | G31: 16029.72633
C32: 7 | D32: Other Revenue | E32: -117190 | F32: =Calculation!S$192 -> -112912.7125 | G32: 4277.2875
C33: 8 | D33: Total | E33: 7004866.648 | F33: =SUM(F26:F32) -> 6652599.984 | G33: =SUM(G26:G32) -> -352266.6636
C35: Table 6.1.2-2
C36: Taxable Income
C37: ($)
E38: A
D39: Description | E39: 2020 Test Year
C40: 1 | D40: Commodity Revenue | E40: =Calculation!S145 -> 4749851.43
C41: 2 | D41: Commodity Cost | E41: =Calculation!S146 -> -4749851.43
C42: 4 | D42: Distribution Revenue | E42: =Calculation!S149 -> 6652600.087
C43: 5 | D43: add: Other Revenue | E43: =Calculation!S$16 -> 112912.7125
C44: 6 | D44: less: Distribution OM&A and Transportation Costs (Deductible Portion) | E44: =Calculation!S151 -> -4027073.627
C45: 7 | D45: less: Property Taxes | E45: =Calculation!S152 -> -632000
C46: 8 | D46: less: Interest Expense | E46: =Calculation!S153 -> -408085.4837
C47: 9 | D47: less: CCA | E47: =Calculation!S154 -> -1681234.867
C48: 10 | D48: Taxable Income | E48: =MAX(0,SUM(E40:E47)) -> 17118.82133
C50: Table 6.2-1
C51: Proposed 2020 Test Year Net Utility Income
C52: ($)
E53: A
D54: Description | E54: Amount
C55: 1 | D55: Operating Revenues
C56: 2 | D56: Distribution Revenues | E56: =Calculation!S$15 -> 6652600.087
C57: 3 | D57: Other Revenues | E57: =Calculation!S$16 -> 112912.7125
C58: 4 | D58: Total Revenues | E58: =SUM(E56:E57) -> 6765512.799
C59: 5 | D59: Operating Expenses
C60: 6 | D60: Distribution OM&A and Transportation Cost | E60: =Calculation!S$17 -> -4034646.129
C61: 7 | D61: Depreciation Expense | E61: =Calculation!S$21+Calculation!S$22 -> -1136086.354
C62: 8 | D62: Property Taxes | E62: =Calculation!S$18 -> -632000
C63: 9 | D63: Interest Expense | E63: =Calculation!S$23 -> -408085.4837
C64: 10 | D64: Gain / Loss on Disposal | E64: =Calculation!S$24 -> -162461.21
C65: 11 | D65: Total Expenses | E65: =SUM(E60:E64) -> -6373279.177
C66: 12 | D66: Net Income before Income Taxes | E66: =E$58+E$65 -> 392233.6227
C67: 13 | D67: Income Taxes | E67: =Calculation!S$25+Calculation!S$26 -> -103941.91
C68: 14
C69: 15 | D69: Utility Net Income | E69: =E66+E67 -> 288291.7127
C71: Check | E71: =Calculation!$S$27-$E$69 -> 0
C73: Table 6.3-1
C74: 2020 Test Year Rate Base
C75: ($)
E76: A
D77: Description | E77: Amount
C78: 1 | D78: Opening Fixed Assets | E78: =Calculation!$S$1488+Calculation!$S$1630 -> 16335025.68
C79: 2 | D79: Closed Fixed Assets | E79: =Calculation!$S$1572+Calculation!$S$1714 -> 16376478.12
C80: 3 | D80: Mid-Year (Average) Fixed Assets | E80: =Calculation!$S$1772 -> 16355751.9
C81: 4 | D81: Working Capital Allowance | E81: 0
C82: 5 | D82: Total Rate Base | E82: =SUM(E80:E81) -> 16355751.9
C84: Check | E84: =AVERAGE(E78,E79)-E80 -> 0
C86: Table 6.4-1
C87: 2020 Test Year Return on Rate Base
C88: ($)
E89: A | F89: B | G89: C | H89: D | I89: E
D90: Capital Component | E90: Mid Year Rate Base | F90: Ratio | G90: Cost Rate | H90: Return Component (WACC) | I90: Return Amount
C91: 1 | D91: Equity | E91: ='Exhibit 5'!E7 -> 6542300.76 | F91: ='Exhibit 5'!F7 -> 0.4 | G91: ='Exhibit 5'!G7 -> 0.0898 | H91: ='Exhibit 5'!H7 -> 0.03592 | I91: ='Exhibit 5'!I7 -> 587498.6082
C92: 2 | D92: LT Debt | E92: ='Exhibit 5'!E8 -> 9159221.064 | F92: ='Exhibit 5'!F8 -> 0.56 | G92: ='Exhibit 5'!G8 -> 0.03846351425 | H92: ='Exhibit 5'!H8 -> 0.02153956798 | I92: ='Exhibit 5'!I8 -> 352295.8299
C93: 3 | D93: ST Debt | E93: ='Exhibit 5'!E9 -> 654230.076 | F93: ='Exhibit 5'!F9 -> 0.04 | G93: ='Exhibit 5'!G9 -> 0.0282 | H93: ='Exhibit 5'!H9 -> 0.001128 | I93: ='Exhibit 5'!I9 -> 18449.28814
C94: 4 | D94: Total | E94: ='Exhibit 5'!E10 -> 16355751.9 | F94: ='Exhibit 5'!F10 -> 1 | H94: ='Exhibit 5'!H10 -> 0.05858756798 | I94: ='Exhibit 5'!I10 -> 958243.7263

Sheet Exhibit 7
A1: Exhibit 7 Tab 1
C3: Table 7.1-1
C4: Distribution Revenue to Cost Comparison (excluding Commodity)
C5: ( $)
E6: A | F6: B | G6: C | H6: D | I6: E | J6: F | K6: G | L6: H | M6: I | N6: J
E7: Total | F7: Rate 1 | G7: Rate 1 - Residential | H7: Rate 1 - Commercial | I7: Rate 1 - Industrial | J7: Rate 2 | K7: Rate 3 | L7: Rate 4 | M7: Rate 5 | N7: Rate 6
C8: 1 | D8: Proposed Revenue | E8: =E29 -> 6652600.087 | F8: 5262635.717 | G8: 4303350.009 | H8: 731833.2263 | I8: 227452.482 | J8: 158956.5002 | K8: 172071.4989 | L8: 142753.9837 | M8: 65766.80678 | N8: 850415.58
C9: 2 | D9: Cost | E9: =E30 -> 6652599.984 | F9: 5254090.896 | G9: 4387928.422 | H9: 697775.8662 | I9: 168386.6077 | J9: 161267.0945 | K9: 179031.0343 | L9: 170744.7645 | M9: 108793.0484 | N9: 778673.1466
C10: 3 | D10: Over (Under) Contribution | E10: =E31 -> 0.1024080794 | F10: 8544.8211 | G10: -84578.41337 | H10: 34057.36016 | I10: 59065.87431 | J10: -2310.594368 | K10: -6959.535353 | L10: -27990.78083 | M10: -43026.24158 | N10: 71742.43344
C11: 4 | D11: Proposed Revenue to Cost Ratio | E11: =E32 -> 1.000000015 | F11: 1.001626318 | G11: 0.9807247509 | H11: 1.048808452 | I11: 1.350775368 | J11: 0.9856722515 | K11: 0.9611266539 | L11: 0.8360665353 | M11: 0.6045129516 | N11: 1.092134208
C12: 5 | D12: EB-2010-0018 Approved | E12: =E33 -> 0.9826 | F12: 0.9904941362 | G12: 0.9388 | H12: 1.4694 | I12: =I33 -> 0.7151 | J12: 0.3692 | K12: 0.927 | L12: 1.139 | M12: 0.6075 | N12: 1.0649
C14: Table 7.4‑1
C15: Total Revenue to Cost Comparison
C16: ($ thousands)
E17: A | F17: B | G17: C | H17: D | I17: E | J17: F | K17: G | L17: H | M17: I | N17: J
E18: Total | F18: Rate 1 | G18: =Input!$C$21 -> Rate 1 - Residential | H18: =Input!$C$22 -> Rate 1 - Commercial | I18: =Input!$C$23 -> Rate 1 - Industrial | J18: =Input!$C$24 -> Rate 2 | K18: =Input!$C$25 -> Rate 3 | L18: =Input!$C$26 -> Rate 4 | M18: =Input!$C$27 -> Rate 5 | N18: =Input!$C$28 -> Rate 6
C19: 1 | D19: Revenue | E19: =SUM(G19:N19) -> 11402451.52 | F19: =SUM(G19:I19) -> 9271096.409 | G19: =G$29+G$379 -> 7360630.112 | H19: 1403199.565 | I19: 507266.7318 | J19: 380106.3333 | K19: 423121.0513 | L19: 337678.0084 | M19: 140034.1348 | N19: 850415.58
C20: 2 | D20: Cost | E20: =SUM(G20:N20) -> 11402451.41 | F20: =SUM(G20:I20) -> 9262551.587 | G20: =G$30+G$379 -> 7445208.525 | H20: 1369142.205 | I20: 448200.8575 | J20: 382416.9276 | K20: 430080.5867 | L20: 365668.7893 | M20: 183060.3764 | N20: 778673.1466
C21: 3 | D21: Over (Under) Contribution | E21: =SUM(G21:N21) -> 0.1024080793 | F21: =F19-F20 -> 8544.8211 | G21: -84578.41337 | H21: 34057.36016 | I21: 59065.87431 | J21: -2310.594368 | K21: -6959.535353 | L21: -27990.78083 | M21: -43026.24158 | N21: 71742.43344
C22: 4 | D22: Revenue to Cost Ratio | E22: =E19/E20 -> 1.000000009 | F22: 1.000922513 | G22: 0.9886398866 | H22: 1.024874962 | I22: 1.131784385 | J22: 0.9939579182 | K22: 0.9838180667 | L22: 0.9234531859 | M22: 0.7649614711 | N22: 1.092134208
C24: Table 7.4-2
C25: Distribution Revenue to Cost Comparison (excluding Commodity)
C26: ($ thousands)
E27: A | F27: B | G27: C | H27: D | I27: E | J27: F | K27: G | L27: H | M27: I | N27: J
E28: Total | F28: Rate 1 | G28: =Input!$C$21 -> Rate 1 - Residential | H28: =Input!$C$22 -> Rate 1 - Commercial | I28: =Input!$C$23 -> Rate 1 - Industrial | J28: =Input!$C$24 -> Rate 2 | K28: =Input!$C$25 -> Rate 3 | L28: =Input!$C$26 -> Rate 4 | M28: =Input!$C$27 -> Rate 5 | N28: =Input!$C$28 -> Rate 6
C29: 1 | D29: Proposed Revenue | E29: =SUM(G29:N29) -> 6652600.087 | F29: =SUM(G29:I29) -> 5262635.717 | G29: =INDEX(Calculation!$E$450:$E$457,MATCH(G$28,Calculation!$C$450:$C$457,0),1) -> 4303350.009 | H29: =INDEX(Calculation!$E$450:$E$457,MATCH(H$28,Calculation!$C$450:$C$457,0),1) -> 731833.2263 | I29: =INDEX(Calculation!$E$450:$E$457,MATCH(I$28,Calculation!$C$450:$C$457,0),1) -> 227452.482 | J29: =INDEX(Calculation!$E$450:$E$457,MATCH(J$28,Calculation!$C$450:$C$457,0),1) -> 158956.5002 | K29: =INDEX(Calculation!$E$450:$E$457,MATCH(K$28,Calculation!$C$450:$C$457,0),1) -> 172071.4989 | L29: =INDEX(Calculation!$E$450:$E$457,MATCH(L$28,Calculation!$C$450:$C$457,0),1) -> 142753.9837 | M29: =INDEX(Calculation!$E$450:$E$457,MATCH(M$28,Calculation!$C$450:$C$457,0),1) -> 65766.80678 | N29: =INDEX(Calculation!$E$450:$E$457,MATCH(N$28,Calculation!$C$450:$C$457,0),1) -> 850415.58
C30: 2 | D30: Cost | E30: =SUM(G30:N30) -> 6652599.984 | F30: =SUM(G30:I30) -> 5254090.896 | G30: =F$370 -> 4387928.422 | H30: 697775.8662 | I30: 168386.6077 | J30: 161267.0945 | K30: 179031.0343 | L30: 170744.7645 | M30: 108793.0484 | N30: =SUM(M$370:N$370) -> 778673.1466
C31: 3 | D31: Over (Under) Contribution | E31: =SUM(G31:N31) -> 0.1024080794 | F31: =F29-F30 -> 8544.8211 | G31: -84578.41337 | H31: 34057.36016 | I31: 59065.87431 | J31: -2310.594368 | K31: -6959.535353 | L31: -27990.78083 | M31: -43026.24158 | N31: 71742.43344
C32: 4 | D32: Proposed Revenue to Cost Ratio | E32: =E29/E30 -> 1.000000015 | F32: 1.001626318 | G32: 0.9807247509 | H32: 1.048808452 | I32: 1.350775368 | J32: 0.9856722515 | K32: 0.9611266539 | L32: 0.8360665353 | M32: 0.6045129516 | N32: 1.092134208
C33: 5 | D33: EB-2010-0018 (Jan 27, 2011 DRO) | E33: 0.9826 | F33: =(2874.3+573.2+74.4)/(3061.5+390.1+104.1) -> 0.9904941362 | G33: 0.9388 | H33: 1.4694 | I33: 0.7151 | J33: 0.3692 | K33: 0.927 | L33: 1.139 | M33: 0.6075 | N33: 1.0649
C35: Check | E35: =Calculation!$S$15-$E$29 -> 0
A37: Exhibit 7 Tab 2
C39: Schedule 1
C40: Functionalization of Rate Base
C41: ($ thousands)
E42: A | F42: B | G42: C | H42: D | I42: E | J42: F | K42: G | L42: H | M42: I | N42: J | O42: K | P42: L | Q42: M | R42: N | S42: O | T42: P
D43: Asset | E43: Total | F43: =Calculation!J$202 -> Gas Supply | G43: =Calculation!K$202 -> Transportation Load Bal/ Storage | H43: =Calculation!L$202 -> Distribution Measurement | I43: =Calculation!M$202 -> Distribution - Mains | J43: =Calculation!N$202 -> Customer - Services | K43: =Calculation!O$202 -> Customer - Meters | L43: =Calculation!P$202 -> Billing & Accounting | M43: =Calculation!Q$202 -> Promotion | N43: =Calculation!R$202 -> Bad Debt & Collection | O43: =Calculation!S$202 -> A&G | P43: =Calculation!T$202 -> LEAP Funding | Q43: =Calculation!U$202 -> Direct Assignment to IGPC | R43: =Calculation!V$202 -> Other Revenue | S43: Functionalization Factor | T43: USoA #
C44: 1 | D44: =Input!$C$749 -> Land Rights - Distribution | E44: =SUM(F44:R44) -> 0 | F44: =Calculation!J203 -> 0 | G44: =Calculation!K203 -> 0 | H44: =Calculation!L203 -> 0 | I44: =Calculation!M203 -> 0 | J44: =Calculation!N203 -> 0 | K44: =Calculation!O203 -> 0 | L44: =Calculation!P203 -> 0 | M44: =Calculation!Q203 -> 0 | N44: =Calculation!R203 -> 0 | O44: =Calculation!S203 -> 0 | P44: =Calculation!T203 -> 0 | Q44: =Calculation!U203 -> 0 | R44: =Calculation!V203 -> 0 | S44: =Input!F749 -> Bldgs&Impr. | T44: =Input!E749 -> 471
C45: 2 | D45: =Input!$C$750 -> Structures and Improvements - Distribution | E45: =SUM(F45:R45) -> 0 | F45: =Calculation!J204 -> 0 | G45: =Calculation!K204 -> 0 | H45: =Calculation!L204 -> 0 | I45: =Calculation!M204 -> 0 | J45: =Calculation!N204 -> 0 | K45: =Calculation!O204 -> 0 | L45: =Calculation!P204 -> 0 | M45: =Calculation!Q204 -> 0 | N45: =Calculation!R204 -> 0 | O45: =Calculation!S204 -> 0 | P45: =Calculation!T204 -> 0 | Q45: =Calculation!U204 -> 0 | R45: =Calculation!V204 -> 0 | S45: =Input!F750 -> Bldgs&Impr. | T45: =Input!E750 -> 472
C46: 3 | D46: =Input!$C$751 -> Mains - Distribution | E46: 7340802.096 | F46: =Calculation!J205 -> 0 | G46: =Calculation!K205 -> 0 | H46: =Calculation!L205 -> 0 | I46: =Calculation!M205 -> 7340802.096 | J46: =Calculation!N205 -> 0 | K46: =Calculation!O205 -> 0 | L46: =Calculation!P205 -> 0 | M46: =Calculation!Q205 -> 0 | N46: =Calculation!R205 -> 0 | O46: =Calculation!S205 -> 0 | P46: =Calculation!T205 -> 0 | Q46: =Calculation!U205 -> 0 | R46: =Calculation!V205 -> 0 | S46: =Input!F751 -> Mains | T46: =Input!E751 -> 475
C47: 4 | D47: =Input!$C$752 -> Measuring and Regulating Equipment - Distribution | E47: 746495.9375 | F47: =Calculation!J206 -> 0 | G47: =Calculation!K206 -> 0 | H47: =Calculation!L206 -> 746495.9375 | I47: =Calculation!M206 -> 0 | J47: =Calculation!N206 -> 0 | K47: =Calculation!O206 -> 0 | L47: =Calculation!P206 -> 0 | M47: =Calculation!Q206 -> 0 | N47: =Calculation!R206 -> 0 | O47: =Calculation!S206 -> 0 | P47: =Calculation!T206 -> 0 | Q47: =Calculation!U206 -> 0 | R47: =Calculation!V206 -> 0 | S47: =Input!F752 -> Distribution Measurement | T47: =Input!E752 -> 477
C48: 5 | D48: =Input!$C$753 -> Regulators and Meter Installations | E48: 103509.7477 | F48: =Calculation!J207 -> 0 | G48: =Calculation!K207 -> 0 | H48: =Calculation!L207 -> 0 | I48: =Calculation!M207 -> 0 | J48: =Calculation!N207 -> 103509.7477 | K48: =Calculation!O207 -> 0 | L48: =Calculation!P207 -> 0 | M48: =Calculation!Q207 -> 0 | N48: =Calculation!R207 -> 0 | O48: =Calculation!S207 -> 0 | P48: =Calculation!T207 -> 0 | Q48: =Calculation!U207 -> 0 | R48: =Calculation!V207 -> 0 | S48: =Input!F753 -> Regulators | T48: =Input!E753 -> 474
C49: 6 | D49: =Input!$C$754 -> Services | E49: 1145651.202 | F49: =Calculation!J208 -> 0 | G49: =Calculation!K208 -> 0 | H49: =Calculation!L208 -> 0 | I49: =Calculation!M208 -> 0 | J49: =Calculation!N208 -> 1145651.202 | K49: =Calculation!O208 -> 0 | L49: =Calculation!P208 -> 0 | M49: =Calculation!Q208 -> 0 | N49: =Calculation!R208 -> 0 | O49: =Calculation!S208 -> 0 | P49: =Calculation!T208 -> 0 | Q49: =Calculation!U208 -> 0 | R49: =Calculation!V208 -> 0 | S49: =Input!F754 -> Services | T49: =Input!E754 -> 473
C50: 7 | D50: =Input!$C$755 -> Meter | E50: 1617779.158 | F50: =Calculation!J209 -> 0 | G50: =Calculation!K209 -> 0 | H50: =Calculation!L209 -> 0 | I50: =Calculation!M209 -> 0 | J50: =Calculation!N209 -> 0 | K50: =Calculation!O209 -> 1617779.158 | L50: =Calculation!P209 -> 0 | M50: =Calculation!Q209 -> 0 | N50: =Calculation!R209 -> 0 | O50: =Calculation!S209 -> 0 | P50: =Calculation!T209 -> 0 | Q50: =Calculation!U209 -> 0 | R50: =Calculation!V209 -> 0 | S50: =Input!F755 -> Meters | T50: =Input!E755 -> 478
C51: 8 | D51: =Input!$C$756 -> Land | E51: 122700.43 | F51: =Calculation!J210 -> 0 | G51: =Calculation!K210 -> 0 | H51: =Calculation!L210 -> 670.4070945 | I51: =Calculation!M210 -> 18260.94888 | J51: =Calculation!N210 -> 15964.7619 | K51: =Calculation!O210 -> 11935.72398 | L51: =Calculation!P210 -> 24475.61349 | M51: =Calculation!Q210 -> 9680.132508 | N51: =Calculation!R210 -> 5396.236111 | O51: =Calculation!S210 -> 36316.60603 | P51: =Calculation!T210 -> 0 | Q51: =Calculation!U210 -> 0 | R51: =Calculation!V210 -> 0 | S51: =Input!F756 -> Bldgs&Impr. | T51: =Input!E756 -> 480
C52: 9 | D52: =Input!$C$757 -> Heavy Work Equipment | E52: 0 | F52: =Calculation!J211 -> 0 | G52: =Calculation!K211 -> 0 | H52: =Calculation!L211 -> 0 | I52: =Calculation!M211 -> 0 | J52: =Calculation!N211 -> 0 | K52: =Calculation!O211 -> 0 | L52: =Calculation!P211 -> 0 | M52: =Calculation!Q211 -> 0 | N52: =Calculation!R211 -> 0 | O52: =Calculation!S211 -> 0 | P52: =Calculation!T211 -> 0 | Q52: =Calculation!U211 -> 0 | R52: =Calculation!V211 -> 0 | S52: =Input!F757 -> Heavy Equipment | T52: =Input!E757 -> 485
C53: 10 | D53: =Input!$C$758 -> Transportation Equipment | E53: 200657.3577 | F53: =Calculation!J212 -> 0 | G53: =Calculation!K212 -> 0 | H53: =Calculation!L212 -> 2062.418226 | I53: =Calculation!M212 -> 53598.31726 | J53: =Calculation!N212 -> 47585.97315 | K53: =Calculation!O212 -> 18561.76403 | L53: =Calculation!P212 -> 6384.318997 | M53: =Calculation!Q212 -> 25016.06668 | N53: =Calculation!R212 -> 0 | O53: =Calculation!S212 -> 47448.49934 | P53: =Calculation!T212 -> 0 | Q53: =Calculation!U212 -> 0 | R53: =Calculation!V212 -> 0 | S53: =Input!F758 -> Vehicles | T53: =Input!E758 -> 484
C54: 11 | D54: =Input!$C$759 -> Structures and Improvements - General | E54: 444452.8287 | F54: =Calculation!J213 -> 0 | G54: =Calculation!K213 -> 0 | H54: =Calculation!L213 -> 2428.388634 | I54: =Calculation!M213 -> 66145.90011 | J54: =Calculation!N213 -> 57828.51443 | K54: =Calculation!O213 -> 43234.29253 | L54: =Calculation!P213 -> 88657.02958 | M54: =Calculation!Q213 -> 35063.95435 | N54: =Calculation!R213 -> 19546.56886 | O54: =Calculation!S213 -> 131548.1802 | P54: =Calculation!T213 -> 0 | Q54: =Calculation!U213 -> 0 | R54: =Calculation!V213 -> 0 | S54: =Input!F759 -> Bldgs&Impr. | T54: =Input!E759 -> 482
C55: 12 | D55: =Input!$C$760 -> Office Furniture and Equipment | E55: 2679.581 | F55: =Calculation!J214 -> 0 | G55: =Calculation!K214 -> 0 | H55: =Calculation!L214 -> 14.64061791 | I55: =Calculation!M214 -> 398.7898956 | J55: =Calculation!N214 -> 348.6448471 | K55: =Calculation!O214 -> 260.6571076 | L55: =Calculation!P214 -> 534.5082237 | M55: =Calculation!Q214 -> 211.3986002 | N55: =Calculation!R214 -> 117.8451596 | O55: =Calculation!S214 -> 793.0965483 | P55: =Calculation!T214 -> 0 | Q55: =Calculation!U214 -> 0 | R55: =Calculation!V214 -> 0 | S55: =Input!F760 -> Bldgs&Impr. | T55: =Input!E760 -> 483
C56: 13 | D56: =Input!$C$761 -> Communication Structures and Equipment | E56: 38872.32653 | F56: =Calculation!J215 -> 0 | G56: =Calculation!K215 -> 0 | H56: =Calculation!L215 -> 0 | I56: =Calculation!M215 -> 9718.081632 | J56: =Calculation!N215 -> 9718.081632 | K56: =Calculation!O215 -> 0 | L56: =Calculation!P215 -> 0 | M56: =Calculation!Q215 -> 0 | N56: =Calculation!R215 -> 0 | O56: =Calculation!S215 -> 19436.16326 | P56: =Calculation!T215 -> 0 | Q56: =Calculation!U215 -> 0 | R56: =Calculation!V215 -> 0 | S56: =Input!F761 -> Communications | T56: =Input!E761 -> 488
C57: 14 | D57: =Input!$C$762 -> Computer Hardware | E57: 75448.0513 | F57: =Calculation!J216 -> 0 | G57: =Calculation!K216 -> 0 | H57: =Calculation!L216 -> 393.1738131 | I57: =Calculation!M216 -> 11081.04159 | J57: =Calculation!N216 -> 11191.78821 | K57: =Calculation!O216 -> 7711.625114 | L57: =Calculation!P216 -> 14405.9386 | M57: =Calculation!Q216 -> 4927.76328 | N57: =Calculation!R216 -> 4106.4694 | O57: =Calculation!S216 -> 21630.25129 | P57: =Calculation!T216 -> 0 | Q57: =Calculation!U216 -> 0 | R57: =Calculation!V216 -> 0 | S57: =Input!F762 -> Computers | T57: =Input!E762 -> 490
C58: 15 | D58: =Input!$C$763 -> Computer Application Software | E58: 355312.161 | F58: =Calculation!J217 -> 0 | G58: =Calculation!K217 -> 0 | H58: =Calculation!L217 -> 0 | I58: =Calculation!M217 -> 0 | J58: =Calculation!N217 -> 0 | K58: =Calculation!O217 -> 0 | L58: =Calculation!P217 -> 266484.1208 | M58: =Calculation!Q217 -> 0 | N58: =Calculation!R217 -> 0 | O58: =Calculation!S217 -> 88828.04026 | P58: =Calculation!T217 -> 0 | Q58: =Calculation!U217 -> 0 | R58: =Calculation!V217 -> 0 | S58: =Input!F763 -> Computer Application Software | T58: =Input!E763 -> 491
C59: 16 | D59: =Input!$C$764 -> Tools and Work Equipment | E59: 179432.5377 | F59: =Calculation!J218 -> 0 | G59: =Calculation!K218 -> 0 | H59: =Calculation!L218 -> 3277.085778 | I59: =Calculation!M218 -> 76668.21916 | J59: =Calculation!N218 -> 69993.46078 | K59: =Calculation!O218 -> 29493.772 | L59: =Calculation!P218 -> 0 | M59: =Calculation!Q218 -> 0 | N59: =Calculation!R218 -> 0 | O59: =Calculation!S218 -> 0 | P59: =Calculation!T218 -> 0 | Q59: =Calculation!U218 -> 0 | R59: =Calculation!V218 -> 0 | S59: =Input!F764 -> SmallTools | T59: =Input!E764 -> 486
C60: 17 | D60: =Input!$C$765 -> Frachises and Consents | E60: 367912.2531 | F60: =Calculation!J219 -> 0 | G60: =Calculation!K219 -> 0 | H60: =Calculation!L219 -> 0 | I60: =Calculation!M219 -> 0 | J60: =Calculation!N219 -> 0 | K60: =Calculation!O219 -> 0 | L60: =Calculation!P219 -> 0 | M60: =Calculation!Q219 -> 0 | N60: =Calculation!R219 -> 0 | O60: =Calculation!S219 -> 367912.2531 | P60: =Calculation!T219 -> 0 | Q60: =Calculation!U219 -> 0 | R60: =Calculation!V219 -> 0 | S60: =Input!F765 -> A&G | T60: =Input!E765 -> 401
C61: 18 | D61: =Input!$C$766 -> Mains - IGPC | E61: 3607105.517 | F61: =Calculation!J220 -> 0 | G61: =Calculation!K220 -> 0 | H61: =Calculation!L220 -> 0 | I61: =Calculation!M220 -> 0 | J61: =Calculation!N220 -> 0 | K61: =Calculation!O220 -> 0 | L61: =Calculation!P220 -> 0 | M61: =Calculation!Q220 -> 0 | N61: =Calculation!R220 -> 0 | O61: =Calculation!S220 -> 0 | P61: =Calculation!T220 -> 0 | Q61: =Calculation!U220 -> 3607105.517 | R61: =Calculation!V220 -> 0 | S61: =Input!F766 -> IGPC Direct Assignment | T61: =Input!E766 -> 475b
C62: 19 | D62: =Input!$C$767 -> Meter - IGPC | E62: 6940.71475 | F62: =Calculation!J221 -> 0 | G62: =Calculation!K221 -> 0 | H62: =Calculation!L221 -> 0 | I62: =Calculation!M221 -> 0 | J62: =Calculation!N221 -> 0 | K62: =Calculation!O221 -> 0 | L62: =Calculation!P221 -> 0 | M62: =Calculation!Q221 -> 0 | N62: =Calculation!R221 -> 0 | O62: =Calculation!S221 -> 0 | P62: =Calculation!T221 -> 0 | Q62: =Calculation!U221 -> 6940.71475 | R62: =Calculation!V221 -> 0 | S62: =Input!F767 -> IGPC Direct Assignment | T62: =Input!E767 -> 478b
C63: 20 | D63: =Input!$C$768 -> 0 | E63: 0 | F63: =Calculation!J222 -> 0 | G63: =Calculation!K222 -> 0 | H63: =Calculation!L222 -> 0 | I63: =Calculation!M222 -> 0 | J63: =Calculation!N222 -> 0 | K63: =Calculation!O222 -> 0 | L63: =Calculation!P222 -> 0 | M63: =Calculation!Q222 -> 0 | N63: =Calculation!R222 -> 0 | O63: =Calculation!S222 -> 0 | P63: =Calculation!T222 -> 0 | Q63: =Calculation!U222 -> 0 | R63: =Calculation!V222 -> 0 | S63: =Input!F768 -> 0 | T63: =Input!E768 -> 0
C64: 21 | D64: =Input!$C$769 -> 0 | E64: 0 | F64: =Calculation!J223 -> 0 | G64: =Calculation!K223 -> 0 | H64: =Calculation!L223 -> 0 | I64: =Calculation!M223 -> 0 | J64: =Calculation!N223 -> 0 | K64: =Calculation!O223 -> 0 | L64: =Calculation!P223 -> 0 | M64: =Calculation!Q223 -> 0 | N64: =Calculation!R223 -> 0 | O64: =Calculation!S223 -> 0 | P64: =Calculation!T223 -> 0 | Q64: =Calculation!U223 -> 0 | R64: =Calculation!V223 -> 0 | S64: =Input!F769 -> 0 | T64: =Input!E769 -> 0
C65: 22 | D65: =Input!$C$770 -> 0 | E65: 0 | F65: =Calculation!J224 -> 0 | G65: =Calculation!K224 -> 0 | H65: =Calculation!L224 -> 0 | I65: =Calculation!M224 -> 0 | J65: =Calculation!N224 -> 0 | K65: =Calculation!O224 -> 0 | L65: =Calculation!P224 -> 0 | M65: =Calculation!Q224 -> 0 | N65: =Calculation!R224 -> 0 | O65: =Calculation!S224 -> 0 | P65: =Calculation!T224 -> 0 | Q65: =Calculation!U224 -> 0 | R65: =Calculation!V224 -> 0 | S65: =Input!F770 -> 0 | T65: =Input!E770 -> 0
C66: 23 | D66: =Input!$C$771 -> 0 | E66: 0 | F66: =Calculation!J225 -> 0 | G66: =Calculation!K225 -> 0 | H66: =Calculation!L225 -> 0 | I66: =Calculation!M225 -> 0 | J66: =Calculation!N225 -> 0 | K66: =Calculation!O225 -> 0 | L66: =Calculation!P225 -> 0 | M66: =Calculation!Q225 -> 0 | N66: =Calculation!R225 -> 0 | O66: =Calculation!S225 -> 0 | P66: =Calculation!T225 -> 0 | Q66: =Calculation!U225 -> 0 | R66: =Calculation!V225 -> 0 | S66: =Input!F771 -> 0 | T66: =Input!E771 -> 0
C67: 24 | D67: =Input!$C$772 -> 0 | E67: 0 | F67: =Calculation!J226 -> 0 | G67: =Calculation!K226 -> 0 | H67: =Calculation!L226 -> 0 | I67: =Calculation!M226 -> 0 | J67: =Calculation!N226 -> 0 | K67: =Calculation!O226 -> 0 | L67: =Calculation!P226 -> 0 | M67: =Calculation!Q226 -> 0 | N67: =Calculation!R226 -> 0 | O67: =Calculation!S226 -> 0 | P67: =Calculation!T226 -> 0 | Q67: =Calculation!U226 -> 0 | R67: =Calculation!V226 -> 0 | S67: =Input!F772 -> 0 | T67: =Input!E772 -> 0
C68: 25 | D68: =Input!$C$773 -> 0 | E68: 0 | F68: =Calculation!J227 -> 0 | G68: =Calculation!K227 -> 0 | H68: =Calculation!L227 -> 0 | I68: =Calculation!M227 -> 0 | J68: =Calculation!N227 -> 0 | K68: =Calculation!O227 -> 0 | L68: =Calculation!P227 -> 0 | M68: =Calculation!Q227 -> 0 | N68: =Calculation!R227 -> 0 | O68: =Calculation!S227 -> 0 | P68: =Calculation!T227 -> 0 | Q68: =Calculation!U227 -> 0 | R68: =Calculation!V227 -> 0 | S68: =Input!F773 -> 0 | T68: =Input!E773 -> 0
C69: 26 | D69: Sum | E69: =SUM(E44:E68) -> 16355751.9 | F69: =SUM(F44:F68) -> 0 | G69: 0 | H69: 755342.0516 | I69: 7576673.394 | J69: 1461792.175 | K69: 1728976.993 | L69: 400941.5297 | M69: 74899.31541 | N69: 29167.11953 | O69: 713913.09 | P69: 0 | Q69: 3614046.232 | R69: 0
C71: Check | E71: =Calculation!$S$1772-$E$69 -> 0
C73: Schedule 2
C74: Functionalization of O&M
C75: ($ thousands)
E76: A | F76: B | G76: C | H76: D | I76: E | J76: F | K76: G | L76: H | M76: I | N76: J | O76: K | P76: L | Q76: M | R76: N | S76: O
D77: Cost | E77: Total | F77: =Calculation!J$234 -> Gas Supply | G77: =Calculation!K$234 -> Transportation Load Bal/ Storage | H77: =Calculation!L$234 -> Distribution Measurement | I77: =Calculation!M$234 -> Distribution - Mains | J77: =Calculation!N$234 -> Customer - Services | K77: =Calculation!O$234 -> Customer - Meters | L77: =Calculation!P$234 -> Billing & Accounting | M77: =Calculation!Q$234 -> Promotion | N77: =Calculation!R$234 -> Bad Debt & Collection | O77: =Calculation!S$234 -> A&G | P77: =Calculation!T$234 -> LEAP Funding | Q77: =Calculation!U$234 -> Direct Assignment to IGPC | R77: =Calculation!V$234 -> Other Revenue | S77: Functionalization Factor
C78: 1 | D78: =Calculation!C235 -> Wages and Benefits Related to Gas Supply | E78: =SUM(F78:R78) -> 3095.822 | F78: =Calculation!J235 -> 3095.822 | G78: =Calculation!K235 -> 0 | H78: =Calculation!L235 -> 0 | I78: =Calculation!M235 -> 0 | J78: =Calculation!N235 -> 0 | K78: =Calculation!O235 -> 0 | L78: =Calculation!P235 -> 0 | M78: =Calculation!Q235 -> 0 | N78: =Calculation!R235 -> 0 | O78: =Calculation!S235 -> 0 | P78: =Calculation!T235 -> 0 | Q78: =Calculation!U235 -> 0 | R78: =Calculation!V235 -> 0 | S78: =Calculation!E235 -> Gas Supply
C79: 2 | D79: =Calculation!C236 -> Regulatory Expense Related to Gas Supply | E79: =SUM(F79:R79) -> 8404.968 | F79: =Calculation!J236 -> 8404.968 | G79: =Calculation!K236 -> 0 | H79: =Calculation!L236 -> 0 | I79: =Calculation!M236 -> 0 | J79: =Calculation!N236 -> 0 | K79: =Calculation!O236 -> 0 | L79: =Calculation!P236 -> 0 | M79: =Calculation!Q236 -> 0 | N79: =Calculation!R236 -> 0 | O79: =Calculation!S236 -> 0 | P79: =Calculation!T236 -> 0 | Q79: =Calculation!U236 -> 0 | R79: =Calculation!V236 -> 0 | S79: =Calculation!E236 -> Gas Supply
C80: 3 | D80: =Calculation!C237 -> Enbridge M9 Cost (Excluding IGPC after September 2018) | E80: 675543.9434 | F80: =Calculation!J237 -> 0 | G80: =Calculation!K237 -> 675543.9434 | H80: =Calculation!L237 -> 0 | I80: =Calculation!M237 -> 0 | J80: =Calculation!N237 -> 0 | K80: =Calculation!O237 -> 0 | L80: =Calculation!P237 -> 0 | M80: =Calculation!Q237 -> 0 | N80: =Calculation!R237 -> 0 | O80: =Calculation!S237 -> 0 | P80: =Calculation!T237 -> 0 | Q80: =Calculation!U237 -> 0 | R80: =Calculation!V237 -> 0 | S80: =Calculation!E237 -> Transportation
C81: 4 | D81: =Calculation!C238 -> Wages | E81: 1070712.342 | F81: =Calculation!J238 -> 0 | G81: =Calculation!K238 -> 0 | H81: =Calculation!L238 -> 5850.127424 | I81: =Calculation!M238 -> 159349.2651 | J81: =Calculation!N238 -> 139312.2062 | K81: =Calculation!O238 -> 104153.8891 | L81: =Calculation!P238 -> 213579.8665 | M81: =Calculation!Q238 -> 84471.07604 | N81: =Calculation!R238 -> 47088.80488 | O81: =Calculation!S238 -> 316907.1071 | P81: =Calculation!T238 -> 0 | Q81: =Calculation!U238 -> 0 | R81: =Calculation!V238 -> 0 | S81: =Calculation!E238 -> Wages/Benefits
C82: 5 | D82: =Calculation!C239 -> Employee Benefits | E82: 361410.5635 | F82: =Calculation!J239 -> 0 | G82: =Calculation!K239 -> 0 | H82: =Calculation!L239 -> 1974.664684 | I82: =Calculation!M239 -> 53787.09614 | J82: =Calculation!N239 -> 47023.74388 | K82: =Calculation!O239 -> 35156.32935 | L82: =Calculation!P239 -> 72092.2108 | M82: =Calculation!Q239 -> 28512.54999 | N82: =Calculation!R239 -> 15894.45721 | O82: =Calculation!S239 -> 106969.5114 | P82: =Calculation!T239 -> 0 | Q82: =Calculation!U239 -> 0 | R82: =Calculation!V239 -> 0 | S82: =Calculation!E239 -> Wages/Benefits
C83: 6 | D83: =Calculation!C240 -> Insurance | E83: 86211.09 | F83: =Calculation!J240 -> 0 | G83: =Calculation!K240 -> 0 | H83: =Calculation!L240 -> 13.37992715 | I83: =Calculation!M240 -> 347.7187949 | J83: =Calculation!N240 -> 308.7137448 | K83: =Calculation!O240 -> 120.4193443 | L83: =Calculation!P240 -> 41.41823515 | M83: =Calculation!Q240 -> 162.291598 | N83: =Calculation!R240 -> 0 | O83: =Calculation!S240 -> 85217.14836 | P83: =Calculation!T240 -> 0 | Q83: =Calculation!U240 -> 0 | R83: =Calculation!V240 -> 0 | S83: =Calculation!E240 -> Insurance
C84: 7 | D84: =Calculation!C241 -> Utilities | E84: 17442.8661 | F84: =Calculation!J241 -> 0 | G84: =Calculation!K241 -> 0 | H84: =Calculation!L241 -> 95.30383212 | I84: =Calculation!M241 -> 2595.942705 | J84: =Calculation!N241 -> 2269.521013 | K84: =Calculation!O241 -> 1696.760436 | L84: =Calculation!P241 -> 3479.407928 | M84: =Calculation!Q241 -> 1376.109727 | N84: =Calculation!R241 -> 767.1189411 | O84: =Calculation!S241 -> 5162.701518 | P84: =Calculation!T241 -> 0 | Q84: =Calculation!U241 -> 0 | R84: =Calculation!V241 -> 0 | S84: =Calculation!E241 -> Bldgs&Impr.
C85: 8 | D85: =Calculation!C242 -> Advertising | E85: 34239.7024 | F85: =Calculation!J242 -> 0 | G85: =Calculation!K242 -> 0 | H85: =Calculation!L242 -> 0 | I85: =Calculation!M242 -> 0 | J85: =Calculation!N242 -> 0 | K85: =Calculation!O242 -> 0 | L85: =Calculation!P242 -> 0 | M85: =Calculation!Q242 -> 34239.7024 | N85: =Calculation!R242 -> 0 | O85: =Calculation!S242 -> 0 | P85: =Calculation!T242 -> 0 | Q85: =Calculation!U242 -> 0 | R85: =Calculation!V242 -> 0 | S85: =Calculation!E242 -> Marketing
C86: 9 | D86: =Calculation!C243 -> Telephone | E86: 36000 | F86: =Calculation!J243 -> 0 | G86: =Calculation!K243 -> 0 | H86: =Calculation!L243 -> 0 | I86: =Calculation!M243 -> 0 | J86: =Calculation!N243 -> 0 | K86: =Calculation!O243 -> 0 | L86: =Calculation!P243 -> 0 | M86: =Calculation!Q243 -> 0 | N86: =Calculation!R243 -> 0 | O86: =Calculation!S243 -> 36000 | P86: =Calculation!T243 -> 0 | Q86: =Calculation!U243 -> 0 | R86: =Calculation!V243 -> 0 | S86: =Calculation!E243 -> A&G
C87: 10 | D87: =Calculation!C244 -> Office & Postage | E87: 127393.705 | F87: =Calculation!J244 -> 0 | G87: =Calculation!K244 -> 0 | H87: =Calculation!L244 -> 0 | I87: =Calculation!M244 -> 0 | J87: =Calculation!N244 -> 0 | K87: =Calculation!O244 -> 0 | L87: =Calculation!P244 -> 127393.705 | M87: =Calculation!Q244 -> 0 | N87: =Calculation!R244 -> 0 | O87: =Calculation!S244 -> 0 | P87: =Calculation!T244 -> 0 | Q87: =Calculation!U244 -> 0 | R87: =Calculation!V244 -> 0 | S87: =Calculation!E244 -> Billing & Accounting
C88: 11 | D88: =Calculation!C245 -> Repair & Maintenance | E88: 118449.6711 | F88: =Calculation!J245 -> 0 | G88: =Calculation!K245 -> 0 | H88: =Calculation!L245 -> 6641.157399 | I88: =Calculation!M245 -> 12862.2294 | J88: =Calculation!N245 -> 11271.84197 | K88: =Calculation!O245 -> 37130.2161 | L88: =Calculation!P245 -> 16305.83849 | M88: =Calculation!Q245 -> 6448.977357 | N88: =Calculation!R245 -> 3595.013236 | O88: =Calculation!S245 -> 24194.39711 | P88: =Calculation!T245 -> 0 | Q88: =Calculation!U245 -> 0 | R88: =Calculation!V245 -> 0 | S88: =Calculation!E245 -> R&MGeneral
C89: 12 | D89: =Calculation!C246 -> Transp. Fuel/ Maint. | E89: 45748.3554 | F89: =Calculation!J246 -> 0 | G89: =Calculation!K246 -> 0 | H89: =Calculation!L246 -> 470.2157104 | I89: =Calculation!M246 -> 12220.00975 | J89: =Calculation!N246 -> 10849.2409 | K89: =Calculation!O246 -> 4231.941394 | L89: =Calculation!P246 -> 1455.576301 | M89: =Calculation!Q246 -> 5703.473435 | N89: =Calculation!R246 -> 0 | O89: =Calculation!S246 -> 10817.89791 | P89: =Calculation!T246 -> 0 | Q89: =Calculation!U246 -> 0 | R89: =Calculation!V246 -> 0 | S89: =Calculation!E246 -> Vehicles
C90: 13 | D90: =Calculation!C247 -> Dues & Fees | E90: 31185.20912 | F90: =Calculation!J247 -> 0 | G90: =Calculation!K247 -> 0 | H90: =Calculation!L247 -> 0 | I90: =Calculation!M247 -> 0 | J90: =Calculation!N247 -> 0 | K90: =Calculation!O247 -> 0 | L90: =Calculation!P247 -> 0 | M90: =Calculation!Q247 -> 0 | N90: =Calculation!R247 -> 0 | O90: =Calculation!S247 -> 31185.20912 | P90: =Calculation!T247 -> 0 | Q90: =Calculation!U247 -> 0 | R90: =Calculation!V247 -> 0 | S90: =Calculation!E247 -> A&G
C91: 14 | D91: =Calculation!C248 -> Mapping Expense | E91: 0 | F91: =Calculation!J248 -> 0 | G91: =Calculation!K248 -> 0 | H91: =Calculation!L248 -> 0 | I91: =Calculation!M248 -> 0 | J91: =Calculation!N248 -> 0 | K91: =Calculation!O248 -> 0 | L91: =Calculation!P248 -> 0 | M91: =Calculation!Q248 -> 0 | N91: =Calculation!R248 -> 0 | O91: =Calculation!S248 -> 0 | P91: =Calculation!T248 -> 0 | Q91: =Calculation!U248 -> 0 | R91: =Calculation!V248 -> 0 | S91: =Calculation!E248 -> 0
C92: 15 | D92: =Calculation!C249 -> Regulatory | E92: 211851.832 | F92: =Calculation!J249 -> 0 | G92: =Calculation!K249 -> 0 | H92: =Calculation!L249 -> 0 | I92: =Calculation!M249 -> 0 | J92: =Calculation!N249 -> 0 | K92: =Calculation!O249 -> 0 | L92: =Calculation!P249 -> 0 | M92: =Calculation!Q249 -> 0 | N92: =Calculation!R249 -> 0 | O92: =Calculation!S249 -> 211851.832 | P92: =Calculation!T249 -> 0 | Q92: =Calculation!U249 -> 0 | R92: =Calculation!V249 -> 0 | S92: =Calculation!E249 -> A&G
C93: 16 | D93: =Calculation!C250 -> Bad Debts | E93: 34200 | F93: =Calculation!J250 -> 0 | G93: =Calculation!K250 -> 0 | H93: =Calculation!L250 -> 0 | I93: =Calculation!M250 -> 0 | J93: =Calculation!N250 -> 0 | K93: =Calculation!O250 -> 0 | L93: =Calculation!P250 -> 0 | M93: =Calculation!Q250 -> 0 | N93: =Calculation!R250 -> 34200 | O93: =Calculation!S250 -> 0 | P93: =Calculation!T250 -> 0 | Q93: =Calculation!U250 -> 0 | R93: =Calculation!V250 -> 0 | S93: =Calculation!E250 -> Bad Debt & Collection
C94: 17 | D94: =Calculation!C251 -> Interest - Security Deposits | E94: 0 | F94: =Calculation!J251 -> 0 | G94: =Calculation!K251 -> 0 | H94: =Calculation!L251 -> 0 | I94: =Calculation!M251 -> 0 | J94: =Calculation!N251 -> 0 | K94: =Calculation!O251 -> 0 | L94: =Calculation!P251 -> 0 | M94: =Calculation!Q251 -> 0 | N94: =Calculation!R251 -> 0 | O94: =Calculation!S251 -> 0 | P94: =Calculation!T251 -> 0 | Q94: =Calculation!U251 -> 0 | R94: =Calculation!V251 -> 0 | S94: =Calculation!E251 -> 0
C95: 18 | D95: =Calculation!C252 -> Bank Charges | E95: 6019 | F95: =Calculation!J252 -> 0 | G95: =Calculation!K252 -> 0 | H95: =Calculation!L252 -> 0 | I95: =Calculation!M252 -> 0 | J95: =Calculation!N252 -> 0 | K95: =Calculation!O252 -> 0 | L95: =Calculation!P252 -> 0 | M95: =Calculation!Q252 -> 0 | N95: =Calculation!R252 -> 0 | O95: =Calculation!S252 -> 6019 | P95: =Calculation!T252 -> 0 | Q95: =Calculation!U252 -> 0 | R95: =Calculation!V252 -> 0 | S95: =Calculation!E252 -> A&G
C96: 19 | D96: =Calculation!C253 -> Collection Expense | E96: 0 | F96: =Calculation!J253 -> 0 | G96: =Calculation!K253 -> 0 | H96: =Calculation!L253 -> 0 | I96: =Calculation!M253 -> 0 | J96: =Calculation!N253 -> 0 | K96: =Calculation!O253 -> 0 | L96: =Calculation!P253 -> 0 | M96: =Calculation!Q253 -> 0 | N96: =Calculation!R253 -> 0 | O96: =Calculation!S253 -> 0 | P96: =Calculation!T253 -> 0 | Q96: =Calculation!U253 -> 0 | R96: =Calculation!V253 -> 0 | S96: =Calculation!E253 -> 0
C97: 20 | D97: =Calculation!C254 -> Travel & Ent. | E97: 15145.0035 | F97: =Calculation!J254 -> 0 | G97: =Calculation!K254 -> 0 | H97: =Calculation!L254 -> 0 | I97: =Calculation!M254 -> 0 | J97: =Calculation!N254 -> 0 | K97: =Calculation!O254 -> 0 | L97: =Calculation!P254 -> 0 | M97: =Calculation!Q254 -> 0 | N97: =Calculation!R254 -> 0 | O97: =Calculation!S254 -> 15145.0035 | P97: =Calculation!T254 -> 0 | Q97: =Calculation!U254 -> 0 | R97: =Calculation!V254 -> 0 | S97: =Calculation!E254 -> Travel&Ent.
C98: 21 | D98: =Calculation!C255 -> Legal | E98: 34467.939 | F98: =Calculation!J255 -> 0 | G98: =Calculation!K255 -> 0 | H98: =Calculation!L255 -> 0 | I98: =Calculation!M255 -> 0 | J98: =Calculation!N255 -> 0 | K98: =Calculation!O255 -> 0 | L98: =Calculation!P255 -> 0 | M98: =Calculation!Q255 -> 0 | N98: =Calculation!R255 -> 0 | O98: =Calculation!S255 -> 34467.939 | P98: =Calculation!T255 -> 0 | Q98: =Calculation!U255 -> 0 | R98: =Calculation!V255 -> 0 | S98: =Calculation!E255 -> A&G
C99: 22 | D99: =Calculation!C256 -> Audit | E99: 31334.49 | F99: =Calculation!J256 -> 0 | G99: =Calculation!K256 -> 0 | H99: =Calculation!L256 -> 0 | I99: =Calculation!M256 -> 0 | J99: =Calculation!N256 -> 0 | K99: =Calculation!O256 -> 0 | L99: =Calculation!P256 -> 0 | M99: =Calculation!Q256 -> 0 | N99: =Calculation!R256 -> 0 | O99: =Calculation!S256 -> 31334.49 | P99: =Calculation!T256 -> 0 | Q99: =Calculation!U256 -> 0 | R99: =Calculation!V256 -> 0 | S99: =Calculation!E256 -> A&G
C100: 23 | D100: =Calculation!C257 -> Consulting Fees | E100: 116913.1049 | F100: =Calculation!J257 -> 0 | G100: =Calculation!K257 -> 0 | H100: =Calculation!L257 -> 0 | I100: =Calculation!M257 -> 0 | J100: =Calculation!N257 -> 5962.568349 | K100: =Calculation!O257 -> 83242.13067 | L100: =Calculation!P257 -> 0 | M100: =Calculation!Q257 -> 0 | N100: =Calculation!R257 -> 0 | O100: =Calculation!S257 -> 27708.40586 | P100: =Calculation!T257 -> 0 | Q100: =Calculation!U257 -> 0 | R100: =Calculation!V257 -> 0 | S100: =Calculation!E257 -> Consulting
C101: 24 | D101: =Calculation!C258 -> Management Fees | E101: 0 | F101: =Calculation!J258 -> 0 | G101: =Calculation!K258 -> 0 | H101: =Calculation!L258 -> 0 | I101: =Calculation!M258 -> 0 | J101: =Calculation!N258 -> 0 | K101: =Calculation!O258 -> 0 | L101: =Calculation!P258 -> 0 | M101: =Calculation!Q258 -> 0 | N101: =Calculation!R258 -> 0 | O101: =Calculation!S258 -> 0 | P101: =Calculation!T258 -> 0 | Q101: =Calculation!U258 -> 0 | R101: =Calculation!V258 -> 0 | S101: =Calculation!E258 -> 0
C102: 25 | D102: =Calculation!C259 -> Correction on CCA issue | E102: 0 | F102: =Calculation!J259 -> 0 | G102: =Calculation!K259 -> 0 | H102: =Calculation!L259 -> 0 | I102: =Calculation!M259 -> 0 | J102: =Calculation!N259 -> 0 | K102: =Calculation!O259 -> 0 | L102: =Calculation!P259 -> 0 | M102: =Calculation!Q259 -> 0 | N102: =Calculation!R259 -> 0 | O102: =Calculation!S259 -> 0 | P102: =Calculation!T259 -> 0 | Q102: =Calculation!U259 -> 0 | R102: =Calculation!V259 -> 0 | S102: =Calculation!E259 -> 0
C103: 26 | D103: =Calculation!C260 -> Miscellaneous | E103: 0 | F103: =Calculation!J260 -> 0 | G103: =Calculation!K260 -> 0 | H103: =Calculation!L260 -> 0 | I103: =Calculation!M260 -> 0 | J103: =Calculation!N260 -> 0 | K103: =Calculation!O260 -> 0 | L103: =Calculation!P260 -> 0 | M103: =Calculation!Q260 -> 0 | N103: =Calculation!R260 -> 0 | O103: =Calculation!S260 -> 0 | P103: =Calculation!T260 -> 0 | Q103: =Calculation!U260 -> 0 | R103: =Calculation!V260 -> 0 | S103: =Calculation!E260 -> 0
C104: 27 | D104: =Calculation!C261 -> Affiliate Shared Services | E104: 453505.0988 | F104: =Calculation!J261 -> 0 | G104: =Calculation!K261 -> 0 | H104: =Calculation!L261 -> 0 | I104: =Calculation!M261 -> 0 | J104: =Calculation!N261 -> 0 | K104: =Calculation!O261 -> 0 | L104: =Calculation!P261 -> 0 | M104: =Calculation!Q261 -> 0 | N104: =Calculation!R261 -> 0 | O104: =Calculation!S261 -> 453505.0988 | P104: =Calculation!T261 -> 0 | Q104: =Calculation!U261 -> 0 | R104: =Calculation!V261 -> 0 | S104: =Calculation!E261 -> A&G
C105: 28 | D105: =Calculation!C262 -> Corporate Shared Services | E105: 439217 | F105: =Calculation!J262 -> 0 | G105: =Calculation!K262 -> 0 | H105: =Calculation!L262 -> 0 | I105: =Calculation!M262 -> 0 | J105: =Calculation!N262 -> 0 | K105: =Calculation!O262 -> 0 | L105: =Calculation!P262 -> 0 | M105: =Calculation!Q262 -> 0 | N105: =Calculation!R262 -> 0 | O105: =Calculation!S262 -> 439217 | P105: =Calculation!T262 -> 0 | Q105: =Calculation!U262 -> 0 | R105: =Calculation!V262 -> 0 | S105: =Calculation!E262 -> A&G
C106: 29 | D106: =Calculation!C263 -> LEAP Funding | E106: 7983.120104 | F106: =Calculation!J263 -> 0 | G106: =Calculation!K263 -> 0 | H106: =Calculation!L263 -> 0 | I106: =Calculation!M263 -> 0 | J106: =Calculation!N263 -> 0 | K106: =Calculation!O263 -> 0 | L106: =Calculation!P263 -> 0 | M106: =Calculation!Q263 -> 0 | N106: =Calculation!R263 -> 0 | O106: =Calculation!S263 -> 0 | P106: =Calculation!T263 -> 7983.120104 | Q106: =Calculation!U263 -> 0 | R106: =Calculation!V263 -> 0 | S106: =Calculation!E263 -> LEAP Funding
C107: 30 | D107: =Calculation!C264 -> Maintenance Cost on IGPC Pipeline and Station | E107: 79672.0925 | F107: =Calculation!J264 -> 0 | G107: =Calculation!K264 -> 0 | H107: =Calculation!L264 -> 0 | I107: =Calculation!M264 -> 0 | J107: =Calculation!N264 -> 0 | K107: =Calculation!O264 -> 0 | L107: =Calculation!P264 -> 0 | M107: =Calculation!Q264 -> 0 | N107: =Calculation!R264 -> 0 | O107: =Calculation!S264 -> 0 | P107: =Calculation!T264 -> 0 | Q107: =Calculation!U264 -> 79672.0925 | R107: =Calculation!V264 -> 0 | S107: =Calculation!E264 -> IGPC Direct Assignment
C108: 31 | D108: Sum | E108: =SUM(E78:E107) -> 4046146.919 | F108: =SUM(F78:F107) -> 11500.79 | G108: 675543.9434 | H108: 15044.84898 | I108: 241162.2619 | J108: 216997.8361 | K108: 265731.6864 | L108: 434348.0232 | M108: 160914.1805 | N108: 101545.3943 | O108: 1835702.742 | P108: 7983.120104 | Q108: 79672.0925 | R108: 0
C110: Check | E110: =Input!$S$488+$E$108 -> 0
C112: Schedule 3
C113: Functionalization of Depreciation
C114: ($ thousands)
E115: A | F115: B | G115: C | H115: D | I115: E | J115: F | K115: G | L115: H | M115: I | N115: J | O115: K | P115: L | Q115: M | R115: N | S115: O | T115: P
D116: Asset | E116: Total | F116: =Calculation!J$271 -> Gas Supply | G116: =Calculation!K$271 -> Transportation Load Bal/ Storage | H116: =Calculation!L$271 -> Distribution Measurement | I116: =Calculation!M$271 -> Distribution - Mains | J116: =Calculation!N$271 -> Customer - Services | K116: =Calculation!O$271 -> Customer - Meters | L116: =Calculation!P$271 -> Billing & Accounting | M116: =Calculation!Q$271 -> Promotion | N116: =Calculation!R$271 -> Bad Debt & Collection | O116: =Calculation!S$271 -> A&G | P116: =Calculation!T$271 -> LEAP Funding | Q116: =Calculation!U$271 -> Direct Assignment to IGPC | R116: =Calculation!V$271 -> Other Revenue | S116: Functionalization Factor | T116: USoA
C117: 1 | D117: =Calculation!C272 -> Land Rights - Distribution | E117: =SUM(F117:R117) -> 0 | F117: =Calculation!J272 -> 0 | G117: =Calculation!K272 -> 0 | H117: =Calculation!L272 -> 0 | I117: =Calculation!M272 -> 0 | J117: =Calculation!N272 -> 0 | K117: =Calculation!O272 -> 0 | L117: =Calculation!P272 -> 0 | M117: =Calculation!Q272 -> 0 | N117: =Calculation!R272 -> 0 | O117: =Calculation!S272 -> 0 | P117: =Calculation!T272 -> 0 | Q117: =Calculation!U272 -> 0 | R117: =Calculation!V272 -> 0 | S117: =Calculation!E272 -> Bldgs&Impr. | T117: =Calculation!F272 -> 471
C118: 2 | D118: =Calculation!C273 -> Structures and Improvements - Distribution | E118: 0 | F118: =Calculation!J273 -> 0 | G118: =Calculation!K273 -> 0 | H118: =Calculation!L273 -> 0 | I118: =Calculation!M273 -> 0 | J118: =Calculation!N273 -> 0 | K118: =Calculation!O273 -> 0 | L118: =Calculation!P273 -> 0 | M118: =Calculation!Q273 -> 0 | N118: =Calculation!R273 -> 0 | O118: =Calculation!S273 -> 0 | P118: =Calculation!T273 -> 0 | Q118: =Calculation!U273 -> 0 | R118: =Calculation!V273 -> 0 | S118: =Calculation!E273 -> Bldgs&Impr. | T118: =Calculation!F273 -> 472
C119: 3 | D119: =Calculation!C274 -> Mains - Distribution | E119: 309729.6558 | F119: =Calculation!J274 -> 0 | G119: =Calculation!K274 -> 0 | H119: =Calculation!L274 -> 0 | I119: =Calculation!M274 -> 309729.6558 | J119: =Calculation!N274 -> 0 | K119: =Calculation!O274 -> 0 | L119: =Calculation!P274 -> 0 | M119: =Calculation!Q274 -> 0 | N119: =Calculation!R274 -> 0 | O119: =Calculation!S274 -> 0 | P119: =Calculation!T274 -> 0 | Q119: =Calculation!U274 -> 0 | R119: =Calculation!V274 -> 0 | S119: =Calculation!E274 -> Mains | T119: =Calculation!F274 -> 475
C120: 4 | D120: =Calculation!C275 -> Measuring and Regulating Equipment - Distribution | E120: 75553.60139 | F120: =Calculation!J275 -> 0 | G120: =Calculation!K275 -> 0 | H120: =Calculation!L275 -> 75553.60139 | I120: =Calculation!M275 -> 0 | J120: =Calculation!N275 -> 0 | K120: =Calculation!O275 -> 0 | L120: =Calculation!P275 -> 0 | M120: =Calculation!Q275 -> 0 | N120: =Calculation!R275 -> 0 | O120: =Calculation!S275 -> 0 | P120: =Calculation!T275 -> 0 | Q120: =Calculation!U275 -> 0 | R120: =Calculation!V275 -> 0 | S120: =Calculation!E275 -> Distribution Measurement | T120: =Calculation!F275 -> 477
C121: 5 | D121: =Calculation!C276 -> Regulators and Meter Installations | E121: 5375 | F121: =Calculation!J276 -> 0 | G121: =Calculation!K276 -> 0 | H121: =Calculation!L276 -> 0 | I121: =Calculation!M276 -> 0 | J121: =Calculation!N276 -> 5375 | K121: =Calculation!O276 -> 0 | L121: =Calculation!P276 -> 0 | M121: =Calculation!Q276 -> 0 | N121: =Calculation!R276 -> 0 | O121: =Calculation!S276 -> 0 | P121: =Calculation!T276 -> 0 | Q121: =Calculation!U276 -> 0 | R121: =Calculation!V276 -> 0 | S121: =Calculation!E276 -> Regulators | T121: =Calculation!F276 -> 474
C122: 6 | D122: =Calculation!C277 -> Services | E122: 101894.1862 | F122: =Calculation!J277 -> 0 | G122: =Calculation!K277 -> 0 | H122: =Calculation!L277 -> 0 | I122: =Calculation!M277 -> 0 | J122: =Calculation!N277 -> 101894.1862 | K122: =Calculation!O277 -> 0 | L122: =Calculation!P277 -> 0 | M122: =Calculation!Q277 -> 0 | N122: =Calculation!R277 -> 0 | O122: =Calculation!S277 -> 0 | P122: =Calculation!T277 -> 0 | Q122: =Calculation!U277 -> 0 | R122: =Calculation!V277 -> 0 | S122: =Calculation!E277 -> Services | T122: =Calculation!F277 -> 473
C123: 7 | D123: =Calculation!C278 -> Meter | E123: =SUM(F123:R123) -> 211774.1943 | F123: =Calculation!J278 -> 0 | G123: =Calculation!K278 -> 0 | H123: =Calculation!L278 -> 0 | I123: =Calculation!M278 -> 0 | J123: =Calculation!N278 -> 0 | K123: =Calculation!O278 -> 211774.1943 | L123: =Calculation!P278 -> 0 | M123: =Calculation!Q278 -> 0 | N123: =Calculation!R278 -> 0 | O123: =Calculation!S278 -> 0 | P123: =Calculation!T278 -> 0 | Q123: =Calculation!U278 -> 0 | R123: =Calculation!V278 -> 0 | S123: =Calculation!E278 -> Meters | T123: =Calculation!F278 -> 478
C124: 8 | D124: =Calculation!C279 -> Land | E124: 0 | F124: =Calculation!J279 -> 0 | G124: =Calculation!K279 -> 0 | H124: =Calculation!L279 -> 0 | I124: =Calculation!M279 -> 0 | J124: =Calculation!N279 -> 0 | K124: =Calculation!O279 -> 0 | L124: =Calculation!P279 -> 0 | M124: =Calculation!Q279 -> 0 | N124: =Calculation!R279 -> 0 | O124: =Calculation!S279 -> 0 | P124: =Calculation!T279 -> 0 | Q124: =Calculation!U279 -> 0 | R124: =Calculation!V279 -> 0 | S124: =Calculation!E279 -> Bldgs&Impr. | T124: =Calculation!F279 -> 480
C125: 9 | D125: =Calculation!C280 -> Heavy Work Equipment | E125: 0 | F125: =Calculation!J280 -> 0 | G125: =Calculation!K280 -> 0 | H125: =Calculation!L280 -> 0 | I125: =Calculation!M280 -> 0 | J125: =Calculation!N280 -> 0 | K125: =Calculation!O280 -> 0 | L125: =Calculation!P280 -> 0 | M125: =Calculation!Q280 -> 0 | N125: =Calculation!R280 -> 0 | O125: =Calculation!S280 -> 0 | P125: =Calculation!T280 -> 0 | Q125: =Calculation!U280 -> 0 | R125: =Calculation!V280 -> 0 | S125: =Calculation!E280 -> Heavy Equipment | T125: =Calculation!F280 -> 485
C126: 10 | D126: =Calculation!C281 -> Transportation Equipment | E126: 53343.80452 | F126: =Calculation!J281 -> 0 | G126: =Calculation!K281 -> 0 | H126: =Calculation!L281 -> 548.2840797 | I126: =Calculation!M281 -> 14248.85781 | J126: =Calculation!N281 -> 12650.50472 | K126: =Calculation!O281 -> 4934.556717 | L126: =Calculation!P281 -> 1697.240851 | M126: =Calculation!Q281 -> 6650.402388 | N126: =Calculation!R281 -> 0 | O126: =Calculation!S281 -> 12613.95796 | P126: =Calculation!T281 -> 0 | Q126: =Calculation!U281 -> 0 | R126: =Calculation!V281 -> 0 | S126: =Calculation!E281 -> Vehicles | T126: =Calculation!F281 -> 484
C127: 11 | D127: =Calculation!C282 -> Structures and Improvements - General | E127: 14326.66628 | F127: =Calculation!J282 -> 0 | G127: =Calculation!K282 -> 0 | H127: =Calculation!L282 -> 78.27762883 | I127: =Calculation!M282 -> 2132.17281 | J127: =Calculation!N282 -> 1864.066948 | K127: =Calculation!O282 -> 1393.631092 | L127: =Calculation!P282 -> 2857.805361 | M127: =Calculation!Q282 -> 1130.265216 | N127: =Calculation!R282 -> 630.0717443 | O127: =Calculation!S282 -> 4240.375483 | P127: =Calculation!T282 -> 0 | Q127: =Calculation!U282 -> 0 | R127: =Calculation!V282 -> 0 | S127: =Calculation!E282 -> Bldgs&Impr. | T127: =Calculation!F282 -> 482
C128: 12 | D128: =Calculation!C283 -> Office Furniture and Equipment | E128: 5359.162 | F128: =Calculation!J283 -> 0 | G128: =Calculation!K283 -> 0 | H128: =Calculation!L283 -> 29.28123581 | I128: =Calculation!M283 -> 797.5797911 | J128: =Calculation!N283 -> 697.2896942 | K128: =Calculation!O283 -> 521.3142152 | L128: =Calculation!P283 -> 1069.016447 | M128: =Calculation!Q283 -> 422.7972004 | N128: =Calculation!R283 -> 235.6903192 | O128: =Calculation!S283 -> 1586.193097 | P128: =Calculation!T283 -> 0 | Q128: =Calculation!U283 -> 0 | R128: =Calculation!V283 -> 0 | S128: =Calculation!E283 -> Bldgs&Impr. | T128: =Calculation!F283 -> 483
C129: 13 | D129: =Calculation!C284 -> Communication Structures and Equipment | E129: 15405.9185 | F129: =Calculation!J284 -> 0 | G129: =Calculation!K284 -> 0 | H129: =Calculation!L284 -> 0 | I129: =Calculation!M284 -> 3851.479625 | J129: =Calculation!N284 -> 3851.479625 | K129: =Calculation!O284 -> 0 | L129: =Calculation!P284 -> 0 | M129: =Calculation!Q284 -> 0 | N129: =Calculation!R284 -> 0 | O129: =Calculation!S284 -> 7702.95925 | P129: =Calculation!T284 -> 0 | Q129: =Calculation!U284 -> 0 | R129: =Calculation!V284 -> 0 | S129: =Calculation!E284 -> Communications | T129: =Calculation!F284 -> 488
C130: 14 | D130: =Calculation!C285 -> Computer Hardware | E130: 63184.765 | F130: =Calculation!J285 -> 0 | G130: =Calculation!K285 -> 0 | H130: =Calculation!L285 -> 329.2675497 | I130: =Calculation!M285 -> 9279.934963 | J130: =Calculation!N285 -> 9372.68088 | K130: =Calculation!O285 -> 6458.181652 | L130: =Calculation!P285 -> 12064.40497 | M130: =Calculation!Q285 -> 4126.807246 | N130: =Calculation!R285 -> 3439.006039 | O130: =Calculation!S285 -> 18114.4817 | P130: =Calculation!T285 -> 0 | Q130: =Calculation!U285 -> 0 | R130: =Calculation!V285 -> 0 | S130: =Calculation!E285 -> Computers | T130: =Calculation!F285 -> 490
C131: 15 | D131: =Calculation!C286 -> Computer Application Software | E131: 59385.54525 | F131: =Calculation!J286 -> 0 | G131: =Calculation!K286 -> 0 | H131: =Calculation!L286 -> 0 | I131: =Calculation!M286 -> 0 | J131: =Calculation!N286 -> 0 | K131: =Calculation!O286 -> 0 | L131: =Calculation!P286 -> 44539.15894 | M131: =Calculation!Q286 -> 0 | N131: =Calculation!R286 -> 0 | O131: =Calculation!S286 -> 14846.38631 | P131: =Calculation!T286 -> 0 | Q131: =Calculation!U286 -> 0 | R131: =Calculation!V286 -> 0 | S131: =Calculation!E286 -> Computer Application Software | T131: =Calculation!F286 -> 491
C132: 16 | D132: =Calculation!C287 -> Tools and Work Equipment | E132: 51303.066 | F132: =Calculation!J287 -> 0 | G132: =Calculation!K287 -> 0 | H132: =Calculation!L287 -> 936.9791572 | I132: =Calculation!M287 -> 21920.85537 | J132: =Calculation!N287 -> 20012.41906 | K132: =Calculation!O287 -> 8432.812415 | L132: =Calculation!P287 -> 0 | M132: =Calculation!Q287 -> 0 | N132: =Calculation!R287 -> 0 | O132: =Calculation!S287 -> 0 | P132: =Calculation!T287 -> 0 | Q132: =Calculation!U287 -> 0 | R132: =Calculation!V287 -> 0 | S132: =Calculation!E287 -> SmallTools | T132: =Calculation!F287 -> 486
C133: 17 | D133: =Calculation!C288 -> Frachises and Consents | E133: 37646.04748 | F133: =Calculation!J288 -> 0 | G133: =Calculation!K288 -> 0 | H133: =Calculation!L288 -> 0 | I133: =Calculation!M288 -> 0 | J133: =Calculation!N288 -> 0 | K133: =Calculation!O288 -> 0 | L133: =Calculation!P288 -> 0 | M133: =Calculation!Q288 -> 0 | N133: =Calculation!R288 -> 0 | O133: =Calculation!S288 -> 37646.04748 | P133: =Calculation!T288 -> 0 | Q133: =Calculation!U288 -> 0 | R133: =Calculation!V288 -> 0 | S133: =Calculation!E288 -> A&G | T133: =Calculation!F288 -> 401
